Workbook

Sheet Page 1-4, Sumcost Exhibits
B1: AVISTA UTILITIES
B2: WASHINGTON ELECTRIC
B3: COST OF SERVICE
B4: 12 MONTHS ENDED DECEMBER 31, 2011
B5: A | C5: B | D5: C | E5: D | F5: E | G5: F | H5: G | I5: H | J5: I | K5: (m) | L5: (n) | M5: (o) | N5: (p) | O5: (q)
E6: =SUMCOST!G6 -> Residential | F6: =SUMCOST!H6 -> General | G6: =SUMCOST!I6 -> Large Gen | H6: =SUMCOST!J6 -> Extra Large | I6: =SUMCOST!K6 -> Pumping | J6: =SUMCOST!L6 -> Street & | K6: =SUMCOST!M6 ->  | L6: =SUMCOST!N6 ->  | M6: =SUMCOST!O6 ->  | N6: =SUMCOST!P6 ->  | O6: =SUMCOST!Q6 -> 
A7: Line No. | D7: System | E7: =SUMCOST!G7 -> Service | F7: =SUMCOST!H7 -> Service | G7: =SUMCOST!I7 -> Service | H7: =SUMCOST!J7 -> Gen Service | I7: =SUMCOST!K7 -> Service | J7: =SUMCOST!L7 -> Area Lights | K7: =SUMCOST!M7 ->  | L7: =SUMCOST!N7 ->  | M7: =SUMCOST!O7 ->  | N7: =SUMCOST!P7 ->  | O7: =SUMCOST!Q7 -> 
B8: Description | D8: Total | E8: =SUMCOST!G8 -> Sch 1 | F8: =SUMCOST!H8 -> Sch 11-12 | G8: =SUMCOST!I8 -> Sch 21-22 | H8: =SUMCOST!J8 -> Sch 25 | I8: =SUMCOST!K8 -> Sch 31-32 | J8: =SUMCOST!L8 -> Sch 41-49 | K8: =SUMCOST!M8 -> Open 1 | L8: =SUMCOST!N8 -> Open 2 | M8: =SUMCOST!O8 -> Open 3 | N8: =SUMCOST!P8 -> Open 4 | O8: =SUMCOST!Q8 -> Open 5
A9: 1 | B9: Plant In Service
A10: 2 | B10: Production Plant | D10: =SUM(E10:O10) -> 775077000 | E10: =SUMCOST!G10 -> 351949127.7 | F10: =SUMCOST!H10 -> 65666765.12 | G10: =SUMCOST!I10 -> 200925570.2 | H10: =SUMCOST!J10 -> 137373554.6 | I10: =SUMCOST!K10 -> 16136480.06 | J10: =SUMCOST!L10 -> 3025502.428 | K10: =SUMCOST!M10 -> 0 | L10: =SUMCOST!N10 -> 0 | M10: =SUMCOST!O10 -> 0 | N10: =SUMCOST!P10 -> 0 | O10: =SUMCOST!Q10 -> 0
A11: 3 | B11: Transmission Plant | D11: =SUM(E11:O11) -> 333426000 | E11: =SUMCOST!G11 -> 151403008.8 | F11: =SUMCOST!H11 -> 28248815.06 | G11: =SUMCOST!I11 -> 86435036.99 | H11: =SUMCOST!J11 -> 59095954.08 | I11: =SUMCOST!K11 -> 6941661.281 | J11: =SUMCOST!L11 -> 1301523.813 | K11: =SUMCOST!M11 -> 0 | L11: =SUMCOST!N11 -> 0 | M11: =SUMCOST!O11 -> 0 | N11: =SUMCOST!P11 -> 0 | O11: =SUMCOST!Q11 -> 0
A12: 4 | B12: Distribution Plant | D12: =SUM(E12:O12) -> 695186000 | E12: =SUMCOST!G12 -> 377267678.9 | F12: =SUMCOST!H12 -> 76499108.08 | G12: =SUMCOST!I12 -> 164018215.4 | H12: =SUMCOST!J12 -> 25510159.12 | I12: =SUMCOST!K12 -> 16701655.12 | J12: =SUMCOST!L12 -> 35189183.37 | K12: =SUMCOST!M12 -> 0 | L12: =SUMCOST!N12 -> 0 | M12: =SUMCOST!O12 -> 0 | N12: =SUMCOST!P12 -> 0 | O12: =SUMCOST!Q12 -> 0
A13: 5 | B13: Intangible Plant | D13: =SUM(E13:O13) -> 86962000 | E13: =SUMCOST!G13 -> 40306629.65 | F13: =SUMCOST!H13 -> 7586235.443 | G13: =SUMCOST!I13 -> 22300212.66 | H13: =SUMCOST!J13 -> 14204122.04 | I13: =SUMCOST!K13 -> 1835202.791 | J13: =SUMCOST!L13 -> 729597.4089 | K13: =SUMCOST!M13 -> 0 | L13: =SUMCOST!N13 -> 0 | M13: =SUMCOST!O13 -> 0 | N13: =SUMCOST!P13 -> 0 | O13: =SUMCOST!Q13 -> 0
A14: 6 | B14: General Plant | D14: =SUM(E14:O14) -> 140219000 | E14: =SUMCOST!G14 -> 75745431.58 | F14: =SUMCOST!H14 -> 13821564.73 | G14: =SUMCOST!I14 -> 30433714.1 | H14: =SUMCOST!J14 -> 14500415 | I14: =SUMCOST!K14 -> 2875836.029 | J14: =SUMCOST!L14 -> 2842038.553 | K14: =SUMCOST!M14 -> 0 | L14: =SUMCOST!N14 -> 0 | M14: =SUMCOST!O14 -> 0 | N14: =SUMCOST!P14 -> 0 | O14: =SUMCOST!Q14 -> 0
A15: 7 | B15: Total Plant In Service | D15: =SUM(D10:D14) -> 2030870000 | E15: 996671876.6 | F15: 191822488.4 | G15: 504112749.4 | H15: 250684204.8 | I15: 44490835.28 | J15: 43087845.57 | K15: 0 | L15: 0 | M15: 0 | N15: 0 | O15: 0
A16: 8
A17: 9 | B17: Accum Depreciation
A18: 10 | B18: Production Plant | D18: =SUM(E18:O18) -> -341353000 | E18: =SUMCOST!G18 -> -155002523.1 | F18: =SUMCOST!H18 -> -28920413.42 | G18: =SUMCOST!I18 -> -88489977.33 | H18: =SUMCOST!J18 -> -60500924.38 | I18: =SUMCOST!K18 -> -7106695.049 | J18: =SUMCOST!L18 -> -1332466.749 | K18: =SUMCOST!M18 -> 0 | L18: =SUMCOST!N18 -> 0 | M18: =SUMCOST!O18 -> 0 | N18: =SUMCOST!P18 -> 0 | O18: =SUMCOST!Q18 -> 0
A19: 11 | B19: Transmission Plant | D19: =SUM(E19:O19) -> -111284000 | E19: =SUMCOST!G19 -> -50532149.35 | F19: =SUMCOST!H19 -> -9428302.336 | G19: =SUMCOST!I19 -> -28848490.09 | H19: =SUMCOST!J19 -> -19723819.24 | I19: =SUMCOST!K19 -> -2316843.42 | J19: =SUMCOST!L19 -> -434395.5661 | K19: =SUMCOST!M19 -> 0 | L19: =SUMCOST!N19 -> 0 | M19: =SUMCOST!O19 -> 0 | N19: =SUMCOST!P19 -> 0 | O19: =SUMCOST!Q19 -> 0
A20: 12 | B20: Distribution Plant | D20: =SUM(E20:O20) -> -209013000 | E20: =SUMCOST!G20 -> -112706070.4 | F20: =SUMCOST!H20 -> -22229057.45 | G20: =SUMCOST!I20 -> -47127722.89 | H20: =SUMCOST!J20 -> -7405287.221 | I20: =SUMCOST!K20 -> -4788284.273 | J20: =SUMCOST!L20 -> -14756577.8 | K20: =SUMCOST!M20 -> 0 | L20: =SUMCOST!N20 -> 0 | M20: =SUMCOST!O20 -> 0 | N20: =SUMCOST!P20 -> 0 | O20: =SUMCOST!Q20 -> 0
A21: 13 | B21: Intangible Plant | D21: =SUM(E21:O21) -> -13861000 | E21: =SUMCOST!G21 -> -6655329.794 | F21: =SUMCOST!H21 -> -1269877.044 | G21: =SUMCOST!I21 -> -3484098.71 | H21: =SUMCOST!J21 -> -1928843.251 | I21: =SUMCOST!K21 -> -299182.8419 | J21: =SUMCOST!L21 -> -223668.3592 | K21: =SUMCOST!M21 -> 0 | L21: =SUMCOST!N21 -> 0 | M21: =SUMCOST!O21 -> 0 | N21: =SUMCOST!P21 -> 0 | O21: =SUMCOST!Q21 -> 0
A22: 14 | B22: General Plant | D22: =SUM(E22:O22) -> -47365000 | E22: =SUMCOST!G22 -> -25771332.43 | F22: =SUMCOST!H22 -> -4681471.21 | G22: =SUMCOST!I22 -> -10158531.73 | H22: =SUMCOST!J22 -> -4839353.139 | I22: =SUMCOST!K22 -> -965322.3771 | J22: =SUMCOST!L22 -> -948989.1092 | K22: =SUMCOST!M22 -> 0 | L22: =SUMCOST!N22 -> 0 | M22: =SUMCOST!O22 -> 0 | N22: =SUMCOST!P22 -> 0 | O22: =SUMCOST!Q22 -> 0
A23: 15 | B23: Total Accumulated Depreciation | D23: =SUM(D18:D22) -> -722876000 | E23: -350667405 | F23: -66529121.47 | G23: -178108820.8 | H23: -94398227.23 | I23: -15476327.96 | J23: -17696097.58 | K23: 0 | L23: 0 | M23: 0 | N23: 0 | O23: 0
A24: 16
A25: 17 | B25: Net Plant | D25: =D15+D23 -> 1307994000 | E25: =SUMCOST!G25 -> 646004471.5 | F25: =SUMCOST!H25 -> 125293367 | G25: =SUMCOST!I25 -> 326003928.6 | H25: =SUMCOST!J25 -> 156285977.6 | I25: =SUMCOST!K25 -> 29014507.32 | J25: =SUMCOST!L25 -> 25391747.99 | K25: =SUMCOST!M25 -> 0 | L25: =SUMCOST!N25 -> 0 | M25: =SUMCOST!O25 -> 0 | N25: =SUMCOST!P25 -> 0 | O25: =SUMCOST!Q25 -> 0
A26: 18 | B26: Accumulated Deferred FIT | D26: =SUM(E26:O26) -> -206296000 | E26: =SUMCOST!G26 -> -101500852.7 | F26: =SUMCOST!H26 -> -19493115.1 | G26: =SUMCOST!I26 -> -51019513.89 | H26: =SUMCOST!J26 -> -25440170.6 | I26: =SUMCOST!K26 -> -4507674.467 | J26: =SUMCOST!L26 -> -4334673.243 | K26: =SUMCOST!M26 -> 0 | L26: =SUMCOST!N26 -> 0 | M26: =SUMCOST!O26 -> 0 | N26: =SUMCOST!P26 -> 0 | O26: =SUMCOST!Q26 -> 0
A27: 19 | B27: Miscellaneous Rate Base | D27: =SUM(E27:O27) -> 23574000 | E27: =SUMCOST!G27 -> 9915064.624 | F27: =SUMCOST!H27 -> 2073877.495 | G27: =SUMCOST!I27 -> 6856756.855 | H27: =SUMCOST!J27 -> 3670353.484 | I27: =SUMCOST!K27 -> 557969.4874 | J27: =SUMCOST!L27 -> 499978.0553 | K27: =SUMCOST!M27 -> 0 | L27: =SUMCOST!N27 -> 0 | M27: =SUMCOST!O27 -> 0 | N27: =SUMCOST!P27 -> 0 | O27: =SUMCOST!Q27 -> 0
A28: 20 | B28: Total Rate Base | D28: =SUM(D25:D27) -> 1125272000 | E28: 554418683.5 | F28: 107874129.4 | G28: 281841171.6 | H28: 134516160.5 | I28: 25064802.34 | J28: 21557052.8 | K28: 0 | L28: 0 | M28: 0 | N28: 0 | O28: 0
A29: 21
A30: 22 | B30: Revenue From Retail Rates | D30: =SUM(E30:O30) -> 455105000 | E30: =SUMCOST!G30 -> 198459000 | F30: =SUMCOST!H30 -> 55514000 | G30: =SUMCOST!I30 -> 126921000 | H30: =SUMCOST!J30 -> 58190000 | I30: =SUMCOST!K30 -> 9439000 | J30: =SUMCOST!L30 -> 6582000 | K30: =SUMCOST!M30 -> 0 | L30: =SUMCOST!N30 -> 0 | M30: =SUMCOST!O30 -> 0 | N30: =SUMCOST!P30 -> 0 | O30: =SUMCOST!Q30 -> 0
A31: 23 | B31: Other Operating Revenues | D31: =SUM(E31:O31) -> 67978000 | E31: =SUMCOST!G31 -> 31176133.17 | F31: =SUMCOST!H31 -> 5847444.563 | G31: =SUMCOST!I31 -> 17541023.67 | H31: =SUMCOST!J31 -> 11558990.18 | I31: =SUMCOST!K31 -> 1426408.144 | J31: =SUMCOST!L31 -> 428000.2742 | K31: =SUMCOST!M31 -> 0 | L31: =SUMCOST!N31 -> 0 | M31: =SUMCOST!O31 -> 0 | N31: =SUMCOST!P31 -> 0 | O31: =SUMCOST!Q31 -> 0
A32: 24 | B32: Total Revenues | D32: =SUM(D30:D31) -> 523083000 | E32: 229635133.2 | F32: 61361444.56 | G32: 144462023.7 | H32: 69748990.18 | I32: 10865408.14 | J32: 7010000.274 | K32: 0 | L32: 0 | M32: 0 | N32: 0 | O32: 0
A33: 25
A34: 26 | B34: Operating Expenses
A35: 27 | B35: Production Expenses | D35: =SUM(E35:O35) -> 209676000 | E35: =SUMCOST!G35 -> 95210263.35 | F35: =SUMCOST!H35 -> 17764357.15 | G35: =SUMCOST!I35 -> 54354947.77 | H35: =SUMCOST!J35 -> 37162678.58 | I35: =SUMCOST!K35 -> 4365285.763 | J35: =SUMCOST!L35 -> 818467.3872 | K35: =SUMCOST!M35 -> 0 | L35: =SUMCOST!N35 -> 0 | M35: =SUMCOST!O35 -> 0 | N35: =SUMCOST!P35 -> 0 | O35: =SUMCOST!Q35 -> 0
A36: 28 | B36: Transmission Expenses | D36: 20534000 | E36: =SUMCOST!G36 -> 9324136.037 | F36: =SUMCOST!H36 -> 1739699.868 | G36: =SUMCOST!I36 -> 5323091.329 | H36: =SUMCOST!J36 -> 3639417.205 | I36: =SUMCOST!K36 -> 427501.3729 | J36: =SUMCOST!L36 -> 80154.18707 | K36: =SUMCOST!M36 -> 0 | L36: =SUMCOST!N36 -> 0 | M36: =SUMCOST!O36 -> 0 | N36: =SUMCOST!P36 -> 0 | O36: =SUMCOST!Q36 -> 0
A37: 29 | B37: Distribution Expenses | D37: 20286000 | E37: =SUMCOST!G37 -> 10727108.47 | F37: =SUMCOST!H37 -> 2620719.995 | G37: =SUMCOST!I37 -> 4374831.097 | H37: =SUMCOST!J37 -> 761860.9938 | I37: =SUMCOST!K37 -> 530638.8196 | J37: =SUMCOST!L37 -> 1270840.626 | K37: =SUMCOST!M37 -> 0 | L37: =SUMCOST!N37 -> 0 | M37: =SUMCOST!O37 -> 0 | N37: =SUMCOST!P37 -> 0 | O37: =SUMCOST!Q37 -> 0
A38: 30 | B38: Customer Accounting Expenses | D38: 10825000 | E38: =SUMCOST!G38 -> 8374485.796 | F38: =SUMCOST!H38 -> 1301006.611 | G38: =SUMCOST!I38 -> 669661.5194 | H38: =SUMCOST!J38 -> 306505.1538 | I38: =SUMCOST!K38 -> 131554.9484 | J38: =SUMCOST!L38 -> 41785.97197 | K38: =SUMCOST!M38 -> 0 | L38: =SUMCOST!N38 -> 0 | M38: =SUMCOST!O38 -> 0 | N38: =SUMCOST!P38 -> 0 | O38: =SUMCOST!Q38 -> 0
A39: 31 | B39: Customer Information Expenses | D39: 1235000 | E39: =SUMCOST!G39 -> 870577.3243 | F39: =SUMCOST!H39 -> 132076.8033 | G39: =SUMCOST!I39 -> 129381.7252 | H39: =SUMCOST!J39 -> 82529.41577 | I39: =SUMCOST!K39 -> 17541.63243 | J39: =SUMCOST!L39 -> 2893.099055 | K39: =SUMCOST!M39 -> 0 | L39: =SUMCOST!N39 -> 0 | M39: =SUMCOST!O39 -> 0 | N39: =SUMCOST!P39 -> 0 | O39: =SUMCOST!Q39 -> 0
A40: 32 | B40: Sales Expenses | D40: 4000 | E40: =SUMCOST!G40 -> 1724.320364 | F40: =SUMCOST!H40 -> 353.2003496 | G40: =SUMCOST!I40 -> 1067.329916 | H40: =SUMCOST!J40 -> 746.8710476 | I40: =SUMCOST!K40 -> 89.60253881 | J40: =SUMCOST!L40 -> 18.67578363 | K40: =SUMCOST!M40 -> 0 | L40: =SUMCOST!N40 -> 0 | M40: =SUMCOST!O40 -> 0 | N40: =SUMCOST!P40 -> 0 | O40: =SUMCOST!Q40 -> 0
A41: 33 | B41: Admin & General Expenses | D41: 44480000 | E41: =SUMCOST!G41 -> 22264061.1 | F41: =SUMCOST!H41 -> 4212257.818 | G41: =SUMCOST!I41 -> 10426115.14 | H41: =SUMCOST!J41 -> 6028194.645 | I41: =SUMCOST!K41 -> 925132.3459 | J41: =SUMCOST!L41 -> 624238.956 | K41: =SUMCOST!M41 -> 0 | L41: =SUMCOST!N41 -> 0 | M41: =SUMCOST!O41 -> 0 | N41: =SUMCOST!P41 -> 0 | O41: =SUMCOST!Q41 -> 0
A42: 34 | B42: Total O&M Expenses | D42: =SUM(D35:D41) -> 307040000 | E42: 146772356.4 | F42: 27770471.44 | G42: 75279095.91 | H42: 47981932.86 | I42: 6397744.485 | J42: 2838398.903 | K42: 0 | L42: 0 | M42: 0 | N42: 0 | O42: 0
A43: 35
A44: 36 | B44: Taxes Other Than Income Taxes | D44: =SUM(E44:O44) -> 33268000 | E44: =SUMCOST!G44 -> 15118846.55 | F44: =SUMCOST!H44 -> 3599376.342 | G44: =SUMCOST!I44 -> 8894273.699 | H44: =SUMCOST!J44 -> 4447935.119 | I44: =SUMCOST!K44 -> 703558.8667 | J44: =SUMCOST!L44 -> 504009.4197 | K44: =SUMCOST!M44 -> 0 | L44: =SUMCOST!N44 -> 0 | M44: =SUMCOST!O44 -> 0 | N44: =SUMCOST!P44 -> 0 | O44: =SUMCOST!Q44 -> 0
A45: 37 | B45: Other Income Related Items | D45: =SUM(E45:O45) -> -418000 | E45: =SUMCOST!G45 -> -196894.8599 | F45: =SUMCOST!H45 -> -37439.6343 | G45: =SUMCOST!I45 -> -106495.5121 | H45: =SUMCOST!J45 -> -62842.27893 | I45: =SUMCOST!K45 -> -8958.866589 | J45: =SUMCOST!L45 -> -5368.848098 | K45: =SUMCOST!M45 -> 0 | L45: =SUMCOST!N45 -> 0 | M45: =SUMCOST!O45 -> 0 | N45: =SUMCOST!P45 -> 0 | O45: =SUMCOST!Q45 -> 0
A46: 38 | B46: Depreciation Expense
A47: 39 | B47: Production Plant Depreciation | D47: =SUM(E47:O47) -> 17392000 | E47: =SUMCOST!G47 -> 7897407.907 | F47: =SUMCOST!H47 -> 1473500.541 | G47: =SUMCOST!I47 -> 4508581.104 | H47: =SUMCOST!J47 -> 3082533.556 | I47: =SUMCOST!K47 -> 362087.4587 | J47: =SUMCOST!L47 -> 67889.43321 | K47: =SUMCOST!M47 -> 0 | L47: =SUMCOST!N47 -> 0 | M47: =SUMCOST!O47 -> 0 | N47: =SUMCOST!P47 -> 0 | O47: =SUMCOST!Q47 -> 0
A48: 40 | B48: Transmission Plant Depreciation | D48: =SUM(E48:O48) -> 6428000 | E48: =SUMCOST!G48 -> 2918844.183 | F48: =SUMCOST!H48 -> 544598.7511 | G48: =SUMCOST!I48 -> 1666350.008 | H48: =SUMCOST!J48 -> 1139289.656 | I48: =SUMCOST!K48 -> 133825.7926 | J48: =SUMCOST!L48 -> 25091.60975 | K48: =SUMCOST!M48 -> 0 | L48: =SUMCOST!N48 -> 0 | M48: =SUMCOST!O48 -> 0 | N48: =SUMCOST!P48 -> 0 | O48: =SUMCOST!Q48 -> 0
A49: 41 | B49: Distribution Plant Depreciation | D49: =SUM(E49:O49) -> 19762000 | E49: =SUMCOST!G49 -> 10727967.04 | F49: =SUMCOST!H49 -> 2208675.976 | G49: =SUMCOST!I49 -> 4659980.879 | H49: =SUMCOST!J49 -> 743618.922 | I49: =SUMCOST!K49 -> 479721.6259 | J49: =SUMCOST!L49 -> 942035.5553 | K49: =SUMCOST!M49 -> 0 | L49: =SUMCOST!N49 -> 0 | M49: =SUMCOST!O49 -> 0 | N49: =SUMCOST!P49 -> 0 | O49: =SUMCOST!Q49 -> 0
A50: 42 | B50: General Plant Depreciation | D50: =SUM(E50:O50) -> 11617000 | E50: =SUMCOST!G50 -> 6170914.37 | F50: =SUMCOST!H50 -> 1136076.403 | G50: =SUMCOST!I50 -> 2586747.988 | H50: =SUMCOST!J50 -> 1245545.805 | I50: =SUMCOST!K50 -> 241113.4994 | J50: =SUMCOST!L50 -> 236601.9343 | K50: =SUMCOST!M50 -> 0 | L50: =SUMCOST!N50 -> 0 | M50: =SUMCOST!O50 -> 0 | N50: =SUMCOST!P50 -> 0 | O50: =SUMCOST!Q50 -> 0
A51: 43 | B51: Amortization Expense | D51: =SUM(E51:O51) -> 4678000 | E51: =SUMCOST!G51 -> 2126692.47 | F51: =SUMCOST!H51 -> 397042.2326 | G51: =SUMCOST!I51 -> 1212029.536 | H51: =SUMCOST!J51 -> 825190.0683 | I51: =SUMCOST!K51 -> 97481.16344 | J51: =SUMCOST!L51 -> 19564.52963 | K51: =SUMCOST!M51 -> 0 | L51: =SUMCOST!N51 -> 0 | M51: =SUMCOST!O51 -> 0 | N51: =SUMCOST!P51 -> 0 | O51: =SUMCOST!Q51 -> 0
A52: 44 | B52: Total Depreciation Expense | D52: =SUM(D47:D51) -> 59877000 | E52: 29841825.97 | F52: 5759893.904 | G52: 14633689.52 | H52: 7036178.007 | I52: 1314229.54 | J52: 1291183.062 | K52: 0 | L52: 0 | M52: 0 | N52: 0 | O52: 0
A53: 45 | B53: Income Tax | D53: =SUM(E53:O53) -> 29418000 | E53: =SUMCOST!G53 -> 6957572.017 | F53: =SUMCOST!H53 -> 6960395.268 | G53: =SUMCOST!I53 -> 12315901.07 | H53: =SUMCOST!J53 -> 2054627.335 | I53: =SUMCOST!K53 -> 559488.7856 | J53: =SUMCOST!L53 -> 570015.5286 | K53: =SUMCOST!M53 -> 0 | L53: =SUMCOST!N53 -> 0 | M53: =SUMCOST!O53 -> 0 | N53: =SUMCOST!P53 -> 0 | O53: =SUMCOST!Q53 -> 0
A54: 46 | B54: Total Operating Expenses | D54: =D42+D44+D45+D52+D53 -> 429185000 | E54: 198493706.1 | F54: 44052697.32 | G54: 111016464.7 | H54: 61457831.05 | I54: 8966062.81 | J54: 5198238.065 | K54: 0 | L54: 0 | M54: 0 | N54: 0 | O54: 0
A55: 47
A56: 48 | B56: Net Income | D56: =D32-D54 -> 93898000 | E56: 31141427.09 | F56: 17308747.24 | G56: 33445558.99 | H56: 8291159.13 | I56: 1899345.334 | J56: 1811762.209 | K56: 0 | L56: 0 | M56: 0 | N56: 0 | O56: 0
A57: 49
A58: 50 | B58: Rate of Return | D58: =D56/D28 -> 0.08344471381 | E58: =E56/E28 -> 0.05616951236 | F58: 0.1604531814 | G58: 0.1186681094 | H58: 0.0616369 | I58: 0.07577739126 | J58: 0.08404498637 | K58: =K56/(K28+0.0000001) -> 0 | L58: =L56/(L28+0.0000001) -> 0 | M58: =M56/(M28+0.0000001) -> 0 | N58: =N56/(N28+0.0000001) -> 0 | O58: =O56/(O28+0.0000001) -> 0
A59: 51 | B59: Return Ratio | D59: =D58/$D58 -> 1 | E59: =E58/$D58 -> 0.6731344598 | F59: 1.922868137 | G59: 1.422116561 | H59: 0.7386555383 | I59: 0.9081149398 | J59: 1.007193656 | K59: 0 | L59: 0 | M59: 0 | N59: 0 | O59: 0
A60: 52 | B60: Interest Expense | D60: =SUM(E60:O60) -> 34872000 | E60: =SUMCOST!G60 -> 17181346.67 | F60: =SUMCOST!H60 -> 3343002.082 | G60: =SUMCOST!I60 -> 8734213.004 | H60: =SUMCOST!J60 -> 4168634.381 | I60: =SUMCOST!K60 -> 776754.2312 | J60: =SUMCOST!L60 -> 668049.6318 | K60: =SUMCOST!M60 -> 0 | L60: =SUMCOST!N60 -> 0 | M60: =SUMCOST!O60 -> 0 | N60: =SUMCOST!P60 -> 0 | O60: =SUMCOST!Q60 -> 0
A61: 53
A62: 54 | B62: Functional Cost Components at Current Return by Schedule
A63: 55 | B63: Production | D63: =SUM(E63:O63) -> 241998202.7 | E63: =SUMCOST!G148 -> 102251559 | F63: =SUMCOST!H148 -> 24673321.06 | G63: =SUMCOST!I148 -> 68633066.97 | H63: =SUMCOST!J148 -> 40547019.37 | I63: =SUMCOST!K148 -> 4946169.689 | J63: =SUMCOST!L148 -> 947066.6986 | K63: =SUMCOST!M148 -> 0 | L63: =SUMCOST!N148 -> 0 | M63: =SUMCOST!O148 -> 0 | N63: =SUMCOST!P148 -> 0 | O63: =SUMCOST!Q148 -> 0
A64: 56 | B64: Transmission | D64: =SUM(E64:O64) -> 44174248.26 | E64: =SUMCOST!G159 -> 16460181.14 | F64: =SUMCOST!H159 -> 5707939.737 | G64: =SUMCOST!I159 -> 14231293.17 | H64: =SUMCOST!J159 -> 6724998.562 | I64: =SUMCOST!K159 -> 876278.1536 | J64: =SUMCOST!L159 -> 173557.5052 | K64: =SUMCOST!M159 -> 0 | L64: =SUMCOST!N159 -> 0 | M64: =SUMCOST!O159 -> 0 | N64: =SUMCOST!P159 -> 0 | O64: =SUMCOST!Q159 -> 0
A65: 57 | B65: Distribution | D65: =SUM(E65:O65) -> 104598014.5 | E65: =SUMCOST!G173 -> 49383473.66 | F65: =SUMCOST!H173 -> 17660111.14 | G65: =SUMCOST!I173 -> 27718692.6 | H65: =SUMCOST!J173 -> 3095987.714 | I65: =SUMCOST!K173 -> 2302235.884 | J65: =SUMCOST!L173 -> 4437513.483 | K65: =SUMCOST!M173 -> 0 | L65: =SUMCOST!N173 -> 0 | M65: =SUMCOST!O173 -> 0 | N65: =SUMCOST!P173 -> 0 | O65: =SUMCOST!Q173 -> 0
A66: 58 | B66: Common | D66: =SUM(E66:O66) -> 64334534.51 | E66: =SUMCOST!G182 -> 30363786.25 | F66: =SUMCOST!H182 -> 7472628.07 | G66: =SUMCOST!I182 -> 16337947.26 | H66: =SUMCOST!J182 -> 7821994.351 | I66: =SUMCOST!K182 -> 1314316.273 | J66: =SUMCOST!L182 -> 1023862.314 | K66: =SUMCOST!M182 -> 0 | L66: =SUMCOST!N182 -> 0 | M66: =SUMCOST!O182 -> 0 | N66: =SUMCOST!P182 -> 0 | O66: =SUMCOST!Q182 -> 0
A67: 59 | B67: Total Current Rate Revenue | D67: =SUM(D63:D66) -> 455105000 | E67: =SUM(E63:E66) -> 198459000 | F67: 55514000 | G67: 126921000 | H67: 58190000 | I67: 9439000 | J67: 6582000 | K67: 0 | L67: 0 | M67: 0 | N67: 0 | O67: 0
A68: 60
A69: 61 | B69: Expressed as $/kWh
A70: 62 | B70: Production | D70: =SUMCOST!F188 -> 0.04340886862 | E70: =SUMCOST!G188 -> 0.04278153588 | F70: =SUMCOST!H188 -> 0.05039771849 | G70: =SUMCOST!I188 -> 0.04631578168 | H70: =SUMCOST!J188 -> 0.03813453851 | I70: =SUMCOST!K188 -> 0.0398247527 | J70: =SUMCOST!L188 -> 0.0365852581 | K70: =SUMCOST!M188 -> 0
A71: 63 | B71: Transmission | D71: =SUMCOST!F189 -> 0.007923836282 | E71: =SUMCOST!G189 -> 0.006886856662 | F71: =SUMCOST!H189 -> 0.01165903606 | G71: =SUMCOST!I189 -> 0.009603730336 | H71: =SUMCOST!J189 -> 0.006324872225 | I71: =SUMCOST!K189 -> 0.0070554718 | J71: =SUMCOST!L189 -> 0.006704539536 | K71: =SUMCOST!M189 -> 0
A72: 64 | B72: Distribution | D72: =SUMCOST!F190 -> 0.01876245946 | E72: =SUMCOST!G190 -> 0.02066179599 | F72: =SUMCOST!H190 -> 0.03607253792 | G72: =SUMCOST!I190 -> 0.01870545746 | H72: =SUMCOST!J190 -> 0.002911781545 | I72: =SUMCOST!K190 -> 0.01853676289 | J72: =SUMCOST!L190 -> 0.171421481 | K72: =SUMCOST!M190 -> 0
A73: 65 | B73: Common | D73: =SUMCOST!F191 -> 0.01154012437 | E73: =SUMCOST!G191 -> 0.01270405482 | F73: =SUMCOST!H191 -> 0.01526358794 | G73: =SUMCOST!I191 -> 0.01102536768 | H73: =SUMCOST!J191 -> 0.007356598571 | I73: =SUMCOST!K191 -> 0.01058239483 | J73: =SUMCOST!L191 -> 0.03955187852 | K73: =SUMCOST!M191 -> 0
A74: 66 | B74: Total Current Melded Rates | D74: =SUM(D70:D73) -> 0.08163528873 | E74: =SUM(E70:E73) -> 0.08303424335 | F74: 0.1133928804 | G74: 0.08565033716 | H74: 0.05472779085 | I74: 0.07599938221 | J74: 0.2542631572 | K74: 0
A75: 67
A76: 68 | B76: Functional Cost Components at Uniform Current Return
A77: 69 | B77: Production | D77: =SUM(E77:O77) -> 243382423.6 | E77: =SUMCOST!G212 -> 110515770.3 | F77: =SUMCOST!H212 -> 20620062.84 | G77: =SUMCOST!I212 -> 63092766.57 | H77: =SUMCOST!J212 -> 43136757.57 | I77: =SUMCOST!K212 -> 5067026.406 | J77: =SUMCOST!L212 -> 950039.949 | K77: =SUMCOST!M212 -> 0 | L77: =SUMCOST!N212 -> 0 | M77: =SUMCOST!O212 -> 0 | N77: =SUMCOST!P212 -> 0 | O77: =SUMCOST!Q212 -> 0
A78: 70 | B78: Transmission | D78: =SUM(E78:O78) -> 44847695.17 | E78: =SUMCOST!G223 -> 20364566.61 | F78: =SUMCOST!H223 -> 3799626.444 | G78: =SUMCOST!I223 -> 11626004.54 | H78: =SUMCOST!J223 -> 7948742.253 | I78: =SUMCOST!K223 -> 933692.9608 | J78: =SUMCOST!L223 -> 175062.3624 | K78: =SUMCOST!M223 -> 0 | L78: =SUMCOST!N223 -> 0 | M78: =SUMCOST!O223 -> 0 | N78: =SUMCOST!P223 -> 0 | O78: =SUMCOST!Q223 -> 0
A79: 71 | B79: Distribution | D79: =SUM(E79:O79) -> 104674066.2 | E79: =SUMCOST!G237 -> 59618664.01 | F79: =SUMCOST!H237 -> 12130631.04 | G79: =SUMCOST!I237 -> 22318938.24 | H79: =SUMCOST!J237 -> 3679471.675 | I79: =SUMCOST!K237 -> 2453366.053 | J79: =SUMCOST!L237 -> 4472995.163 | K79: =SUMCOST!M237 -> 0 | L79: =SUMCOST!N237 -> 0 | M79: =SUMCOST!O237 -> 0 | N79: =SUMCOST!P237 -> 0 | O79: =SUMCOST!Q237 -> 0
A80: 72 | B80: Common | D80: =SUM(E80:O80) -> 64870858.06 | E80: =SUMCOST!G246 -> 33064996.15 | F80: =SUMCOST!H246 -> 6171107.152 | G80: =SUMCOST!I246 -> 14974573.44 | H80: =SUMCOST!J246 -> 8280436.747 | I80: =SUMCOST!K246 -> 1350042.514 | J80: =SUMCOST!L246 -> 1029702.053 | K80: =SUMCOST!M246 -> 0 | L80: =SUMCOST!N246 -> 0 | M80: =SUMCOST!O246 -> 0 | N80: =SUMCOST!P246 -> 0 | O80: =SUMCOST!Q246 -> 0
A81: 73 | B81: Total Uniform Current Cost | D81: =SUM(D77:D80) -> 457775043 | E81: =SUM(E77:E80) -> 223563997 | F81: =SUM(F77:F80) -> 42721427.48 | G81: 112012282.8 | H81: 63045408.25 | I81: 9804127.935 | J81: 6627799.527 | K81: 0 | L81: 0 | M81: 0 | N81: 0 | O81: 0
A82: 74
A83: 75 | B83: Expressed as $/kWh
A84: 76 | B84: Production | D84: =SUMCOST!F252 -> 0.04365716576 | E84: =SUMCOST!G252 -> 0.04623924016 | F84: =SUMCOST!H252 -> 0.04211853442 | G84: =SUMCOST!I252 -> 0.04257701034 | H84: =SUMCOST!J252 -> 0.04057019155 | I84: =SUMCOST!K252 -> 0.04079784686 | J84: =SUMCOST!L252 -> 0.03670011499 | K84: =SUMCOST!M252 -> 0
A85: 77 | B85: Transmission | D85: =SUMCOST!F253 -> 0.008044637049 | E85: =SUMCOST!G253 -> 0.008520431825 | F85: =SUMCOST!H253 -> 0.00776111588 | G85: =SUMCOST!I253 -> 0.007845598514 | H85: =SUMCOST!J253 -> 0.007475805182 | I85: =SUMCOST!K253 -> 0.007517754868 | J85: =SUMCOST!L253 -> 0.006762672282 | K85: =SUMCOST!M253 -> 0
A86: 78 | B86: Distribution | D86: =SUMCOST!F254 -> 0.01877610137 | E86: =SUMCOST!G254 -> 0.02494414794 | F86: =SUMCOST!H254 -> 0.02477802347 | G86: =SUMCOST!I254 -> 0.01506153107 | H86: =SUMCOST!J254 -> 0.003460549171 | I86: =SUMCOST!K254 -> 0.01975360784 | J86: =SUMCOST!L254 -> 0.172792141 | K86: =SUMCOST!M254 -> 0
A87: 79 | B87: Common | D87: =SUMCOST!F255 -> 0.01163632838 | E87: =SUMCOST!G255 -> 0.01383422741 | F87: =SUMCOST!H255 -> 0.01260510169 | G87: =SUMCOST!I255 -> 0.01010531956 | H87: =SUMCOST!J255 -> 0.0077877644 | I87: =SUMCOST!K255 -> 0.01087004948 | J87: =SUMCOST!L255 -> 0.03977746808 | K87: =SUMCOST!M255 -> 0
A88: 80 | B88: Total Current Uniform Melded Rates | D88: =SUM(D84:D87) -> 0.08211423256 | E88: =SUM(E84:E87) -> 0.09353804733 | F88: 0.08726277546 | G88: 0.07558945949 | H88: 0.0592943103 | I88: 0.07893925905 | J88: 0.2560323964 | K88: 0
A89: 81
A90: 82 | B90: Revenue to Cost Ratio at Current Rates | D90: =D67/D81 -> 0.9941673469 | E90: =E67/E81 -> 0.8877055458 | F90: =F67/F81 -> 1.299441598 | G90: 1.13309895 | H90: 0.9229855372 | I90: 0.9627577346 | J90: 0.9930897839
A91: 83 | E91: =E90/$D$90 -> 0.892913601 | F91: =F90/$D$90 -> 1.307065256 | G91: 1.139746697 | H91: 0.9284005757 | I91: 0.9684061115 | J91: 0.998916115 | L91: 0 | M91: 0 | N91: 0 | O91: 0 | P91: 0
A92: 84
A93: 85 | B93: Functional Cost Components at Proposed Return by Schedule
A94: 86 | B94: Production | D94: =SUM(E94:O94) -> 234854838 | E94: =SUMCOST!G276 -> 100673556.4 | F94: =SUMCOST!H276 -> 23251679.11 | G94: =SUMCOST!I276 -> 65187570.69 | H94: =SUMCOST!J276 -> 39967144.42 | I94: =SUMCOST!K276 -> 4857522.236 | J94: =SUMCOST!L276 -> 917365.2171 | K94: =SUMCOST!M276 -> 0 | L94: =SUMCOST!N276 -> 0 | M94: =SUMCOST!O276 -> 0 | N94: =SUMCOST!P276 -> 0 | O94: =SUMCOST!Q276 -> 0
A95: 87 | B95: Transmission | D95: =SUM(E95:O95) -> 40797090.49 | E95: =SUMCOST!G287 -> 15712631.44 | F95: =SUMCOST!H287 -> 5036530.649 | G95: =SUMCOST!I287 -> 12604110.76 | H95: =SUMCOST!J287 -> 6450007.967 | I95: =SUMCOST!K287 -> 834286.5935 | J95: =SUMCOST!L287 -> 159523.0783 | K95: =SUMCOST!M287 -> 0 | L95: =SUMCOST!N287 -> 0 | M95: =SUMCOST!O287 -> 0 | N95: =SUMCOST!P287 -> 0 | O95: =SUMCOST!Q287 -> 0
A96: 88 | B96: Distribution | D96: =SUM(E96:O96) -> 96746608.04 | E96: =SUMCOST!G301 -> 47425706.57 | F96: =SUMCOST!H301 -> 15712257.3 | G96: =SUMCOST!I301 -> 24336717.89 | H96: =SUMCOST!J301 -> 2964971.463 | I96: =SUMCOST!K301 -> 2192177.584 | J96: =SUMCOST!L301 -> 4114777.231 | K96: =SUMCOST!M301 -> 0 | L96: =SUMCOST!N301 -> 0 | M96: =SUMCOST!O301 -> 0 | N96: =SUMCOST!P301 -> 0 | O96: =SUMCOST!Q301 -> 0
A97: 89 | B97: Common | D97: =SUM(E97:O97) -> 62326463.45 | E97: =SUMCOST!G310 -> 29850591.28 | F97: =SUMCOST!H310 -> 7011347.54 | G97: =SUMCOST!I310 -> 15476599.26 | H97: =SUMCOST!J310 -> 7719723.153 | I97: =SUMCOST!K310 -> 1288833.787 | J97: =SUMCOST!L310 -> 979368.4326 | K97: =SUMCOST!M310 -> 0 | L97: =SUMCOST!N310 -> 0 | M97: =SUMCOST!O310 -> 0 | N97: =SUMCOST!P310 -> 0 | O97: =SUMCOST!Q310 -> 0
A98: 90 | B98: Total Proposed Rate Revenue | D98: =SUM(D94:D97) -> 434725000 | E98: =SUM(E94:E97) -> 193662485.6 | F98: 51011814.6 | G98: 117604998.6 | H98: 57101847 | I98: 9172820.2 | J98: 6171033.959 | K98: 0 | L98: =SUM(L94:L96) -> 0 | M98: =SUM(M94:M96) -> 0 | N98: =SUM(N94:N96) -> 0 | O98: =SUM(O94:O96) -> 0
A99: 91
A100: 92 | B100: Expressed as $/kWh
A101: 93 | B101: Production | D101: =SUMCOST!F316 -> 0.04212751456 | E101: =SUMCOST!G316 -> 0.04212130756 | F101: =SUMCOST!H316 -> 0.04749387306 | G101: =SUMCOST!I316 -> 0.04399065094 | H101: =SUMCOST!J316 -> 0.03758916516 | I101: =SUMCOST!K316 -> 0.03911099577 | J101: =SUMCOST!L316 -> 0.03543788763 | K101: =SUMCOST!M316 -> 0
A102: 94 | B102: Transmission | D102: =SUMCOST!F317 -> 0.007318052452 | E102: =SUMCOST!G317 -> 0.006574085642 | F102: =SUMCOST!H317 -> 0.01028761605 | G102: =SUMCOST!I317 -> 0.008505655774 | H102: =SUMCOST!J317 -> 0.006066243117 | I102: =SUMCOST!K317 -> 0.006717371088 | J102: =SUMCOST!L317 -> 0.006162388566 | K102: =SUMCOST!M317 -> 0
A103: 95 | B103: Distribution | D103: =SUMCOST!F318 -> 0.01735409912 | E103: =SUMCOST!G318 -> 0.01984267612 | F103: =SUMCOST!H318 -> 0.03209385223 | G103: =SUMCOST!I318 -> 0.01642319311 | H103: =SUMCOST!J318 -> 0.002788560545 | I103: =SUMCOST!K318 -> 0.01765061363 | J103: =SUMCOST!L318 -> 0.1589541552 | K103: =SUMCOST!M318 -> 0
A104: 96 | B104: Common | D104: =SUMCOST!F319 -> 0.01117992296 | E104: =SUMCOST!G319 -> 0.01248933664 | F104: =SUMCOST!H319 -> 0.01432137647 | G104: =SUMCOST!I319 -> 0.01044410259 | H104: =SUMCOST!J319 -> 0.007260412341 | I104: =SUMCOST!K319 -> 0.01037721915 | J104: =SUMCOST!L319 -> 0.03783307653 | K104: =SUMCOST!M319 -> 0
A105: 97 | B105: Total Proposed Melded Rates | D105: =SUM(D101:D104) -> 0.07797958909 | E105: =SUM(E101:E104) -> 0.08102740597 | F105: 0.1041967178 | G105: 0.07936360241 | H105: 0.05370438116 | I105: 0.07385619964 | J105: 0.238387508 | K105: 0
A106: 98
A107: 99 | B107: Functional Cost Components at Uniform Requested Return
A108: 100 | B108: Production | D108: =SUM(E108:O108) -> 235194438.4 | E108: =SUMCOST!G340 -> 106797747.1 | F108: =SUMCOST!H340 -> 19926353.05 | G108: =SUMCOST!I340 -> 60970170.24 | H108: =SUMCOST!J340 -> 41685530.62 | I108: =SUMCOST!K340 -> 4896559.136 | J108: =SUMCOST!L340 -> 918078.2611 | K108: =SUMCOST!M340 -> 0 | L108: =SUMCOST!N340 -> 0 | M108: =SUMCOST!O340 -> 0 | N108: =SUMCOST!P340 -> 0 | O108: =SUMCOST!Q340 -> 0
A109: 101 | B109: Transmission | D109: =SUM(E109:O109) -> 40957155.6 | E109: =SUMCOST!G351 -> 18597939.54 | F109: =SUMCOST!H351 -> 3470008.679 | G109: =SUMCOST!I351 -> 10617448.13 | H109: =SUMCOST!J351 -> 7259188.506 | I109: =SUMCOST!K351 -> 852695.0545 | J109: =SUMCOST!L351 -> 159875.6946 | K109: =SUMCOST!M351 -> 0 | L109: =SUMCOST!N351 -> 0 | M109: =SUMCOST!O351 -> 0 | N109: =SUMCOST!P351 -> 0 | O109: =SUMCOST!Q351 -> 0
A110: 102 | B110: Distribution | D110: =SUM(E110:O110) -> 96075306.21 | E110: =SUMCOST!G365 -> 54978138.16 | F110: =SUMCOST!H365 -> 11171634.19 | G110: =SUMCOST!I365 -> 20213047.3 | H110: =SUMCOST!J365 -> 3349077.613 | I110: =SUMCOST!K365 -> 2240383.277 | J110: =SUMCOST!L365 -> 4123025.666 | K110: =SUMCOST!M365 -> 0 | L110: =SUMCOST!N365 -> 0 | M110: =SUMCOST!O365 -> 0 | N110: =SUMCOST!P365 -> 0 | O110: =SUMCOST!Q365 -> 0
A111: 103 | B111: Common | D111: =SUM(E111:O111) -> 62498099.8 | E111: =SUMCOST!G374 -> 31827826.9 | F111: =SUMCOST!H374 -> 5940707.531 | G111: =SUMCOST!I374 -> 14429974.61 | H111: =SUMCOST!J374 -> 8018948.588 | I111: =SUMCOST!K374 -> 1299985.47 | J111: =SUMCOST!L374 -> 980656.7075 | K111: =SUMCOST!M374 -> 0 | L111: =SUMCOST!N374 -> 0 | M111: =SUMCOST!O374 -> 0 | N111: =SUMCOST!P374 -> 0 | O111: =SUMCOST!Q374 -> 0
A112: 104 | B112: Total Uniform Cost | D112: =SUM(D108:D111) -> 434725000 | E112: =SUM(E108:E111) -> 212201651.7 | F112: =SUM(F108:F111) -> 40508703.45 | G112: 106230640.3 | H112: 60312745.32 | I112: 9289622.938 | J112: 6181636.329 | K112: 0 | L112: 0 | M112: 0 | N112: 0 | O112: 0
A113: 105
A114: 106 | B114: Expressed as $/kWh
A115: 107 | B115: Production | D115: =SUMCOST!F380 -> 0.04218843099 | E115: =SUMCOST!G380 -> 0.04468363804 | F115: =SUMCOST!H380 -> 0.040701563 | G115: =SUMCOST!I380 -> 0.04114461466 | H115: =SUMCOST!J380 -> 0.03920531021 | I115: =SUMCOST!K380 -> 0.03942530663 | J115: =SUMCOST!L380 -> 0.03546543258 | K115: =SUMCOST!M380 -> 0
A116: 108 | B116: Transmission | D116: =SUMCOST!F381 -> 0.007346764424 | E116: =SUMCOST!G381 -> 0.007781283982 | F116: =SUMCOST!H381 -> 0.007087838729 | G116: =SUMCOST!I381 -> 0.007164992491 | H116: =SUMCOST!J381 -> 0.006827278747 | I116: =SUMCOST!K381 -> 0.006865589295 | J116: =SUMCOST!L381 -> 0.006176010158 | K116: =SUMCOST!M381 -> 0
A117: 109 | B117: Distribution | D117: =SUMCOST!F382 -> 0.01723368313 | E117: =SUMCOST!G382 -> 0.02300257536 | F117: =SUMCOST!H382 -> 0.02281917678 | G117: =SUMCOST!I382 -> 0.01364040873 | H117: =SUMCOST!J382 -> 0.003149813012 | I117: =SUMCOST!K382 -> 0.01803874828 | J117: =SUMCOST!L382 -> 0.1592727929 | K117: =SUMCOST!M382 -> 0
A118: 110 | B118: Common | D118: =SUMCOST!F383 -> 0.01121071054 | E118: =SUMCOST!G383 -> 0.01331660204 | F118: =SUMCOST!H383 -> 0.01213448749 | G118: =SUMCOST!I383 -> 0.009737806905 | H118: =SUMCOST!J383 -> 0.007541834355 | I118: =SUMCOST!K383 -> 0.01046700843 | J118: =SUMCOST!L383 -> 0.03788284269 | K118: =SUMCOST!M383 -> 0
A119: 111 | B119: Total Uniform Melded Rates | D119: =SUM(D115:D118) -> 0.07797958909 | E119: =SUM(E115:E118) -> 0.08878409942 | F119: 0.082743066 | G119: 0.07168782279 | H119: 0.05672423632 | I119: 0.07479665264 | J119: 0.2387970784 | K119: 0
A120: 112
A121: 113 | B121: Revenue to Cost Ratio at Proposed Rates | D121: =D98/D112 -> 1 | E121: =E98/E112 -> 0.9126342048 | F121: =F98/F112 -> 1.259280358 | G121: 1.107072294 | H121: 0.9467625241 | I121: 0.9874265362 | J121: 0.9982848602
A122: 114
A123: 115 | B123: Current Revenue to Proposed Cost Ratio | D123: =D67/D112 -> 1.046880212 | E123: =E67/E112 -> 0.9352377723 | F123: =F67/F112 -> 1.370421546 | G123: 1.194768286 | H123: 0.9648043658 | I123: 1.016079992 | J123: 1.064766617
A124: 116
A125: 117 | B125: Target - Base Case | D125: =SUM(E125:J125) -> -20379000 | E125: =ROUND(E112-E67,-3)-1000 -> 13742000 | F125: =ROUND(F112-F67,-3) -> -15005000 | G125: -20690000 | H125: 2123000 | I125: -149000 | J125: -400000
A126: 118
A127: 119 | B127: Cost Classifications at Current Return by Schedule
A128: 120 | B128: Energy | D128: =SUM(E128:O128) -> 229662298.3 | E128: =SUMCOST!G434 -> 90722689.97 | F128: =SUMCOST!H434 -> 25013258.68 | G128: =SUMCOST!I434 -> 67799096.7 | H128: =SUMCOST!J434 -> 40034416.08 | I128: =SUMCOST!K434 -> 5020464.179 | J128: =SUMCOST!L434 -> 1072372.709 | K128: =SUMCOST!M434 -> 0 | L128: =SUMCOST!N434 -> 0 | M128: =SUMCOST!O434 -> 0 | N128: =SUMCOST!P434 -> 0 | O128: =SUMCOST!Q434 -> 0
A129: 121 | B129: Demand | D129: =SUM(E129:O129) -> 221110748.1 | E129: =SUMCOST!G439 -> 96777534.49 | F129: =SUMCOST!H439 -> 27755719.14 | G129: =SUMCOST!I439 -> 67140606.36 | H129: =SUMCOST!J439 -> 21806494 | I129: =SUMCOST!K439 -> 4551746.17 | J129: =SUMCOST!L439 -> 3078647.929 | K129: =SUMCOST!M439 -> 0 | L129: =SUMCOST!N439 -> 0 | M129: =SUMCOST!O439 -> 0 | N129: =SUMCOST!P439 -> 0 | O129: =SUMCOST!Q439 -> 0
A130: 122 | B130: Customer | D130: =SUM(E130:O130) -> 40784929.97 | E130: =SUMCOST!G442 -> 28216934.77 | F130: =SUMCOST!H442 -> 7086223.649 | G130: =SUMCOST!I442 -> 1623698.107 | H130: =SUMCOST!J442 -> 103734.6553 | I130: =SUMCOST!K442 -> 642816.9871 | J130: =SUMCOST!L442 -> 3111521.804 | K130: =SUMCOST!M442 -> 0 | L130: =SUMCOST!N442 -> 0 | M130: =SUMCOST!O442 -> 0 | N130: =SUMCOST!P442 -> 0 | O130: =SUMCOST!Q442 -> 0
A131: 123 | B131: Total Current Rate Revenue | D131: =SUM(D128:D130) -> 491557976.4 | E131: 215717159.2 | F131: 59855201.47 | G131: 136563401.2 | H131: 61944644.73 | I131: 10215027.34 | J131: 7262542.442 | K131: 0 | L131: 0 | M131: 0 | N131: 0 | O131: 0
A132: 124
A133: 125 | B133: Expressed as Unit Cost
A134: 126 | B134: Energy | C134: $/kWh | D134: =SUMCOST!F449 -> 0.04119609328 | E134: =SUMCOST!G449 -> 0.03795791532 | F134: =SUMCOST!H449 -> 0.05109207497 | G134: =SUMCOST!I449 -> 0.04575299195 | H134: =SUMCOST!J449 -> 0.03765243426 | I134: =SUMCOST!K449 -> 0.04042294481 | J134: =SUMCOST!L449 -> 0.04142583875 | K134: =SUMCOST!M449 -> 0
A135: 127 | B135: Demand | C135: $/kW/mo | D135: =SUMCOST!F450 -> 17.26478696 | E135: =SUMCOST!G450 -> 16.05336769 | F135: =SUMCOST!H450 -> 22.2656366 | G135: =SUMCOST!I450 -> 20.15224997 | H135: =SUMCOST!J450 -> 11.99326707 | I135: =SUMCOST!K450 -> 14.95003078 | J135: =SUMCOST!L450 -> 39.66511968 | K135: =SUMCOST!M450 -> 0
A136: 128 | B136: Customer | C136: $/Cust/mo | D136: =SUMCOST!F451 -> 14.45092416 | E136: =SUMCOST!G451 -> 11.67257106 | F136: =SUMCOST!H451 -> 20.85802991 | G136: =SUMCOST!I451 -> 50.45204323 | H136: =SUMCOST!J451 -> 392.9343003 | I136: =SUMCOST!K451 -> 22.31770951 | J136: =SUMCOST!L451 -> 787.9265142 | K136: =SUMCOST!M451 -> 0
A137: 129
A138: 130
A139: 131 | B139: Cost Classifications at Uniform Current Return
A140: 132 | B140: Energy | D140: =SUM(E140:O140) -> 230525933.3 | E140: =SUMCOST!G501 -> 99375140.3 | F140: =SUMCOST!H501 -> 20355460.05 | G140: =SUMCOST!I501 -> 61511806.26 | H140: =SUMCOST!J501 -> 43043286.32 | I140: =SUMCOST!K501 -> 5163927.221 | J140: =SUMCOST!L501 -> 1076313.113 | K140: =SUMCOST!M501 -> 0 | L140: =SUMCOST!N501 -> 0 | M140: =SUMCOST!O501 -> 0 | N140: =SUMCOST!P501 -> 0 | O140: =SUMCOST!Q501 -> 0
A141: 133 | B141: Demand | D141: =SUM(E141:O141) -> 221660793.7 | E141: =SUMCOST!G506 -> 112046743.5 | F141: =SUMCOST!H506 -> 20148978.7 | G141: =SUMCOST!I506 -> 57738090.89 | H141: =SUMCOST!J506 -> 23852924.27 | I141: =SUMCOST!K506 -> 4773202.15 | J141: =SUMCOST!L506 -> 3100854.24 | K141: =SUMCOST!M506 -> 0 | L141: =SUMCOST!N506 -> 0 | M141: =SUMCOST!O506 -> 0 | N141: =SUMCOST!P506 -> 0 | O141: =SUMCOST!Q506 -> 0
A142: 134 | B142: Customer | D142: =SUM(E142:O142) -> 41931810.31 | E142: =SUMCOST!G509 -> 30792231.03 | F142: =SUMCOST!H509 -> 5774786.795 | G142: =SUMCOST!I509 -> 1466167.112 | H142: =SUMCOST!J509 -> 107457.5408 | I142: =SUMCOST!K509 -> 661511.8709 | J142: =SUMCOST!L509 -> 3129655.953 | K142: =SUMCOST!M509 -> 0 | L142: =SUMCOST!N509 -> 0 | M142: =SUMCOST!O509 -> 0 | N142: =SUMCOST!P509 -> 0 | O142: =SUMCOST!Q509 -> 0
A143: 135 | B143: Total Uniform Current Cost | D143: =SUM(D140:D142) -> 494118537.3 | E143: 242214114.8 | F143: 46279225.55 | G143: 120716064.3 | H143: 67003668.14 | I143: 10598641.24 | J143: 7306823.306 | K143: 0 | L143: 0 | M143: 0 | N143: 0 | O143: 0
A144: 136
A145: 137 | B145: Expressed as Unit Cost
A146: 138 | B146: Energy | C146: $/kWh | D146: =SUMCOST!F516 -> 0.04135100938 | E146: =SUMCOST!G516 -> 0.04157805685 | F146: =SUMCOST!H516 -> 0.04157805685 | G146: =SUMCOST!I516 -> 0.04151012792 | H146: =SUMCOST!J516 -> 0.04048228169 | I146: =SUMCOST!K516 -> 0.04157805685 | J146: =SUMCOST!L516 -> 0.04157805685 | K146: =SUMCOST!M516 -> 0
A147: 139 | B147: Demand | C147: $/kW/mo | D147: =SUMCOST!F517 -> 17.30773566 | E147: =SUMCOST!G517 -> 18.58620992 | F147: =SUMCOST!H517 -> 16.16350977 | G147: =SUMCOST!I517 -> 17.33008538 | H147: =SUMCOST!J517 -> 13.11877513 | I147: =SUMCOST!K517 -> 15.67739421 | J147: =SUMCOST!L517 -> 39.9512245 | K147: =SUMCOST!M517 -> 0
A148: 140 | B148: Customer | C148: $/Cust/mo | D148: =SUMCOST!F518 -> 14.85728702 | E148: =SUMCOST!G518 -> 12.7379004 | F148: =SUMCOST!H518 -> 16.99786539 | G148: =SUMCOST!I518 -> 45.55719207 | H148: =SUMCOST!J518 -> 407.0361393 | I148: =SUMCOST!K518 -> 22.96676981 | J148: =SUMCOST!L518 -> 792.5186003 | K148: =SUMCOST!M518 -> 0
A149: 141
A150: 142
A151: 143 | B151: Revenue to Cost Ratio at Current Rates | D151: =D131/D143 -> 0.9948179217 | E151: =E131/E143 -> 0.8906052374 | F151: 1.293349246 | G151: 1.13127778 | H151: 0.9244963217 | I151: 0.9638053694 | J151: 0.9939397928 | K151: =K131/K143 -> 
A152: 144 | E152: =E151/$D$151 -> 0.8952444643 | F152: =F151/$D$151 -> 1.300086396 | G152: 1.137170687 | H152: 0.9293120896 | I152: 0.968825901 | J152: 0.9991172968
A153: 145
A154: 146 | B154: Cost Classifications at Proposed Return by Schedule
A155: 147 | B155: Energy | D155: =SUM(E155:O155) -> 221643907.9 | E155: =SUMCOST!G568 -> 89069168.36 | F155: =SUMCOST!H568 -> 23379023.07 | G155: =SUMCOST!I568 -> 63887275.71 | H155: =SUMCOST!J568 -> 39360061.28 | I155: =SUMCOST!K568 -> 4915198.513 | J155: =SUMCOST!L568 -> 1033180.981 | K155: =SUMCOST!M568 -> 0 | L155: =SUMCOST!N568 -> 0 | M155: =SUMCOST!O568 -> 0 | N155: =SUMCOST!P568 -> 0 | O155: =SUMCOST!Q568 -> 0
A156: 148 | B156: Demand | D156: =SUM(E156:O156) -> 208820365.9 | E156: =SUMCOST!G573 -> 93853612.01 | F156: =SUMCOST!H573 -> 25085595.71 | G156: =SUMCOST!I573 -> 61287361.15 | H156: =SUMCOST!J573 -> 21347337.45 | I156: =SUMCOST!K573 -> 4388954.945 | J156: =SUMCOST!L573 -> 2857504.65 | K156: =SUMCOST!M573 -> 0 | L156: =SUMCOST!N573 -> 0 | M156: =SUMCOST!O573 -> 0 | N156: =SUMCOST!P573 -> 0 | O156: =SUMCOST!Q573 -> 0
A157: 149 | B157: Customer | D157: =SUM(E157:O157) -> 39539664.19 | E157: =SUMCOST!G576 -> 27724897.56 | F157: =SUMCOST!H576 -> 6626096.871 | G157: =SUMCOST!I576 -> 1525678.605 | H157: =SUMCOST!J576 -> 102905.3314 | I157: =SUMCOST!K576 -> 629098.596 | J157: =SUMCOST!L576 -> 2930987.227 | K157: =SUMCOST!M576 -> 0 | L157: =SUMCOST!N576 -> 0 | M157: =SUMCOST!O576 -> 0 | N157: =SUMCOST!P576 -> 0 | O157: =SUMCOST!Q576 -> 0
A158: 150 | B158: Total Proposed Rate Revenue | D158: =SUM(D155:D157) -> 470003938 | E158: 210647677.9 | F158: 55090715.65 | G158: 126700315.5 | H158: 60810304.06 | I158: 9933252.055 | J158: 6821672.859 | K158: 0 | L158: 0 | M158: 0 | N158: 0 | O158: 0
A159: 151
A160: 152 | B160: Expressed as Unit Cost
A161: 153 | B161: Energy | C161: $/kWh | D161: =SUMCOST!F583 -> 0.03975777989 | E161: =SUMCOST!G583 -> 0.03726609023 | F161: =SUMCOST!H583 -> 0.04775398578 | G161: =SUMCOST!I583 -> 0.04311317043 | H161: =SUMCOST!J583 -> 0.03701820247 | I161: =SUMCOST!K583 -> 0.03957538409 | J161: =SUMCOST!L583 -> 0.03991185936 | K161: =SUMCOST!M583 -> 0
A162: 154 | B162: Demand | C162: $/kW/mo | D162: =SUMCOST!F584 -> 16.30512836 | E162: =SUMCOST!G584 -> 15.56835014 | F162: =SUMCOST!H584 -> 20.12366371 | G162: =SUMCOST!I584 -> 18.39539869 | H162: =SUMCOST!J584 -> 11.74073738 | I162: =SUMCOST!K584 -> 14.41534942 | J162: =SUMCOST!L584 -> 36.81592262 | K162: =SUMCOST!M584 -> 0
A163: 155 | B163: Customer | C163: $/Cust/mo | D163: =SUMCOST!F585 -> 14.00970135 | E163: =SUMCOST!G585 -> 11.46902878 | F163: =SUMCOST!H585 -> 19.50366423 | G163: =SUMCOST!I585 -> 47.40635134 | H163: =SUMCOST!J585 -> 389.792922 | I163: =SUMCOST!K585 -> 21.8414261 | J163: =SUMCOST!L585 -> 742.2099841 | K163: =SUMCOST!M585 -> 0
A164: 156
A165: 157
A166: 158 | B166: Cost Classifications at Uniform Requested Return
A167: 159 | B167: Energy | D167: =SUM(E167:O167) -> 221489918.9 | E167: =SUMCOST!G635 -> 95479894.41 | F167: =SUMCOST!H635 -> 19557579.2 | G167: =SUMCOST!I635 -> 59100704.15 | H167: =SUMCOST!J635 -> 41356101.95 | I167: =SUMCOST!K635 -> 4961514.764 | J167: =SUMCOST!L635 -> 1034124.45 | K167: =SUMCOST!M635 -> 0 | L167: =SUMCOST!N635 -> 0 | M167: =SUMCOST!O635 -> 0 | N167: =SUMCOST!P635 -> 0 | O167: =SUMCOST!Q635 -> 0
A168: 160 | B168: Demand | D168: =SUM(E168:O168) -> 208168835.1 | E168: =SUMCOST!G640 -> 105166790.6 | F168: =SUMCOST!H640 -> 18844722.28 | G168: =SUMCOST!I640 -> 54129140.36 | H168: =SUMCOST!J640 -> 22704909.47 | I168: =SUMCOST!K640 -> 4460450.785 | J168: =SUMCOST!L640 -> 2862821.61 | K168: =SUMCOST!M640 -> 0 | L168: =SUMCOST!N640 -> 0 | M168: =SUMCOST!O640 -> 0 | N168: =SUMCOST!P640 -> 0 | O168: =SUMCOST!Q640 -> 0
A169: 161 | B169: Customer | D169: =SUM(E169:O169) -> 40264700.85 | E169: =SUMCOST!G643 -> 29632971.95 | F169: =SUMCOST!H643 -> 5550141.74 | G169: =SUMCOST!I643 -> 1405748.822 | H169: =SUMCOST!J643 -> 105375.0394 | I169: =SUMCOST!K643 -> 635134.136 | J169: =SUMCOST!L643 -> 2935329.17 | K169: =SUMCOST!M643 -> 0 | L169: =SUMCOST!N643 -> 0 | M169: =SUMCOST!O643 -> 0 | N169: =SUMCOST!P643 -> 0 | O169: =SUMCOST!Q643 -> 0
A170: 162 | B170: Total Uniform Cost | D170: =SUM(D167:D169) -> 469923454.9 | E170: 230279657 | F170: 43952443.22 | G170: 114635593.3 | H170: 64166386.45 | I170: 10057099.68 | J170: 6832275.23 | K170: 0 | L170: 0 | M170: 0 | N170: 0 | O170: 0
A171: 163
A172: 164 | B172: Expressed as Unit Cost
A173: 165 | B173: Energy | C173: $/kWh | D173: =SUMCOST!F650 -> 0.03973015783 | E173: =SUMCOST!G650 -> 0.03994830564 | F173: =SUMCOST!H650 -> 0.03994830564 | G173: =SUMCOST!I650 -> 0.03988303935 | H173: =SUMCOST!J650 -> 0.038895482 | I173: =SUMCOST!K650 -> 0.03994830564 | J173: =SUMCOST!L650 -> 0.03994830564 | K173: =SUMCOST!M650 -> 0
A174: 166 | B174: Demand | C174: $/kW/mo | D174: =SUMCOST!F651 -> 16.25425548 | E174: =SUMCOST!G651 -> 17.44496972 | F174: =SUMCOST!H651 -> 15.11723533 | G174: =SUMCOST!I651 -> 16.24685904 | H174: =SUMCOST!J651 -> 12.48738303 | I174: =SUMCOST!K651 -> 14.65017468 | J174: =SUMCOST!L651 -> 36.88442602 | K174: =SUMCOST!M651 -> 0
A175: 167 | B175: Customer | C175: $/Cust/mo | D175: =SUMCOST!F652 -> 14.26659648 | E175: =SUMCOST!G652 -> 12.25834675 | F175: =SUMCOST!H652 -> 16.33663121 | G175: =SUMCOST!I652 -> 43.67985651 | H175: =SUMCOST!J652 -> 399.1478765 | I175: =SUMCOST!K652 -> 22.05097163 | J175: =SUMCOST!L652 -> 743.3094884 | K175: =SUMCOST!M652 -> 0
A176: 168
A177: 169 | B177: Revenue to Cost Ratio at Proposed Rates | D177: =D158/D170 -> 1.000171269 | E177: 0.9147472283 | F177: 1.253416457 | G177: 1.10524412 | H177: 0.9476971889 | I177: 0.9876855521 | J177: 0.9984481933
A178: 170
A179: 171 | B179: Current Revenue to Proposed Cost Ratio | D179: =D131/D170 -> 1.046038395 | E179: =E131/E170 -> 0.9367616839 | F179: 1.361817389 | G179: 1.191282718 | H179: 0.9653753025 | I179: 1.015703101 | J179: 1.062975685 | K179: =K158/K170 -> 
A180: 172
A181: 173 | B181: Meter, Services, Meter Reading & Billing Costs by Schedule at Requested Rate of Return
A182: 174
A183: 175 | B183: Rate Base
A184: 176 | B184: Services | D184: =SUM(E184:O184) -> 76191000 | E184: ='Customer Cost Analysis'!D5 -> 65366952.89 | F184: ='Customer Cost Analysis'!E5 -> 9186635.857 | G184: ='Customer Cost Analysis'!F5 -> 858563.3407 | H184: ='Customer Cost Analysis'!G5 -> 0 | I184: ='Customer Cost Analysis'!H5 -> 778847.9072 | J184: ='Customer Cost Analysis'!I5 -> 0
A185: 177 | B185: Services Accum. Depr. | D185: =SUM(E185:O185) -> -28270000 | E185: ='Customer Cost Analysis'!D6 -> -24253832.58 | F185: ='Customer Cost Analysis'!E6 -> -3408620.384 | G185: ='Customer Cost Analysis'!F6 -> -318562.3714 | H185: ='Customer Cost Analysis'!G6 -> 0 | I185: ='Customer Cost Analysis'!H6 -> -288984.6614 | J185: ='Customer Cost Analysis'!I6 -> 0
A186: 178 | B186: Total Services | D186: =SUM(D184:D185) -> 47921000 | E186: =SUM(E184:E185) -> 41113120.31 | F186: 5778015.473 | G186: 540000.9692 | H186: 0 | I186: 489863.2458 | J186: 0
A187: 179
A188: 180 | B188: Meters | D188: =SUM(E188:O188) -> 26286000 | E188: ='Customer Cost Analysis'!D9 -> 16055739.98 | F188: ='Customer Cost Analysis'!E9 -> 6137584.603 | G188: ='Customer Cost Analysis'!F9 -> 3050264.616 | H188: ='Customer Cost Analysis'!G9 -> 61019.71702 | I188: ='Customer Cost Analysis'!H9 -> 981391.0838 | J188: ='Customer Cost Analysis'!I9 -> 0
A189: 181 | B189: Meters Accum. Depr. | D189: =SUM(E189:O189) -> -4947000 | E189: ='Customer Cost Analysis'!D10 -> -3021674.872 | F189: ='Customer Cost Analysis'!E10 -> -1155087.538 | G189: ='Customer Cost Analysis'!F10 -> -574056.8765 | H189: ='Customer Cost Analysis'!G10 -> -11483.85224 | I189: ='Customer Cost Analysis'!H10 -> -184696.8611 | J189: ='Customer Cost Analysis'!I10 -> 0
A190: 182 | B190: Total Meters | D190: =SUM(D188:D189) -> 21339000 | E190: 13034065.11 | F190: 4982497.064 | G190: 2476207.739 | H190: 49535.86478 | I190: 796694.2226 | J190: 0
A191: 183
A192: 184 | B192: Total Rate Base | D192: =SUM(E192:O192) -> 69260000 | E192: =E186+E190 -> 54147185.42 | F192: 10760512.54 | G192: 3016208.709 | H192: 49535.86478 | I192: 1286557.468 | J192: 0
A193: 185
A194: 186 | B194: ="Return on Rate Base @ "&TEXT(ROUND(SUMCOST!$E$1216,5),"0.00%") -> Return on Rate Base @ 7.22% | D194: =SUM(E194:O194) -> 5000572 | E194: =E192*ROUND(SUMCOST!$E$1216,5) -> 3909426.787 | F194: =F192*ROUND(SUMCOST!$E$1216,5) -> 776909.0052 | G194: =G192*ROUND(SUMCOST!$E$1216,5) -> 217770.2688 | H194: =H192*ROUND(SUMCOST!$E$1216,5) -> 3576.489437 | I194: =I192*ROUND(SUMCOST!$E$1216,5) -> 92889.44922 | J194: =J192*ROUND(SUMCOST!$E$1216,5) -> 0
A195: 187 | B195: Revenue Conversion Factor | D195: ='Customer Cost Analysis'!C16 -> 0.62082 | E195: ='Customer Cost Analysis'!D16 -> 0.62082 | F195: ='Customer Cost Analysis'!E16 -> 0.62082 | G195: ='Customer Cost Analysis'!F16 -> 0.62082 | H195: ='Customer Cost Analysis'!G16 -> 0.62082 | I195: ='Customer Cost Analysis'!H16 -> 0.62082 | J195: ='Customer Cost Analysis'!I16 -> 0.62082
A196: 188 | B196: Rate Base Revenue Requirement | D196: =SUM(E196:O196) -> 8054785.606 | E196: =E194/E195 -> 6297198.524 | F196: 1251423.932 | G196: 350778.4362 | H196: 5760.912079 | I196: 149623.8027 | J196: 0
A197: 189
A198: 190 | B198: Expenses
A199: 191 | B199: Services Depr Exp | D199: =SUM(E199:O199) -> 2073000 | E199: ='Customer Cost Analysis'!D19 -> 1778499.998 | F199: ='Customer Cost Analysis'!E19 -> 249949.4183 | G199: ='Customer Cost Analysis'!F19 -> 23359.73809 | H199: ='Customer Cost Analysis'!G19 -> 0 | I199: ='Customer Cost Analysis'!H19 -> 21190.84553 | J199: ='Customer Cost Analysis'!I19 -> 0
A200: 192 | B200: Meters Depr Exp | D200: =SUM(E200:O200) -> 1009000 | E200: ='Customer Cost Analysis'!D20 -> 616306.8417 | F200: ='Customer Cost Analysis'!E20 -> 235593.9612 | G200: ='Customer Cost Analysis'!F20 -> 117085.787 | H200: ='Customer Cost Analysis'!G20 -> 2342.269439 | I200: ='Customer Cost Analysis'!H20 -> 37671.14066 | J200: ='Customer Cost Analysis'!I20 -> 0
... 27 more rows

Sheet ASSIGN (hidden)
A1: 1 | B1: Proforma | F1: AVISTA UTILITIES | H1: Washington Jurisdiction | J1: 1 | K1: Assign | N1: =$F$1 -> AVISTA UTILITIES | T1: =H2 -> Electric Utility | W1: =TransferP3 -> Washington Jurisdiction | AH1: 1 | AI1: =$K$1 -> Assign | AM1: =$F$1 -> AVISTA UTILITIES | AR1: =$H$1 -> Washington Jurisdiction | AU1: =$H$2 -> Electric Utility | BB1: 1 | BC1: =$K$1 -> Assign | BF1: =$F$1 -> AVISTA UTILITIES | BJ1: =$H$1 -> Washington Jurisdiction | BM1: =$H$2 -> Electric Utility
A2: 2 | B2: Pro Forma Results of Operations | F2: COS Proforma Transfer | H2: Electric Utility | J2: 2 | K2: Scenario: | L2: =B3 -> Company Base Case UE-12_____ | N2: Cost of Service Calculation | AC2: 2012-04-02 | AH2: 2 | AI2: =$K$2 -> Scenario: | AJ2: =$L$2 -> Company Base Case UE-12_____ | AM2: Functional Allocation Tables | AY2: =$AC$2 -> 2012-04-02 | BB2: 2 | BC2: =$K$2 -> Scenario: | BD2: =$L$2 -> Company Base Case UE-12_____ | BF2: Class Allocator Worksheet | BR2: =$AC$2 -> 2012-04-02
A3: 3 | B3: Company Base Case UE-12_____ | F3: For the Twelve Months Ended December 31, 2011 | H3: COS Checker | J3: 3 | L3: Load Factor Peak Credit Method | N3: =$F$3 -> For the Twelve Months Ended December 31, 2011 | V3: Functionalization and Classification | AH3: 3 | AJ3: =$L$3 -> Load Factor Peak Credit Method | AM3: =$F$3 -> For the Twelve Months Ended December 31, 2011 | AY3: =$AC$3 ->  | BB3: 3 | BD3: =$L$3 -> Load Factor Peak Credit Method | BF3: =$F$3 -> For the Twelve Months Ended December 31, 2011 | BR3: =$AC$3 -> 
A4: 4 | J4: 4 | L4: PROPOSED METHOD | AH4: 4 | AJ4: =$L$4 -> PROPOSED METHOD | BB4: 4 | BD4: =$L$4 -> PROPOSED METHOD
A5: 5 | B5: =columnheader -> B | C5: =columnheader -> C | D5: D | F5: BO | G5: BP | H5: Checker | J5: 5 | K5: ="(k)" -> (k) | L5: ="(l)" -> (l) | M5: ="(m)" -> (m) | N5: ="(n)" -> (n) | O5: ="(o)" -> (o) | P5: ="(p)" -> (p) | Q5: ="(q)" -> (q) | R5: ="(r)" -> (r) | S5: ="(s)" -> (s) | T5: ="(t)" -> (t) | U5: ="(u)" -> (u) | V5: ="(v)" -> (v) | W5: ="(w)" -> (w) | X5: ="(x)" -> (x) | Y5: ="(y)" -> (y) | Z5: ="(z)" -> (z) | AA5: ="(aa)" -> (aa) | AB5: (ab) | AC5: ="(ac)" -> (ac) | AH5: 5 | AI5: (ai) | AJ5: (aj) | AK5: (ak) | AL5: (al) | AM5: (am) | AN5: (an) | AO5: (ao) | AP5: (ap) | AQ5: (aq) | AR5: (ar) | AS5: (as) | AT5: (at) | AU5: (au) | AV5: (av) | AW5: (aw) | AX5: (ax) | AY5: (ay) | BB5: 5 | BC5: (bc) | BD5: (bd) | BE5: (be) | BF5: (bf) | BG5: (bg) | BH5: (bh) | BI5: (bi) | BJ5: (bj) | BK5: (bk) | BL5: (bl) | BM5: (bm) | BN5: (bn) | BO5: (bo) | BP5: (bp) | BQ5: (bq) | BR5: (br)
A6: 6 | F6: Transfer | G6: Transfer | H6: Description | I6: Amounts | J6: 6 | N6: Notes | O6: Functional | P6: Class | Q6: Proforma | R6: Functional | S6: =BG6 -> Residential | T6: General | U6: Large Gen | V6: Extra Large | W6: Pumping | X6: Street & | AH6: 6 | BB6: 6 | BC6: Class | BF6: Class | BG6: Residential | BH6: General | BI6: Large Gen | BJ6: Extra Large | BK6: Pumping | BL6: Street & | BR6: Source / Description
A7: 7 | B7: Account | D7: Description | F7: Proforma | G7: Labor | J7: 7 | K7: Account Description | O7: Allocation | P7: Allocator | Q7: Totals | R7: Totals | S7: Service | T7: Service | U7: Service | V7: Gen Service | W7: Service | X7: Area Lights | AH7: 7 | BB7: 7 | BC7: Allocator | BF7: Allocator | BG7: Service | BH7: Service | BI7: Service | BJ7: Gen Service | BK7: Service | BL7: Area Lights
A8: 8 | F8: Totals | G8: Totals | H8: Key Items for Checking | J8: 8 | S8: Sch 1 | T8: Sch 11-12 | U8: Sch 21-22 | V8: Sch 25 | W8: Sch 31-32 | X8: Sch 41-49 | Y8: Open 1 | Z8: Open 2 | AA8: Open 3 | AB8: Open 4 | AC8: Open 5 | AH8: 8 | BB8: 8 | BC8: Name | BD8: Description | BF8: Total | BG8: Sch 1 | BH8: Sch 11-12 | BI8: Sch 21-22 | BJ8: Sch 25 | BK8: Sch 31-32 | BL8: Sch 41-49 | BM8: Open 1 | BN8: Open 2 | BO8: Open 3 | BP8: Open 4 | BQ8: Open 5
A9: 9 | B9: Operation & Maintenance Expenses | J9: 9 | K9: =B9 -> Operation & Maintenance Expenses | AH9: 9 | AI9: Production Function Factor Table (pfactor) | BB9: 9
A10: 10 | C10: Production Expenses | H10: Rate Base | I10: 1125272000 | J10: 10 | L10: =C10 -> Production Expenses | AH10: 10 | AI10: Class | AJ10: Factor Name | AK10: P01 | AL10: P02 | AM10: P03 | AN10: P04 | AO10: P05 | AP10: P06 | AQ10: P07 | AR10: P08 | AS10: P09 | BB10: 10 | BD10: Energy Allocators
A11: 11 | B11: 500-OP | C11: Steam | D11: Supervision & Engineering | F11: 349000 | G11: 153692 | H11: Expenses | I11: 429185000 | J11: 11 | K11: =B11 -> 500-OP | L11: =C11 -> Steam | M11: =D11 -> Supervision & Engineering | O11: P01 | P11: =IF(MATCH(O11,P_ref,0)>0,"","error matching functional allocator") ->  | Q11: =F11 -> 349000 | AH11: 11 | AJ11: Total Factor | AK11: =AK12+AK13+AK14+AK15 -> 100 | AL11: 100 | AM11: 100 | AN11: 100 | AO11: 200 | AP11: 187644 | AQ11: 55075 | AR11: 5595 | AS11: 2596 | BB11: 11 | BC11: E01 | BD11: Customer Level Consumption | BF11: =SUM(BG11:BQ11) -> 5574856.255 | BG11: 2390086.21 | BH11: 489572.183 | BI11: 1481850.559 | BJ11: 1063262.359 | BK11: 124198.378 | BL11: 25886.566 | BM11: 0 | BN11: 0 | BO11: 0 | BP11: 0 | BQ11: 0 | BR11: Energy Sales-MWH
A12: 12 | B12: 501-OP | C12: Steam | D12: Fuel | F12: 20467000 | G12: 550684 | H12: Revenue | I12: 523083000 | J12: 12 | L12: P | M12: =HLOOKUP("Factor Name",pfactor,3) -> Coincident Peak | N12: =IF(MATCH(P12,ref,0)>0,"","matching error") ->  | O12: =HLOOKUP(O11,pfactor,3) -> 34.2 | P12: =HLOOKUP("Class",pfactor,3) -> D01 | R12: =Q11*O12/SUM(O12:O15) -> 119358 | S12: =$R12*(VLOOKUP($P12,class,5)/VLOOKUP($P12,class,4)) -> 59480.79991 | T12: =$R12*(VLOOKUP($P12,class,6)/VLOOKUP($P12,class,4)) -> 9290.88071 | U12: =$R12*(VLOOKUP($P12,class,7)/VLOOKUP($P12,class,4)) -> 29196.38827 | V12: =$R12*(VLOOKUP($P12,class,8)/VLOOKUP($P12,class,4)) -> 18978.0276 | W12: =$R12*(VLOOKUP($P12,class,9)/VLOOKUP($P12,class,4)) -> 2121.772887 | X12: =$R12*(VLOOKUP($P12,class,10)/VLOOKUP($P12,class,4)) -> 290.1306323 | Y12: =$R12*(VLOOKUP($P12,class,11)/VLOOKUP($P12,class,4)) -> 0 | Z12: =$R12*(VLOOKUP($P12,class,12)/VLOOKUP($P12,class,4)) -> 0 | AA12: =$R12*(VLOOKUP($P12,class,13)/VLOOKUP($P12,class,4)) -> 0 | AB12: =$R12*(VLOOKUP($P12,class,14)/VLOOKUP($P12,class,4)) -> 0 | AC12: =$R12*(VLOOKUP($P12,class,15)/VLOOKUP($P12,class,4)) -> 0 | AH12: 12 | AI12: D01 | AJ12: =VLOOKUP(AI12,class,2) -> Coincident Peak | AK12: 34.2 | AL12: 42 | AM12: 41.83 | AN12: 100 | AO12: =AK12+AK20 -> 68.4 | AP12: 126316 | AQ12: 44099 | AR12: 3810 | AS12: 1229 | BB12: 12 | BE12: =IF(SUM(BG12:BQ12)=BF12,"","error") ->  | BF12: =BF11/$BF11 -> 1 | BG12: 0.4287260695 | BH12: 0.08781790249 | BI12: 0.2658096444 | BJ12: 0.1907246233 | BK12: 0.02227831038 | BL12: 0.00464344995 | BM12: 0 | BN12: 0 | BO12: 0 | BP12: 0 | BQ12: 0
A13: 13 | B13: 502-OP | C13: Steam | D13: Steam Expenses | F13: 2849000 | G13: 297876 | H13: Income | I13: 93898000 | J13: 13 | L13: P | M13: =HLOOKUP("Factor Name",pfactor,4) -> Generation Level Consumption | N13: =IF(MATCH(P13,ref,0)>0,"","matching error") ->  | O13: =HLOOKUP(O11,pfactor,4) -> 65.8 | P13: =HLOOKUP("Class",pfactor,4) -> E02 | R13: =Q11*O13/SUM(O12:O15) -> 229642 | S13: =$R13*(VLOOKUP($P13,class,5)/VLOOKUP($P13,class,4)) -> 98994.09427 | T13: =$R13*(VLOOKUP($P13,class,6)/VLOOKUP($P13,class,4)) -> 20277.40867 | U13: =$R13*(VLOOKUP($P13,class,7)/VLOOKUP($P13,class,4)) -> 61275.94415 | V13: =$R13*(VLOOKUP($P13,class,8)/VLOOKUP($P13,class,4)) -> 42878.24028 | W13: =$R13*(VLOOKUP($P13,class,9)/VLOOKUP($P13,class,4)) -> 5144.126554 | X13: =$R13*(VLOOKUP($P13,class,10)/VLOOKUP($P13,class,4)) -> 1072.186076 | Y13: =$R13*(VLOOKUP($P13,class,11)/VLOOKUP($P13,class,4)) -> 0 | Z13: =$R13*(VLOOKUP($P13,class,12)/VLOOKUP($P13,class,4)) -> 0 | AA13: =$R13*(VLOOKUP($P13,class,13)/VLOOKUP($P13,class,4)) -> 0 | AB13: =$R13*(VLOOKUP($P13,class,14)/VLOOKUP($P13,class,4)) -> 0 | AC13: =$R13*(VLOOKUP($P13,class,15)/VLOOKUP($P13,class,4)) -> 0 | AH13: 13 | AI13: E02 | AJ13: =VLOOKUP(AI13,class,2) -> Generation Level Consumption | AK13: 65.8 | AL13: 58 | AM13: 58.17 | AN13: 0 | AO13: =AK13+AK21 -> 131.6 | AP13: 61328 | AQ13: 10976 | AR13: 1785 | AS13: 1367 | BB13: 13 | BC13: E02 | BD13: Generation Level Consumption | BF13: =SUM(BG13:BQ13) -> 5943611.107 | BG13: =BG11*1.072 -> 2562172.417 | BH13: =BH11*1.072 -> 524821.3802 | BI13: =(BI11*0.9166*1.072)+(BI11*0.0834*1.051) -> 1585948.486 | BJ13: =(29777.552+28768.776+21476.51)*1.072+(52903.872+394308.288)*1.03+(BJ11-29777.552-28768.776-468688.67)*1.051 -> 1109777.764 | BK13: =BK11*1.072 -> 133140.6612 | BL13: =BL11*1.072 -> 27750.39875 | BM13: 0 | BN13: 0 | BO13: 0 | BP13: 0 | BQ13: 0 | BR13: Energy Sales with Losses - MWH
A14: 14 | B14: 503-OP | C14: Steam | D14: From Other Sources | F14: 0 | G14: 0 | H14: Interest | I14: 34872000 | J14: 14 | L14: P | M14: =HLOOKUP("Factor Name",pfactor,5) -> Open | N14: =IF(MATCH(P14,ref,0)>0,"","matching error") ->  | O14: =HLOOKUP(O11,pfactor,5) -> 0 | P14: =HLOOKUP("Class",pfactor,5) -> xxx | R14: =Q11*O14/SUM(O12:O15) -> 0 | S14: =$R14*(VLOOKUP($P14,class,5)/VLOOKUP($P14,class,4)) -> 0 | T14: =$R14*(VLOOKUP($P14,class,6)/VLOOKUP($P14,class,4)) -> 0 | U14: =$R14*(VLOOKUP($P14,class,7)/VLOOKUP($P14,class,4)) -> 0 | V14: =$R14*(VLOOKUP($P14,class,8)/VLOOKUP($P14,class,4)) -> 0 | W14: =$R14*(VLOOKUP($P14,class,9)/VLOOKUP($P14,class,4)) -> 0 | X14: =$R14*(VLOOKUP($P14,class,10)/VLOOKUP($P14,class,4)) -> 0 | Y14: =$R14*(VLOOKUP($P14,class,11)/VLOOKUP($P14,class,4)) -> 0 | Z14: =$R14*(VLOOKUP($P14,class,12)/VLOOKUP($P14,class,4)) -> 0 | AA14: =$R14*(VLOOKUP($P14,class,13)/VLOOKUP($P14,class,4)) -> 0 | AB14: =$R14*(VLOOKUP($P14,class,14)/VLOOKUP($P14,class,4)) -> 0 | AC14: =$R14*(VLOOKUP($P14,class,15)/VLOOKUP($P14,class,4)) -> 0 | AH14: 14 | AI14: xxx | AJ14: =VLOOKUP(AI14,class,2) -> Open | AK14: 0 | AL14: 0 | AM14: 0 | AN14: 0 | AO14: =AK14+AK22 -> 0 | AP14: 0 | AQ14: 0 | AR14: 0 | AS14: 0 | BB14: 14 | BE14: =IF(SUM(BG14:BQ14)=BF14,"","error") ->  | BF14: =BF13/$BF13 -> 1 | BG14: 0.431080091 | BH14: 0.08830008739 | BI14: 0.266832479 | BJ14: 0.1867177619 | BK14: 0.0224006347 | BL14: 0.004668945907 | BM14: 0 | BN14: 0 | BO14: 0 | BP14: 0 | BQ14: 0
A15: 15 | B15: 504-OP | C15: Steam | D15: Steam Transferred-CR | F15: 0 | G15: 0 | H15: SIT | I15: 0 | J15: 15 | L15: P | M15: =HLOOKUP("Factor Name",pfactor,6) -> Open | N15: =IF(MATCH(P15,ref,0)>0,"","matching error") ->  | O15: =HLOOKUP(O11,pfactor,6) -> 0 | P15: =HLOOKUP("Class",pfactor,6) -> xxx | R15: =Q11*O15/SUM(O12:O15) -> 0 | S15: =$R15*(VLOOKUP($P15,class,5)/VLOOKUP($P15,class,4)) -> 0 | T15: =$R15*(VLOOKUP($P15,class,6)/VLOOKUP($P15,class,4)) -> 0 | U15: =$R15*(VLOOKUP($P15,class,7)/VLOOKUP($P15,class,4)) -> 0 | V15: =$R15*(VLOOKUP($P15,class,8)/VLOOKUP($P15,class,4)) -> 0 | W15: =$R15*(VLOOKUP($P15,class,9)/VLOOKUP($P15,class,4)) -> 0 | X15: =$R15*(VLOOKUP($P15,class,10)/VLOOKUP($P15,class,4)) -> 0 | Y15: =$R15*(VLOOKUP($P15,class,11)/VLOOKUP($P15,class,4)) -> 0 | Z15: =$R15*(VLOOKUP($P15,class,12)/VLOOKUP($P15,class,4)) -> 0 | AA15: =$R15*(VLOOKUP($P15,class,13)/VLOOKUP($P15,class,4)) -> 0 | AB15: =$R15*(VLOOKUP($P15,class,14)/VLOOKUP($P15,class,4)) -> 0 | AC15: =$R15*(VLOOKUP($P15,class,15)/VLOOKUP($P15,class,4)) -> 0 | AH15: 15 | AI15: xxx | AJ15: =VLOOKUP(AI15,class,2) -> Open | AK15: 0 | AL15: 0 | AM15: 0 | AN15: 0 | AO15: 0 | AP15: 0 | AQ15: 0 | AR15: 0 | AS15: 0 | BB15: 15 | BC15: E03 | BD15: Open | BF15: =SUM(BG15:BQ15) -> 0 | BG15: 0 | BH15: 0 | BI15: 0 | BJ15: 0 | BK15: 0 | BL15: 0 | BM15: 0 | BN15: 0 | BO15: 0 | BP15: 0 | BQ15: 0 | BR15: Open
A16: 16 | B16: 505-OP | C16: Steam | D16: Electric Expenses | F16: 636000 | G16: 299231 | H16: FIT | I16: 14643000 | J16: 16 | K16: =B12 -> 501-OP | L16: =C12 -> Steam | M16: =D12 -> Fuel | O16: P01 | P16: =IF(MATCH(O16,P_ref,0)>0,"","error matching functional allocator") ->  | Q16: =F12 -> 20467000 | AH16: 16 | AK16: All Gen | AL16: Thermal PC | AM16: Hydro PC | AN16: Other PC | AO16: P01 + T01 | AP16: CS Plt | AQ16: CS A/D | AR16: CS Depr | AS16: CS O&M | BB16: 16
A17: 17 | B17: 506-OP | C17: Steam | D17: Miscellaneous Power Exp. | F17: 1581000 | G17: 114776 | H17: ITC | I17: -114000 | J17: 17 | L17: P | M17: =HLOOKUP("Factor Name",pfactor,3) -> Coincident Peak | N17: =IF(MATCH(P17,ref,0)>0,"","matching error") ->  | O17: =HLOOKUP(O16,pfactor,3) -> 34.2 | P17: =HLOOKUP("Class",pfactor,3) -> D01 | R17: =Q16*O17/SUM(O17:O20) -> 6999714 | S17: =$R17*(VLOOKUP($P17,class,5)/VLOOKUP($P17,class,4)) -> 3488233.615 | T17: =$R17*(VLOOKUP($P17,class,6)/VLOOKUP($P17,class,4)) -> 544860.904 | U17: =$R17*(VLOOKUP($P17,class,7)/VLOOKUP($P17,class,4)) -> 1712213.406 | V17: =$R17*(VLOOKUP($P17,class,8)/VLOOKUP($P17,class,4)) -> 1112960.719 | W17: =$R17*(VLOOKUP($P17,class,9)/VLOOKUP($P17,class,4)) -> 124430.7326 | X17: =$R17*(VLOOKUP($P17,class,10)/VLOOKUP($P17,class,4)) -> 17014.62364 | Y17: =$R17*(VLOOKUP($P17,class,11)/VLOOKUP($P17,class,4)) -> 0 | Z17: =$R17*(VLOOKUP($P17,class,12)/VLOOKUP($P17,class,4)) -> 0 | AA17: =$R17*(VLOOKUP($P17,class,13)/VLOOKUP($P17,class,4)) -> 0 | AB17: =$R17*(VLOOKUP($P17,class,14)/VLOOKUP($P17,class,4)) -> 0 | AC17: =$R17*(VLOOKUP($P17,class,15)/VLOOKUP($P17,class,4)) -> 0 | AH17: 17 | AI17: Transmission Function Factor Table (tfactor) | BB17: 17 | BD17: Demand Allocators
A18: 18 | B18: 507-OP | C18: Steam | D18: Rents | F18: 21000 | G18: 0 | H18: Deferred Tax | I18: 14889000 | J18: 18 | L18: P | M18: =HLOOKUP("Factor Name",pfactor,4) -> Generation Level Consumption | N18: =IF(MATCH(P18,ref,0)>0,"","matching error") ->  | O18: =HLOOKUP(O16,pfactor,4) -> 65.8 | P18: =HLOOKUP("Class",pfactor,4) -> E02 | R18: =Q16*O18/SUM(O17:O20) -> 13467286 | S18: =$R18*(VLOOKUP($P18,class,5)/VLOOKUP($P18,class,4)) -> 5805478.875 | T18: =$R18*(VLOOKUP($P18,class,6)/VLOOKUP($P18,class,4)) -> 1189162.531 | U18: =$R18*(VLOOKUP($P18,class,7)/VLOOKUP($P18,class,4)) -> 3593509.309 | V18: =$R18*(VLOOKUP($P18,class,8)/VLOOKUP($P18,class,4)) -> 2514581.501 | W18: =$R18*(VLOOKUP($P18,class,9)/VLOOKUP($P18,class,4)) -> 301675.7541 | X18: =$R18*(VLOOKUP($P18,class,10)/VLOOKUP($P18,class,4)) -> 62878.02985 | Y18: =$R18*(VLOOKUP($P18,class,11)/VLOOKUP($P18,class,4)) -> 0 | Z18: =$R18*(VLOOKUP($P18,class,12)/VLOOKUP($P18,class,4)) -> 0 | AA18: =$R18*(VLOOKUP($P18,class,13)/VLOOKUP($P18,class,4)) -> 0 | AB18: =$R18*(VLOOKUP($P18,class,14)/VLOOKUP($P18,class,4)) -> 0 | AC18: =$R18*(VLOOKUP($P18,class,15)/VLOOKUP($P18,class,4)) -> 0 | AH18: 18 | AI18: Class | AJ18: Factor Name | AK18: T01 | AL18: T02 | AM18: T03 | AN18: T04 | BB18: 18 | BC18: D01 | BD18: Coincident Peak | BF18: =SUM(BG18:BQ18) -> 890668 | BG18: 443855 | BH18: 69330 | BI18: =201605+16177+86 -> 217868 | BJ18: =54186+76061+11370 -> 141617 | BK18: 15833 | BL18: =1406+759 -> 2165 | BM18: 0 | BN18: 0 | BO18: 0 | BP18: 0 | BQ18: 0 | BR18: Coincident Peak 12 Month Average
A19: 19 | C19: Total Steam Operation | H19: Gen Bus Revenue | I19: 455105000 | J19: 19 | L19: P | M19: =HLOOKUP("Factor Name",pfactor,5) -> Open | N19: =IF(MATCH(P19,ref,0)>0,"","matching error") ->  | O19: =HLOOKUP(O16,pfactor,5) -> 0 | P19: =HLOOKUP("Class",pfactor,5) -> xxx | R19: =Q16*O19/SUM(O17:O20) -> 0 | S19: =$R19*(VLOOKUP($P19,class,5)/VLOOKUP($P19,class,4)) -> 0 | T19: =$R19*(VLOOKUP($P19,class,6)/VLOOKUP($P19,class,4)) -> 0 | U19: =$R19*(VLOOKUP($P19,class,7)/VLOOKUP($P19,class,4)) -> 0 | V19: =$R19*(VLOOKUP($P19,class,8)/VLOOKUP($P19,class,4)) -> 0 | W19: =$R19*(VLOOKUP($P19,class,9)/VLOOKUP($P19,class,4)) -> 0 | X19: =$R19*(VLOOKUP($P19,class,10)/VLOOKUP($P19,class,4)) -> 0 | Y19: =$R19*(VLOOKUP($P19,class,11)/VLOOKUP($P19,class,4)) -> 0 | Z19: =$R19*(VLOOKUP($P19,class,12)/VLOOKUP($P19,class,4)) -> 0 | AA19: =$R19*(VLOOKUP($P19,class,13)/VLOOKUP($P19,class,4)) -> 0 | AB19: =$R19*(VLOOKUP($P19,class,14)/VLOOKUP($P19,class,4)) -> 0 | AC19: =$R19*(VLOOKUP($P19,class,15)/VLOOKUP($P19,class,4)) -> 0 | AH19: 19 | AJ19: Total Factor | AK19: =AK20+AK21+AK22 -> 100 | AL19: =AL20+AL21+AL22 -> 100 | AM19: =AM20+AM21+AM22 -> 0 | AN19: =AN20+AN21+AN22 -> 0 | BB19: 19 | BE19: =IF(SUM(BG19:BQ19)=BF19,"","error") ->  | BF19: =BF18/$BF18 -> 1 | BG19: 0.4983394486 | BH19: 0.07784045233 | BI19: 0.2446119093 | BJ19: 0.1590008847 | BK19: 0.01777654524 | BL19: 0.002430759834 | BM19: 0 | BN19: 0 | BO19: 0 | BP19: 0 | BQ19: 0
A20: 20 | B20: 510-MT | C20: Steam | D20: Supervision & Engineering | F20: 394000 | G20: 82231 | H20: Allocated Revenue | I20: 0 | J20: 20 | L20: P | M20: =HLOOKUP("Factor Name",pfactor,6) -> Open | N20: =IF(MATCH(P20,ref,0)>0,"","matching error") ->  | O20: =HLOOKUP(O16,pfactor,6) -> 0 | P20: =HLOOKUP("Class",pfactor,6) -> xxx | R20: =Q16*O20/SUM(O17:O20) -> 0 | S20: =$R20*(VLOOKUP($P20,class,5)/VLOOKUP($P20,class,4)) -> 0 | T20: =$R20*(VLOOKUP($P20,class,6)/VLOOKUP($P20,class,4)) -> 0 | U20: =$R20*(VLOOKUP($P20,class,7)/VLOOKUP($P20,class,4)) -> 0 | V20: =$R20*(VLOOKUP($P20,class,8)/VLOOKUP($P20,class,4)) -> 0 | W20: =$R20*(VLOOKUP($P20,class,9)/VLOOKUP($P20,class,4)) -> 0 | X20: =$R20*(VLOOKUP($P20,class,10)/VLOOKUP($P20,class,4)) -> 0 | Y20: =$R20*(VLOOKUP($P20,class,11)/VLOOKUP($P20,class,4)) -> 0 | Z20: =$R20*(VLOOKUP($P20,class,12)/VLOOKUP($P20,class,4)) -> 0 | AA20: =$R20*(VLOOKUP($P20,class,13)/VLOOKUP($P20,class,4)) -> 0 | AB20: =$R20*(VLOOKUP($P20,class,14)/VLOOKUP($P20,class,4)) -> 0 | AC20: =$R20*(VLOOKUP($P20,class,15)/VLOOKUP($P20,class,4)) -> 0 | AH20: 20 | AI20: D01 | AJ20: =VLOOKUP(AI20,class,2) -> Coincident Peak | AK20: =AK12 -> 34.2 | AL20: 41.92 | BB20: 20 | BC20: D02 | BD20: NCP-All | BF20: =SUM(BG20:BQ20) -> 1067253 | BG20: 502374 | BH20: 103881 | BI20: =257301+19136+1202 -> 277639 | BJ20: =57591+81861+12067 -> 151519 | BK20: 25372 | BL20: =4201+2267 -> 6468 | BM20: 0 | BN20: 0 | BO20: 0 | BP20: 0 | BQ20: 0 | BR20: Non-Coincident Peak All Sched.12 Mo Avg
A21: 21 | B21: 511-MT | C21: Steam | D21: Structures | F21: 472000 | G21: 2208 | H21: Secondary Sales | I21: 55442000 | J21: 21 | K21: =B13 -> 502-OP | L21: =C13 -> Steam | M21: =D13 -> Steam Expenses | O21: P01 | P21: =IF(MATCH(O21,P_ref,0)>0,"","error matching functional allocator") ->  | Q21: =F13 -> 2849000 | AH21: 21 | AI21: E02 | AJ21: =VLOOKUP(AI21,class,2) -> Generation Level Consumption | AK21: =AK13 -> 65.8 | AL21: 58.08 | BB21: 21 | BE21: =IF(SUM(BG21:BQ21)=BF21,"","error") ->  | BF21: =BF20/$BF20 -> 1 | BG21: 0.4707168778 | BH21: 0.0973349337 | BI21: 0.2601435648 | BJ21: 0.1419710228 | BK21: 0.02377318218 | BL21: 0.006060418664 | BM21: 0 | BN21: 0 | BO21: 0 | BP21: 0 | BQ21: 0
A22: 22 | B22: 512-MT | C22: Steam | D22: Boiler Plant | F22: 3999000 | G22: 326450 | H22: MOPS Revenue | I22: 0 | J22: 22 | L22: P | M22: =HLOOKUP("Factor Name",pfactor,3) -> Coincident Peak | N22: =IF(MATCH(P22,ref,0)>0,"","matching error") ->  | O22: =HLOOKUP(O21,pfactor,3) -> 34.2 | P22: =HLOOKUP("Class",pfactor,3) -> D01 | R22: =Q21*O22/SUM(O22:O25) -> 974358 | S22: =$R22*(VLOOKUP($P22,class,5)/VLOOKUP($P22,class,4)) -> 485561.0285 | T22: =$R22*(VLOOKUP($P22,class,6)/VLOOKUP($P22,class,4)) -> 75844.46746 | U22: =$R22*(VLOOKUP($P22,class,7)/VLOOKUP($P22,class,4)) -> 238339.5707 | V22: =$R22*(VLOOKUP($P22,class,8)/VLOOKUP($P22,class,4)) -> 154923.784 | W22: =$R22*(VLOOKUP($P22,class,9)/VLOOKUP($P22,class,4)) -> 17320.71907 | X22: =$R22*(VLOOKUP($P22,class,10)/VLOOKUP($P22,class,4)) -> 2368.430291 | Y22: =$R22*(VLOOKUP($P22,class,11)/VLOOKUP($P22,class,4)) -> 0 | Z22: =$R22*(VLOOKUP($P22,class,12)/VLOOKUP($P22,class,4)) -> 0 | AA22: =$R22*(VLOOKUP($P22,class,13)/VLOOKUP($P22,class,4)) -> 0 | AB22: =$R22*(VLOOKUP($P22,class,14)/VLOOKUP($P22,class,4)) -> 0 | AC22: =$R22*(VLOOKUP($P22,class,15)/VLOOKUP($P22,class,4)) -> 0 | AH22: 22 | AI22: xxx | AJ22: =VLOOKUP(AI22,class,2) -> Open | AK22: 0 | AL22: 0 | BB22: 22 | BC22: D03 | BD22: NCP-w/o DA | BF22: =SUM(BG22:BQ22) -> 915734 | BG22: =BG20 -> 502374 | BH22: =BH20 -> 103881 | BI22: =BI20 -> 277639 | BJ22: 0 | BK22: =BK20 -> 25372 | BL22: 6468 | BM22: 0 | BN22: 0 | BO22: 0 | BP22: 0 | BQ22: 0 | BR22: NCP w/o Sch 25/28 12 Mo Avg
A23: 23 | B23: 513-MT | C23: Steam | D23: Electric Plant | F23: 932000 | G23: 126646 | H23: Misc Rev | I23: 356000 | J23: 23 | L23: P | M23: =HLOOKUP("Factor Name",pfactor,4) -> Generation Level Consumption | N23: =IF(MATCH(P23,ref,0)>0,"","matching error") ->  | O23: =HLOOKUP(O21,pfactor,4) -> 65.8 | P23: =HLOOKUP("Class",pfactor,4) -> E02 | R23: =Q21*O23/SUM(O22:O25) -> 1874642 | S23: =$R23*(VLOOKUP($P23,class,5)/VLOOKUP($P23,class,4)) -> 808120.844 | T23: =$R23*(VLOOKUP($P23,class,6)/VLOOKUP($P23,class,4)) -> 165531.0524 | U23: =$R23*(VLOOKUP($P23,class,7)/VLOOKUP($P23,class,4)) -> 500215.3722 | V23: =$R23*(VLOOKUP($P23,class,8)/VLOOKUP($P23,class,4)) -> 350028.9586 | W23: =$R23*(VLOOKUP($P23,class,9)/VLOOKUP($P23,class,4)) -> 41993.17064 | X23: =$R23*(VLOOKUP($P23,class,10)/VLOOKUP($P23,class,4)) -> 8752.602093 | Y23: =$R23*(VLOOKUP($P23,class,11)/VLOOKUP($P23,class,4)) -> 0 | Z23: =$R23*(VLOOKUP($P23,class,12)/VLOOKUP($P23,class,4)) -> 0 | AA23: =$R23*(VLOOKUP($P23,class,13)/VLOOKUP($P23,class,4)) -> 0 | AB23: =$R23*(VLOOKUP($P23,class,14)/VLOOKUP($P23,class,4)) -> 0 | AC23: =$R23*(VLOOKUP($P23,class,15)/VLOOKUP($P23,class,4)) -> 0 | AH23: 23 | AK23: All Tran | AL23: Avg PC | BB23: 23 | BE23: =IF(SUM(BG23:BQ23)=BF23,"","error") ->  | BF23: =BF22/$BF22 -> 1 | BG23: 0.5486025418 | BH23: 0.1134401475 | BI23: 0.3031873885 | BJ23: 0 | BK23: 0.0277067358 | BL23: 0.007063186471 | BM23: 0 | BN23: 0 | BO23: 0 | BP23: 0 | BQ23: 0
A24: 24 | B24: 514-MT | C24: Steam | D24: Miscellaneous Plant | F24: 564000 | G24: 53145 | H24: Water Sales | I24: 330000 | J24: 24 | L24: P | M24: =HLOOKUP("Factor Name",pfactor,5) -> Open | N24: =IF(MATCH(P24,ref,0)>0,"","matching error") ->  | O24: =HLOOKUP(O21,pfactor,5) -> 0 | P24: =HLOOKUP("Class",pfactor,5) -> xxx | R24: =Q21*O24/SUM(O22:O25) -> 0 | S24: =$R24*(VLOOKUP($P24,class,5)/VLOOKUP($P24,class,4)) -> 0 | T24: =$R24*(VLOOKUP($P24,class,6)/VLOOKUP($P24,class,4)) -> 0 | U24: =$R24*(VLOOKUP($P24,class,7)/VLOOKUP($P24,class,4)) -> 0 | V24: =$R24*(VLOOKUP($P24,class,8)/VLOOKUP($P24,class,4)) -> 0 | W24: =$R24*(VLOOKUP($P24,class,9)/VLOOKUP($P24,class,4)) -> 0 | X24: =$R24*(VLOOKUP($P24,class,10)/VLOOKUP($P24,class,4)) -> 0 | Y24: =$R24*(VLOOKUP($P24,class,11)/VLOOKUP($P24,class,4)) -> 0 | Z24: =$R24*(VLOOKUP($P24,class,12)/VLOOKUP($P24,class,4)) -> 0 | AA24: =$R24*(VLOOKUP($P24,class,13)/VLOOKUP($P24,class,4)) -> 0 | AB24: =$R24*(VLOOKUP($P24,class,14)/VLOOKUP($P24,class,4)) -> 0 | AC24: =$R24*(VLOOKUP($P24,class,15)/VLOOKUP($P24,class,4)) -> 0 | AH24: 24 | AI24: Distribution Function Factor Table (dfactor) | BB24: 24 | BC24: D04 | BD24: DA Sch 25 | BF24: =SUM(BG24:BQ24) -> 100 | BJ24: 100 | BR24: Direct Assigned to Schedule 25 Customers
A25: 25 | C25: Total Steam Maintenance | H25: Rent | I25: 1916000 | J25: 25 | L25: P | M25: =HLOOKUP("Factor Name",pfactor,6) -> Open | N25: =IF(MATCH(P25,ref,0)>0,"","matching error") ->  | O25: =HLOOKUP(O21,pfactor,6) -> 0 | P25: =HLOOKUP("Class",pfactor,6) -> xxx | R25: =Q21*O25/SUM(O22:O25) -> 0 | S25: =$R25*(VLOOKUP($P25,class,5)/VLOOKUP($P25,class,4)) -> 0 | T25: =$R25*(VLOOKUP($P25,class,6)/VLOOKUP($P25,class,4)) -> 0 | U25: =$R25*(VLOOKUP($P25,class,7)/VLOOKUP($P25,class,4)) -> 0 | V25: =$R25*(VLOOKUP($P25,class,8)/VLOOKUP($P25,class,4)) -> 0 | W25: =$R25*(VLOOKUP($P25,class,9)/VLOOKUP($P25,class,4)) -> 0 | X25: =$R25*(VLOOKUP($P25,class,10)/VLOOKUP($P25,class,4)) -> 0 | Y25: =$R25*(VLOOKUP($P25,class,11)/VLOOKUP($P25,class,4)) -> 0 | Z25: =$R25*(VLOOKUP($P25,class,12)/VLOOKUP($P25,class,4)) -> 0 | AA25: =$R25*(VLOOKUP($P25,class,13)/VLOOKUP($P25,class,4)) -> 0 | AB25: =$R25*(VLOOKUP($P25,class,14)/VLOOKUP($P25,class,4)) -> 0 | AC25: =$R25*(VLOOKUP($P25,class,15)/VLOOKUP($P25,class,4)) -> 0 | AH25: 25 | AI25: Class | AJ25: Factor Name | AK25: X01 | AL25: X02 | AM25: X03 | AN25: X04 | AO25: X05 | AP25: X06 | AQ25: X07 | AR25: X08 | AS25: X09 | AT25: X10 | AU25: X11 | AV25: X12 | AW25: X13 | AX25: X14 | AY25: X15 | BB25: 25 | BE25: =IF(SUM(BG25:BQ25)=BF25,"","error") ->  | BF25: =BF24/$BF24 -> 1 | BG25: 0 | BH25: 0 | BI25: 0 | BJ25: 1 | BK25: 0 | BL25: 0 | BM25: 0 | BN25: 0 | BO25: 0 | BP25: 0 | BQ25: 0
A26: 26 | C26: Total Steam | H26: Wheeling Revenue | I26: 9934000 | J26: 26 | K26: =B14 -> 503-OP | L26: =C14 -> Steam | M26: =D14 -> From Other Sources | O26: P01 | P26: =IF(MATCH(O26,P_ref,0)>0,"","error matching functional allocator") ->  | Q26: =F14 -> 0 | AH26: 26 | AJ26: Total Factor | AK26: =SUM(AK27:AK36) -> 100 | AL26: 12440.694 | AM26: 68733.355 | AN26: 0 | AO26: 100 | AP26: 100 | AQ26: 100 | AR26: 100 | AS26: 100 | AT26: 100 | AU26: 100 | AV26: 100 | AW26: 0 | AX26: 0 | AY26: 0 | BB26: 26 | BC26: D05 | BD26: DA Sch 25I | BF26: =SUM(BG26:BQ26) -> 100 | BM26: 100 | BR26: Direct Assigned to Schedule 25I Customers (not used)
A27: 27 | H27: Other Rev | I27: 0 | J27: 27 | L27: P | M27: =HLOOKUP("Factor Name",pfactor,3) -> Coincident Peak | N27: =IF(MATCH(P27,ref,0)>0,"","matching error") ->  | O27: =HLOOKUP(O26,pfactor,3) -> 34.2 | P27: =HLOOKUP("Class",pfactor,3) -> D01 | R27: =Q26*O27/SUM(O27:O30) -> 0 | S27: =$R27*(VLOOKUP($P27,class,5)/VLOOKUP($P27,class,4)) -> 0 | T27: =$R27*(VLOOKUP($P27,class,6)/VLOOKUP($P27,class,4)) -> 0 | U27: =$R27*(VLOOKUP($P27,class,7)/VLOOKUP($P27,class,4)) -> 0 | V27: =$R27*(VLOOKUP($P27,class,8)/VLOOKUP($P27,class,4)) -> 0 | W27: =$R27*(VLOOKUP($P27,class,9)/VLOOKUP($P27,class,4)) -> 0 | X27: =$R27*(VLOOKUP($P27,class,10)/VLOOKUP($P27,class,4)) -> 0 | Y27: =$R27*(VLOOKUP($P27,class,11)/VLOOKUP($P27,class,4)) -> 0 | Z27: =$R27*(VLOOKUP($P27,class,12)/VLOOKUP($P27,class,4)) -> 0 | AA27: =$R27*(VLOOKUP($P27,class,13)/VLOOKUP($P27,class,4)) -> 0 | AB27: =$R27*(VLOOKUP($P27,class,14)/VLOOKUP($P27,class,4)) -> 0 | AC27: =$R27*(VLOOKUP($P27,class,15)/VLOOKUP($P27,class,4)) -> 0 | AH27: 27 | AI27: D02 | AJ27: =VLOOKUP(AI27,class,2) -> NCP-All | AK27: 0 | AL27: 0 | AM27: 0 | AO27: 0 | AP27: 0 | AQ27: 0 | AR27: 0 | AS27: 0 | BB27: 27 | BE27: =IF(SUM(BG27:BQ27)=BF27,"","error") ->  | BF27: =BF26/$BF26 -> 1 | BG27: 0 | BH27: 0 | BI27: 0 | BJ27: 0 | BK27: 0 | BL27: 0 | BM27: 1 | BN27: 0 | BO27: 0 | BP27: 0 | BQ27: 0
A28: 28 | B28: 535-OP | C28: Hydro | D28: Supervision & Engineering | F28: 1816000 | G28: 993477 | J28: 28 | L28: P | M28: =HLOOKUP("Factor Name",pfactor,4) -> Generation Level Consumption | N28: =IF(MATCH(P28,ref,0)>0,"","matching error") ->  | O28: =HLOOKUP(O26,pfactor,4) -> 65.8 | P28: =HLOOKUP("Class",pfactor,4) -> E02 | R28: =Q26*O28/SUM(O27:O30) -> 0 | S28: =$R28*(VLOOKUP($P28,class,5)/VLOOKUP($P28,class,4)) -> 0 | T28: =$R28*(VLOOKUP($P28,class,6)/VLOOKUP($P28,class,4)) -> 0 | U28: =$R28*(VLOOKUP($P28,class,7)/VLOOKUP($P28,class,4)) -> 0 | V28: =$R28*(VLOOKUP($P28,class,8)/VLOOKUP($P28,class,4)) -> 0 | W28: =$R28*(VLOOKUP($P28,class,9)/VLOOKUP($P28,class,4)) -> 0 | X28: =$R28*(VLOOKUP($P28,class,10)/VLOOKUP($P28,class,4)) -> 0 | Y28: =$R28*(VLOOKUP($P28,class,11)/VLOOKUP($P28,class,4)) -> 0 | Z28: =$R28*(VLOOKUP($P28,class,12)/VLOOKUP($P28,class,4)) -> 0 | AA28: =$R28*(VLOOKUP($P28,class,13)/VLOOKUP($P28,class,4)) -> 0 | AB28: =$R28*(VLOOKUP($P28,class,14)/VLOOKUP($P28,class,4)) -> 0 | AC28: =$R28*(VLOOKUP($P28,class,15)/VLOOKUP($P28,class,4)) -> 0 | AH28: 28 | AI28: D03 | AJ28: NCP-w/o DA | AK28: 0 | AL28: 10956.161 | AM28: 63092.08 | AO28: 87.16 | AP28: 94.63 | AQ28: 73.58 | AR28: 75.79 | AS28: 0 | BB28: 28 | BC28: D06 | BD28: NCP-Secondary | BF28: =SUM(BG28:BQ28) -> 895396 | BG28: =BG20 -> 502374 | BH28: =BH20 -> 103881 | BI28: 257301 | BJ28: 0 | BK28: =BK20 -> 25372 | BL28: =BL20 -> 6468 | BM28: 0 | BN28: 0 | BO28: 0 | BP28: 0 | BQ28: 0 | BR28: Non-Coincident Peak Secondary12 Mo Avg
A29: 29 | B29: 536-OP | C29: Hydro | D29: Water For Power | F29: 730000 | G29: 2172 | J29: 29 | L29: P | M29: =HLOOKUP("Factor Name",pfactor,5) -> Open | N29: =IF(MATCH(P29,ref,0)>0,"","matching error") ->  | O29: =HLOOKUP(O26,pfactor,5) -> 0 | P29: =HLOOKUP("Class",pfactor,5) -> xxx | R29: =Q26*O29/SUM(O27:O30) -> 0 | S29: =$R29*(VLOOKUP($P29,class,5)/VLOOKUP($P29,class,4)) -> 0 | T29: =$R29*(VLOOKUP($P29,class,6)/VLOOKUP($P29,class,4)) -> 0 | U29: =$R29*(VLOOKUP($P29,class,7)/VLOOKUP($P29,class,4)) -> 0 | V29: =$R29*(VLOOKUP($P29,class,8)/VLOOKUP($P29,class,4)) -> 0 | W29: =$R29*(VLOOKUP($P29,class,9)/VLOOKUP($P29,class,4)) -> 0 | X29: =$R29*(VLOOKUP($P29,class,10)/VLOOKUP($P29,class,4)) -> 0 | Y29: =$R29*(VLOOKUP($P29,class,11)/VLOOKUP($P29,class,4)) -> 0 | Z29: =$R29*(VLOOKUP($P29,class,12)/VLOOKUP($P29,class,4)) -> 0 | AA29: =$R29*(VLOOKUP($P29,class,13)/VLOOKUP($P29,class,4)) -> 0 | AB29: =$R29*(VLOOKUP($P29,class,14)/VLOOKUP($P29,class,4)) -> 0 | AC29: =$R29*(VLOOKUP($P29,class,15)/VLOOKUP($P29,class,4)) -> 0 | AH29: 29 | AI29: D04 | AJ29: DA Sch 25 | AK29: 0 | AL29: 1484.533 | AM29: 5641.275 | AO29: 4.65 | AP29: 5.06 | AQ29: 5.06 | AR29: 5.46 | AS29: 0 | BB29: 29 | BE29: =IF(SUM(BG29:BQ29)=BF29,"","error") ->  | BF29: =BF28/$BF28 -> 1 | BG29: 0.5610634848 | BH29: 0.1160168238 | BI29: 0.2873600061 | BJ29: 0 | BK29: 0.02833606583 | BL29: 0.007223619493 | BM29: 0 | BN29: 0 | BO29: 0 | BP29: 0 | BQ29: 0
A30: 30 | B30: 537-OP | C30: Hydro | D30: Hydraulic Expenses | F30: 4646000 | G30: 271539 | J30: 30 | L30: P | M30: =HLOOKUP("Factor Name",pfactor,6) -> Open | N30: =IF(MATCH(P30,ref,0)>0,"","matching error") ->  | O30: =HLOOKUP(O26,pfactor,6) -> 0 | P30: =HLOOKUP("Class",pfactor,6) -> xxx | R30: =Q26*O30/SUM(O27:O30) -> 0 | S30: =$R30*(VLOOKUP($P30,class,5)/VLOOKUP($P30,class,4)) -> 0 | T30: =$R30*(VLOOKUP($P30,class,6)/VLOOKUP($P30,class,4)) -> 0 | U30: =$R30*(VLOOKUP($P30,class,7)/VLOOKUP($P30,class,4)) -> 0 | V30: =$R30*(VLOOKUP($P30,class,8)/VLOOKUP($P30,class,4)) -> 0 | W30: =$R30*(VLOOKUP($P30,class,9)/VLOOKUP($P30,class,4)) -> 0 | X30: =$R30*(VLOOKUP($P30,class,10)/VLOOKUP($P30,class,4)) -> 0 | Y30: =$R30*(VLOOKUP($P30,class,11)/VLOOKUP($P30,class,4)) -> 0 | Z30: =$R30*(VLOOKUP($P30,class,12)/VLOOKUP($P30,class,4)) -> 0 | AA30: =$R30*(VLOOKUP($P30,class,13)/VLOOKUP($P30,class,4)) -> 0 | AB30: =$R30*(VLOOKUP($P30,class,14)/VLOOKUP($P30,class,4)) -> 0 | AC30: =$R30*(VLOOKUP($P30,class,15)/VLOOKUP($P30,class,4)) -> 0 | AH30: 30 | AI30: D07 | AJ30: DA Street and Area Lights | AK30: 0 | AL30: 0 | AM30: 0 | AO30: 7.68 | AP30: 0 | AQ30: 0 | AR30: 0 | AS30: 0 | BB30: 30 | BC30: D07 | BD30: DA Street and Area Lights | BF30: =SUM(BG30:BQ30) -> 100 | BL30: 100 | BR30: Direct Assigned to Street & Area Lights
A31: 31 | B31: 538-OP | C31: Hydro | D31: Electric Expenses | F31: 3978000 | G31: 2498209 | J31: 31 | K31: =B15 -> 504-OP | L31: =C15 -> Steam | M31: =D15 -> Steam Transferred-CR | O31: P01 | P31: =IF(MATCH(O31,P_ref,0)>0,"","error matching functional allocator") ->  | Q31: =F15 -> 0 | AH31: 31 | AI31: C02 | AJ31: Avg Customers-Secondary | AK31: 0 | AL31: 0 | AM31: 0 | AO31: 0 | AP31: 0 | AQ31: 0 | AR31: 0 | AS31: 0 | AT31: 100 | BB31: 31 | BF31: =BF30/$BF30 -> 1 | BG31: 0 | BH31: 0 | BI31: 0 | BJ31: 0 | BK31: 0 | BL31: 1 | BM31: 0 | BN31: 0 | BO31: 0 | BP31: 0 | BQ31: 0
A32: 32 | B32: 539-OP | C32: Hydro | D32: Miscellaneous Power Exp. | F32: 470000 | G32: 81132 | J32: 32 | L32: P | M32: =HLOOKUP("Factor Name",pfactor,3) -> Coincident Peak | N32: =IF(MATCH(P32,ref,0)>0,"","matching error") ->  | O32: =HLOOKUP(O31,pfactor,3) -> 34.2 | P32: =HLOOKUP("Class",pfactor,3) -> D01 | R32: =Q31*O32/SUM(O32:O35) -> 0 | S32: =$R32*(VLOOKUP($P32,class,5)/VLOOKUP($P32,class,4)) -> 0 | T32: =$R32*(VLOOKUP($P32,class,6)/VLOOKUP($P32,class,4)) -> 0 | U32: =$R32*(VLOOKUP($P32,class,7)/VLOOKUP($P32,class,4)) -> 0 | V32: =$R32*(VLOOKUP($P32,class,8)/VLOOKUP($P32,class,4)) -> 0 | W32: =$R32*(VLOOKUP($P32,class,9)/VLOOKUP($P32,class,4)) -> 0 | X32: =$R32*(VLOOKUP($P32,class,10)/VLOOKUP($P32,class,4)) -> 0 | Y32: =$R32*(VLOOKUP($P32,class,11)/VLOOKUP($P32,class,4)) -> 0 | Z32: =$R32*(VLOOKUP($P32,class,12)/VLOOKUP($P32,class,4)) -> 0 | AA32: =$R32*(VLOOKUP($P32,class,13)/VLOOKUP($P32,class,4)) -> 0 | AB32: =$R32*(VLOOKUP($P32,class,14)/VLOOKUP($P32,class,4)) -> 0 | AC32: =$R32*(VLOOKUP($P32,class,15)/VLOOKUP($P32,class,4)) -> 0 | AH32: 32 | AI32: C04 | AJ32: Wt Customers-Meters | AK32: 0 | AL32: 0 | AM32: 0 | AO32: 0 | AP32: 0 | AQ32: 0 | AR32: 0 | AS32: 0 | AU32: 100 | BB32: 32 | BC32: D08 | BD32: NCP-Primary | BF32: =SUM(BG32:BQ32) -> 1005856 | BG32: =BG20 -> 502374 | BH32: =BH20 -> 103881 | BI32: =257301+19136 -> 276437 | BJ32: =81861+12067-2604 -> 91324 | BK32: =BK20 -> 25372 | BL32: 6468 | BM32: 0 | BN32: 0 | BO32: 0 | BP32: 0 | BQ32: 0 | BR32: Non-Coincident Peak Primary 12 Mo Avg
A33: 33 | B33: 540-OP | C33: Hydro | D33: Rents | F33: 4482000 | G33: 0 | J33: 33 | L33: P | M33: =HLOOKUP("Factor Name",pfactor,4) -> Generation Level Consumption | N33: =IF(MATCH(P33,ref,0)>0,"","matching error") ->  | O33: =HLOOKUP(O31,pfactor,4) -> 65.8 | P33: =HLOOKUP("Class",pfactor,4) -> E02 | R33: =Q31*O33/SUM(O32:O35) -> 0 | S33: =$R33*(VLOOKUP($P33,class,5)/VLOOKUP($P33,class,4)) -> 0 | T33: =$R33*(VLOOKUP($P33,class,6)/VLOOKUP($P33,class,4)) -> 0 | U33: =$R33*(VLOOKUP($P33,class,7)/VLOOKUP($P33,class,4)) -> 0 | V33: =$R33*(VLOOKUP($P33,class,8)/VLOOKUP($P33,class,4)) -> 0 | W33: =$R33*(VLOOKUP($P33,class,9)/VLOOKUP($P33,class,4)) -> 0 | X33: =$R33*(VLOOKUP($P33,class,10)/VLOOKUP($P33,class,4)) -> 0 | Y33: =$R33*(VLOOKUP($P33,class,11)/VLOOKUP($P33,class,4)) -> 0 | Z33: =$R33*(VLOOKUP($P33,class,12)/VLOOKUP($P33,class,4)) -> 0 | AA33: =$R33*(VLOOKUP($P33,class,13)/VLOOKUP($P33,class,4)) -> 0 | AB33: =$R33*(VLOOKUP($P33,class,14)/VLOOKUP($P33,class,4)) -> 0 | AC33: =$R33*(VLOOKUP($P33,class,15)/VLOOKUP($P33,class,4)) -> 0 | AH33: 33 | AI33: C05 | AJ33: DA Street & Area Lights | AK33: 0 | AL33: 0 | AM33: 0 | AO33: 0 | AP33: 0 | AQ33: 0 | AR33: 0 | AS33: 0 | AV33: 100 | BB33: 33 | BF33: =BF32/$BF32 -> 1 | BG33: 0.4994492253 | BH33: 0.1032762145 | BI33: 0.2748276095 | BJ33: 0.09079232017 | BK33: 0.02522428658 | BL33: 0.006430343906 | BM33: 0 | BN33: 0 | BO33: 0 | BP33: 0 | BQ33: 0
A34: 34 | C34: Total Hydraulic Operation | J34: 34 | L34: P | M34: =HLOOKUP("Factor Name",pfactor,5) -> Open | N34: =IF(MATCH(P34,ref,0)>0,"","matching error") ->  | O34: =HLOOKUP(O31,pfactor,5) -> 0 | P34: =HLOOKUP("Class",pfactor,5) -> xxx | R34: =Q31*O34/SUM(O32:O35) -> 0 | S34: =$R34*(VLOOKUP($P34,class,5)/VLOOKUP($P34,class,4)) -> 0 | T34: =$R34*(VLOOKUP($P34,class,6)/VLOOKUP($P34,class,4)) -> 0 | U34: =$R34*(VLOOKUP($P34,class,7)/VLOOKUP($P34,class,4)) -> 0 | V34: =$R34*(VLOOKUP($P34,class,8)/VLOOKUP($P34,class,4)) -> 0 | W34: =$R34*(VLOOKUP($P34,class,9)/VLOOKUP($P34,class,4)) -> 0 | X34: =$R34*(VLOOKUP($P34,class,10)/VLOOKUP($P34,class,4)) -> 0 | Y34: =$R34*(VLOOKUP($P34,class,11)/VLOOKUP($P34,class,4)) -> 0 | Z34: =$R34*(VLOOKUP($P34,class,12)/VLOOKUP($P34,class,4)) -> 0 | AA34: =$R34*(VLOOKUP($P34,class,13)/VLOOKUP($P34,class,4)) -> 0 | AB34: =$R34*(VLOOKUP($P34,class,14)/VLOOKUP($P34,class,4)) -> 0 | AC34: =$R34*(VLOOKUP($P34,class,15)/VLOOKUP($P34,class,4)) -> 0 | AH34: 34 | AI34: D05 | AJ34: DA Sch 25I | AK34: 0 | AL34: 0 | AM34: 0 | AO34: 0 | AP34: 0 | AQ34: 0 | AR34: 0 | AS34: 0 | BB34: 34
A35: 35 | B35: 541-MT | C35: Hydro | D35: Supervision & Engineering | F35: 394000 | G35: 223531 | J35: 35 | L35: P | M35: =HLOOKUP("Factor Name",pfactor,6) -> Open | N35: =IF(MATCH(P35,ref,0)>0,"","matching error") ->  | O35: =HLOOKUP(O31,pfactor,6) -> 0 | P35: =HLOOKUP("Class",pfactor,6) -> xxx | R35: =Q31*O35/SUM(O32:O35) -> 0 | S35: =$R35*(VLOOKUP($P35,class,5)/VLOOKUP($P35,class,4)) -> 0 | T35: =$R35*(VLOOKUP($P35,class,6)/VLOOKUP($P35,class,4)) -> 0 | U35: =$R35*(VLOOKUP($P35,class,7)/VLOOKUP($P35,class,4)) -> 0 | V35: =$R35*(VLOOKUP($P35,class,8)/VLOOKUP($P35,class,4)) -> 0 | W35: =$R35*(VLOOKUP($P35,class,9)/VLOOKUP($P35,class,4)) -> 0 | X35: =$R35*(VLOOKUP($P35,class,10)/VLOOKUP($P35,class,4)) -> 0 | Y35: =$R35*(VLOOKUP($P35,class,11)/VLOOKUP($P35,class,4)) -> 0 | Z35: =$R35*(VLOOKUP($P35,class,12)/VLOOKUP($P35,class,4)) -> 0 | AA35: =$R35*(VLOOKUP($P35,class,13)/VLOOKUP($P35,class,4)) -> 0 | AB35: =$R35*(VLOOKUP($P35,class,14)/VLOOKUP($P35,class,4)) -> 0 | AC35: =$R35*(VLOOKUP($P35,class,15)/VLOOKUP($P35,class,4)) -> 0 | AH35: 35 | AI35: D06 | AJ35: NCP-Secondary | AK35: 0 | AL35: 0 | AM35: 0 | AO35: 0.51 | AP35: 0.31 | AQ35: 21.36 | AR35: 18.75 | AS35: 100 | BB35: 35 | BD35: Customer Allocators
A36: 36 | B36: 542-MT | C36: Hydro | D36: Structures | F36: 291000 | G36: 121143 | H36: Error Messages | J36: 36 | K36: =B16 -> 505-OP | L36: =C16 -> Steam | M36: =D16 -> Electric Expenses | O36: P01 | P36: =IF(MATCH(O36,P_ref,0)>0,"","error matching functional allocator") ->  | Q36: =F16 -> 636000 | AH36: 36 | AI36: D08 | AJ36: NCP-Primary | AK36: 100 | AL36: 0 | AM36: 0 | AO36: 0 | AP36: 0 | AQ36: 0 | AR36: 0 | AS36: 0 | BB36: 36 | BC36: C01 | BD36: =BD54 -> Avg Customers-All | BF36: =SUM(BG36:BQ36) -> 235192.1667 | BG36: =BG54*BG$51 -> 201447.5833 | BH36: 28311.33333 | BI36: 2681.916667 | BJ36: 22 | BK36: 2400.25 | BL36: 329.0833333 | BM36: 0 | BN36: 0 | BO36: 0 | BP36: 0 | BQ36: 0 | BR36: =BR54 -> Unweighted
A37: 37 | B37: 543-MT | C37: Hydro | D37: Reservoirs, Dams & Waterways | F37: 1966000 | G37: 279713 | H37: =IF(I10=ROUND(R1473,0),"Total Rate Base Matches Checker","ERROR! TOTAL RATE BASE DOES NOT MATCH CHECKER") -> Total Rate Base Matches Checker | I37: 1 | J37: 37 | L37: P | M37: =HLOOKUP("Factor Name",pfactor,3) -> Coincident Peak | N37: =IF(MATCH(P37,ref,0)>0,"","matching error") ->  | O37: =HLOOKUP(O36,pfactor,3) -> 34.2 | P37: =HLOOKUP("Class",pfactor,3) -> D01 | R37: =Q36*O37/SUM(O37:O40) -> 217512 | S37: =$R37*(VLOOKUP($P37,class,5)/VLOOKUP($P37,class,4)) -> 108394.8101 | T37: =$R37*(VLOOKUP($P37,class,6)/VLOOKUP($P37,class,4)) -> 16931.23247 | U37: =$R37*(VLOOKUP($P37,class,7)/VLOOKUP($P37,class,4)) -> 53206.02561 | V37: =$R37*(VLOOKUP($P37,class,8)/VLOOKUP($P37,class,4)) -> 34584.60044 | W37: =$R37*(VLOOKUP($P37,class,9)/VLOOKUP($P37,class,4)) -> 3866.611909 | X37: =$R37*(VLOOKUP($P37,class,10)/VLOOKUP($P37,class,4)) -> 528.7194331 | Y37: =$R37*(VLOOKUP($P37,class,11)/VLOOKUP($P37,class,4)) -> 0 | Z37: =$R37*(VLOOKUP($P37,class,12)/VLOOKUP($P37,class,4)) -> 0 | AA37: =$R37*(VLOOKUP($P37,class,13)/VLOOKUP($P37,class,4)) -> 0 | AB37: =$R37*(VLOOKUP($P37,class,14)/VLOOKUP($P37,class,4)) -> 0 | AC37: =$R37*(VLOOKUP($P37,class,15)/VLOOKUP($P37,class,4)) -> 0 | AH37: 37 | AK37: #360 | AL37: #361 | AM37: #362 | AO37: #364 | AP37: #365 | AQ37: #366 | AR37: #367 | AS37: #368 | AT37: #369 | AU37: #370 | AV37: #373 | BB37: 37 | BE37: =IF(SUM(BG37:BQ37)=BF37,"","error") ->  | BF37: =BF36/$BF36 -> 1 | BG37: 0.8565233536 | BH37: 0.1203753243 | BI37: 0.0114030867 | BJ37: 9.354053033e-05 | BK37: 0.01020548445 | BL37: 0.001399210433 | BM37: 0 | BN37: 0 | BO37: 0 | BP37: 0 | BQ37: 0
A38: 38 | B38: 544-MT | C38: Hydro | D38: Electric Plant | F38: 1597000 | G38: 827833 | H38: =IF(I11=ROUND(R816,0),"Total Operating Expense Matches Checker","ERROR! TOTAL OPERATING EXP DOES NOT MATCH CHECKER") -> Total Operating Expense Matches Checker | I38: 2 | J38: 38 | L38: P | M38: =HLOOKUP("Factor Name",pfactor,4) -> Generation Level Consumption | N38: =IF(MATCH(P38,ref,0)>0,"","matching error") ->  | O38: =HLOOKUP(O36,pfactor,4) -> 65.8 | P38: =HLOOKUP("Class",pfactor,4) -> E02 | R38: =Q36*O38/SUM(O37:O40) -> 418488 | S38: =$R38*(VLOOKUP($P38,class,5)/VLOOKUP($P38,class,4)) -> 180401.8451 | T38: =$R38*(VLOOKUP($P38,class,6)/VLOOKUP($P38,class,4)) -> 36952.52697 | U38: =$R38*(VLOOKUP($P38,class,7)/VLOOKUP($P38,class,4)) -> 111666.1905 | V38: =$R38*(VLOOKUP($P38,class,8)/VLOOKUP($P38,class,4)) -> 78139.14275 | W38: =$R38*(VLOOKUP($P38,class,9)/VLOOKUP($P38,class,4)) -> 9374.396815 | X38: =$R38*(VLOOKUP($P38,class,10)/VLOOKUP($P38,class,4)) -> 1953.897835 | Y38: =$R38*(VLOOKUP($P38,class,11)/VLOOKUP($P38,class,4)) -> 0 | Z38: =$R38*(VLOOKUP($P38,class,12)/VLOOKUP($P38,class,4)) -> 0 | AA38: =$R38*(VLOOKUP($P38,class,13)/VLOOKUP($P38,class,4)) -> 0 | AB38: =$R38*(VLOOKUP($P38,class,14)/VLOOKUP($P38,class,4)) -> 0 | AC38: =$R38*(VLOOKUP($P38,class,15)/VLOOKUP($P38,class,4)) -> 0 | AH38: 38 | AI38: Customer Accounting Function Factor Table (afactor) | BB38: 38 | BC38: C02 | BD38: =BD55 -> Avg Customers-Secondary | BF38: =SUM(BG38:BQ38) -> 234805.0833 | BG38: =BG55*BG$51 -> 201447.5833 | BH38: =BH55*BH$51 -> 28311.33333 | BI38: =BI55*(BI$51-36) -> 2645.916667 | BJ38: =BJ55*BJ$51 -> 0 | BK38: 2400.25 | BL38: 0 | BM38: 0 | BN38: 0 | BO38: 0 | BP38: 0 | BQ38: 0 | BR38: =BR55 -> Unweighted Secondary w/o Lighting
A39: 39 | B39: 545-MT | C39: Hydro | D39: Miscellaneous Plant | F39: 350000 | G39: 150690 | H39: =IF(I12=-ROUND(R844,0),"Total Operating Revenue Matches Checker","ERROR! TOTAL REVENUE DOES NOT MATCH CHECKER") -> Total Operating Revenue Matches Checker | I39: 3 | J39: 39 | L39: P | M39: =HLOOKUP("Factor Name",pfactor,5) -> Open | N39: =IF(MATCH(P39,ref,0)>0,"","matching error") ->  | O39: =HLOOKUP(O36,pfactor,5) -> 0 | P39: =HLOOKUP("Class",pfactor,5) -> xxx | R39: =Q36*O39/SUM(O37:O40) -> 0 | S39: =$R39*(VLOOKUP($P39,class,5)/VLOOKUP($P39,class,4)) -> 0 | T39: =$R39*(VLOOKUP($P39,class,6)/VLOOKUP($P39,class,4)) -> 0 | U39: =$R39*(VLOOKUP($P39,class,7)/VLOOKUP($P39,class,4)) -> 0 | V39: =$R39*(VLOOKUP($P39,class,8)/VLOOKUP($P39,class,4)) -> 0 | W39: =$R39*(VLOOKUP($P39,class,9)/VLOOKUP($P39,class,4)) -> 0 | X39: =$R39*(VLOOKUP($P39,class,10)/VLOOKUP($P39,class,4)) -> 0 | Y39: =$R39*(VLOOKUP($P39,class,11)/VLOOKUP($P39,class,4)) -> 0 | Z39: =$R39*(VLOOKUP($P39,class,12)/VLOOKUP($P39,class,4)) -> 0 | AA39: =$R39*(VLOOKUP($P39,class,13)/VLOOKUP($P39,class,4)) -> 0 | AB39: =$R39*(VLOOKUP($P39,class,14)/VLOOKUP($P39,class,4)) -> 0 | AC39: =$R39*(VLOOKUP($P39,class,15)/VLOOKUP($P39,class,4)) -> 0 | AH39: 39 | AI39: Class | AJ39: Factor Name | AK39: K01 | AL39: K02 | AM39: K03 | AN39: K04 | BB39: 39 | BE39: =IF(SUM(BG39:BQ39)=BF39,"","error") ->  | BF39: =BF38/$BF38 -> 1 | BG39: 0.8579353584 | BH39: 0.1205737667 | BI39: 0.01126856637 | BJ39: 0 | BK39: 0.0102223085 | BL39: 0 | BM39: 0 | BN39: 0 | BO39: 0 | BP39: 0 | BQ39: 0
A40: 40 | C40: Total Hydraulic Maintenance | H40: =IF(I13=-ROUND(R846,0),"Net Income Matches Checker","ERROR! NET INCOME DOES NOT MATCH CHECKER") -> Net Income Matches Checker | I40: 4 | J40: 40 | L40: P | M40: =HLOOKUP("Factor Name",pfactor,6) -> Open | N40: =IF(MATCH(P40,ref,0)>0,"","matching error") ->  | O40: =HLOOKUP(O36,pfactor,6) -> 0 | P40: =HLOOKUP("Class",pfactor,6) -> xxx | R40: =Q36*O40/SUM(O37:O40) -> 0 | S40: =$R40*(VLOOKUP($P40,class,5)/VLOOKUP($P40,class,4)) -> 0 | T40: =$R40*(VLOOKUP($P40,class,6)/VLOOKUP($P40,class,4)) -> 0 | U40: =$R40*(VLOOKUP($P40,class,7)/VLOOKUP($P40,class,4)) -> 0 | V40: =$R40*(VLOOKUP($P40,class,8)/VLOOKUP($P40,class,4)) -> 0 | W40: =$R40*(VLOOKUP($P40,class,9)/VLOOKUP($P40,class,4)) -> 0 | X40: =$R40*(VLOOKUP($P40,class,10)/VLOOKUP($P40,class,4)) -> 0 | Y40: =$R40*(VLOOKUP($P40,class,11)/VLOOKUP($P40,class,4)) -> 0 | Z40: =$R40*(VLOOKUP($P40,class,12)/VLOOKUP($P40,class,4)) -> 0 | AA40: =$R40*(VLOOKUP($P40,class,13)/VLOOKUP($P40,class,4)) -> 0 | AB40: =$R40*(VLOOKUP($P40,class,14)/VLOOKUP($P40,class,4)) -> 0 | AC40: =$R40*(VLOOKUP($P40,class,15)/VLOOKUP($P40,class,4)) -> 0 | AH40: 40 | AJ40: Total Factor | AK40: =AK41+AK42+AK43+AK44 -> 100 | AL40: =AL41+AL42+AL43+AL44 -> 100 | AM40: =AM41+AM42+AM43+AM44 -> 100 | AN40: =AN41+AN42+AN43+AN44 -> 0 | BB40: 40 | BC40: C03 | BD40: =BD56 -> Wt Customers-Meter Reading | BF40: =SUM(BG40:BQ40) -> 235192.1667 | BG40: =BG56*BG$51 -> 201447.5833 | BH40: 28311.33333 | BI40: 2681.916667 | BJ40: 22 | BK40: 2400.25 | BL40: 329.0833333 | BM40: 0 | BN40: 0 | BO40: 0 | BP40: 0 | BQ40: 0 | BR40: =BR56 -> Est. Meter Reading Time
A41: 41 | C41: Total Hydraulic | H41: =IF(I19=-ROUND(R820,0),"Retail Sales Revenue Matches Checker","ERROR! RETAIL SALES REVENUE DOES NOT MATCH CHECKER") -> Retail Sales Revenue Matches Checker | I41: 5 | J41: 41 | K41: =B17 -> 506-OP | L41: =C17 -> Steam | M41: =D17 -> Miscellaneous Power Exp. | O41: P01 | P41: =IF(MATCH(O41,P_ref,0)>0,"","error matching functional allocator") ->  | Q41: =F17 -> 1581000 | AH41: 41 | AI41: C01 | AJ41: =VLOOKUP(AI41,class,2) -> Avg Customers-All | AK41: 100 | AL41: 0 | AM41: 99.89 | BB41: 41 | BE41: =IF(SUM(BG41:BQ41)=BF41,"","error") ->  | BF41: =BF40/$BF40 -> 1 | BG41: 0.8565233536 | BH41: 0.1203753243 | BI41: 0.0114030867 | BJ41: 9.354053033e-05 | BK41: 0.01020548445 | BL41: 0.001399210433 | BM41: 0 | BN41: 0 | BO41: 0 | BP41: 0 | BQ41: 0
A42: 42 | I42: 6 | J42: 42 | L42: P | M42: =HLOOKUP("Factor Name",pfactor,3) -> Coincident Peak | N42: =IF(MATCH(P42,ref,0)>0,"","matching error") ->  | O42: =HLOOKUP(O41,pfactor,3) -> 34.2 | P42: =HLOOKUP("Class",pfactor,3) -> D01 | R42: =Q41*O42/SUM(O42:O45) -> 540702 | S42: =$R42*(VLOOKUP($P42,class,5)/VLOOKUP($P42,class,4)) -> 269453.1365 | T42: =$R42*(VLOOKUP($P42,class,6)/VLOOKUP($P42,class,4)) -> 42088.48826 | U42: =$R42*(VLOOKUP($P42,class,7)/VLOOKUP($P42,class,4)) -> 132262.1486 | V42: =$R42*(VLOOKUP($P42,class,8)/VLOOKUP($P42,class,4)) -> 85972.09637 | W42: =$R42*(VLOOKUP($P42,class,9)/VLOOKUP($P42,class,4)) -> 9611.813567 | X42: =$R42*(VLOOKUP($P42,class,10)/VLOOKUP($P42,class,4)) -> 1314.316704 | Y42: =$R42*(VLOOKUP($P42,class,11)/VLOOKUP($P42,class,4)) -> 0 | Z42: =$R42*(VLOOKUP($P42,class,12)/VLOOKUP($P42,class,4)) -> 0 | AA42: =$R42*(VLOOKUP($P42,class,13)/VLOOKUP($P42,class,4)) -> 0 | AB42: =$R42*(VLOOKUP($P42,class,14)/VLOOKUP($P42,class,4)) -> 0 | AC42: =$R42*(VLOOKUP($P42,class,15)/VLOOKUP($P42,class,4)) -> 0 | AH42: 42 | AI42: C03 | AJ42: =VLOOKUP(AI42,class,2) -> Wt Customers-Meter Reading | AK42: 0 | AL42: 98.62 | AM42: 0 | BB42: 42 | BC42: C04 | BD42: =BD57 -> Wt Customers-Meters | BF42: =SUM(BG42:BQ42) -> 329804.2433 | BG42: =BG57*BG$51 -> 201447.5833 | BH42: 77006.82667 | BI42: 38270.95083 | BJ42: 765.6 | BK42: 12313.2825 | BL42: 0 | BM42: 0 | BN42: 0 | BO42: 0 | BP42: 0 | BQ42: 0 | BR42: =BR57 -> Proportion Installed Meter Costs
A43: 43 | B43: 546-OP | C43: Other | D43: Supervision & Engineering | F43: 47000 | G43: 104445 | I43: 7 | J43: 43 | L43: P | M43: =HLOOKUP("Factor Name",pfactor,4) -> Generation Level Consumption | N43: =IF(MATCH(P43,ref,0)>0,"","matching error") ->  | O43: =HLOOKUP(O41,pfactor,4) -> 65.8 | P43: =HLOOKUP("Class",pfactor,4) -> E02 | R43: =Q41*O43/SUM(O42:O45) -> 1040298 | S43: =$R43*(VLOOKUP($P43,class,5)/VLOOKUP($P43,class,4)) -> 448451.7566 | T43: =$R43*(VLOOKUP($P43,class,6)/VLOOKUP($P43,class,4)) -> 91858.40431 | U43: =$R43*(VLOOKUP($P43,class,7)/VLOOKUP($P43,class,4)) -> 277585.2943 | V43: =$R43*(VLOOKUP($P43,class,8)/VLOOKUP($P43,class,4)) -> 194242.1143 | W43: =$R43*(VLOOKUP($P43,class,9)/VLOOKUP($P43,class,4)) -> 23303.33548 | X43: =$R43*(VLOOKUP($P43,class,10)/VLOOKUP($P43,class,4)) -> 4857.095089 | Y43: =$R43*(VLOOKUP($P43,class,11)/VLOOKUP($P43,class,4)) -> 0 | Z43: =$R43*(VLOOKUP($P43,class,12)/VLOOKUP($P43,class,4)) -> 0 | AA43: =$R43*(VLOOKUP($P43,class,13)/VLOOKUP($P43,class,4)) -> 0 | AB43: =$R43*(VLOOKUP($P43,class,14)/VLOOKUP($P43,class,4)) -> 0 | AC43: =$R43*(VLOOKUP($P43,class,15)/VLOOKUP($P43,class,4)) -> 0 | AH43: 43 | AI43: C06 | AJ43: =VLOOKUP(AI43,class,2) -> DA Handbilled | AK43: 0 | AL43: 1.38 | AM43: 0.11 | BB43: 43 | BE43: =IF(SUM(BG43:BQ43)=BF43,"","error") ->  | BF43: =BF42/$BF42 -> 1 | BG43: 0.6108095557 | BH43: 0.2334925284 | BI43: 0.1160414143 | BJ43: 0.002321377046 | BK43: 0.03733512454 | BL43: 0 | BM43: 0 | BN43: 0 | BO43: 0 | BP43: 0 | BQ43: 0
A44: 44 | B44: 547-OP | C44: Other | D44: Fuel | F44: 35870000 | G44: 0 | H44: =IF(I21=-ROUND(R823,0),"Sales For Resale Revenue Matches Checker","ERROR! SALES FOR RESALE REV DOES NOT MATCH CHECKER") -> Sales For Resale Revenue Matches Checker | I44: 8 | J44: 44 | L44: P | M44: =HLOOKUP("Factor Name",pfactor,5) -> Open | N44: =IF(MATCH(P44,ref,0)>0,"","matching error") ->  | O44: =HLOOKUP(O41,pfactor,5) -> 0 | P44: =HLOOKUP("Class",pfactor,5) -> xxx | R44: =Q41*O44/SUM(O42:O45) -> 0 | S44: =$R44*(VLOOKUP($P44,class,5)/VLOOKUP($P44,class,4)) -> 0 | T44: =$R44*(VLOOKUP($P44,class,6)/VLOOKUP($P44,class,4)) -> 0 | U44: =$R44*(VLOOKUP($P44,class,7)/VLOOKUP($P44,class,4)) -> 0 | V44: =$R44*(VLOOKUP($P44,class,8)/VLOOKUP($P44,class,4)) -> 0 | W44: =$R44*(VLOOKUP($P44,class,9)/VLOOKUP($P44,class,4)) -> 0 | X44: =$R44*(VLOOKUP($P44,class,10)/VLOOKUP($P44,class,4)) -> 0 | Y44: =$R44*(VLOOKUP($P44,class,11)/VLOOKUP($P44,class,4)) -> 0 | Z44: =$R44*(VLOOKUP($P44,class,12)/VLOOKUP($P44,class,4)) -> 0 | AA44: =$R44*(VLOOKUP($P44,class,13)/VLOOKUP($P44,class,4)) -> 0 | AB44: =$R44*(VLOOKUP($P44,class,14)/VLOOKUP($P44,class,4)) -> 0 | AC44: =$R44*(VLOOKUP($P44,class,15)/VLOOKUP($P44,class,4)) -> 0 | AH44: 44 | AI44: xxx | AJ44: =VLOOKUP(AI44,class,2) -> Open | AK44: 0 | AL44: 0 | AM44: 0 | BB44: 44 | BC44: C05 | BD44: =BD58 -> DA Street & Area Lights | BF44: =SUM(BG44:BQ44) -> 329.0833333 | BG44: =BG58*BG$51 -> 0 | BH44: 0 | BI44: 0 | BJ44: 0 | BK44: 0 | BL44: 329.0833333 | BM44: 0 | BN44: 0 | BO44: 0 | BP44: 0 | BQ44: 0 | BR44: =BR58 -> Direct Assigned to Street & Area Lights
A45: 45 | B45: 548-OP | C45: Other | D45: Generation Expenses | F45: 2596000 | G45: 124503 | H45: =IF(I24=-ROUND(R831,0),"Sales of Water Revenue Matches Checker","ERROR! SALES OF WATER REV DOES NOT MATCH CHECKER") -> Sales of Water Revenue Matches Checker | I45: 9 | J45: 45 | L45: P | M45: =HLOOKUP("Factor Name",pfactor,6) -> Open | N45: =IF(MATCH(P45,ref,0)>0,"","matching error") ->  | O45: =HLOOKUP(O41,pfactor,6) -> 0 | P45: =HLOOKUP("Class",pfactor,6) -> xxx | R45: =Q41*O45/SUM(O42:O45) -> 0 | S45: =$R45*(VLOOKUP($P45,class,5)/VLOOKUP($P45,class,4)) -> 0 | T45: =$R45*(VLOOKUP($P45,class,6)/VLOOKUP($P45,class,4)) -> 0 | U45: =$R45*(VLOOKUP($P45,class,7)/VLOOKUP($P45,class,4)) -> 0 | V45: =$R45*(VLOOKUP($P45,class,8)/VLOOKUP($P45,class,4)) -> 0 | W45: =$R45*(VLOOKUP($P45,class,9)/VLOOKUP($P45,class,4)) -> 0 | X45: =$R45*(VLOOKUP($P45,class,10)/VLOOKUP($P45,class,4)) -> 0 | Y45: =$R45*(VLOOKUP($P45,class,11)/VLOOKUP($P45,class,4)) -> 0 | Z45: =$R45*(VLOOKUP($P45,class,12)/VLOOKUP($P45,class,4)) -> 0 | AA45: =$R45*(VLOOKUP($P45,class,13)/VLOOKUP($P45,class,4)) -> 0 | AB45: =$R45*(VLOOKUP($P45,class,14)/VLOOKUP($P45,class,4)) -> 0 | AC45: =$R45*(VLOOKUP($P45,class,15)/VLOOKUP($P45,class,4)) -> 0 | AH45: 45 | AL45: MR | AM45: Billing | BB45: 45 | BE45: =IF(SUM(BG45:BQ45)=BF45,"","error") ->  | BF45: =BF44/$BF44 -> 1 | BG45: 0 | BH45: 0 | BI45: 0 | BJ45: 0 | BK45: 0 | BL45: 1 | BM45: 0 | BN45: 0 | BO45: 0 | BP45: 0 | BQ45: 0
A46: 46 | B46: 549-OP | C46: Other | D46: Miscellaneous Power Exp. | F46: 302000 | G46: 101420 | H46: =IF(I23=-ROUND(R829,0),"Misc. Service Revenue Matches Checker","ERROR! MISC SERVICE REV DOES NOT MATCH CHECKER") -> Misc. Service Revenue Matches Checker | I46: 10 | J46: 46 | K46: =B18 -> 507-OP | L46: =C18 -> Steam | M46: =D18 -> Rents | O46: P01 | P46: =IF(MATCH(O46,P_ref,0)>0,"","error matching functional allocator") ->  | Q46: =F18 -> 21000 | AH46: 46 | AI46: Customer Information Function Factor Table (ifactor) | BB46: 46 | BC46: C06 | BD46: =BD59 -> DA Handbilled | BF46: =SUM(BG46:BQ46) -> 22 | BG46: =BG59*BG$51 -> 0 | BH46: 0 | BI46: 0 | BJ46: 22 | BK46: 0 | BL46: 0 | BM46: 0 | BN46: 0 | BO46: 0 | BP46: 0 | BQ46: 0 | BR46: =BR59 -> Direct Assigned to Handbilled Customers
A47: 47 | B47: 550-OP | C47: Other | D47: Rents | F47: -21000 | G47: 0 | H47: =IF(I25=-ROUND(R833+R834+R835,0),"Rent Revenue Matches Checker","ERROR! RENT REVENUE DOES NOT MATCH CHECKER") -> Rent Revenue Matches Checker | I47: 11 | J47: 47 | L47: P | M47: =HLOOKUP("Factor Name",pfactor,3) -> Coincident Peak | N47: =IF(MATCH(P47,ref,0)>0,"","matching error") ->  | O47: =HLOOKUP(O46,pfactor,3) -> 34.2 | P47: =HLOOKUP("Class",pfactor,3) -> D01 | R47: =Q46*O47/SUM(O47:O50) -> 7182 | S47: =$R47*(VLOOKUP($P47,class,5)/VLOOKUP($P47,class,4)) -> 3579.07392 | T47: =$R47*(VLOOKUP($P47,class,6)/VLOOKUP($P47,class,4)) -> 559.0501287 | U47: =$R47*(VLOOKUP($P47,class,7)/VLOOKUP($P47,class,4)) -> 1756.802732 | V47: =$R47*(VLOOKUP($P47,class,8)/VLOOKUP($P47,class,4)) -> 1141.944354 | W47: =$R47*(VLOOKUP($P47,class,9)/VLOOKUP($P47,class,4)) -> 127.6711479 | X47: =$R47*(VLOOKUP($P47,class,10)/VLOOKUP($P47,class,4)) -> 17.45771713 | Y47: =$R47*(VLOOKUP($P47,class,11)/VLOOKUP($P47,class,4)) -> 0 | Z47: =$R47*(VLOOKUP($P47,class,12)/VLOOKUP($P47,class,4)) -> 0 | AA47: =$R47*(VLOOKUP($P47,class,13)/VLOOKUP($P47,class,4)) -> 0 | AB47: =$R47*(VLOOKUP($P47,class,14)/VLOOKUP($P47,class,4)) -> 0 | AC47: =$R47*(VLOOKUP($P47,class,15)/VLOOKUP($P47,class,4)) -> 0 | AH47: 47 | AI47: Class | AJ47: Factor Name | AK47: I01 | AL47: I02 | AM47: I03 | AN47: I04 | BB47: 47 | BE47: =IF(SUM(BG47:BQ47)=BF47,"","error") ->  | BF47: =BF46/$BF46 -> 1 | BG47: 0 | BH47: 0 | BI47: 0 | BJ47: 1 | BK47: 0 | BL47: 0 | BM47: 0 | BN47: 0 | BO47: 0 | BP47: 0 | BQ47: 0
A48: 48 | C48: Total Other Operation | I48: 12 | J48: 48 | L48: P | M48: =HLOOKUP("Factor Name",pfactor,4) -> Generation Level Consumption | N48: =IF(MATCH(P48,ref,0)>0,"","matching error") ->  | O48: =HLOOKUP(O46,pfactor,4) -> 65.8 | P48: =HLOOKUP("Class",pfactor,4) -> E02 | R48: =Q46*O48/SUM(O47:O50) -> 13818 | S48: =$R48*(VLOOKUP($P48,class,5)/VLOOKUP($P48,class,4)) -> 5956.664698 | T48: =$R48*(VLOOKUP($P48,class,6)/VLOOKUP($P48,class,4)) -> 1220.130608 | U48: =$R48*(VLOOKUP($P48,class,7)/VLOOKUP($P48,class,4)) -> 3687.091195 | V48: =$R48*(VLOOKUP($P48,class,8)/VLOOKUP($P48,class,4)) -> 2580.066034 | W48: =$R48*(VLOOKUP($P48,class,9)/VLOOKUP($P48,class,4)) -> 309.5319703 | X48: =$R48*(VLOOKUP($P48,class,10)/VLOOKUP($P48,class,4)) -> 64.51549455 | Y48: =$R48*(VLOOKUP($P48,class,11)/VLOOKUP($P48,class,4)) -> 0 | Z48: =$R48*(VLOOKUP($P48,class,12)/VLOOKUP($P48,class,4)) -> 0 | AA48: =$R48*(VLOOKUP($P48,class,13)/VLOOKUP($P48,class,4)) -> 0 | AB48: =$R48*(VLOOKUP($P48,class,14)/VLOOKUP($P48,class,4)) -> 0 | AC48: =$R48*(VLOOKUP($P48,class,15)/VLOOKUP($P48,class,4)) -> 0 | AH48: 48 | AJ48: Total Factor | AK48: =AK49+AK50+AK51 -> 100 | AL48: =AL49+AL50+AL51 -> 4.505 | AM48: =AM49+AM50+AM51 -> 0 | AN48: =AN49+AN50+AN51 -> 0 | BB48: 48 | BC48: C07 | BD48: =BD60 -> Open | BF48: =SUM(BG48:BQ48) -> 0 | BG48: =BG60*BG$51 -> 0 | BH48: 0 | BI48: 0 | BJ48: 0 | BK48: 0 | BL48: 0 | BM48: 0 | BN48: 0 | BO48: 0 | BP48: 0 | BQ48: 0 | BR48: =BR60 -> Open
A49: 49 | B49: 551-MT | C49: Other | D49: Supervision & Engineering | F49: 216000 | G49: 120634 | J49: 49 | L49: P | M49: =HLOOKUP("Factor Name",pfactor,5) -> Open | N49: =IF(MATCH(P49,ref,0)>0,"","matching error") ->  | O49: =HLOOKUP(O46,pfactor,5) -> 0 | P49: =HLOOKUP("Class",pfactor,5) -> xxx | R49: =Q46*O49/SUM(O47:O50) -> 0 | S49: =$R49*(VLOOKUP($P49,class,5)/VLOOKUP($P49,class,4)) -> 0 | T49: =$R49*(VLOOKUP($P49,class,6)/VLOOKUP($P49,class,4)) -> 0 | U49: =$R49*(VLOOKUP($P49,class,7)/VLOOKUP($P49,class,4)) -> 0 | V49: =$R49*(VLOOKUP($P49,class,8)/VLOOKUP($P49,class,4)) -> 0 | W49: =$R49*(VLOOKUP($P49,class,9)/VLOOKUP($P49,class,4)) -> 0 | X49: =$R49*(VLOOKUP($P49,class,10)/VLOOKUP($P49,class,4)) -> 0 | Y49: =$R49*(VLOOKUP($P49,class,11)/VLOOKUP($P49,class,4)) -> 0 | Z49: =$R49*(VLOOKUP($P49,class,12)/VLOOKUP($P49,class,4)) -> 0 | AA49: =$R49*(VLOOKUP($P49,class,13)/VLOOKUP($P49,class,4)) -> 0 | AB49: =$R49*(VLOOKUP($P49,class,14)/VLOOKUP($P49,class,4)) -> 0 | AC49: =$R49*(VLOOKUP($P49,class,15)/VLOOKUP($P49,class,4)) -> 0 | AH49: 49 | AI49: C01 | AJ49: =VLOOKUP(AI49,class,2) -> Avg Customers-All | AK49: 100 | AL49: 0.528 | BB49: 49
A50: 50 | B50: 552-MT | C50: Other | D50: Structures | F50: 8000 | G50: 3036 | J50: 50 | L50: P | M50: =HLOOKUP("Factor Name",pfactor,6) -> Open | N50: =IF(MATCH(P50,ref,0)>0,"","matching error") ->  | O50: =HLOOKUP(O46,pfactor,6) -> 0 | P50: =HLOOKUP("Class",pfactor,6) -> xxx | R50: =Q46*O50/SUM(O47:O50) -> 0 | S50: =$R50*(VLOOKUP($P50,class,5)/VLOOKUP($P50,class,4)) -> 0 | T50: =$R50*(VLOOKUP($P50,class,6)/VLOOKUP($P50,class,4)) -> 0 | U50: =$R50*(VLOOKUP($P50,class,7)/VLOOKUP($P50,class,4)) -> 0 | V50: =$R50*(VLOOKUP($P50,class,8)/VLOOKUP($P50,class,4)) -> 0 | W50: =$R50*(VLOOKUP($P50,class,9)/VLOOKUP($P50,class,4)) -> 0 | X50: =$R50*(VLOOKUP($P50,class,10)/VLOOKUP($P50,class,4)) -> 0 | Y50: =$R50*(VLOOKUP($P50,class,11)/VLOOKUP($P50,class,4)) -> 0 | Z50: =$R50*(VLOOKUP($P50,class,12)/VLOOKUP($P50,class,4)) -> 0 | AA50: =$R50*(VLOOKUP($P50,class,13)/VLOOKUP($P50,class,4)) -> 0 | AB50: =$R50*(VLOOKUP($P50,class,14)/VLOOKUP($P50,class,4)) -> 0 | AC50: =$R50*(VLOOKUP($P50,class,15)/VLOOKUP($P50,class,4)) -> 0 | AH50: 50 | AI50: S01 | AJ50: =VLOOKUP(AI50,class,2) -> Production Plant | AK50: 0 | AL50: 3.977 | BB50: 50 | BD50: No. of Customer Bills | BF50: =SUM(BG50:BQ50) -> 2822306 | BG50: 2417371 | BH50: 339736 | BI50: 32183 | BJ50: 264 | BK50: 28803 | BL50: 3949 | BM50: 0 | BN50: 0 | BO50: 0 | BP50: 0 | BQ50: 0
A51: 51 | B51: 553-MT | C51: Other | D51: Generating & Electric Plant | F51: 372000 | G51: 170467 | J51: 51 | L51: =C19 -> Total Steam Operation | N51: =IF(AND(ROUND($Q51,0)=ROUND($R51,0),ROUND(SUM($S51:$AC51),0)=ROUND($R51,0)),"","crossfoot error") ->  | Q51: =SUM(Q11:Q50) -> 25903000 | R51: 25903000 | S51: 11762106.54 | T51: 2194577.077 | U51: 6714913.543 | V51: 4591011.195 | W51: 539279.6368 | X51: 101112.0049 | Y51: 0 | Z51: 0 | AA51: 0 | AB51: 0 | AC51: 0 | AH51: 51 | AI51: xxx | AJ51: =VLOOKUP(AI51,class,2) -> Open | AK51: 0 | AL51: 0 | BB51: 51 | BD51: No. of Customers (Average) | BF51: =SUM(BG51:BQ51) -> 235192.1667 | BG51: =BG50/12 -> 201447.5833 | BH51: 28311.33333 | BI51: 2681.916667 | BJ51: 22 | BK51: 2400.25 | BL51: 329.0833333 | BM51: 0 | BN51: 0 | BO51: 0 | BP51: 0 | BQ51: 0
A52: 52 | B52: 554-MT | C52: Other | D52: Miscellaneous Plant | F52: 97000 | G52: 22450 | J52: 52 | K52: =B20 -> 510-MT | L52: =C20 -> Steam | M52: =D20 -> Supervision & Engineering | O52: P01 | P52: =IF(MATCH(O52,P_ref,0)>0,"","error matching functional allocator") ->  | Q52: =F20 -> 394000 | AH52: 52 | AL52: DSM | BB52: 52
A53: 53 | C53: Total Other Maintenance | J53: 53 | L53: P | M53: =HLOOKUP("Factor Name",pfactor,3) -> Coincident Peak | N53: =IF(MATCH(P53,ref,0)>0,"","matching error") ->  | O53: =HLOOKUP(O52,pfactor,3) -> 34.2 | P53: =HLOOKUP("Class",pfactor,3) -> D01 | R53: =Q52*O53/SUM(O53:O56) -> 134748 | S53: =$R53*(VLOOKUP($P53,class,5)/VLOOKUP($P53,class,4)) -> 67150.24402 | T53: =$R53*(VLOOKUP($P53,class,6)/VLOOKUP($P53,class,4)) -> 10488.84527 | U53: =$R53*(VLOOKUP($P53,class,7)/VLOOKUP($P53,class,4)) -> 32960.96555 | V53: =$R53*(VLOOKUP($P53,class,8)/VLOOKUP($P53,class,4)) -> 21425.05122 | W53: =$R53*(VLOOKUP($P53,class,9)/VLOOKUP($P53,class,4)) -> 2395.353919 | X53: =$R53*(VLOOKUP($P53,class,10)/VLOOKUP($P53,class,4)) -> 327.5400261 | Y53: =$R53*(VLOOKUP($P53,class,11)/VLOOKUP($P53,class,4)) -> 0 | Z53: =$R53*(VLOOKUP($P53,class,12)/VLOOKUP($P53,class,4)) -> 0 | AA53: =$R53*(VLOOKUP($P53,class,13)/VLOOKUP($P53,class,4)) -> 0 | AB53: =$R53*(VLOOKUP($P53,class,14)/VLOOKUP($P53,class,4)) -> 0 | AC53: =$R53*(VLOOKUP($P53,class,15)/VLOOKUP($P53,class,4)) -> 0 | AH53: 53 | AI53: Sales Function Factor Table (sfactor) | BB53: 53 | BD53: Customer Weightings
A54: 54 | C54: Total Other | J54: 54 | L54: P | M54: =HLOOKUP("Factor Name",pfactor,4) -> Generation Level Consumption | N54: =IF(MATCH(P54,ref,0)>0,"","matching error") ->  | O54: =HLOOKUP(O52,pfactor,4) -> 65.8 | P54: =HLOOKUP("Class",pfactor,4) -> E02 | R54: =Q52*O54/SUM(O53:O56) -> 259252 | S54: =$R54*(VLOOKUP($P54,class,5)/VLOOKUP($P54,class,4)) -> 111758.3758 | T54: =$R54*(VLOOKUP($P54,class,6)/VLOOKUP($P54,class,4)) -> 22891.97426 | U54: =$R54*(VLOOKUP($P54,class,7)/VLOOKUP($P54,class,4)) -> 69176.85386 | V54: =$R54*(VLOOKUP($P54,class,8)/VLOOKUP($P54,class,4)) -> 48406.95321 | W54: =$R54*(VLOOKUP($P54,class,9)/VLOOKUP($P54,class,4)) -> 5807.409348 | X54: =$R54*(VLOOKUP($P54,class,10)/VLOOKUP($P54,class,4)) -> 1210.433564 | Y54: =$R54*(VLOOKUP($P54,class,11)/VLOOKUP($P54,class,4)) -> 0 | Z54: =$R54*(VLOOKUP($P54,class,12)/VLOOKUP($P54,class,4)) -> 0 | AA54: =$R54*(VLOOKUP($P54,class,13)/VLOOKUP($P54,class,4)) -> 0 | AB54: =$R54*(VLOOKUP($P54,class,14)/VLOOKUP($P54,class,4)) -> 0 | AC54: =$R54*(VLOOKUP($P54,class,15)/VLOOKUP($P54,class,4)) -> 0 | AH54: 54 | AI54: Class | AJ54: Factor Name | AK54: V01 | AL54: V02 | AM54: V03 | AN54: V04 | BB54: 54 | BD54: Avg Customers-All | BG54: 1 | BH54: 1 | BI54: 1 | BJ54: 1 | BK54: 1 | BL54: 1 | BM54: 1 | BN54: 0 | BO54: 0 | BP54: 0 | BQ54: 0 | BR54: Unweighted
A55: 55 | J55: 55 | L55: P | M55: =HLOOKUP("Factor Name",pfactor,5) -> Open | N55: =IF(MATCH(P55,ref,0)>0,"","matching error") ->  | O55: =HLOOKUP(O52,pfactor,5) -> 0 | P55: =HLOOKUP("Class",pfactor,5) -> xxx | R55: =Q52*O55/SUM(O53:O56) -> 0 | S55: =$R55*(VLOOKUP($P55,class,5)/VLOOKUP($P55,class,4)) -> 0 | T55: =$R55*(VLOOKUP($P55,class,6)/VLOOKUP($P55,class,4)) -> 0 | U55: =$R55*(VLOOKUP($P55,class,7)/VLOOKUP($P55,class,4)) -> 0 | V55: =$R55*(VLOOKUP($P55,class,8)/VLOOKUP($P55,class,4)) -> 0 | W55: =$R55*(VLOOKUP($P55,class,9)/VLOOKUP($P55,class,4)) -> 0 | X55: =$R55*(VLOOKUP($P55,class,10)/VLOOKUP($P55,class,4)) -> 0 | Y55: =$R55*(VLOOKUP($P55,class,11)/VLOOKUP($P55,class,4)) -> 0 | Z55: =$R55*(VLOOKUP($P55,class,12)/VLOOKUP($P55,class,4)) -> 0 | AA55: =$R55*(VLOOKUP($P55,class,13)/VLOOKUP($P55,class,4)) -> 0 | AB55: =$R55*(VLOOKUP($P55,class,14)/VLOOKUP($P55,class,4)) -> 0 | AC55: =$R55*(VLOOKUP($P55,class,15)/VLOOKUP($P55,class,4)) -> 0 | AH55: 55 | AJ55: Total Factor | AK55: =AK56+AK57+AK58 -> 100 | AL55: =AL56+AL57+AL58 -> 100 | AM55: =AM56+AM57+AM58 -> 100 | AN55: =AN56+AN57+AN58 -> 0 | BB55: 55 | BD55: Avg Customers-Secondary | BG55: 1 | BH55: 1 | BI55: 1 | BJ55: 0 | BK55: 1 | BL55: 0 | BM55: 0 | BN55: 0 | BO55: 0 | BP55: 0 | BQ55: 0 | BR55: Unweighted Secondary w/o Lighting
A56: 56 | B56: 555-OP | C56: Total Purchased Power | F56: 26782000 | G56: 0 | J56: 56 | L56: P | M56: =HLOOKUP("Factor Name",pfactor,6) -> Open | N56: =IF(MATCH(P56,ref,0)>0,"","matching error") ->  | O56: =HLOOKUP(O52,pfactor,6) -> 0 | P56: =HLOOKUP("Class",pfactor,6) -> xxx | R56: =Q52*O56/SUM(O53:O56) -> 0 | S56: =$R56*(VLOOKUP($P56,class,5)/VLOOKUP($P56,class,4)) -> 0 | T56: =$R56*(VLOOKUP($P56,class,6)/VLOOKUP($P56,class,4)) -> 0 | U56: =$R56*(VLOOKUP($P56,class,7)/VLOOKUP($P56,class,4)) -> 0 | V56: =$R56*(VLOOKUP($P56,class,8)/VLOOKUP($P56,class,4)) -> 0 | W56: =$R56*(VLOOKUP($P56,class,9)/VLOOKUP($P56,class,4)) -> 0 | X56: =$R56*(VLOOKUP($P56,class,10)/VLOOKUP($P56,class,4)) -> 0 | Y56: =$R56*(VLOOKUP($P56,class,11)/VLOOKUP($P56,class,4)) -> 0 | Z56: =$R56*(VLOOKUP($P56,class,12)/VLOOKUP($P56,class,4)) -> 0 | AA56: =$R56*(VLOOKUP($P56,class,13)/VLOOKUP($P56,class,4)) -> 0 | AB56: =$R56*(VLOOKUP($P56,class,14)/VLOOKUP($P56,class,4)) -> 0 | AC56: =$R56*(VLOOKUP($P56,class,15)/VLOOKUP($P56,class,4)) -> 0 | AH56: 56 | AI56: E02 | AJ56: =VLOOKUP(AI56,class,2) -> Generation Level Consumption | AK56: 100 | AL56: 0 | AM56: 50 | BB56: 56 | BD56: Wt Customers-Meter Reading | BG56: 1 | BH56: 1 | BI56: 1 | BJ56: 1 | BK56: 1 | BL56: 1 | BM56: 0 | BN56: 0 | BO56: 0 | BP56: 0 | BQ56: 0 | BR56: Est. Meter Reading Time
A57: 57 | B57: 556-OP | C57: Total System Control & Load Dispatching | F57: 492000 | G57: 188349 | J57: 57 | K57: =B21 -> 511-MT | L57: =C21 -> Steam | M57: =D21 -> Structures | O57: P01 | P57: =IF(MATCH(O57,P_ref,0)>0,"","error matching functional allocator") ->  | Q57: =F21 -> 472000 | AH57: 57 | AI57: C01 | AJ57: =VLOOKUP(AI57,class,2) -> Avg Customers-All | AK57: 0 | AL57: 100 | AM57: 50 | BB57: 57 | BD57: Wt Customers-Meters | BG57: 1 | BH57: 2.72 | BI57: 14.27 | BJ57: 34.8 | BK57: 5.13 | BL57: 0 | BM57: 0 | BN57: 0 | BO57: 0 | BP57: 0 | BQ57: 0 | BR57: Proportion Installed Meter Costs
A58: 58 | B58: 557-OP | C58: Total Other Expenses | F58: 89931000 | G58: 2276714 | J58: 58 | L58: P | M58: =HLOOKUP("Factor Name",pfactor,3) -> Coincident Peak | N58: =IF(MATCH(P58,ref,0)>0,"","matching error") ->  | O58: =HLOOKUP(O57,pfactor,3) -> 34.2 | P58: =HLOOKUP("Class",pfactor,3) -> D01 | R58: =Q57*O58/SUM(O58:O61) -> 161424 | S58: =$R58*(VLOOKUP($P58,class,5)/VLOOKUP($P58,class,4)) -> 80443.94715 | T58: =$R58*(VLOOKUP($P58,class,6)/VLOOKUP($P58,class,4)) -> 12565.31718 | U58: =$R58*(VLOOKUP($P58,class,7)/VLOOKUP($P58,class,4)) -> 39486.23284 | V58: =$R58*(VLOOKUP($P58,class,8)/VLOOKUP($P58,class,4)) -> 25666.55882 | W58: =$R58*(VLOOKUP($P58,class,9)/VLOOKUP($P58,class,4)) -> 2869.56104 | X58: =$R58*(VLOOKUP($P58,class,10)/VLOOKUP($P58,class,4)) -> 392.3829755 | Y58: =$R58*(VLOOKUP($P58,class,11)/VLOOKUP($P58,class,4)) -> 0 | Z58: =$R58*(VLOOKUP($P58,class,12)/VLOOKUP($P58,class,4)) -> 0 | AA58: =$R58*(VLOOKUP($P58,class,13)/VLOOKUP($P58,class,4)) -> 0 | AB58: =$R58*(VLOOKUP($P58,class,14)/VLOOKUP($P58,class,4)) -> 0 | AC58: =$R58*(VLOOKUP($P58,class,15)/VLOOKUP($P58,class,4)) -> 0 | AH58: 58 | AI58: xxx | AJ58: =VLOOKUP(AI58,class,2) -> Open | AK58: 0 | AL58: 0 | BB58: 58 | BD58: DA Street & Area Lights | BG58: 0 | BH58: 0 | BI58: 0 | BJ58: 0 | BK58: 0 | BL58: 1 | BM58: 0 | BN58: 0 | BO58: 0 | BP58: 0 | BQ58: 0 | BR58: Direct Assigned to Street & Area Lights
A59: 59 | D59: Total Production Expenses | J59: 59 | L59: P | M59: =HLOOKUP("Factor Name",pfactor,4) -> Generation Level Consumption | N59: =IF(MATCH(P59,ref,0)>0,"","matching error") ->  | O59: =HLOOKUP(O57,pfactor,4) -> 65.8 | P59: =HLOOKUP("Class",pfactor,4) -> E02 | R59: =Q57*O59/SUM(O58:O61) -> 310576 | S59: =$R59*(VLOOKUP($P59,class,5)/VLOOKUP($P59,class,4)) -> 133883.1304 | T59: =$R59*(VLOOKUP($P59,class,6)/VLOOKUP($P59,class,4)) -> 27423.88794 | U59: =$R59*(VLOOKUP($P59,class,7)/VLOOKUP($P59,class,4)) -> 82871.76401 | V59: =$R59*(VLOOKUP($P59,class,8)/VLOOKUP($P59,class,4)) -> 57990.05562 | W59: =$R59*(VLOOKUP($P59,class,9)/VLOOKUP($P59,class,4)) -> 6957.099523 | X59: =$R59*(VLOOKUP($P59,class,10)/VLOOKUP($P59,class,4)) -> 1450.062544 | Y59: =$R59*(VLOOKUP($P59,class,11)/VLOOKUP($P59,class,4)) -> 0 | Z59: =$R59*(VLOOKUP($P59,class,12)/VLOOKUP($P59,class,4)) -> 0 | AA59: =$R59*(VLOOKUP($P59,class,13)/VLOOKUP($P59,class,4)) -> 0 | AB59: =$R59*(VLOOKUP($P59,class,14)/VLOOKUP($P59,class,4)) -> 0 | AC59: =$R59*(VLOOKUP($P59,class,15)/VLOOKUP($P59,class,4)) -> 0 | AH59: 59 | BB59: 59 | BD59: DA Handbilled | BG59: 0 | BH59: 0 | BI59: 0 | BJ59: 1 | BK59: 0 | BL59: 0 | BM59: 1 | BN59: 0 | BO59: 0 | BP59: 0 | BQ59: 0 | BR59: Direct Assigned to Handbilled Customers
A60: 60 | J60: 60 | L60: P | M60: =HLOOKUP("Factor Name",pfactor,5) -> Open | N60: =IF(MATCH(P60,ref,0)>0,"","matching error") ->  | O60: =HLOOKUP(O57,pfactor,5) -> 0 | P60: =HLOOKUP("Class",pfactor,5) -> xxx | R60: =Q57*O60/SUM(O58:O61) -> 0 | S60: =$R60*(VLOOKUP($P60,class,5)/VLOOKUP($P60,class,4)) -> 0 | T60: =$R60*(VLOOKUP($P60,class,6)/VLOOKUP($P60,class,4)) -> 0 | U60: =$R60*(VLOOKUP($P60,class,7)/VLOOKUP($P60,class,4)) -> 0 | V60: =$R60*(VLOOKUP($P60,class,8)/VLOOKUP($P60,class,4)) -> 0 | W60: =$R60*(VLOOKUP($P60,class,9)/VLOOKUP($P60,class,4)) -> 0 | X60: =$R60*(VLOOKUP($P60,class,10)/VLOOKUP($P60,class,4)) -> 0 | Y60: =$R60*(VLOOKUP($P60,class,11)/VLOOKUP($P60,class,4)) -> 0 | Z60: =$R60*(VLOOKUP($P60,class,12)/VLOOKUP($P60,class,4)) -> 0 | AA60: =$R60*(VLOOKUP($P60,class,13)/VLOOKUP($P60,class,4)) -> 0 | AB60: =$R60*(VLOOKUP($P60,class,14)/VLOOKUP($P60,class,4)) -> 0 | AC60: =$R60*(VLOOKUP($P60,class,15)/VLOOKUP($P60,class,4)) -> 0 | AH60: 60 | AI60: Miscellaneous Function Factor Table (mfactor) | BB60: 60 | BD60: Open | BG60: 0 | BH60: 0 | BI60: 0 | BJ60: 0 | BK60: 0 | BL60: 0 | BM60: 0 | BN60: 0 | BO60: 0 | BP60: 0 | BQ60: 0 | BR60: Open
A61: 61 | B61: Proforma | J61: 61 | L61: P | M61: =HLOOKUP("Factor Name",pfactor,6) -> Open | N61: =IF(MATCH(P61,ref,0)>0,"","matching error") ->  | O61: =HLOOKUP(O57,pfactor,6) -> 0 | P61: =HLOOKUP("Class",pfactor,6) -> xxx | R61: =Q57*O61/SUM(O58:O61) -> 0 | S61: =$R61*(VLOOKUP($P61,class,5)/VLOOKUP($P61,class,4)) -> 0 | T61: =$R61*(VLOOKUP($P61,class,6)/VLOOKUP($P61,class,4)) -> 0 | U61: =$R61*(VLOOKUP($P61,class,7)/VLOOKUP($P61,class,4)) -> 0 | V61: =$R61*(VLOOKUP($P61,class,8)/VLOOKUP($P61,class,4)) -> 0 | W61: =$R61*(VLOOKUP($P61,class,9)/VLOOKUP($P61,class,4)) -> 0 | X61: =$R61*(VLOOKUP($P61,class,10)/VLOOKUP($P61,class,4)) -> 0 | Y61: =$R61*(VLOOKUP($P61,class,11)/VLOOKUP($P61,class,4)) -> 0 | Z61: =$R61*(VLOOKUP($P61,class,12)/VLOOKUP($P61,class,4)) -> 0 | AA61: =$R61*(VLOOKUP($P61,class,13)/VLOOKUP($P61,class,4)) -> 0 | AB61: =$R61*(VLOOKUP($P61,class,14)/VLOOKUP($P61,class,4)) -> 0 | AC61: =$R61*(VLOOKUP($P61,class,15)/VLOOKUP($P61,class,4)) -> 0 | AH61: 61 | AI61: Class | AJ61: Factor Name | AK61: M01 | AL61: M02 | AM61: M03 | AN61: M04 | BB61: 61
A62: 62 | B62: =$B$2 -> Pro Forma Results of Operations | J62: 62 | K62: =B22 -> 512-MT | L62: =C22 -> Steam | M62: =D22 -> Boiler Plant | O62: P01 | P62: =IF(MATCH(O62,P_ref,0)>0,"","error matching functional allocator") ->  | Q62: =F22 -> 3999000 | AH62: 62 | AJ62: Total Factor | AK62: =AK63+AK64+AK65+AK66 -> 100 | AL62: =AL63+AL64+AL65+AL66 -> 100 | AM62: =AM63+AM64+AM65+AM66 -> 100 | AN62: =AN63+AN64+AN65+AN66 -> 100 | BB62: 62 | BD62: Revenue Allocator Calculations
A63: 63 | B63: =$B$3 -> Company Base Case UE-12_____ | J63: 63 | L63: P | M63: =HLOOKUP("Factor Name",pfactor,3) -> Coincident Peak | N63: =IF(MATCH(P63,ref,0)>0,"","matching error") ->  | O63: =HLOOKUP(O62,pfactor,3) -> 34.2 | P63: =HLOOKUP("Class",pfactor,3) -> D01 | R63: =Q62*O63/SUM(O63:O66) -> 1367658 | S63: =$R63*(VLOOKUP($P63,class,5)/VLOOKUP($P63,class,4)) -> 681557.9336 | T63: =$R63*(VLOOKUP($P63,class,6)/VLOOKUP($P63,class,4)) -> 106459.1174 | U63: =$R63*(VLOOKUP($P63,class,7)/VLOOKUP($P63,class,4)) -> 334545.4346 | V63: =$R63*(VLOOKUP($P63,class,8)/VLOOKUP($P63,class,4)) -> 217458.832 | W63: =$R63*(VLOOKUP($P63,class,9)/VLOOKUP($P63,class,4)) -> 24312.23432 | X63: =$R63*(VLOOKUP($P63,class,10)/VLOOKUP($P63,class,4)) -> 3324.448133 | Y63: =$R63*(VLOOKUP($P63,class,11)/VLOOKUP($P63,class,4)) -> 0 | Z63: =$R63*(VLOOKUP($P63,class,12)/VLOOKUP($P63,class,4)) -> 0 | AA63: =$R63*(VLOOKUP($P63,class,13)/VLOOKUP($P63,class,4)) -> 0 | AB63: =$R63*(VLOOKUP($P63,class,14)/VLOOKUP($P63,class,4)) -> 0 | AC63: =$R63*(VLOOKUP($P63,class,15)/VLOOKUP($P63,class,4)) -> 0 | AH63: 63 | AI63: S05 | AJ63: =VLOOKUP(AI63,class,2) -> P/T/D Plant | AK63: 100 | AL63: 0 | AM63: 0 | AN63: 0 | BB63: 63 | BC63: R01 | BD63: Retail Sales Revenue | BF63: =SUM(BG63:BQ63) -> 455105000 | BG63: 198459000 | BH63: 55514000 | BI63: 126921000 | BJ63: 58190000 | BK63: 9439000 | BL63: 6582000 | BM63: 0 | BN63: 0 | BO63: 0 | BP63: 0 | BQ63: 0 | BR63: Input Revenue From Rates
A64: 64 | J64: 64 | L64: P | M64: =HLOOKUP("Factor Name",pfactor,4) -> Generation Level Consumption | N64: =IF(MATCH(P64,ref,0)>0,"","matching error") ->  | O64: =HLOOKUP(O62,pfactor,4) -> 65.8 | P64: =HLOOKUP("Class",pfactor,4) -> E02 | R64: =Q62*O64/SUM(O63:O66) -> 2631342 | S64: =$R64*(VLOOKUP($P64,class,5)/VLOOKUP($P64,class,4)) -> 1134319.149 | T64: =$R64*(VLOOKUP($P64,class,6)/VLOOKUP($P64,class,4)) -> 232347.7286 | U64: =$R64*(VLOOKUP($P64,class,7)/VLOOKUP($P64,class,4)) -> 702127.5091 | V64: =$R64*(VLOOKUP($P64,class,8)/VLOOKUP($P64,class,4)) -> 491318.2891 | W64: =$R64*(VLOOKUP($P64,class,9)/VLOOKUP($P64,class,4)) -> 58943.73092 | X64: =$R64*(VLOOKUP($P64,class,10)/VLOOKUP($P64,class,4)) -> 12285.59346 | Y64: =$R64*(VLOOKUP($P64,class,11)/VLOOKUP($P64,class,4)) -> 0 | Z64: =$R64*(VLOOKUP($P64,class,12)/VLOOKUP($P64,class,4)) -> 0 | AA64: =$R64*(VLOOKUP($P64,class,13)/VLOOKUP($P64,class,4)) -> 0 | AB64: =$R64*(VLOOKUP($P64,class,14)/VLOOKUP($P64,class,4)) -> 0 | AC64: =$R64*(VLOOKUP($P64,class,15)/VLOOKUP($P64,class,4)) -> 0 | AH64: 64 | AI64: S21 | AJ64: =VLOOKUP(AI64,class,2) -> Labor P/T/D Total | AK64: 0 | AL64: 0 | AM64: 100 | AN64: 0 | BB64: 64 | BE64: =IF(SUM(BG64:BQ64)=BF64,"","error") ->  | BF64: =BF63/$BF63 -> 1 | BG64: 0.4360729941 | BH64: 0.1219806418 | BI64: 0.2788828952 | BJ64: 0.1278606036 | BK64: 0.02074026873 | BL64: 0.01446259654 | BM64: 0 | BN64: 0 | BO64: 0 | BP64: 0 | BQ64: 0
A65: 65 | B65: (a) | C65: (b) | F65: BO | G65: BP | J65: 65 | L65: P | M65: =HLOOKUP("Factor Name",pfactor,5) -> Open | N65: =IF(MATCH(P65,ref,0)>0,"","matching error") ->  | O65: =HLOOKUP(O62,pfactor,5) -> 0 | P65: =HLOOKUP("Class",pfactor,5) -> xxx | R65: =Q62*O65/SUM(O63:O66) -> 0 | S65: =$R65*(VLOOKUP($P65,class,5)/VLOOKUP($P65,class,4)) -> 0 | T65: =$R65*(VLOOKUP($P65,class,6)/VLOOKUP($P65,class,4)) -> 0 | U65: =$R65*(VLOOKUP($P65,class,7)/VLOOKUP($P65,class,4)) -> 0 | V65: =$R65*(VLOOKUP($P65,class,8)/VLOOKUP($P65,class,4)) -> 0 | W65: =$R65*(VLOOKUP($P65,class,9)/VLOOKUP($P65,class,4)) -> 0 | X65: =$R65*(VLOOKUP($P65,class,10)/VLOOKUP($P65,class,4)) -> 0 | Y65: =$R65*(VLOOKUP($P65,class,11)/VLOOKUP($P65,class,4)) -> 0 | Z65: =$R65*(VLOOKUP($P65,class,12)/VLOOKUP($P65,class,4)) -> 0 | AA65: =$R65*(VLOOKUP($P65,class,13)/VLOOKUP($P65,class,4)) -> 0 | AB65: =$R65*(VLOOKUP($P65,class,14)/VLOOKUP($P65,class,4)) -> 0 | AC65: =$R65*(VLOOKUP($P65,class,15)/VLOOKUP($P65,class,4)) -> 0 | AH65: 65 | AI65: S22 | AJ65: =VLOOKUP(AI65,class,2) -> Labor O&M excl A&G | AK65: 0 | AL65: 100 | AM65: 0 | AN65: 0 | BB65: 65 | BD65: Open | BF65: =SUM(BG65:BQ65) -> 0 | BG65: 0 | BH65: 0 | BI65: 0 | BJ65: 0 | BK65: 0 | BL65: 0 | BM65: 0 | BN65: 0 | BO65: 0 | BP65: 0 | BQ65: 0 | BR65: Open
A66: 66 | F66: Transfer | G66: Transfer | J66: 66 | L66: P | M66: =HLOOKUP("Factor Name",pfactor,6) -> Open | N66: =IF(MATCH(P66,ref,0)>0,"","matching error") ->  | O66: =HLOOKUP(O62,pfactor,6) -> 0 | P66: =HLOOKUP("Class",pfactor,6) -> xxx | R66: =Q62*O66/SUM(O63:O66) -> 0 | S66: =$R66*(VLOOKUP($P66,class,5)/VLOOKUP($P66,class,4)) -> 0 | T66: =$R66*(VLOOKUP($P66,class,6)/VLOOKUP($P66,class,4)) -> 0 | U66: =$R66*(VLOOKUP($P66,class,7)/VLOOKUP($P66,class,4)) -> 0 | V66: =$R66*(VLOOKUP($P66,class,8)/VLOOKUP($P66,class,4)) -> 0 | W66: =$R66*(VLOOKUP($P66,class,9)/VLOOKUP($P66,class,4)) -> 0 | X66: =$R66*(VLOOKUP($P66,class,10)/VLOOKUP($P66,class,4)) -> 0 | Y66: =$R66*(VLOOKUP($P66,class,11)/VLOOKUP($P66,class,4)) -> 0 | Z66: =$R66*(VLOOKUP($P66,class,12)/VLOOKUP($P66,class,4)) -> 0 | AA66: =$R66*(VLOOKUP($P66,class,13)/VLOOKUP($P66,class,4)) -> 0 | AB66: =$R66*(VLOOKUP($P66,class,14)/VLOOKUP($P66,class,4)) -> 0 | AC66: =$R66*(VLOOKUP($P66,class,15)/VLOOKUP($P66,class,4)) -> 0 | AH66: 66 | AI66: S23 | AJ66: =VLOOKUP(AI66,class,2) -> Corporate Cost Allocator | AK66: 0 | AL66: 0 | AM66: 0 | AN66: 100 | BB66: 66 | BC66: R02 | BD66: Open | BF66: =SUM(BG66:BQ66) -> 0 | BG66: 0 | BH66: 0 | BI66: 0 | BJ66: 0 | BK66: 0 | BL66: 0 | BM66: =0 -> 0 | BN66: =0 -> 0 | BO66: 0 | BP66: 0 | BQ66: 0 | BR66: Open
A67: 67 | B67: Account | C67: Description | F67: Proforma | G67: Labor | J67: 67 | K67: =B23 -> 513-MT | L67: =C23 -> Steam | M67: =D23 -> Electric Plant | O67: P01 | P67: =IF(MATCH(O67,P_ref,0)>0,"","error matching functional allocator") ->  | Q67: =F23 -> 932000 | AH67: 67 | AK67: Plant Related | AL67: Total Labor | AM67: PTD Labor | BB67: 67
A68: 68 | F68: Totals | G68: Totals | J68: 68 | L68: P | M68: =HLOOKUP("Factor Name",pfactor,3) -> Coincident Peak | N68: =IF(MATCH(P68,ref,0)>0,"","matching error") ->  | O68: =HLOOKUP(O67,pfactor,3) -> 34.2 | P68: =HLOOKUP("Class",pfactor,3) -> D01 | R68: =Q67*O68/SUM(O68:O71) -> 318744 | S68: =$R68*(VLOOKUP($P68,class,5)/VLOOKUP($P68,class,4)) -> 158842.7092 | T68: =$R68*(VLOOKUP($P68,class,6)/VLOOKUP($P68,class,4)) -> 24811.17714 | U68: =$R68*(VLOOKUP($P68,class,7)/VLOOKUP($P68,class,4)) -> 77968.57841 | V68: =$R68*(VLOOKUP($P68,class,8)/VLOOKUP($P68,class,4)) -> 50680.578 | W68: =$R68*(VLOOKUP($P68,class,9)/VLOOKUP($P68,class,4)) -> 5666.167137 | X68: =$R68*(VLOOKUP($P68,class,10)/VLOOKUP($P68,class,4)) -> 774.7901126 | Y68: =$R68*(VLOOKUP($P68,class,11)/VLOOKUP($P68,class,4)) -> 0 | Z68: =$R68*(VLOOKUP($P68,class,12)/VLOOKUP($P68,class,4)) -> 0 | AA68: =$R68*(VLOOKUP($P68,class,13)/VLOOKUP($P68,class,4)) -> 0 | AB68: =$R68*(VLOOKUP($P68,class,14)/VLOOKUP($P68,class,4)) -> 0 | AC68: =$R68*(VLOOKUP($P68,class,15)/VLOOKUP($P68,class,4)) -> 0 | BB68: 68
A69: 69 | C69: Transmission Expenses | J69: 69 | L69: P | M69: =HLOOKUP("Factor Name",pfactor,4) -> Generation Level Consumption | N69: =IF(MATCH(P69,ref,0)>0,"","matching error") ->  | O69: =HLOOKUP(O67,pfactor,4) -> 65.8 | P69: =HLOOKUP("Class",pfactor,4) -> E02 | R69: =Q67*O69/SUM(O68:O71) -> 613256 | S69: =$R69*(VLOOKUP($P69,class,5)/VLOOKUP($P69,class,4)) -> 264362.4523 | T69: =$R69*(VLOOKUP($P69,class,6)/VLOOKUP($P69,class,4)) -> 54150.55839 | U69: =$R69*(VLOOKUP($P69,class,7)/VLOOKUP($P69,class,4)) -> 163636.6188 | V69: =$R69*(VLOOKUP($P69,class,8)/VLOOKUP($P69,class,4)) -> 114505.7878 | W69: =$R69*(VLOOKUP($P69,class,9)/VLOOKUP($P69,class,4)) -> 13737.32363 | X69: =$R69*(VLOOKUP($P69,class,10)/VLOOKUP($P69,class,4)) -> 2863.259091 | Y69: =$R69*(VLOOKUP($P69,class,11)/VLOOKUP($P69,class,4)) -> 0 | Z69: =$R69*(VLOOKUP($P69,class,12)/VLOOKUP($P69,class,4)) -> 0 | AA69: =$R69*(VLOOKUP($P69,class,13)/VLOOKUP($P69,class,4)) -> 0 | AB69: =$R69*(VLOOKUP($P69,class,14)/VLOOKUP($P69,class,4)) -> 0 | AC69: =$R69*(VLOOKUP($P69,class,15)/VLOOKUP($P69,class,4)) -> 0 | BB69: 69 | BD69: Total Revenue | BF69: =SUM(BG69:BQ69) -> 523083000 | BG69: =-S844 -> 229635133.2 | BH69: 61361444.56 | BI69: 144462023.7 | BJ69: 69748990.18 | BK69: 10865408.14 | BL69: 7010000.274 | BM69: 0 | BN69: 0 | BO69: 0 | BP69: 0 | BQ69: 0 | BR69: - line 844
A70: 70 | B70: 560-OP | C70: Supervision & Engineering | F70: 2171000 | G70: 648497 | J70: 70 | L70: P | M70: =HLOOKUP("Factor Name",pfactor,5) -> Open | N70: =IF(MATCH(P70,ref,0)>0,"","matching error") ->  | O70: =HLOOKUP(O67,pfactor,5) -> 0 | P70: =HLOOKUP("Class",pfactor,5) -> xxx | R70: =Q67*O70/SUM(O68:O71) -> 0 | S70: =$R70*(VLOOKUP($P70,class,5)/VLOOKUP($P70,class,4)) -> 0 | T70: =$R70*(VLOOKUP($P70,class,6)/VLOOKUP($P70,class,4)) -> 0 | U70: =$R70*(VLOOKUP($P70,class,7)/VLOOKUP($P70,class,4)) -> 0 | V70: =$R70*(VLOOKUP($P70,class,8)/VLOOKUP($P70,class,4)) -> 0 | W70: =$R70*(VLOOKUP($P70,class,9)/VLOOKUP($P70,class,4)) -> 0 | X70: =$R70*(VLOOKUP($P70,class,10)/VLOOKUP($P70,class,4)) -> 0 | Y70: =$R70*(VLOOKUP($P70,class,11)/VLOOKUP($P70,class,4)) -> 0 | Z70: =$R70*(VLOOKUP($P70,class,12)/VLOOKUP($P70,class,4)) -> 0 | AA70: =$R70*(VLOOKUP($P70,class,13)/VLOOKUP($P70,class,4)) -> 0 | AB70: =$R70*(VLOOKUP($P70,class,14)/VLOOKUP($P70,class,4)) -> 0 | AC70: =$R70*(VLOOKUP($P70,class,15)/VLOOKUP($P70,class,4)) -> 0 | BB70: 70 | BD70: Less: Exp Before Income Tax | BF70: =SUM(BG70:BQ70) -> 399767000 | BG70: =S804 -> 191536134.1 | BH70: 37092302.05 | BI70: 98700563.61 | BJ70: 59403203.71 | BK70: 8406574.025 | BL70: 4628222.537 | BM70: 0 | BN70: 0 | BO70: 0 | BP70: 0 | BQ70: 0 | BR70: line 804
A71: 71 | B71: 561-OP | C71: Load Dispatching | F71: 1581000 | G71: 927051 | J71: 71 | L71: P | M71: =HLOOKUP("Factor Name",pfactor,6) -> Open | N71: =IF(MATCH(P71,ref,0)>0,"","matching error") ->  | O71: =HLOOKUP(O67,pfactor,6) -> 0 | P71: =HLOOKUP("Class",pfactor,6) -> xxx | R71: =Q67*O71/SUM(O68:O71) -> 0 | S71: =$R71*(VLOOKUP($P71,class,5)/VLOOKUP($P71,class,4)) -> 0 | T71: =$R71*(VLOOKUP($P71,class,6)/VLOOKUP($P71,class,4)) -> 0 | U71: =$R71*(VLOOKUP($P71,class,7)/VLOOKUP($P71,class,4)) -> 0 | V71: =$R71*(VLOOKUP($P71,class,8)/VLOOKUP($P71,class,4)) -> 0 | W71: =$R71*(VLOOKUP($P71,class,9)/VLOOKUP($P71,class,4)) -> 0 | X71: =$R71*(VLOOKUP($P71,class,10)/VLOOKUP($P71,class,4)) -> 0 | Y71: =$R71*(VLOOKUP($P71,class,11)/VLOOKUP($P71,class,4)) -> 0 | Z71: =$R71*(VLOOKUP($P71,class,12)/VLOOKUP($P71,class,4)) -> 0 | AA71: =$R71*(VLOOKUP($P71,class,13)/VLOOKUP($P71,class,4)) -> 0 | AB71: =$R71*(VLOOKUP($P71,class,14)/VLOOKUP($P71,class,4)) -> 0 | AC71: =$R71*(VLOOKUP($P71,class,15)/VLOOKUP($P71,class,4)) -> 0 | BB71: 71 | BD71: Less: Interest Expense | BF71: =SUM(BG71:BQ71) -> 34872000 | BG71: =S1479 -> 17181346.67 | BH71: 3343002.082 | BI71: 8734213.004 | BJ71: 4168634.381 | BK71: 776754.2312 | BL71: 668049.6318 | BM71: 0 | BN71: 0 | BO71: 0 | BP71: 0 | BQ71: 0 | BR71: line 1479
A72: 72 | B72: 562-OP | C72: Station Expenses | F72: 220000 | G72: 88621 | J72: 72 | K72: =B24 -> 514-MT | L72: =C24 -> Steam | M72: =D24 -> Miscellaneous Plant | O72: P01 | P72: =IF(MATCH(O72,P_ref,0)>0,"","error matching functional allocator") ->  | Q72: =F24 -> 564000 | BB72: 72 | BC72: R03 | BD72: Income Tax Allocator A | BF72: =SUM(BG72:BQ72) -> 88444000 | BG72: =BG69-BG70-BG71 -> 20917652.44 | BH72: 20926140.43 | BI72: 37027247.06 | BJ72: 6177152.084 | BK72: 1682079.888 | BL72: 1713728.106 | BM72: 0 | BN72: 0 | BO72: 0 | BP72: 0 | BQ72: 0 | BR72: Rev - Exp before Inc Tax - Interest Exp
A73: 73 | B73: 563-OP | C73: Overhead Line Expenses | F73: 341000 | G73: 33578 | J73: 73 | L73: P | M73: =HLOOKUP("Factor Name",pfactor,3) -> Coincident Peak | N73: =IF(MATCH(P73,ref,0)>0,"","matching error") ->  | O73: =HLOOKUP(O72,pfactor,3) -> 34.2 | P73: =HLOOKUP("Class",pfactor,3) -> D01 | R73: =Q72*O73/SUM(O73:O76) -> 192888 | S73: =$R73*(VLOOKUP($P73,class,5)/VLOOKUP($P73,class,4)) -> 96123.69956 | T73: =$R73*(VLOOKUP($P73,class,6)/VLOOKUP($P73,class,4)) -> 15014.48917 | U73: =$R73*(VLOOKUP($P73,class,7)/VLOOKUP($P73,class,4)) -> 47182.70195 | V73: =$R73*(VLOOKUP($P73,class,8)/VLOOKUP($P73,class,4)) -> 30669.36265 | W73: =$R73*(VLOOKUP($P73,class,9)/VLOOKUP($P73,class,4)) -> 3428.882259 | X73: =$R73*(VLOOKUP($P73,class,10)/VLOOKUP($P73,class,4)) -> 468.8644029 | Y73: =$R73*(VLOOKUP($P73,class,11)/VLOOKUP($P73,class,4)) -> 0 | Z73: =$R73*(VLOOKUP($P73,class,12)/VLOOKUP($P73,class,4)) -> 0 | AA73: =$R73*(VLOOKUP($P73,class,13)/VLOOKUP($P73,class,4)) -> 0 | AB73: =$R73*(VLOOKUP($P73,class,14)/VLOOKUP($P73,class,4)) -> 0 | AC73: =$R73*(VLOOKUP($P73,class,15)/VLOOKUP($P73,class,4)) -> 0 | BB73: 73 | BE73: =IF(SUM(BG73:BQ73)=BF73,"","error") ->  | BF73: =BF72/$BF72 -> 1 | BG73: 0.236507309 | BH73: 0.2366032792 | BI73: 0.4186518821 | BJ73: 0.06984252277 | BK73: 0.01901858677 | BL73: 0.01937642017 | BM73: 0 | BN73: 0 | BO73: 0 | BP73: 0 | BQ73: 0
A74: 74 | B74: 564-OP | C74: Underground Line Expenses | F74: 0 | G74: 0 | J74: 74 | L74: P | M74: =HLOOKUP("Factor Name",pfactor,4) -> Generation Level Consumption | N74: =IF(MATCH(P74,ref,0)>0,"","matching error") ->  | O74: =HLOOKUP(O72,pfactor,4) -> 65.8 | P74: =HLOOKUP("Class",pfactor,4) -> E02 | R74: =Q72*O74/SUM(O73:O76) -> 371112 | S74: =$R74*(VLOOKUP($P74,class,5)/VLOOKUP($P74,class,4)) -> 159978.9947 | T74: =$R74*(VLOOKUP($P74,class,6)/VLOOKUP($P74,class,4)) -> 32769.22203 | U74: =$R74*(VLOOKUP($P74,class,7)/VLOOKUP($P74,class,4)) -> 99024.73496 | V74: =$R74*(VLOOKUP($P74,class,8)/VLOOKUP($P74,class,4)) -> 69293.20206 | W74: =$R74*(VLOOKUP($P74,class,9)/VLOOKUP($P74,class,4)) -> 8313.144345 | X74: =$R74*(VLOOKUP($P74,class,10)/VLOOKUP($P74,class,4)) -> 1732.701854 | Y74: =$R74*(VLOOKUP($P74,class,11)/VLOOKUP($P74,class,4)) -> 0 | Z74: =$R74*(VLOOKUP($P74,class,12)/VLOOKUP($P74,class,4)) -> 0 | AA74: =$R74*(VLOOKUP($P74,class,13)/VLOOKUP($P74,class,4)) -> 0 | AB74: =$R74*(VLOOKUP($P74,class,14)/VLOOKUP($P74,class,4)) -> 0 | AC74: =$R74*(VLOOKUP($P74,class,15)/VLOOKUP($P74,class,4)) -> 0 | BB74: 74
A75: 75 | B75: 565-OP | C75: Transmission of Electricity By Others | F75: 11410000 | G75: 0 | J75: 75 | L75: P | M75: =HLOOKUP("Factor Name",pfactor,5) -> Open | N75: =IF(MATCH(P75,ref,0)>0,"","matching error") ->  | O75: =HLOOKUP(O72,pfactor,5) -> 0 | P75: =HLOOKUP("Class",pfactor,5) -> xxx | R75: =Q72*O75/SUM(O73:O76) -> 0 | S75: =$R75*(VLOOKUP($P75,class,5)/VLOOKUP($P75,class,4)) -> 0 | T75: =$R75*(VLOOKUP($P75,class,6)/VLOOKUP($P75,class,4)) -> 0 | U75: =$R75*(VLOOKUP($P75,class,7)/VLOOKUP($P75,class,4)) -> 0 | V75: =$R75*(VLOOKUP($P75,class,8)/VLOOKUP($P75,class,4)) -> 0 | W75: =$R75*(VLOOKUP($P75,class,9)/VLOOKUP($P75,class,4)) -> 0 | X75: =$R75*(VLOOKUP($P75,class,10)/VLOOKUP($P75,class,4)) -> 0 | Y75: =$R75*(VLOOKUP($P75,class,11)/VLOOKUP($P75,class,4)) -> 0 | Z75: =$R75*(VLOOKUP($P75,class,12)/VLOOKUP($P75,class,4)) -> 0 | AA75: =$R75*(VLOOKUP($P75,class,13)/VLOOKUP($P75,class,4)) -> 0 | AB75: =$R75*(VLOOKUP($P75,class,14)/VLOOKUP($P75,class,4)) -> 0 | AC75: =$R75*(VLOOKUP($P75,class,15)/VLOOKUP($P75,class,4)) -> 0 | BB75: 75 | BD75: Uniform Return | BE75: =-$Q$846/$Q$1473 -> 0.08344471381 | BF75: =SUM(BG75:BQ75) -> 93898000 | BG75: =S$1473*$BE75 -> 46263308.37 | BH75: 9001525.852 | BI75: 23518155.9 | BJ75: 11224662.51 | BK75: 2091525.258 | BL75: 1798822.102 | BM75: 0 | BN75: 0 | BO75: 0 | BP75: 0 | BQ75: 0 | BR75: Juris Total Return * Class Rate Base line 1473
A76: 76 | B76: 566-OP | C76: Miscellaneous Expenses | F76: 1145000 | G76: 322531 | J76: 76 | L76: P | M76: =HLOOKUP("Factor Name",pfactor,6) -> Open | N76: =IF(MATCH(P76,ref,0)>0,"","matching error") ->  | O76: =HLOOKUP(O72,pfactor,6) -> 0 | P76: =HLOOKUP("Class",pfactor,6) -> xxx | R76: =Q72*O76/SUM(O73:O76) -> 0 | S76: =$R76*(VLOOKUP($P76,class,5)/VLOOKUP($P76,class,4)) -> 0 | T76: =$R76*(VLOOKUP($P76,class,6)/VLOOKUP($P76,class,4)) -> 0 | U76: =$R76*(VLOOKUP($P76,class,7)/VLOOKUP($P76,class,4)) -> 0 | V76: =$R76*(VLOOKUP($P76,class,8)/VLOOKUP($P76,class,4)) -> 0 | W76: =$R76*(VLOOKUP($P76,class,9)/VLOOKUP($P76,class,4)) -> 0 | X76: =$R76*(VLOOKUP($P76,class,10)/VLOOKUP($P76,class,4)) -> 0 | Y76: =$R76*(VLOOKUP($P76,class,11)/VLOOKUP($P76,class,4)) -> 0 | Z76: =$R76*(VLOOKUP($P76,class,12)/VLOOKUP($P76,class,4)) -> 0 | AA76: =$R76*(VLOOKUP($P76,class,13)/VLOOKUP($P76,class,4)) -> 0 | AB76: =$R76*(VLOOKUP($P76,class,14)/VLOOKUP($P76,class,4)) -> 0 | AC76: =$R76*(VLOOKUP($P76,class,15)/VLOOKUP($P76,class,4)) -> 0 | BB76: 76 | BD76: Plus: Total Operating Expenses | BF76: =SUM(BG76:BQ76) -> 429185000 | BG76: =S816 -> 198493706.1 | BH76: 44052697.32 | BI76: 111016464.7 | BJ76: 61457831.05 | BK76: 8966062.81 | BL76: 5198238.065 | BM76: 0 | BN76: 0 | BO76: 0 | BP76: 0 | BQ76: 0 | BR76: line 816
A77: 77 | B77: 567-OP | C77: Rents | F77: 83000 | G77: 426 | J77: 77 | L77: =C25 -> Total Steam Maintenance | N77: =IF(AND(ROUND($Q77,0)=ROUND($R77,0),ROUND(SUM($S77:$AC77),0)=ROUND($R77,0)),"","crossfoot error") ->  | Q77: =SUM(Q52:Q76) -> 6361000 | R77: 6361000 | S77: 2888420.636 | T77: 538922.3173 | U77: 1648981.394 | V77: 1127414.67 | W77: 132430.9064 | X77: 24830.07616 | Y77: 0 | Z77: 0 | AA77: 0 | AB77: 0 | AC77: 0 | BB77: 77 | BD77: Less: Revenue Offsets | BF77: =SUM(BG77:BQ77) -> -67978000 | BG77: =SUM(S$821:S$824)+S$842 -> -31176133.17 | BH77: -5847444.563 | BI77: -17541023.67 | BJ77: -11558990.18 | BK77: -1426408.144 | BL77: -428000.2742 | BM77: 0 | BN77: 0 | BO77: 0 | BP77: 0 | BQ77: 0 | BR77: sum lines 821 ~ 824 + line 842
A78: 78 | C78: Total Transmission Operation | J78: 78 | L78: =C26 -> Total Steam | N78: =IF(AND(ROUND($Q78,0)=ROUND($R78,0),ROUND(SUM($S78:$AC78),0)=ROUND($R78,0)),"","crossfoot error") ->  | Q78: =Q51+Q77 -> 32264000 | R78: 32264000 | S78: 14650527.18 | T78: 2733499.394 | U78: 8363894.937 | V78: 5718425.865 | W78: 671710.5432 | X78: 125942.081 | Y78: 0 | Z78: 0 | AA78: 0 | AB78: 0 | AC78: 0 | BB78: 78 | BD78: Rate Revenue at Uniform Return | BF78: =SUM(BG78:BQ78) -> 455105000 | BG78: =BG75+BG76+BG77 -> 213580881.3 | BH78: 47206778.61 | BI78: 116993596.9 | BJ78: 61123503.38 | BK78: 9631179.924 | BL78: 6569059.893 | BM78: 0 | BN78: 0 | BO78: 0 | BP78: 0 | BQ78: 0 | BR78: Computed Uniform Return Revenue Requirement
A79: 79 | B79: 568-MT | C79: Supervision & Engineering | F79: 900000 | G79: 314286 | J79: 79 | BB79: 79
A80: 80 | B80: 569-MT | C80: Structures | F80: 297000 | G80: 132860 | J80: 80 | K80: =B28 -> 535-OP | L80: =C28 -> Hydro | M80: =D28 -> Supervision & Engineering | O80: P01 | P80: =IF(MATCH(O80,P_ref,0)>0,"","error matching functional allocator") ->  | Q80: =F28 -> 1816000 | BB80: 80 | BD80: Uniform Return | BE80: =-$Q$846/$Q$1473 -> 0.08344471381 | BF80: =SUM(BG80:BQ80) -> 93898000 | BG80: =S$1473*$BE80 -> 46263308.37 | BH80: 9001525.852 | BI80: 23518155.9 | BJ80: 11224662.51 | BK80: 2091525.258 | BL80: 1798822.102 | BM80: 0 | BN80: 0 | BO80: 0 | BP80: 0 | BQ80: 0 | BR80: Total Return * Class Rate Base line 1473
A81: 81 | B81: 570-MT | C81: Station Equipment | F81: 791000 | G81: 302041 | J81: 81 | L81: P | M81: =HLOOKUP("Factor Name",pfactor,3) -> Coincident Peak | N81: =IF(MATCH(P81,ref,0)>0,"","matching error") ->  | O81: =HLOOKUP(O80,pfactor,3) -> 34.2 | P81: =HLOOKUP("Class",pfactor,3) -> D01 | R81: =Q80*O81/SUM(O81:O84) -> 621072 | S81: =$R81*(VLOOKUP($P81,class,5)/VLOOKUP($P81,class,4)) -> 309504.678 | T81: =$R81*(VLOOKUP($P81,class,6)/VLOOKUP($P81,class,4)) -> 48344.52541 | U81: =$R81*(VLOOKUP($P81,class,7)/VLOOKUP($P81,class,4)) -> 151921.6077 | V81: =$R81*(VLOOKUP($P81,class,8)/VLOOKUP($P81,class,4)) -> 98750.99748 | W81: =$R81*(VLOOKUP($P81,class,9)/VLOOKUP($P81,class,4)) -> 11040.51451 | X81: =$R81*(VLOOKUP($P81,class,10)/VLOOKUP($P81,class,4)) -> 1509.676872 | Y81: =$R81*(VLOOKUP($P81,class,11)/VLOOKUP($P81,class,4)) -> 0 | Z81: =$R81*(VLOOKUP($P81,class,12)/VLOOKUP($P81,class,4)) -> 0 | AA81: =$R81*(VLOOKUP($P81,class,13)/VLOOKUP($P81,class,4)) -> 0 | AB81: =$R81*(VLOOKUP($P81,class,14)/VLOOKUP($P81,class,4)) -> 0 | AC81: =$R81*(VLOOKUP($P81,class,15)/VLOOKUP($P81,class,4)) -> 0 | BB81: 81 | BD81: Plus: Exp Excl Rev Conv Items | BF81: =SUM(BG81:BQ81) -> 407888760.9 | BG81: =S203+S264+S307+SUM(S310:S321)+SUM(S325:S328)+S348+S367+SUM(S372:S418)+SUM(S420:S439)+SUM(S444:S476)+S783+S803+S814 -> 189206991.3 | BH81: =T203+T264+T307+SUM(T310:T321)+SUM(T325:T328)+T348+T367+SUM(T372:T418)+SUM(T420:T439)+SUM(T444:T476)+T783+T803+T814 -> 41454968.4 | BI81: 105077307.9 | BJ81: 58734881.06 | BK81: 8524373.088 | BL81: 4890239.151 | BM81: 0 | BN81: 0 | BO81: 0 | BP81: 0 | BQ81: 0 | BR81: line 816 - lines 323, 419, and 477
A82: 82 | B82: 571-MT | C82: Overhead Lines | F82: 1574000 | G82: 45838 | J82: 82 | L82: P | M82: =HLOOKUP("Factor Name",pfactor,4) -> Generation Level Consumption | N82: =IF(MATCH(P82,ref,0)>0,"","matching error") ->  | O82: =HLOOKUP(O80,pfactor,4) -> 65.8 | P82: =HLOOKUP("Class",pfactor,4) -> E02 | R82: =Q80*O82/SUM(O81:O84) -> 1194928 | S82: =$R82*(VLOOKUP($P82,class,5)/VLOOKUP($P82,class,4)) -> 515109.671 | T82: =$R82*(VLOOKUP($P82,class,6)/VLOOKUP($P82,class,4)) -> 105512.2468 | U82: =$R82*(VLOOKUP($P82,class,7)/VLOOKUP($P82,class,4)) -> 318845.6005 | V82: =$R82*(VLOOKUP($P82,class,8)/VLOOKUP($P82,class,4)) -> 223114.2818 | W82: =$R82*(VLOOKUP($P82,class,9)/VLOOKUP($P82,class,4)) -> 26767.14562 | X82: =$R82*(VLOOKUP($P82,class,10)/VLOOKUP($P82,class,4)) -> 5579.054195 | Y82: =$R82*(VLOOKUP($P82,class,11)/VLOOKUP($P82,class,4)) -> 0 | Z82: =$R82*(VLOOKUP($P82,class,12)/VLOOKUP($P82,class,4)) -> 0 | AA82: =$R82*(VLOOKUP($P82,class,13)/VLOOKUP($P82,class,4)) -> 0 | AB82: =$R82*(VLOOKUP($P82,class,14)/VLOOKUP($P82,class,4)) -> 0 | AC82: =$R82*(VLOOKUP($P82,class,15)/VLOOKUP($P82,class,4)) -> 0 | BB82: 82 | BD82: Less: Revenue Offsets | BF82: =SUM(BG82:BQ82) -> -67978000 | BG82: =SUM(S$821:S$824)+S$842 -> -31176133.17 | BH82: -5847444.563 | BI82: -17541023.67 | BJ82: -11558990.18 | BK82: -1426408.144 | BL82: -428000.2742 | BM82: 0 | BN82: 0 | BO82: 0 | BP82: 0 | BQ82: 0 | BR82: sum lines 821 ~ 824 + line 842
A83: 83 | B83: 572-MT | C83: Underground Lines | F83: 1000 | G83: 626 | J83: 83 | L83: P | M83: =HLOOKUP("Factor Name",pfactor,5) -> Open | N83: =IF(MATCH(P83,ref,0)>0,"","matching error") ->  | O83: =HLOOKUP(O80,pfactor,5) -> 0 | P83: =HLOOKUP("Class",pfactor,5) -> xxx | R83: =Q80*O83/SUM(O81:O84) -> 0 | S83: =$R83*(VLOOKUP($P83,class,5)/VLOOKUP($P83,class,4)) -> 0 | T83: =$R83*(VLOOKUP($P83,class,6)/VLOOKUP($P83,class,4)) -> 0 | U83: =$R83*(VLOOKUP($P83,class,7)/VLOOKUP($P83,class,4)) -> 0 | V83: =$R83*(VLOOKUP($P83,class,8)/VLOOKUP($P83,class,4)) -> 0 | W83: =$R83*(VLOOKUP($P83,class,9)/VLOOKUP($P83,class,4)) -> 0 | X83: =$R83*(VLOOKUP($P83,class,10)/VLOOKUP($P83,class,4)) -> 0 | Y83: =$R83*(VLOOKUP($P83,class,11)/VLOOKUP($P83,class,4)) -> 0 | Z83: =$R83*(VLOOKUP($P83,class,12)/VLOOKUP($P83,class,4)) -> 0 | AA83: =$R83*(VLOOKUP($P83,class,13)/VLOOKUP($P83,class,4)) -> 0 | AB83: =$R83*(VLOOKUP($P83,class,14)/VLOOKUP($P83,class,4)) -> 0 | AC83: =$R83*(VLOOKUP($P83,class,15)/VLOOKUP($P83,class,4)) -> 0 | BB83: 83 | BC83: R04 | BD83: Revenue Conversion Allocator U | BF83: =SUM(BG83:BQ83) -> 433808760.9 | BG83: =BG80+BG81+BG82 -> 204294166.5 | BH83: 44609049.69 | BI83: 111054440.1 | BJ83: 58400553.39 | BK83: 9189490.202 | BL83: 6261060.978 | BM83: 0 | BN83: 0 | BO83: 0 | BP83: 0 | BQ83: 0 | BR83: Uniform Return Revenue Excl Rev Conversion Items
A84: 84 | B84: 573-MT | C84: Miscellaneous Plant | F84: 20000 | G84: 4620 | J84: 84 | L84: P | M84: =HLOOKUP("Factor Name",pfactor,6) -> Open | N84: =IF(MATCH(P84,ref,0)>0,"","matching error") ->  | O84: =HLOOKUP(O80,pfactor,6) -> 0 | P84: =HLOOKUP("Class",pfactor,6) -> xxx | R84: =Q80*O84/SUM(O81:O84) -> 0 | S84: =$R84*(VLOOKUP($P84,class,5)/VLOOKUP($P84,class,4)) -> 0 | T84: =$R84*(VLOOKUP($P84,class,6)/VLOOKUP($P84,class,4)) -> 0 | U84: =$R84*(VLOOKUP($P84,class,7)/VLOOKUP($P84,class,4)) -> 0 | V84: =$R84*(VLOOKUP($P84,class,8)/VLOOKUP($P84,class,4)) -> 0 | W84: =$R84*(VLOOKUP($P84,class,9)/VLOOKUP($P84,class,4)) -> 0 | X84: =$R84*(VLOOKUP($P84,class,10)/VLOOKUP($P84,class,4)) -> 0 | Y84: =$R84*(VLOOKUP($P84,class,11)/VLOOKUP($P84,class,4)) -> 0 | Z84: =$R84*(VLOOKUP($P84,class,12)/VLOOKUP($P84,class,4)) -> 0 | AA84: =$R84*(VLOOKUP($P84,class,13)/VLOOKUP($P84,class,4)) -> 0 | AB84: =$R84*(VLOOKUP($P84,class,14)/VLOOKUP($P84,class,4)) -> 0 | AC84: =$R84*(VLOOKUP($P84,class,15)/VLOOKUP($P84,class,4)) -> 0 | BB84: 84 | BE84: =IF(SUM(BG84:BQ84)=BF84,"","error") ->  | BF84: =BF83/$BF83 -> 1 | BG84: 0.4709313987 | BH84: 0.1028311406 | BI84: 0.2559986107 | BJ84: 0.1346228077 | BK84: 0.02118327482 | BL84: 0.01443276748 | BM84: 0 | BN84: 0 | BO84: 0 | BP84: 0 | BQ84: 0
A85: 85 | C85: Total Transmission Maintenance | J85: 85 | K85: =B29 -> 536-OP | L85: =C29 -> Hydro | M85: =D29 -> Water For Power | O85: P01 | P85: =IF(MATCH(O85,P_ref,0)>0,"","error matching functional allocator") ->  | Q85: =F29 -> 730000 | BB85: 85
A86: 86 | C86: Total Transmission Expenses | J86: 86 | L86: P | M86: =HLOOKUP("Factor Name",pfactor,3) -> Coincident Peak | N86: =IF(MATCH(P86,ref,0)>0,"","matching error") ->  | O86: =HLOOKUP(O85,pfactor,3) -> 34.2 | P86: =HLOOKUP("Class",pfactor,3) -> D01 | R86: =Q85*O86/SUM(O86:O89) -> 249660 | S86: =$R86*(VLOOKUP($P86,class,5)/VLOOKUP($P86,class,4)) -> 124415.4267 | T86: =$R86*(VLOOKUP($P86,class,6)/VLOOKUP($P86,class,4)) -> 19433.64733 | U86: =$R86*(VLOOKUP($P86,class,7)/VLOOKUP($P86,class,4)) -> 61069.80927 | V86: =$R86*(VLOOKUP($P86,class,8)/VLOOKUP($P86,class,4)) -> 39696.16088 | W86: =$R86*(VLOOKUP($P86,class,9)/VLOOKUP($P86,class,4)) -> 4438.092286 | X86: =$R86*(VLOOKUP($P86,class,10)/VLOOKUP($P86,class,4)) -> 606.8635002 | Y86: =$R86*(VLOOKUP($P86,class,11)/VLOOKUP($P86,class,4)) -> 0 | Z86: =$R86*(VLOOKUP($P86,class,12)/VLOOKUP($P86,class,4)) -> 0 | AA86: =$R86*(VLOOKUP($P86,class,13)/VLOOKUP($P86,class,4)) -> 0 | AB86: =$R86*(VLOOKUP($P86,class,14)/VLOOKUP($P86,class,4)) -> 0 | AC86: =$R86*(VLOOKUP($P86,class,15)/VLOOKUP($P86,class,4)) -> 0 | BB86: 86 | BD86: Uniform Return | BE86: =-$Q$846/$Q$1473 -> 0.08344471381 | BF86: =SUM(BG86:BQ86) -> 93898000 | BG86: =S$1473*$BE86 -> 46263308.37 | BH86: 9001525.852 | BI86: 23518155.9 | BJ86: 11224662.51 | BK86: 2091525.258 | BL86: 1798822.102 | BM86: 0 | BN86: 0 | BO86: 0 | BP86: 0 | BQ86: 0 | BR86: Total Return * Class Rate Base line 1473
A87: 87 | J87: 87 | L87: P | M87: =HLOOKUP("Factor Name",pfactor,4) -> Generation Level Consumption | N87: =IF(MATCH(P87,ref,0)>0,"","matching error") ->  | O87: =HLOOKUP(O85,pfactor,4) -> 65.8 | P87: =HLOOKUP("Class",pfactor,4) -> E02 | R87: =Q85*O87/SUM(O86:O89) -> 480340 | S87: =$R87*(VLOOKUP($P87,class,5)/VLOOKUP($P87,class,4)) -> 207065.0109 | T87: =$R87*(VLOOKUP($P87,class,6)/VLOOKUP($P87,class,4)) -> 42414.06398 | U87: =$R87*(VLOOKUP($P87,class,7)/VLOOKUP($P87,class,4)) -> 128170.313 | V87: =$R87*(VLOOKUP($P87,class,8)/VLOOKUP($P87,class,4)) -> 89688.00975 | W87: =$R87*(VLOOKUP($P87,class,9)/VLOOKUP($P87,class,4)) -> 10759.92087 | X87: =$R87*(VLOOKUP($P87,class,10)/VLOOKUP($P87,class,4)) -> 2242.681477 | Y87: =$R87*(VLOOKUP($P87,class,11)/VLOOKUP($P87,class,4)) -> 0 | Z87: =$R87*(VLOOKUP($P87,class,12)/VLOOKUP($P87,class,4)) -> 0 | AA87: =$R87*(VLOOKUP($P87,class,13)/VLOOKUP($P87,class,4)) -> 0 | AB87: =$R87*(VLOOKUP($P87,class,14)/VLOOKUP($P87,class,4)) -> 0 | AC87: =$R87*(VLOOKUP($P87,class,15)/VLOOKUP($P87,class,4)) -> 0 | BB87: 87 | BD87: Less: Interest Expense | BF87: =SUM(BG87:BQ87) -> 34872000 | BG87: =S$1479 -> 17181346.67 | BH87: 3343002.082 | BI87: 8734213.004 | BJ87: 4168634.381 | BK87: 776754.2312 | BL87: 668049.6318 | BM87: 0 | BN87: 0 | BO87: 0 | BP87: 0 | BQ87: 0 | BR87: line 1479
A88: 88 | C88: Distribution Expenses | J88: 88 | L88: P | M88: =HLOOKUP("Factor Name",pfactor,5) -> Open | N88: =IF(MATCH(P88,ref,0)>0,"","matching error") ->  | O88: =HLOOKUP(O85,pfactor,5) -> 0 | P88: =HLOOKUP("Class",pfactor,5) -> xxx | R88: =Q85*O88/SUM(O86:O89) -> 0 | S88: =$R88*(VLOOKUP($P88,class,5)/VLOOKUP($P88,class,4)) -> 0 | T88: =$R88*(VLOOKUP($P88,class,6)/VLOOKUP($P88,class,4)) -> 0 | U88: =$R88*(VLOOKUP($P88,class,7)/VLOOKUP($P88,class,4)) -> 0 | V88: =$R88*(VLOOKUP($P88,class,8)/VLOOKUP($P88,class,4)) -> 0 | W88: =$R88*(VLOOKUP($P88,class,9)/VLOOKUP($P88,class,4)) -> 0 | X88: =$R88*(VLOOKUP($P88,class,10)/VLOOKUP($P88,class,4)) -> 0 | Y88: =$R88*(VLOOKUP($P88,class,11)/VLOOKUP($P88,class,4)) -> 0 | Z88: =$R88*(VLOOKUP($P88,class,12)/VLOOKUP($P88,class,4)) -> 0 | AA88: =$R88*(VLOOKUP($P88,class,13)/VLOOKUP($P88,class,4)) -> 0 | AB88: =$R88*(VLOOKUP($P88,class,14)/VLOOKUP($P88,class,4)) -> 0 | AC88: =$R88*(VLOOKUP($P88,class,15)/VLOOKUP($P88,class,4)) -> 0 | BB88: 88 | BC88: R05 | BD88: Income Tax Allocator U | BF88: =SUM(BG88:BQ88) -> 59026000 | BG88: =BG86-BG87 -> 29081961.7 | BH88: 5658523.77 | BI88: 14783942.9 | BJ88: 7056028.131 | BK88: 1314771.027 | BL88: 1130772.47 | BM88: 0 | BN88: 0 | BO88: 0 | BP88: 0 | BQ88: 0 | BR88: Uniform Return less Interest Expense
A89: 89 | B89: 580-OP | C89: Supervision & Engineering | F89: 1353000 | G89: 823404 | J89: 89 | L89: P | M89: =HLOOKUP("Factor Name",pfactor,6) -> Open | N89: =IF(MATCH(P89,ref,0)>0,"","matching error") ->  | O89: =HLOOKUP(O85,pfactor,6) -> 0 | P89: =HLOOKUP("Class",pfactor,6) -> xxx | R89: =Q85*O89/SUM(O86:O89) -> 0 | S89: =$R89*(VLOOKUP($P89,class,5)/VLOOKUP($P89,class,4)) -> 0 | T89: =$R89*(VLOOKUP($P89,class,6)/VLOOKUP($P89,class,4)) -> 0 | U89: =$R89*(VLOOKUP($P89,class,7)/VLOOKUP($P89,class,4)) -> 0 | V89: =$R89*(VLOOKUP($P89,class,8)/VLOOKUP($P89,class,4)) -> 0 | W89: =$R89*(VLOOKUP($P89,class,9)/VLOOKUP($P89,class,4)) -> 0 | X89: =$R89*(VLOOKUP($P89,class,10)/VLOOKUP($P89,class,4)) -> 0 | Y89: =$R89*(VLOOKUP($P89,class,11)/VLOOKUP($P89,class,4)) -> 0 | Z89: =$R89*(VLOOKUP($P89,class,12)/VLOOKUP($P89,class,4)) -> 0 | AA89: =$R89*(VLOOKUP($P89,class,13)/VLOOKUP($P89,class,4)) -> 0 | AB89: =$R89*(VLOOKUP($P89,class,14)/VLOOKUP($P89,class,4)) -> 0 | AC89: =$R89*(VLOOKUP($P89,class,15)/VLOOKUP($P89,class,4)) -> 0 | BB89: 89 | BE89: =IF(SUM(BG89:BQ89)=BF89,"","error") ->  | BF89: =BF88/$BF88 -> 1 | BG89: 0.4926974842 | BH89: 0.09586493697 | BI89: 0.250464929 | BJ89: 0.119541018 | BK89: 0.02227443884 | BL89: 0.01915719293 | BM89: 0 | BN89: 0 | BO89: 0 | BP89: 0 | BQ89: 0
A90: 90 | B90: 581-OP | C90: Load Dispatching | F90: 0 | G90: 0 | J90: 90 | K90: =B30 -> 537-OP | L90: =C30 -> Hydro | M90: =D30 -> Hydraulic Expenses | O90: P01 | P90: =IF(MATCH(O90,P_ref,0)>0,"","error matching functional allocator") ->  | Q90: =F30 -> 4646000 | BB90: 90
A91: 91 | B91: 582-OP | C91: Station Expenses | F91: 482000 | G91: 196409 | J91: 91 | L91: P | M91: =HLOOKUP("Factor Name",pfactor,3) -> Coincident Peak | N91: =IF(MATCH(P91,ref,0)>0,"","matching error") ->  | O91: =HLOOKUP(O90,pfactor,3) -> 34.2 | P91: =HLOOKUP("Class",pfactor,3) -> D01 | R91: =Q90*O91/SUM(O91:O94) -> 1588932 | S91: =$R91*(VLOOKUP($P91,class,5)/VLOOKUP($P91,class,4)) -> 791827.4967 | T91: =$R91*(VLOOKUP($P91,class,6)/VLOOKUP($P91,class,4)) -> 123683.1856 | U91: =$R91*(VLOOKUP($P91,class,7)/VLOOKUP($P91,class,4)) -> 388671.6902 | V91: =$R91*(VLOOKUP($P91,class,8)/VLOOKUP($P91,class,4)) -> 252641.5938 | W91: =$R91*(VLOOKUP($P91,class,9)/VLOOKUP($P91,class,4)) -> 28245.72159 | X91: =$R91*(VLOOKUP($P91,class,10)/VLOOKUP($P91,class,4)) -> 3862.312085 | Y91: =$R91*(VLOOKUP($P91,class,11)/VLOOKUP($P91,class,4)) -> 0 | Z91: =$R91*(VLOOKUP($P91,class,12)/VLOOKUP($P91,class,4)) -> 0 | AA91: =$R91*(VLOOKUP($P91,class,13)/VLOOKUP($P91,class,4)) -> 0 | AB91: =$R91*(VLOOKUP($P91,class,14)/VLOOKUP($P91,class,4)) -> 0 | AC91: =$R91*(VLOOKUP($P91,class,15)/VLOOKUP($P91,class,4)) -> 0 | BB91: 91 | BC91: R06 | BD91: Income Tax Allocator B | BF91: =SUM(BG91:BQ91) -> 123316000 | BG91: =BG69-BG70 -> 38098999.11 | BH91: 24269142.51 | BI91: 45761460.06 | BJ91: 10345786.47 | BK91: 2458834.12 | BL91: 2381777.737 | BM91: 0 | BN91: 0 | BO91: 0 | BP91: 0 | BQ91: 0 | BR91: Net Income Before Tax
A92: 92 | B92: 583-OP | C92: Overhead Line Expenses | F92: 1527000 | G92: 1090955 | J92: 92 | L92: P | M92: =HLOOKUP("Factor Name",pfactor,4) -> Generation Level Consumption | N92: =IF(MATCH(P92,ref,0)>0,"","matching error") ->  | O92: =HLOOKUP(O90,pfactor,4) -> 65.8 | P92: =HLOOKUP("Class",pfactor,4) -> E02 | R92: =Q90*O92/SUM(O91:O94) -> 3057068 | S92: =$R92*(VLOOKUP($P92,class,5)/VLOOKUP($P92,class,4)) -> 1317841.152 | T92: =$R92*(VLOOKUP($P92,class,6)/VLOOKUP($P92,class,4)) -> 269939.3716 | U92: =$R92*(VLOOKUP($P92,class,7)/VLOOKUP($P92,class,4)) -> 815725.0331 | V92: =$R92*(VLOOKUP($P92,class,8)/VLOOKUP($P92,class,4)) -> 570808.895 | W92: =$R92*(VLOOKUP($P92,class,9)/VLOOKUP($P92,class,4)) -> 68480.26353 | X92: =$R92*(VLOOKUP($P92,class,10)/VLOOKUP($P92,class,4)) -> 14273.28513 | Y92: =$R92*(VLOOKUP($P92,class,11)/VLOOKUP($P92,class,4)) -> 0 | Z92: =$R92*(VLOOKUP($P92,class,12)/VLOOKUP($P92,class,4)) -> 0 | AA92: =$R92*(VLOOKUP($P92,class,13)/VLOOKUP($P92,class,4)) -> 0 | AB92: =$R92*(VLOOKUP($P92,class,14)/VLOOKUP($P92,class,4)) -> 0 | AC92: =$R92*(VLOOKUP($P92,class,15)/VLOOKUP($P92,class,4)) -> 0 | BB92: 92 | BF92: =BF91/$BF91 -> 1 | BG92: 0.3089542242 | BH92: 0.1968044902 | BI92: 0.3710910187 | BJ92: 0.08389654599 | BK92: 0.01993929514 | BL92: 0.01931442584 | BM92: 0 | BN92: 0 | BO92: 0 | BP92: 0 | BQ92: 0
A93: 93 | B93: 584-OP | C93: Underground Line Expenses | F93: -235000 | G93: 348863 | J93: 93 | L93: P | M93: =HLOOKUP("Factor Name",pfactor,5) -> Open | N93: =IF(MATCH(P93,ref,0)>0,"","matching error") ->  | O93: =HLOOKUP(O90,pfactor,5) -> 0 | P93: =HLOOKUP("Class",pfactor,5) -> xxx | R93: =Q90*O93/SUM(O91:O94) -> 0 | S93: =$R93*(VLOOKUP($P93,class,5)/VLOOKUP($P93,class,4)) -> 0 | T93: =$R93*(VLOOKUP($P93,class,6)/VLOOKUP($P93,class,4)) -> 0 | U93: =$R93*(VLOOKUP($P93,class,7)/VLOOKUP($P93,class,4)) -> 0 | V93: =$R93*(VLOOKUP($P93,class,8)/VLOOKUP($P93,class,4)) -> 0 | W93: =$R93*(VLOOKUP($P93,class,9)/VLOOKUP($P93,class,4)) -> 0 | X93: =$R93*(VLOOKUP($P93,class,10)/VLOOKUP($P93,class,4)) -> 0 | Y93: =$R93*(VLOOKUP($P93,class,11)/VLOOKUP($P93,class,4)) -> 0 | Z93: =$R93*(VLOOKUP($P93,class,12)/VLOOKUP($P93,class,4)) -> 0 | AA93: =$R93*(VLOOKUP($P93,class,13)/VLOOKUP($P93,class,4)) -> 0 | AB93: =$R93*(VLOOKUP($P93,class,14)/VLOOKUP($P93,class,4)) -> 0 | AC93: =$R93*(VLOOKUP($P93,class,15)/VLOOKUP($P93,class,4)) -> 0 | BB93: 93
A94: 94 | B94: 585-OP | C94: Street Lighting & Signal Systems | F94: 83000 | G94: 38299 | J94: 94 | L94: P | M94: =HLOOKUP("Factor Name",pfactor,6) -> Open | N94: =IF(MATCH(P94,ref,0)>0,"","matching error") ->  | O94: =HLOOKUP(O90,pfactor,6) -> 0 | P94: =HLOOKUP("Class",pfactor,6) -> xxx | R94: =Q90*O94/SUM(O91:O94) -> 0 | S94: =$R94*(VLOOKUP($P94,class,5)/VLOOKUP($P94,class,4)) -> 0 | T94: =$R94*(VLOOKUP($P94,class,6)/VLOOKUP($P94,class,4)) -> 0 | U94: =$R94*(VLOOKUP($P94,class,7)/VLOOKUP($P94,class,4)) -> 0 | V94: =$R94*(VLOOKUP($P94,class,8)/VLOOKUP($P94,class,4)) -> 0 | W94: =$R94*(VLOOKUP($P94,class,9)/VLOOKUP($P94,class,4)) -> 0 | X94: =$R94*(VLOOKUP($P94,class,10)/VLOOKUP($P94,class,4)) -> 0 | Y94: =$R94*(VLOOKUP($P94,class,11)/VLOOKUP($P94,class,4)) -> 0 | Z94: =$R94*(VLOOKUP($P94,class,12)/VLOOKUP($P94,class,4)) -> 0 | AA94: =$R94*(VLOOKUP($P94,class,13)/VLOOKUP($P94,class,4)) -> 0 | AB94: =$R94*(VLOOKUP($P94,class,14)/VLOOKUP($P94,class,4)) -> 0 | AC94: =$R94*(VLOOKUP($P94,class,15)/VLOOKUP($P94,class,4)) -> 0 | BB94: 94 | BD94: Summed Allocators
A95: 95 | B95: 586-OP | C95: Meter Expenses | F95: 1717000 | G95: 1070539 | J95: 95 | K95: =B31 -> 538-OP | L95: =C31 -> Hydro | M95: =D31 -> Electric Expenses | O95: P01 | P95: =IF(MATCH(O95,P_ref,0)>0,"","error matching functional allocator") ->  | Q95: =F31 -> 3978000 | BB95: 95 | BC95: S01 | BD95: Production Plant | BF95: =SUM(BG95:BQ95) -> 775077000 | BG95: =S893 -> 351949127.7 | BH95: 65666765.12 | BI95: 200925570.2 | BJ95: 137373554.6 | BK95: 16136480.06 | BL95: 3025502.428 | BM95: 0 | BN95: 0 | BO95: 0 | BP95: 0 | BQ95: 0 | BR95: line 893
A96: 96 | B96: 587-OP | C96: Customer Installations Expenses | F96: 479000 | G96: 265439 | J96: 96 | L96: P | M96: =HLOOKUP("Factor Name",pfactor,3) -> Coincident Peak | N96: =IF(MATCH(P96,ref,0)>0,"","matching error") ->  | O96: =HLOOKUP(O95,pfactor,3) -> 34.2 | P96: =HLOOKUP("Class",pfactor,3) -> D01 | R96: =Q95*O96/SUM(O96:O99) -> 1360476 | S96: =$R96*(VLOOKUP($P96,class,5)/VLOOKUP($P96,class,4)) -> 677978.8597 | T96: =$R96*(VLOOKUP($P96,class,6)/VLOOKUP($P96,class,4)) -> 105900.0672 | U96: =$R96*(VLOOKUP($P96,class,7)/VLOOKUP($P96,class,4)) -> 332788.6319 | V96: =$R96*(VLOOKUP($P96,class,8)/VLOOKUP($P96,class,4)) -> 216316.8877 | W96: =$R96*(VLOOKUP($P96,class,9)/VLOOKUP($P96,class,4)) -> 24184.56317 | X96: =$R96*(VLOOKUP($P96,class,10)/VLOOKUP($P96,class,4)) -> 3306.990416 | Y96: =$R96*(VLOOKUP($P96,class,11)/VLOOKUP($P96,class,4)) -> 0 | Z96: =$R96*(VLOOKUP($P96,class,12)/VLOOKUP($P96,class,4)) -> 0 | AA96: =$R96*(VLOOKUP($P96,class,13)/VLOOKUP($P96,class,4)) -> 0 | AB96: =$R96*(VLOOKUP($P96,class,14)/VLOOKUP($P96,class,4)) -> 0 | AC96: =$R96*(VLOOKUP($P96,class,15)/VLOOKUP($P96,class,4)) -> 0 | BB96: 96 | BE96: =IF(SUM(BG96:BQ96)=BF96,"","error") ->  | BF96: =BF95/$BF95 -> 1 | BG96: 0.4540827913 | BH96: 0.0847228922 | BI96: 0.2592330442 | BJ96: 0.1772385899 | BK96: 0.02081919611 | BL96: 0.00390348627 | BM96: 0 | BN96: 0 | BO96: 0 | BP96: 0 | BQ96: 0
A97: 97 | B97: 588-OP | C97: Miscellaneous Expenses | F97: 4986000 | G97: 2622013 | J97: 97 | L97: P | M97: =HLOOKUP("Factor Name",pfactor,4) -> Generation Level Consumption | N97: =IF(MATCH(P97,ref,0)>0,"","matching error") ->  | O97: =HLOOKUP(O95,pfactor,4) -> 65.8 | P97: =HLOOKUP("Class",pfactor,4) -> E02 | R97: =Q95*O97/SUM(O96:O99) -> 2617524 | S97: =$R97*(VLOOKUP($P97,class,5)/VLOOKUP($P97,class,4)) -> 1128362.484 | T97: =$R97*(VLOOKUP($P97,class,6)/VLOOKUP($P97,class,4)) -> 231127.598 | U97: =$R97*(VLOOKUP($P97,class,7)/VLOOKUP($P97,class,4)) -> 698440.4179 | V97: =$R97*(VLOOKUP($P97,class,8)/VLOOKUP($P97,class,4)) -> 488738.223 | W97: =$R97*(VLOOKUP($P97,class,9)/VLOOKUP($P97,class,4)) -> 58634.19895 | X97: =$R97*(VLOOKUP($P97,class,10)/VLOOKUP($P97,class,4)) -> 12221.07797 | Y97: =$R97*(VLOOKUP($P97,class,11)/VLOOKUP($P97,class,4)) -> 0 | Z97: =$R97*(VLOOKUP($P97,class,12)/VLOOKUP($P97,class,4)) -> 0 | AA97: =$R97*(VLOOKUP($P97,class,13)/VLOOKUP($P97,class,4)) -> 0 | AB97: =$R97*(VLOOKUP($P97,class,14)/VLOOKUP($P97,class,4)) -> 0 | AC97: =$R97*(VLOOKUP($P97,class,15)/VLOOKUP($P97,class,4)) -> 0 | BB97: 97 | BC97: S02 | BD97: Transmission Plant | BF97: =SUM(BG97:BQ97) -> 333426000 | BG97: =S932 -> 151403008.8 | BH97: 28248815.06 | BI97: 86435036.99 | BJ97: 59095954.08 | BK97: 6941661.281 | BL97: 1301523.813 | BM97: 0 | BN97: 0 | BO97: 0 | BP97: 0 | BQ97: 0 | BR97: line 932
A98: 98 | B98: 589-OP | C98: Rents | F98: 181000 | G98: 796 | J98: 98 | L98: P | M98: =HLOOKUP("Factor Name",pfactor,5) -> Open | N98: =IF(MATCH(P98,ref,0)>0,"","matching error") ->  | O98: =HLOOKUP(O95,pfactor,5) -> 0 | P98: =HLOOKUP("Class",pfactor,5) -> xxx | R98: =Q95*O98/SUM(O96:O99) -> 0 | S98: =$R98*(VLOOKUP($P98,class,5)/VLOOKUP($P98,class,4)) -> 0 | T98: =$R98*(VLOOKUP($P98,class,6)/VLOOKUP($P98,class,4)) -> 0 | U98: =$R98*(VLOOKUP($P98,class,7)/VLOOKUP($P98,class,4)) -> 0 | V98: =$R98*(VLOOKUP($P98,class,8)/VLOOKUP($P98,class,4)) -> 0 | W98: =$R98*(VLOOKUP($P98,class,9)/VLOOKUP($P98,class,4)) -> 0 | X98: =$R98*(VLOOKUP($P98,class,10)/VLOOKUP($P98,class,4)) -> 0 | Y98: =$R98*(VLOOKUP($P98,class,11)/VLOOKUP($P98,class,4)) -> 0 | Z98: =$R98*(VLOOKUP($P98,class,12)/VLOOKUP($P98,class,4)) -> 0 | AA98: =$R98*(VLOOKUP($P98,class,13)/VLOOKUP($P98,class,4)) -> 0 | AB98: =$R98*(VLOOKUP($P98,class,14)/VLOOKUP($P98,class,4)) -> 0 | AC98: =$R98*(VLOOKUP($P98,class,15)/VLOOKUP($P98,class,4)) -> 0 | BB98: 98 | BE98: =IF(SUM(BG98:BQ98)=BF98,"","error") ->  | BF98: =BF97/$BF97 -> 1 | BG98: 0.4540827913 | BH98: 0.0847228922 | BI98: 0.2592330442 | BJ98: 0.1772385899 | BK98: 0.02081919611 | BL98: 0.00390348627 | BM98: 0 | BN98: 0 | BO98: 0 | BP98: 0 | BQ98: 0
A99: 99 | C99: Total Distribution Operation | J99: 99 | L99: P | M99: =HLOOKUP("Factor Name",pfactor,6) -> Open | N99: =IF(MATCH(P99,ref,0)>0,"","matching error") ->  | O99: =HLOOKUP(O95,pfactor,6) -> 0 | P99: =HLOOKUP("Class",pfactor,6) -> xxx | R99: =Q95*O99/SUM(O96:O99) -> 0 | S99: =$R99*(VLOOKUP($P99,class,5)/VLOOKUP($P99,class,4)) -> 0 | T99: =$R99*(VLOOKUP($P99,class,6)/VLOOKUP($P99,class,4)) -> 0 | U99: =$R99*(VLOOKUP($P99,class,7)/VLOOKUP($P99,class,4)) -> 0 | V99: =$R99*(VLOOKUP($P99,class,8)/VLOOKUP($P99,class,4)) -> 0 | W99: =$R99*(VLOOKUP($P99,class,9)/VLOOKUP($P99,class,4)) -> 0 | X99: =$R99*(VLOOKUP($P99,class,10)/VLOOKUP($P99,class,4)) -> 0 | Y99: =$R99*(VLOOKUP($P99,class,11)/VLOOKUP($P99,class,4)) -> 0 | Z99: =$R99*(VLOOKUP($P99,class,12)/VLOOKUP($P99,class,4)) -> 0 | AA99: =$R99*(VLOOKUP($P99,class,13)/VLOOKUP($P99,class,4)) -> 0 | AB99: =$R99*(VLOOKUP($P99,class,14)/VLOOKUP($P99,class,4)) -> 0 | AC99: =$R99*(VLOOKUP($P99,class,15)/VLOOKUP($P99,class,4)) -> 0 | BB99: 99 | BC99: S03 | BD99: Distribution Plant | BF99: =SUM(BG99:BQ99) -> 695186000 | BG99: =S1089 -> 377267678.9 | BH99: 76499108.08 | BI99: 164018215.4 | BJ99: 25510159.12 | BK99: 16701655.12 | BL99: 35189183.37 | BM99: 0 | BN99: 0 | BO99: 0 | BP99: 0 | BQ99: 0 | BR99: line 1089
A100: 100 | B100: 590-MT | C100: Supervision & Engineering | F100: 786000 | G100: 277137 | J100: 100 | K100: =B32 -> 539-OP | L100: =C32 -> Hydro | M100: =D32 -> Miscellaneous Power Exp. | O100: P01 | P100: =IF(MATCH(O100,P_ref,0)>0,"","error matching functional allocator") ->  | Q100: =F32 -> 470000 | BB100: 100 | BE100: =IF(SUM(BG100:BQ100)=BF100,"","error") ->  | BF100: =BF99/$BF99 -> 1 | BG100: 0.5426859558 | BH100: 0.1100412092 | BI100: 0.2359342901 | BJ100: 0.03669544427 | BK100: 0.0240247288 | BL100: 0.05061837173 | BM100: 0 | BN100: 0 | BO100: 0 | BP100: 0 | BQ100: 0
A101: 101 | B101: 591-MT | C101: Structures | F101: 264000 | G101: 97208 | J101: 101 | L101: P | M101: =HLOOKUP("Factor Name",pfactor,3) -> Coincident Peak | N101: =IF(MATCH(P101,ref,0)>0,"","matching error") ->  | O101: =HLOOKUP(O100,pfactor,3) -> 34.2 | P101: =HLOOKUP("Class",pfactor,3) -> D01 | R101: =Q100*O101/SUM(O101:O104) -> 160740 | S101: =$R101*(VLOOKUP($P101,class,5)/VLOOKUP($P101,class,4)) -> 80103.08297 | T101: =$R101*(VLOOKUP($P101,class,6)/VLOOKUP($P101,class,4)) -> 12512.07431 | U101: =$R101*(VLOOKUP($P101,class,7)/VLOOKUP($P101,class,4)) -> 39318.9183 | V101: =$R101*(VLOOKUP($P101,class,8)/VLOOKUP($P101,class,4)) -> 25557.80221 | W101: =$R101*(VLOOKUP($P101,class,9)/VLOOKUP($P101,class,4)) -> 2857.401883 | X101: =$R101*(VLOOKUP($P101,class,10)/VLOOKUP($P101,class,4)) -> 390.7203357 | Y101: =$R101*(VLOOKUP($P101,class,11)/VLOOKUP($P101,class,4)) -> 0 | Z101: =$R101*(VLOOKUP($P101,class,12)/VLOOKUP($P101,class,4)) -> 0 | AA101: =$R101*(VLOOKUP($P101,class,13)/VLOOKUP($P101,class,4)) -> 0 | AB101: =$R101*(VLOOKUP($P101,class,14)/VLOOKUP($P101,class,4)) -> 0 | AC101: =$R101*(VLOOKUP($P101,class,15)/VLOOKUP($P101,class,4)) -> 0 | BB101: 101 | BC101: S04 | BD101: General Plant | BF101: =SUM(BG101:BQ101) -> 140219000 | BG101: =S1142 -> 75745431.58 | BH101: 13821564.73 | BI101: 30433714.1 | BJ101: 14500415 | BK101: 2875836.029 | BL101: 2842038.553 | BM101: 0 | BN101: 0 | BO101: 0 | BP101: 0 | BQ101: 0 | BR101: line 1142
A102: 102 | B102: 592-MT | C102: Station Equipment | F102: 675000 | G102: 263705 | J102: 102 | L102: P | M102: =HLOOKUP("Factor Name",pfactor,4) -> Generation Level Consumption | N102: =IF(MATCH(P102,ref,0)>0,"","matching error") ->  | O102: =HLOOKUP(O100,pfactor,4) -> 65.8 | P102: =HLOOKUP("Class",pfactor,4) -> E02 | R102: =Q100*O102/SUM(O101:O104) -> 309260 | S102: =$R102*(VLOOKUP($P102,class,5)/VLOOKUP($P102,class,4)) -> 133315.829 | T102: =$R102*(VLOOKUP($P102,class,6)/VLOOKUP($P102,class,4)) -> 27307.68503 | U102: =$R102*(VLOOKUP($P102,class,7)/VLOOKUP($P102,class,4)) -> 82520.61247 | V102: =$R102*(VLOOKUP($P102,class,8)/VLOOKUP($P102,class,4)) -> 57744.33505 | W102: =$R102*(VLOOKUP($P102,class,9)/VLOOKUP($P102,class,4)) -> 6927.620288 | X102: =$R102*(VLOOKUP($P102,class,10)/VLOOKUP($P102,class,4)) -> 1443.918211 | Y102: =$R102*(VLOOKUP($P102,class,11)/VLOOKUP($P102,class,4)) -> 0 | Z102: =$R102*(VLOOKUP($P102,class,12)/VLOOKUP($P102,class,4)) -> 0 | AA102: =$R102*(VLOOKUP($P102,class,13)/VLOOKUP($P102,class,4)) -> 0 | AB102: =$R102*(VLOOKUP($P102,class,14)/VLOOKUP($P102,class,4)) -> 0 | AC102: =$R102*(VLOOKUP($P102,class,15)/VLOOKUP($P102,class,4)) -> 0 | BB102: 102 | BE102: =IF(SUM(BG102:BQ102)=BF102,"","error") ->  | BF102: =BF101/$BF101 -> 1 | BG102: 0.5401937796 | BH102: 0.09857126871 | BI102: 0.2170441531 | BJ102: 0.103412626 | BK102: 0.02050960305 | BL102: 0.02026856955 | BM102: 0 | BN102: 0 | BO102: 0 | BP102: 0 | BQ102: 0
A103: 103 | B103: 593-MT | C103: Overhead Lines | F103: 5266000 | G103: 1040561 | J103: 103 | L103: P | M103: =HLOOKUP("Factor Name",pfactor,5) -> Open | N103: =IF(MATCH(P103,ref,0)>0,"","matching error") ->  | O103: =HLOOKUP(O100,pfactor,5) -> 0 | P103: =HLOOKUP("Class",pfactor,5) -> xxx | R103: =Q100*O103/SUM(O101:O104) -> 0 | S103: =$R103*(VLOOKUP($P103,class,5)/VLOOKUP($P103,class,4)) -> 0 | T103: =$R103*(VLOOKUP($P103,class,6)/VLOOKUP($P103,class,4)) -> 0 | U103: =$R103*(VLOOKUP($P103,class,7)/VLOOKUP($P103,class,4)) -> 0 | V103: =$R103*(VLOOKUP($P103,class,8)/VLOOKUP($P103,class,4)) -> 0 | W103: =$R103*(VLOOKUP($P103,class,9)/VLOOKUP($P103,class,4)) -> 0 | X103: =$R103*(VLOOKUP($P103,class,10)/VLOOKUP($P103,class,4)) -> 0 | Y103: =$R103*(VLOOKUP($P103,class,11)/VLOOKUP($P103,class,4)) -> 0 | Z103: =$R103*(VLOOKUP($P103,class,12)/VLOOKUP($P103,class,4)) -> 0 | AA103: =$R103*(VLOOKUP($P103,class,13)/VLOOKUP($P103,class,4)) -> 0 | AB103: =$R103*(VLOOKUP($P103,class,14)/VLOOKUP($P103,class,4)) -> 0 | AC103: =$R103*(VLOOKUP($P103,class,15)/VLOOKUP($P103,class,4)) -> 0 | BB103: 103 | BC103: S05 | BD103: P/T/D Plant | BF103: =SUM(BG103:BQ103) -> 1803689000 | BG103: =S893+S932+S1089 -> 880619815.3 | BH103: 170414688.3 | BI103: 451378822.6 | BJ103: 221979667.8 | BK103: 39779796.46 | BL103: 39516209.61 | BM103: 0 | BN103: 0 | BO103: 0 | BP103: 0 | BQ103: 0 | BR103: Sum lines 893+932+1089
A104: 104 | B104: 594-MT | C104: Underground Lines | F104: 747000 | G104: 447135 | J104: 104 | L104: P | M104: =HLOOKUP("Factor Name",pfactor,6) -> Open | N104: =IF(MATCH(P104,ref,0)>0,"","matching error") ->  | O104: =HLOOKUP(O100,pfactor,6) -> 0 | P104: =HLOOKUP("Class",pfactor,6) -> xxx | R104: =Q100*O104/SUM(O101:O104) -> 0 | S104: =$R104*(VLOOKUP($P104,class,5)/VLOOKUP($P104,class,4)) -> 0 | T104: =$R104*(VLOOKUP($P104,class,6)/VLOOKUP($P104,class,4)) -> 0 | U104: =$R104*(VLOOKUP($P104,class,7)/VLOOKUP($P104,class,4)) -> 0 | V104: =$R104*(VLOOKUP($P104,class,8)/VLOOKUP($P104,class,4)) -> 0 | W104: =$R104*(VLOOKUP($P104,class,9)/VLOOKUP($P104,class,4)) -> 0 | X104: =$R104*(VLOOKUP($P104,class,10)/VLOOKUP($P104,class,4)) -> 0 | Y104: =$R104*(VLOOKUP($P104,class,11)/VLOOKUP($P104,class,4)) -> 0 | Z104: =$R104*(VLOOKUP($P104,class,12)/VLOOKUP($P104,class,4)) -> 0 | AA104: =$R104*(VLOOKUP($P104,class,13)/VLOOKUP($P104,class,4)) -> 0 | AB104: =$R104*(VLOOKUP($P104,class,14)/VLOOKUP($P104,class,4)) -> 0 | AC104: =$R104*(VLOOKUP($P104,class,15)/VLOOKUP($P104,class,4)) -> 0 | BB104: 104 | BE104: =IF(SUM(BG104:BQ104)=BF104,"","error") ->  | BF104: =BF103/$BF103 -> 1 | BG104: 0.4882326251 | BH104: 0.09448119285 | BI104: 0.2502531327 | BJ104: 0.1230698129 | BK104: 0.02205468707 | BL104: 0.02190854943 | BM104: 0 | BN104: 0 | BO104: 0 | BP104: 0 | BQ104: 0
A105: 105 | B105: 595-MT | C105: Line Transformers | F105: 968000 | G105: 437829 | J105: 105 | K105: =B33 -> 540-OP | L105: =C33 -> Hydro | M105: =D33 -> Rents | O105: P01 | P105: =IF(MATCH(O105,P_ref,0)>0,"","error matching functional allocator") ->  | Q105: =F33 -> 4482000 | BB105: 105 | BC105: S06 | BD105: P/T/D/G Plant | BF105: =SUM(BG105:BQ105) -> 1943908000 | BG105: =S893+S932+S1089+S1142 -> 956365246.9 | BH105: 184236253 | BI105: 481812536.7 | BJ105: 236480082.8 | BK105: 42655632.49 | BL105: 42358248.16 | BM105: 0 | BN105: 0 | BO105: 0 | BP105: 0 | BQ105: 0 | BR105: Sum lines 893+932+1089+1142
A106: 106 | B106: 596-MT | C106: Street Lighting & Signal Systems | F106: 449000 | G106: 189182 | J106: 106 | L106: P | M106: =HLOOKUP("Factor Name",pfactor,3) -> Coincident Peak | N106: =IF(MATCH(P106,ref,0)>0,"","matching error") ->  | O106: =HLOOKUP(O105,pfactor,3) -> 34.2 | P106: =HLOOKUP("Class",pfactor,3) -> D01 | R106: =Q105*O106/SUM(O106:O109) -> 1532844 | S106: =$R106*(VLOOKUP($P106,class,5)/VLOOKUP($P106,class,4)) -> 763876.6337 | T106: =$R106*(VLOOKUP($P106,class,6)/VLOOKUP($P106,class,4)) -> 119317.2703 | U106: =$R106*(VLOOKUP($P106,class,7)/VLOOKUP($P106,class,4)) -> 374951.8974 | V106: =$R106*(VLOOKUP($P106,class,8)/VLOOKUP($P106,class,4)) -> 243723.5522 | W106: =$R106*(VLOOKUP($P106,class,9)/VLOOKUP($P106,class,4)) -> 27248.67072 | X106: =$R106*(VLOOKUP($P106,class,10)/VLOOKUP($P106,class,4)) -> 3725.975627 | Y106: =$R106*(VLOOKUP($P106,class,11)/VLOOKUP($P106,class,4)) -> 0 | Z106: =$R106*(VLOOKUP($P106,class,12)/VLOOKUP($P106,class,4)) -> 0 | AA106: =$R106*(VLOOKUP($P106,class,13)/VLOOKUP($P106,class,4)) -> 0 | AB106: =$R106*(VLOOKUP($P106,class,14)/VLOOKUP($P106,class,4)) -> 0 | AC106: =$R106*(VLOOKUP($P106,class,15)/VLOOKUP($P106,class,4)) -> 0 | BB106: 106 | BE106: =IF(SUM(BG106:BQ106)=BF106,"","error") ->  | BF106: =BF105/$BF105 -> 1 | BG106: 0.4919807146 | BH106: 0.09477622037 | BI106: 0.247857685 | BJ106: 0.1216518903 | BK106: 0.02194323625 | BL106: 0.02179025353 | BM106: 0 | BN106: 0 | BO106: 0 | BP106: 0 | BQ106: 0
A107: 107 | B107: 597-MT | C107: Meters | F107: 89000 | G107: 51413 | J107: 107 | L107: P | M107: =HLOOKUP("Factor Name",pfactor,4) -> Generation Level Consumption | N107: =IF(MATCH(P107,ref,0)>0,"","matching error") ->  | O107: =HLOOKUP(O105,pfactor,4) -> 65.8 | P107: =HLOOKUP("Class",pfactor,4) -> E02 | R107: =Q105*O107/SUM(O106:O109) -> 2949156 | S107: =$R107*(VLOOKUP($P107,class,5)/VLOOKUP($P107,class,4)) -> 1271322.437 | T107: =$R107*(VLOOKUP($P107,class,6)/VLOOKUP($P107,class,4)) -> 260410.7325 | U107: =$R107*(VLOOKUP($P107,class,7)/VLOOKUP($P107,class,4)) -> 786930.6066 | V107: =$R107*(VLOOKUP($P107,class,8)/VLOOKUP($P107,class,4)) -> 550659.8078 | W107: =$R107*(VLOOKUP($P107,class,9)/VLOOKUP($P107,class,4)) -> 66062.96623 | X107: =$R107*(VLOOKUP($P107,class,10)/VLOOKUP($P107,class,4)) -> 13769.44984 | Y107: =$R107*(VLOOKUP($P107,class,11)/VLOOKUP($P107,class,4)) -> 0 | Z107: =$R107*(VLOOKUP($P107,class,12)/VLOOKUP($P107,class,4)) -> 0 | AA107: =$R107*(VLOOKUP($P107,class,13)/VLOOKUP($P107,class,4)) -> 0 | AB107: =$R107*(VLOOKUP($P107,class,14)/VLOOKUP($P107,class,4)) -> 0 | AC107: =$R107*(VLOOKUP($P107,class,15)/VLOOKUP($P107,class,4)) -> 0 | BB107: 107 | BC107: S07 | BD107: Rate Base | BF107: =SUM(BG107:BQ107) -> 1125272000 | BG107: =S1473 -> 554418683.5 | BH107: 107874129.4 | BI107: 281841171.6 | BJ107: 134516160.5 | BK107: 25064802.34 | BL107: 21557052.8 | BM107: 0 | BN107: 0 | BO107: 0 | BP107: 0 | BQ107: =AC1473 -> 0 | BR107: line 1473
A108: 108 | B108: 598-MT | C108: Miscellaneous Plant | F108: 469000 | G108: 217829 | J108: 108 | L108: P | M108: =HLOOKUP("Factor Name",pfactor,5) -> Open | N108: =IF(MATCH(P108,ref,0)>0,"","matching error") ->  | O108: =HLOOKUP(O105,pfactor,5) -> 0 | P108: =HLOOKUP("Class",pfactor,5) -> xxx | R108: =Q105*O108/SUM(O106:O109) -> 0 | S108: =$R108*(VLOOKUP($P108,class,5)/VLOOKUP($P108,class,4)) -> 0 | T108: =$R108*(VLOOKUP($P108,class,6)/VLOOKUP($P108,class,4)) -> 0 | U108: =$R108*(VLOOKUP($P108,class,7)/VLOOKUP($P108,class,4)) -> 0 | V108: =$R108*(VLOOKUP($P108,class,8)/VLOOKUP($P108,class,4)) -> 0 | W108: =$R108*(VLOOKUP($P108,class,9)/VLOOKUP($P108,class,4)) -> 0 | X108: =$R108*(VLOOKUP($P108,class,10)/VLOOKUP($P108,class,4)) -> 0 | Y108: =$R108*(VLOOKUP($P108,class,11)/VLOOKUP($P108,class,4)) -> 0 | Z108: =$R108*(VLOOKUP($P108,class,12)/VLOOKUP($P108,class,4)) -> 0 | AA108: =$R108*(VLOOKUP($P108,class,13)/VLOOKUP($P108,class,4)) -> 0 | AB108: =$R108*(VLOOKUP($P108,class,14)/VLOOKUP($P108,class,4)) -> 0 | AC108: =$R108*(VLOOKUP($P108,class,15)/VLOOKUP($P108,class,4)) -> 0 | BB108: 108 | BE108: =IF(SUM(BG108:BQ108)=BF108,"","error") ->  | BF108: =BF107/$BF107 -> 1 | BG108: 0.4926974842 | BH108: 0.09586493697 | BI108: 0.250464929 | BJ108: 0.119541018 | BK108: 0.02227443884 | BL108: 0.01915719293 | BM108: 0 | BN108: 0 | BO108: 0 | BP108: 0 | BQ108: 0
A109: 109 | C109: Total Distribution Maintenance | J109: 109 | L109: P | M109: =HLOOKUP("Factor Name",pfactor,6) -> Open | N109: =IF(MATCH(P109,ref,0)>0,"","matching error") ->  | O109: =HLOOKUP(O105,pfactor,6) -> 0 | P109: =HLOOKUP("Class",pfactor,6) -> xxx | R109: =Q105*O109/SUM(O106:O109) -> 0 | S109: =$R109*(VLOOKUP($P109,class,5)/VLOOKUP($P109,class,4)) -> 0 | T109: =$R109*(VLOOKUP($P109,class,6)/VLOOKUP($P109,class,4)) -> 0 | U109: =$R109*(VLOOKUP($P109,class,7)/VLOOKUP($P109,class,4)) -> 0 | V109: =$R109*(VLOOKUP($P109,class,8)/VLOOKUP($P109,class,4)) -> 0 | W109: =$R109*(VLOOKUP($P109,class,9)/VLOOKUP($P109,class,4)) -> 0 | X109: =$R109*(VLOOKUP($P109,class,10)/VLOOKUP($P109,class,4)) -> 0 | Y109: =$R109*(VLOOKUP($P109,class,11)/VLOOKUP($P109,class,4)) -> 0 | Z109: =$R109*(VLOOKUP($P109,class,12)/VLOOKUP($P109,class,4)) -> 0 | AA109: =$R109*(VLOOKUP($P109,class,13)/VLOOKUP($P109,class,4)) -> 0 | AB109: =$R109*(VLOOKUP($P109,class,14)/VLOOKUP($P109,class,4)) -> 0 | AC109: =$R109*(VLOOKUP($P109,class,15)/VLOOKUP($P109,class,4)) -> 0 | BB109: 109 | BC109: S08 | BD109: Account 361 | BF109: =SUM(BG109:BQ109) -> 10571000 | BG109: =SUM(S946:S956) -> 5107256.688 | BH109: 1056079.598 | BI109: 2822545.832 | BJ109: 1261424.672 | BK109: 257937.944 | BL109: 65755.26651 | BM109: 0 | BN109: 0 | BO109: 0 | BP109: 0 | BQ109: 0 | BR109: Sum lines 946 ~ 956
A110: 110 | C110: Total Distribution Expenses | J110: 110 | L110: =C34 -> Total Hydraulic Operation | N110: =IF(AND(ROUND($Q110,0)=ROUND($R110,0),ROUND(SUM($S110:$AC110),0)=ROUND($R110,0)),"","crossfoot error") ->  | Q110: =SUM(Q80:Q109) -> 16122000 | R110: 16122000 | S110: 7320722.762 | T110: 1365902.468 | U110: 4179355.138 | V110: 2857440.547 | W110: 335647.0796 | X110: 62932.00565 | Y110: 0 | Z110: 0 | AA110: 0 | AB110: 0 | AC110: 0 | BB110: 110 | BE110: =IF(SUM(BG110:BQ110)=BF110,"","error") ->  | BF110: =BF109/$BF109 -> 1 | BG110: 0.4831384626 | BH110: 0.09990347158 | BI110: 0.2670084033 | BJ110: 0.1193287931 | BK110: 0.02440052446 | BL110: 0.006220344954 | BM110: 0 | BN110: 0 | BO110: 0 | BP110: 0 | BQ110: 0
A111: 111 | J111: 111 | K111: =B35 -> 541-MT | L111: =C35 -> Hydro | M111: =D35 -> Supervision & Engineering | O111: P01 | P111: =IF(MATCH(O111,P_ref,0)>0,"","error matching functional allocator") ->  | Q111: =F35 -> 394000 | BB111: 111 | BC111: S09 | BD111: Account 362 | BF111: =SUM(BG111:BQ111) -> 64230000 | BG111: =SUM(S957:S967) -> 32344693.47 | BH111: 6688242.429 | BI111: 17875424.19 | BJ111: 5271663.128 | BK111: 1633543.063 | BL111: 416433.7274 | BM111: 0 | BN111: 0 | BO111: 0 | BP111: 0 | BQ111: 0 | BR111: Sum lines 957 ~ 967
A112: 112 | C112: Customer Accounting Expenses | J112: 112 | L112: P | M112: =HLOOKUP("Factor Name",pfactor,3) -> Coincident Peak | N112: =IF(MATCH(P112,ref,0)>0,"","matching error") ->  | O112: =HLOOKUP(O111,pfactor,3) -> 34.2 | P112: =HLOOKUP("Class",pfactor,3) -> D01 | R112: =Q111*O112/SUM(O112:O115) -> 134748 | S112: =$R112*(VLOOKUP($P112,class,5)/VLOOKUP($P112,class,4)) -> 67150.24402 | T112: =$R112*(VLOOKUP($P112,class,6)/VLOOKUP($P112,class,4)) -> 10488.84527 | U112: =$R112*(VLOOKUP($P112,class,7)/VLOOKUP($P112,class,4)) -> 32960.96555 | V112: =$R112*(VLOOKUP($P112,class,8)/VLOOKUP($P112,class,4)) -> 21425.05122 | W112: =$R112*(VLOOKUP($P112,class,9)/VLOOKUP($P112,class,4)) -> 2395.353919 | X112: =$R112*(VLOOKUP($P112,class,10)/VLOOKUP($P112,class,4)) -> 327.5400261 | Y112: =$R112*(VLOOKUP($P112,class,11)/VLOOKUP($P112,class,4)) -> 0 | Z112: =$R112*(VLOOKUP($P112,class,12)/VLOOKUP($P112,class,4)) -> 0 | AA112: =$R112*(VLOOKUP($P112,class,13)/VLOOKUP($P112,class,4)) -> 0 | AB112: =$R112*(VLOOKUP($P112,class,14)/VLOOKUP($P112,class,4)) -> 0 | AC112: =$R112*(VLOOKUP($P112,class,15)/VLOOKUP($P112,class,4)) -> 0 | BB112: 112 | BE112: =IF(SUM(BG112:BQ112)=BF112,"","error") ->  | BF112: =BF111/$BF111 -> 1 | BG112: 0.5035761088 | BH112: 0.1041295723 | BI112: 0.2783033502 | BJ112: 0.08207478014 | BK112: 0.02543271155 | BL112: 0.006483476994 | BM112: 0 | BN112: 0 | BO112: 0 | BP112: 0 | BQ112: 0
A113: 113 | B113: 901-OP | C113: Supervision | F113: 416000 | G113: 273242 | J113: 113 | L113: P | M113: =HLOOKUP("Factor Name",pfactor,4) -> Generation Level Consumption | N113: =IF(MATCH(P113,ref,0)>0,"","matching error") ->  | O113: =HLOOKUP(O111,pfactor,4) -> 65.8 | P113: =HLOOKUP("Class",pfactor,4) -> E02 | R113: =Q111*O113/SUM(O112:O115) -> 259252 | S113: =$R113*(VLOOKUP($P113,class,5)/VLOOKUP($P113,class,4)) -> 111758.3758 | T113: =$R113*(VLOOKUP($P113,class,6)/VLOOKUP($P113,class,4)) -> 22891.97426 | U113: =$R113*(VLOOKUP($P113,class,7)/VLOOKUP($P113,class,4)) -> 69176.85386 | V113: =$R113*(VLOOKUP($P113,class,8)/VLOOKUP($P113,class,4)) -> 48406.95321 | W113: =$R113*(VLOOKUP($P113,class,9)/VLOOKUP($P113,class,4)) -> 5807.409348 | X113: =$R113*(VLOOKUP($P113,class,10)/VLOOKUP($P113,class,4)) -> 1210.433564 | Y113: =$R113*(VLOOKUP($P113,class,11)/VLOOKUP($P113,class,4)) -> 0 | Z113: =$R113*(VLOOKUP($P113,class,12)/VLOOKUP($P113,class,4)) -> 0 | AA113: =$R113*(VLOOKUP($P113,class,13)/VLOOKUP($P113,class,4)) -> 0 | AB113: =$R113*(VLOOKUP($P113,class,14)/VLOOKUP($P113,class,4)) -> 0 | AC113: =$R113*(VLOOKUP($P113,class,15)/VLOOKUP($P113,class,4)) -> 0 | BB113: 113 | BC113: S10 | BD113: Account 364/365 | BF113: =SUM(BG113:BQ113) -> 238083000 | BG113: =SUM(S979:S1000) -> 118279199.4 | BH113: 24457797.4 | BI113: 65344173.16 | BJ113: 11457186.1 | BK113: 5973597.054 | BL113: 12571046.93 | BM113: 0 | BN113: 0 | BO113: 0 | BP113: 0 | BQ113: 0 | BR113: Sum lines 979 ~ 1000
A114: 114 | B114: 902-OP | C114: Meter Reading | F114: 2611000 | G114: 1454661 | J114: 114 | L114: P | M114: =HLOOKUP("Factor Name",pfactor,5) -> Open | N114: =IF(MATCH(P114,ref,0)>0,"","matching error") ->  | O114: =HLOOKUP(O111,pfactor,5) -> 0 | P114: =HLOOKUP("Class",pfactor,5) -> xxx | R114: =Q111*O114/SUM(O112:O115) -> 0 | S114: =$R114*(VLOOKUP($P114,class,5)/VLOOKUP($P114,class,4)) -> 0 | T114: =$R114*(VLOOKUP($P114,class,6)/VLOOKUP($P114,class,4)) -> 0 | U114: =$R114*(VLOOKUP($P114,class,7)/VLOOKUP($P114,class,4)) -> 0 | V114: =$R114*(VLOOKUP($P114,class,8)/VLOOKUP($P114,class,4)) -> 0 | W114: =$R114*(VLOOKUP($P114,class,9)/VLOOKUP($P114,class,4)) -> 0 | X114: =$R114*(VLOOKUP($P114,class,10)/VLOOKUP($P114,class,4)) -> 0 | Y114: =$R114*(VLOOKUP($P114,class,11)/VLOOKUP($P114,class,4)) -> 0 | Z114: =$R114*(VLOOKUP($P114,class,12)/VLOOKUP($P114,class,4)) -> 0 | AA114: =$R114*(VLOOKUP($P114,class,13)/VLOOKUP($P114,class,4)) -> 0 | AB114: =$R114*(VLOOKUP($P114,class,14)/VLOOKUP($P114,class,4)) -> 0 | AC114: =$R114*(VLOOKUP($P114,class,15)/VLOOKUP($P114,class,4)) -> 0 | BB114: 114 | BE114: =IF(SUM(BG114:BQ114)=BF114,"","error") ->  | BF114: =BF113/$BF113 -> 1 | BG114: 0.4967981727 | BH114: 0.1027280293 | BI114: 0.2744596345 | BJ114: 0.04812265512 | BK114: 0.02509039727 | BL114: 0.05280111108 | BM114: 0 | BN114: 0 | BO114: 0 | BP114: 0 | BQ114: 0
A115: 115 | B115: 903-OP | C115: Customer Records & Collections | F115: 5644000 | G115: 2723343 | J115: 115 | L115: P | M115: =HLOOKUP("Factor Name",pfactor,6) -> Open | N115: =IF(MATCH(P115,ref,0)>0,"","matching error") ->  | O115: =HLOOKUP(O111,pfactor,6) -> 0 | P115: =HLOOKUP("Class",pfactor,6) -> xxx | R115: =Q111*O115/SUM(O112:O115) -> 0 | S115: =$R115*(VLOOKUP($P115,class,5)/VLOOKUP($P115,class,4)) -> 0 | T115: =$R115*(VLOOKUP($P115,class,6)/VLOOKUP($P115,class,4)) -> 0 | U115: =$R115*(VLOOKUP($P115,class,7)/VLOOKUP($P115,class,4)) -> 0 | V115: =$R115*(VLOOKUP($P115,class,8)/VLOOKUP($P115,class,4)) -> 0 | W115: =$R115*(VLOOKUP($P115,class,9)/VLOOKUP($P115,class,4)) -> 0 | X115: =$R115*(VLOOKUP($P115,class,10)/VLOOKUP($P115,class,4)) -> 0 | Y115: =$R115*(VLOOKUP($P115,class,11)/VLOOKUP($P115,class,4)) -> 0 | Z115: =$R115*(VLOOKUP($P115,class,12)/VLOOKUP($P115,class,4)) -> 0 | AA115: =$R115*(VLOOKUP($P115,class,13)/VLOOKUP($P115,class,4)) -> 0 | AB115: =$R115*(VLOOKUP($P115,class,14)/VLOOKUP($P115,class,4)) -> 0 | AC115: =$R115*(VLOOKUP($P115,class,15)/VLOOKUP($P115,class,4)) -> 0 | BB115: 115 | BC115: S11 | BD115: Account 366/367 | BF115: =SUM(BG115:BQ115) -> 134480000 | BG115: =SUM(S1001:S1022) -> 70186176.27 | BH115: 14513112.1 | BI115: 38186744.62 | BJ115: 7145632 | BK115: 3544697.107 | BL115: 903637.9035 | BM115: 0 | BN115: 0 | BO115: 0 | BP115: 0 | BQ115: 0 | BR115: Sum lines 1001 ~ 1022
A116: 116 | B116: 904-OP | C116: Uncollectible Accounts | F116: 2044000 | G116: 0 | J116: 116 | K116: =B36 -> 542-MT | L116: =C36 -> Hydro | M116: =D36 -> Structures | O116: P01 | P116: =IF(MATCH(O116,P_ref,0)>0,"","error matching functional allocator") ->  | Q116: =F36 -> 291000 | BB116: 116 | BE116: =IF(SUM(BG116:BQ116)=BF116,"","error") ->  | BF116: =BF115/$BF115 -> 1 | BG116: 0.521907914 | BH116: 0.1079202268 | BI116: 0.2839585412 | BJ116: 0.05313527662 | BK116: 0.02635854482 | BL116: 0.006719496606 | BM116: 0 | BN116: 0 | BO116: 0 | BP116: 0 | BQ116: 0
A117: 117 | B117: 905-OP | C117: Misc Customer Accounts Expenses | F117: 110000 | G117: 46323 | J117: 117 | L117: P | M117: =HLOOKUP("Factor Name",pfactor,3) -> Coincident Peak | N117: =IF(MATCH(P117,ref,0)>0,"","matching error") ->  | O117: =HLOOKUP(O116,pfactor,3) -> 34.2 | P117: =HLOOKUP("Class",pfactor,3) -> D01 | R117: =Q116*O117/SUM(O117:O120) -> 99522 | S117: =$R117*(VLOOKUP($P117,class,5)/VLOOKUP($P117,class,4)) -> 49595.7386 | T117: =$R117*(VLOOKUP($P117,class,6)/VLOOKUP($P117,class,4)) -> 7746.837497 | U117: =$R117*(VLOOKUP($P117,class,7)/VLOOKUP($P117,class,4)) -> 24344.26643 | V117: =$R117*(VLOOKUP($P117,class,8)/VLOOKUP($P117,class,4)) -> 15824.08605 | W117: =$R117*(VLOOKUP($P117,class,9)/VLOOKUP($P117,class,4)) -> 1769.157336 | X117: =$R117*(VLOOKUP($P117,class,10)/VLOOKUP($P117,class,4)) -> 241.9140802 | Y117: =$R117*(VLOOKUP($P117,class,11)/VLOOKUP($P117,class,4)) -> 0 | Z117: =$R117*(VLOOKUP($P117,class,12)/VLOOKUP($P117,class,4)) -> 0 | AA117: =$R117*(VLOOKUP($P117,class,13)/VLOOKUP($P117,class,4)) -> 0 | AB117: =$R117*(VLOOKUP($P117,class,14)/VLOOKUP($P117,class,4)) -> 0 | AC117: =$R117*(VLOOKUP($P117,class,15)/VLOOKUP($P117,class,4)) -> 0 | BB117: 117 | BC117: S12 | BD117: Account 368 | BF117: =SUM(BG117:BQ117) -> 121563000 | BG117: =SUM(S1023:S1033) -> 68204560.4 | BH117: 14103353.16 | BI117: 34932344.42 | BJ117: 0 | BK117: 3444617.171 | BL117: 878124.8565 | BM117: 0 | BN117: 0 | BO117: 0 | BP117: 0 | BQ117: 0 | BR117: Sum lines 1023 ~ 1033
A118: 118 | C118: Total Customer Accounting Expenses | J118: 118 | L118: P | M118: =HLOOKUP("Factor Name",pfactor,4) -> Generation Level Consumption | N118: =IF(MATCH(P118,ref,0)>0,"","matching error") ->  | O118: =HLOOKUP(O116,pfactor,4) -> 65.8 | P118: =HLOOKUP("Class",pfactor,4) -> E02 | R118: =Q116*O118/SUM(O117:O120) -> 191478 | S118: =$R118*(VLOOKUP($P118,class,5)/VLOOKUP($P118,class,4)) -> 82542.35367 | T118: =$R118*(VLOOKUP($P118,class,6)/VLOOKUP($P118,class,4)) -> 16907.52413 | U118: =$R118*(VLOOKUP($P118,class,7)/VLOOKUP($P118,class,4)) -> 51092.54942 | V118: =$R118*(VLOOKUP($P118,class,8)/VLOOKUP($P118,class,4)) -> 35752.34361 | W118: =$R118*(VLOOKUP($P118,class,9)/VLOOKUP($P118,class,4)) -> 4289.228731 | X118: =$R118*(VLOOKUP($P118,class,10)/VLOOKUP($P118,class,4)) -> 894.0004244 | Y118: =$R118*(VLOOKUP($P118,class,11)/VLOOKUP($P118,class,4)) -> 0 | Z118: =$R118*(VLOOKUP($P118,class,12)/VLOOKUP($P118,class,4)) -> 0 | AA118: =$R118*(VLOOKUP($P118,class,13)/VLOOKUP($P118,class,4)) -> 0 | AB118: =$R118*(VLOOKUP($P118,class,14)/VLOOKUP($P118,class,4)) -> 0 | AC118: =$R118*(VLOOKUP($P118,class,15)/VLOOKUP($P118,class,4)) -> 0 | BB118: 118 | BE118: =IF(SUM(BG118:BQ118)=BF118,"","error") ->  | BF118: =BF117/$BF117 -> 1 | BG118: 0.5610634848 | BH118: 0.1160168238 | BI118: 0.2873600061 | BJ118: 0 | BK118: 0.02833606583 | BL118: 0.007223619493 | BM118: 0 | BN118: 0 | BO118: 0 | BP118: 0 | BQ118: 0
A119: 119 | J119: 119 | L119: P | M119: =HLOOKUP("Factor Name",pfactor,5) -> Open | N119: =IF(MATCH(P119,ref,0)>0,"","matching error") ->  | O119: =HLOOKUP(O116,pfactor,5) -> 0 | P119: =HLOOKUP("Class",pfactor,5) -> xxx | R119: =Q116*O119/SUM(O117:O120) -> 0 | S119: =$R119*(VLOOKUP($P119,class,5)/VLOOKUP($P119,class,4)) -> 0 | T119: =$R119*(VLOOKUP($P119,class,6)/VLOOKUP($P119,class,4)) -> 0 | U119: =$R119*(VLOOKUP($P119,class,7)/VLOOKUP($P119,class,4)) -> 0 | V119: =$R119*(VLOOKUP($P119,class,8)/VLOOKUP($P119,class,4)) -> 0 | W119: =$R119*(VLOOKUP($P119,class,9)/VLOOKUP($P119,class,4)) -> 0 | X119: =$R119*(VLOOKUP($P119,class,10)/VLOOKUP($P119,class,4)) -> 0 | Y119: =$R119*(VLOOKUP($P119,class,11)/VLOOKUP($P119,class,4)) -> 0 | Z119: =$R119*(VLOOKUP($P119,class,12)/VLOOKUP($P119,class,4)) -> 0 | AA119: =$R119*(VLOOKUP($P119,class,13)/VLOOKUP($P119,class,4)) -> 0 | AB119: =$R119*(VLOOKUP($P119,class,14)/VLOOKUP($P119,class,4)) -> 0 | AC119: =$R119*(VLOOKUP($P119,class,15)/VLOOKUP($P119,class,4)) -> 0 | BB119: 119 | BC119: S13 | BD119: Account 369 | BF119: =SUM(BG119:BQ119) -> 76191000 | BG119: =SUM(S1034:S1044) -> 65366952.89 | BH119: 9186635.857 | BI119: 858563.3407 | BJ119: 0 | BK119: 778847.9072 | BL119: 0 | BM119: 0 | BN119: 0 | BO119: 0 | BP119: 0 | BQ119: 0 | BR119: Sum lines 1034 ~ 1044
A120: 120 | J120: 120 | L120: P | M120: =HLOOKUP("Factor Name",pfactor,6) -> Open | N120: =IF(MATCH(P120,ref,0)>0,"","matching error") ->  | O120: =HLOOKUP(O116,pfactor,6) -> 0 | P120: =HLOOKUP("Class",pfactor,6) -> xxx | R120: =Q116*O120/SUM(O117:O120) -> 0 | S120: =$R120*(VLOOKUP($P120,class,5)/VLOOKUP($P120,class,4)) -> 0 | T120: =$R120*(VLOOKUP($P120,class,6)/VLOOKUP($P120,class,4)) -> 0 | U120: =$R120*(VLOOKUP($P120,class,7)/VLOOKUP($P120,class,4)) -> 0 | V120: =$R120*(VLOOKUP($P120,class,8)/VLOOKUP($P120,class,4)) -> 0 | W120: =$R120*(VLOOKUP($P120,class,9)/VLOOKUP($P120,class,4)) -> 0 | X120: =$R120*(VLOOKUP($P120,class,10)/VLOOKUP($P120,class,4)) -> 0 | Y120: =$R120*(VLOOKUP($P120,class,11)/VLOOKUP($P120,class,4)) -> 0 | Z120: =$R120*(VLOOKUP($P120,class,12)/VLOOKUP($P120,class,4)) -> 0 | AA120: =$R120*(VLOOKUP($P120,class,13)/VLOOKUP($P120,class,4)) -> 0 | AB120: =$R120*(VLOOKUP($P120,class,14)/VLOOKUP($P120,class,4)) -> 0 | AC120: =$R120*(VLOOKUP($P120,class,15)/VLOOKUP($P120,class,4)) -> 0 | BB120: 120 | BE120: =IF(SUM(BG120:BQ120)=BF120,"","error") ->  | BF120: =BF119/$BF119 -> 1 | BG120: 0.8579353584 | BH120: 0.1205737667 | BI120: 0.01126856637 | BJ120: 0 | BK120: 0.0102223085 | BL120: 0 | BM120: 0 | BN120: 0 | BO120: 0 | BP120: 0 | BQ120: 0
A121: 121 | B121: Proforma | J121: 121 | K121: =B37 -> 543-MT | L121: =C37 -> Hydro | M121: =D37 -> Reservoirs, Dams & Waterways | O121: P01 | P121: =IF(MATCH(O121,P_ref,0)>0,"","error matching functional allocator") ->  | Q121: =F37 -> 1966000 | BB121: 121 | BC121: S14 | BD121: Account 370 | BF121: =SUM(BG121:BQ121) -> 26286000 | BG121: =SUM(S1045:S1055) -> 16055739.98 | BH121: 6137584.603 | BI121: 3050264.616 | BJ121: 61019.71702 | BK121: 981391.0838 | BL121: 0 | BM121: 0 | BN121: 0 | BO121: 0 | BP121: 0 | BQ121: 0 | BR121: Sum lines 1045 ~ 1055
A122: 122 | B122: =$B$2 -> Pro Forma Results of Operations | J122: 122 | L122: P | M122: =HLOOKUP("Factor Name",pfactor,3) -> Coincident Peak | N122: =IF(MATCH(P122,ref,0)>0,"","matching error") ->  | O122: =HLOOKUP(O121,pfactor,3) -> 34.2 | P122: =HLOOKUP("Class",pfactor,3) -> D01 | R122: =Q121*O122/SUM(O122:O125) -> 672372 | S122: =$R122*(VLOOKUP($P122,class,5)/VLOOKUP($P122,class,4)) -> 335069.4917 | T122: =$R122*(VLOOKUP($P122,class,6)/VLOOKUP($P122,class,4)) -> 52337.74062 | U122: =$R122*(VLOOKUP($P122,class,7)/VLOOKUP($P122,class,4)) -> 164470.1987 | V122: =$R122*(VLOOKUP($P122,class,8)/VLOOKUP($P122,class,4)) -> 106907.7429 | W122: =$R122*(VLOOKUP($P122,class,9)/VLOOKUP($P122,class,4)) -> 11952.45128 | X122: =$R122*(VLOOKUP($P122,class,10)/VLOOKUP($P122,class,4)) -> 1634.374851 | Y122: =$R122*(VLOOKUP($P122,class,11)/VLOOKUP($P122,class,4)) -> 0 | Z122: =$R122*(VLOOKUP($P122,class,12)/VLOOKUP($P122,class,4)) -> 0 | AA122: =$R122*(VLOOKUP($P122,class,13)/VLOOKUP($P122,class,4)) -> 0 | AB122: =$R122*(VLOOKUP($P122,class,14)/VLOOKUP($P122,class,4)) -> 0 | AC122: =$R122*(VLOOKUP($P122,class,15)/VLOOKUP($P122,class,4)) -> 0 | BB122: 122 | BE122: =IF(SUM(BG122:BQ122)=BF122,"","error") ->  | BF122: =BF121/$BF121 -> 1 | BG122: 0.6108095557 | BH122: 0.2334925284 | BI122: 0.1160414143 | BJ122: 0.002321377046 | BK122: 0.03733512454 | BL122: 0 | BM122: 0 | BN122: 0 | BO122: 0 | BP122: 0 | BQ122: 0
A123: 123 | B123: =$B$3 -> Company Base Case UE-12_____ | J123: 123 | L123: P | M123: =HLOOKUP("Factor Name",pfactor,4) -> Generation Level Consumption | N123: =IF(MATCH(P123,ref,0)>0,"","matching error") ->  | O123: =HLOOKUP(O121,pfactor,4) -> 65.8 | P123: =HLOOKUP("Class",pfactor,4) -> E02 | R123: =Q121*O123/SUM(O122:O125) -> 1293628 | S123: =$R123*(VLOOKUP($P123,class,5)/VLOOKUP($P123,class,4)) -> 557657.276 | T123: =$R123*(VLOOKUP($P123,class,6)/VLOOKUP($P123,class,4)) -> 114227.4655 | U123: =$R123*(VLOOKUP($P123,class,7)/VLOOKUP($P123,class,4)) -> 345181.9662 | V123: =$R123*(VLOOKUP($P123,class,8)/VLOOKUP($P123,class,4)) -> 241543.3249 | W123: =$R123*(VLOOKUP($P123,class,9)/VLOOKUP($P123,class,4)) -> 28978.08827 | X123: =$R123*(VLOOKUP($P123,class,10)/VLOOKUP($P123,class,4)) -> 6039.879156 | Y123: =$R123*(VLOOKUP($P123,class,11)/VLOOKUP($P123,class,4)) -> 0 | Z123: =$R123*(VLOOKUP($P123,class,12)/VLOOKUP($P123,class,4)) -> 0 | AA123: =$R123*(VLOOKUP($P123,class,13)/VLOOKUP($P123,class,4)) -> 0 | AB123: =$R123*(VLOOKUP($P123,class,14)/VLOOKUP($P123,class,4)) -> 0 | AC123: =$R123*(VLOOKUP($P123,class,15)/VLOOKUP($P123,class,4)) -> 0 | BB123: 123 | BC123: S15 | BD123: Account 373 | BF123: =SUM(BG123:BQ123) -> 20332000 | BG123: =SUM(S1078:S1088) -> 0 | BH123: 0 | BI123: 0 | BJ123: 0 | BK123: 0 | BL123: 20332000 | BM123: 0 | BN123: 0 | BO123: 0 | BP123: 0 | BQ123: 0 | BR123: Sum lines 1078 ~ 1088
A124: 124 | J124: 124 | L124: P | M124: =HLOOKUP("Factor Name",pfactor,5) -> Open | N124: =IF(MATCH(P124,ref,0)>0,"","matching error") ->  | O124: =HLOOKUP(O121,pfactor,5) -> 0 | P124: =HLOOKUP("Class",pfactor,5) -> xxx | R124: =Q121*O124/SUM(O122:O125) -> 0 | S124: =$R124*(VLOOKUP($P124,class,5)/VLOOKUP($P124,class,4)) -> 0 | T124: =$R124*(VLOOKUP($P124,class,6)/VLOOKUP($P124,class,4)) -> 0 | U124: =$R124*(VLOOKUP($P124,class,7)/VLOOKUP($P124,class,4)) -> 0 | V124: =$R124*(VLOOKUP($P124,class,8)/VLOOKUP($P124,class,4)) -> 0 | W124: =$R124*(VLOOKUP($P124,class,9)/VLOOKUP($P124,class,4)) -> 0 | X124: =$R124*(VLOOKUP($P124,class,10)/VLOOKUP($P124,class,4)) -> 0 | Y124: =$R124*(VLOOKUP($P124,class,11)/VLOOKUP($P124,class,4)) -> 0 | Z124: =$R124*(VLOOKUP($P124,class,12)/VLOOKUP($P124,class,4)) -> 0 | AA124: =$R124*(VLOOKUP($P124,class,13)/VLOOKUP($P124,class,4)) -> 0 | AB124: =$R124*(VLOOKUP($P124,class,14)/VLOOKUP($P124,class,4)) -> 0 | AC124: =$R124*(VLOOKUP($P124,class,15)/VLOOKUP($P124,class,4)) -> 0 | BB124: 124 | BE124: =IF(SUM(BG124:BQ124)=BF124,"","error") ->  | BF124: =BF123/$BF123 -> 1 | BG124: 0 | BH124: 0 | BI124: 0 | BJ124: 0 | BK124: 0 | BL124: 1 | BM124: 0 | BN124: 0 | BO124: 0 | BP124: 0 | BQ124: 0
A125: 125 | B125: (a) | C125: (b) | J125: 125 | L125: P | M125: =HLOOKUP("Factor Name",pfactor,6) -> Open | N125: =IF(MATCH(P125,ref,0)>0,"","matching error") ->  | O125: =HLOOKUP(O121,pfactor,6) -> 0 | P125: =HLOOKUP("Class",pfactor,6) -> xxx | R125: =Q121*O125/SUM(O122:O125) -> 0 | S125: =$R125*(VLOOKUP($P125,class,5)/VLOOKUP($P125,class,4)) -> 0 | T125: =$R125*(VLOOKUP($P125,class,6)/VLOOKUP($P125,class,4)) -> 0 | U125: =$R125*(VLOOKUP($P125,class,7)/VLOOKUP($P125,class,4)) -> 0 | V125: =$R125*(VLOOKUP($P125,class,8)/VLOOKUP($P125,class,4)) -> 0 | W125: =$R125*(VLOOKUP($P125,class,9)/VLOOKUP($P125,class,4)) -> 0 | X125: =$R125*(VLOOKUP($P125,class,10)/VLOOKUP($P125,class,4)) -> 0 | Y125: =$R125*(VLOOKUP($P125,class,11)/VLOOKUP($P125,class,4)) -> 0 | Z125: =$R125*(VLOOKUP($P125,class,12)/VLOOKUP($P125,class,4)) -> 0 | AA125: =$R125*(VLOOKUP($P125,class,13)/VLOOKUP($P125,class,4)) -> 0 | AB125: =$R125*(VLOOKUP($P125,class,14)/VLOOKUP($P125,class,4)) -> 0 | AC125: =$R125*(VLOOKUP($P125,class,15)/VLOOKUP($P125,class,4)) -> 0 | BB125: 125 | BC125: S16 | BD125: Dist Op Exp Subtotal | BF125: =SUM(BG125:BQ125) -> 4234000 | BG125: =SUM(S269:S282)+S286 -> 2423596.933 | BH125: 657974.0298 | BI125: 738238.5564 | BJ125: 130239.1079 | BK125: 117681.1862 | BL125: 166270.1866 | BM125: 0 | BN125: 0 | BO125: 0 | BP125: 0 | BQ125: 0 | BR125: Sum lines 269 ~ 282 + line 286
A126: 126 | J126: 126 | K126: =B38 -> 544-MT | L126: =C38 -> Hydro | M126: =D38 -> Electric Plant | O126: P01 | P126: =IF(MATCH(O126,P_ref,0)>0,"","error matching functional allocator") ->  | Q126: =F38 -> 1597000 | BB126: 126 | BE126: =IF(SUM(BG126:BQ126)=BF126,"","error") ->  | BF126: =BF125/$BF125 -> 1 | BG126: 0.5724130688 | BH126: 0.1554024634 | BI126: 0.1743596024 | BJ126: 0.03076029946 | BK126: 0.02779432833 | BL126: 0.03927023774 | BM126: 0 | BN126: 0 | BO126: 0 | BP126: 0 | BQ126: 0
A127: 127 | B127: Account | C127: Description | F127: Proforma | G127: Labor | J127: 127 | L127: P | M127: =HLOOKUP("Factor Name",pfactor,3) -> Coincident Peak | N127: =IF(MATCH(P127,ref,0)>0,"","matching error") ->  | O127: =HLOOKUP(O126,pfactor,3) -> 34.2 | P127: =HLOOKUP("Class",pfactor,3) -> D01 | R127: =Q126*O127/SUM(O127:O130) -> 546174 | S127: =$R127*(VLOOKUP($P127,class,5)/VLOOKUP($P127,class,4)) -> 272180.05 | T127: =$R127*(VLOOKUP($P127,class,6)/VLOOKUP($P127,class,4)) -> 42514.43121 | U127: =$R127*(VLOOKUP($P127,class,7)/VLOOKUP($P127,class,4)) -> 133600.6649 | V127: =$R127*(VLOOKUP($P127,class,8)/VLOOKUP($P127,class,4)) -> 86842.14922 | W127: =$R127*(VLOOKUP($P127,class,9)/VLOOKUP($P127,class,4)) -> 9709.086822 | X127: =$R127*(VLOOKUP($P127,class,10)/VLOOKUP($P127,class,4)) -> 1327.617822 | Y127: =$R127*(VLOOKUP($P127,class,11)/VLOOKUP($P127,class,4)) -> 0 | Z127: =$R127*(VLOOKUP($P127,class,12)/VLOOKUP($P127,class,4)) -> 0 | AA127: =$R127*(VLOOKUP($P127,class,13)/VLOOKUP($P127,class,4)) -> 0 | AB127: =$R127*(VLOOKUP($P127,class,14)/VLOOKUP($P127,class,4)) -> 0 | AC127: =$R127*(VLOOKUP($P127,class,15)/VLOOKUP($P127,class,4)) -> 0 | BB127: 127 | BC127: S17 | BD127: Dist Mt Exp Subtotal | BF127: =SUM(BG127:BQ127) -> 8458000 | BG127: =SUM(S290:S303) -> 4070938.321 | BH127: 851329.3099 | BI127: 2204258.617 | BJ127: 380215.834 | BK127: 206176.8216 | BL127: 745081.0966 | BM127: 0 | BN127: 0 | BO127: 0 | BP127: 0 | BQ127: 0 | BR127: Sum lines 290 ~ 303
A128: 128 | F128: Totals | G128: Totals | J128: 128 | L128: P | M128: =HLOOKUP("Factor Name",pfactor,4) -> Generation Level Consumption | N128: =IF(MATCH(P128,ref,0)>0,"","matching error") ->  | O128: =HLOOKUP(O126,pfactor,4) -> 65.8 | P128: =HLOOKUP("Class",pfactor,4) -> E02 | R128: =Q126*O128/SUM(O127:O130) -> 1050826 | S128: =$R128*(VLOOKUP($P128,class,5)/VLOOKUP($P128,class,4)) -> 452990.1677 | T128: =$R128*(VLOOKUP($P128,class,6)/VLOOKUP($P128,class,4)) -> 92788.02763 | U128: =$R128*(VLOOKUP($P128,class,7)/VLOOKUP($P128,class,4)) -> 280394.5066 | V128: =$R128*(VLOOKUP($P128,class,8)/VLOOKUP($P128,class,4)) -> 196207.8789 | W128: =$R128*(VLOOKUP($P128,class,9)/VLOOKUP($P128,class,4)) -> 23539.16936 | X128: =$R128*(VLOOKUP($P128,class,10)/VLOOKUP($P128,class,4)) -> 4906.249752 | Y128: =$R128*(VLOOKUP($P128,class,11)/VLOOKUP($P128,class,4)) -> 0 | Z128: =$R128*(VLOOKUP($P128,class,12)/VLOOKUP($P128,class,4)) -> 0 | AA128: =$R128*(VLOOKUP($P128,class,13)/VLOOKUP($P128,class,4)) -> 0 | AB128: =$R128*(VLOOKUP($P128,class,14)/VLOOKUP($P128,class,4)) -> 0 | AC128: =$R128*(VLOOKUP($P128,class,15)/VLOOKUP($P128,class,4)) -> 0 | BB128: 128 | BE128: =IF(SUM(BG128:BQ128)=BF128,"","error") ->  | BF128: =BF127/$BF127 -> 1 | BG128: 0.4813121684 | BH128: 0.1006537373 | BI128: 0.2606122744 | BJ128: 0.04495339726 | BK128: 0.02437654547 | BL128: 0.08809187711 | BM128: 0 | BN128: 0 | BO128: 0 | BP128: 0 | BQ128: 0
A129: 129 | C129: Customer Information Expenses | F129: 0 | G129: 0 | J129: 129 | L129: P | M129: =HLOOKUP("Factor Name",pfactor,5) -> Open | N129: =IF(MATCH(P129,ref,0)>0,"","matching error") ->  | O129: =HLOOKUP(O126,pfactor,5) -> 0 | P129: =HLOOKUP("Class",pfactor,5) -> xxx | R129: =Q126*O129/SUM(O127:O130) -> 0 | S129: =$R129*(VLOOKUP($P129,class,5)/VLOOKUP($P129,class,4)) -> 0 | T129: =$R129*(VLOOKUP($P129,class,6)/VLOOKUP($P129,class,4)) -> 0 | U129: =$R129*(VLOOKUP($P129,class,7)/VLOOKUP($P129,class,4)) -> 0 | V129: =$R129*(VLOOKUP($P129,class,8)/VLOOKUP($P129,class,4)) -> 0 | W129: =$R129*(VLOOKUP($P129,class,9)/VLOOKUP($P129,class,4)) -> 0 | X129: =$R129*(VLOOKUP($P129,class,10)/VLOOKUP($P129,class,4)) -> 0 | Y129: =$R129*(VLOOKUP($P129,class,11)/VLOOKUP($P129,class,4)) -> 0 | Z129: =$R129*(VLOOKUP($P129,class,12)/VLOOKUP($P129,class,4)) -> 0 | AA129: =$R129*(VLOOKUP($P129,class,13)/VLOOKUP($P129,class,4)) -> 0 | AB129: =$R129*(VLOOKUP($P129,class,14)/VLOOKUP($P129,class,4)) -> 0 | AC129: =$R129*(VLOOKUP($P129,class,15)/VLOOKUP($P129,class,4)) -> 0 | BB129: 129 | BC129: S18 | BD129: Cust Acctg Exp Subtotal | BF129: =SUM(BG129:BQ129) -> 8365000 | BG129: =SUM(S312:S321)+SUM(S324:S328) -> 7128638.135 | BH129: 1001854.91 | BI129: 94905.15155 | BJ129: 43018.71537 | BK129: 84937.79573 | BL129: 11645.29234 | BM129: 0 | BN129: 0 | BO129: 0 | BP129: 0 | BQ129: 0 | BR129: Sum lines 312 ~ 321 + lines 324 ~ 328
A130: 130 | B130: 907-OP | C130: Supervision | F130: 0 | G130: 0 | J130: 130 | L130: P | M130: =HLOOKUP("Factor Name",pfactor,6) -> Open | N130: =IF(MATCH(P130,ref,0)>0,"","matching error") ->  | O130: =HLOOKUP(O126,pfactor,6) -> 0 | P130: =HLOOKUP("Class",pfactor,6) -> xxx | R130: =Q126*O130/SUM(O127:O130) -> 0 | S130: =$R130*(VLOOKUP($P130,class,5)/VLOOKUP($P130,class,4)) -> 0 | T130: =$R130*(VLOOKUP($P130,class,6)/VLOOKUP($P130,class,4)) -> 0 | U130: =$R130*(VLOOKUP($P130,class,7)/VLOOKUP($P130,class,4)) -> 0 | V130: =$R130*(VLOOKUP($P130,class,8)/VLOOKUP($P130,class,4)) -> 0 | W130: =$R130*(VLOOKUP($P130,class,9)/VLOOKUP($P130,class,4)) -> 0 | X130: =$R130*(VLOOKUP($P130,class,10)/VLOOKUP($P130,class,4)) -> 0 | Y130: =$R130*(VLOOKUP($P130,class,11)/VLOOKUP($P130,class,4)) -> 0 | Z130: =$R130*(VLOOKUP($P130,class,12)/VLOOKUP($P130,class,4)) -> 0 | AA130: =$R130*(VLOOKUP($P130,class,13)/VLOOKUP($P130,class,4)) -> 0 | AB130: =$R130*(VLOOKUP($P130,class,14)/VLOOKUP($P130,class,4)) -> 0 | AC130: =$R130*(VLOOKUP($P130,class,15)/VLOOKUP($P130,class,4)) -> 0 | BB130: 130 | BE130: =IF(SUM(BG130:BQ130)=BF130,"","error") ->  | BF130: =BF129/$BF129 -> 1 | BG130: 0.852198223 | BH130: 0.1197674728 | BI130: 0.01134550527 | BJ130: 0.00514270357 | BK130: 0.01015395048 | BL130: 0.00139214493 | BM130: 0 | BN130: 0 | BO130: 0 | BP130: 0 | BQ130: 0
A131: 131 | B131: 908-OP | C131: Customer Assistance Expenses | F131: 527000 | G131: 233315 | J131: 131 | K131: =B39 -> 545-MT | L131: =C39 -> Hydro | M131: =D39 -> Miscellaneous Plant | O131: P01 | P131: =IF(MATCH(O131,P_ref,0)>0,"","error matching functional allocator") ->  | Q131: =F39 -> 350000 | BB131: 131 | BC131: S19 | BD131: O&M Exp excl PP/F/W/A&G | BF131: =SUM(BG131:BQ131) -> 165987000 | BG131: =S369-SUM(S188:S192,S16:S20,S144:S148,S226:S229,S322:S323)-S339 -> 80692969.92 | BH131: =T369-SUM(T188:T192,T16:T20,T144:T148,T226:T229,T322:T323)-T339 -> 15300114.91 | BI131: 39777903.7 | BJ131: 24938204.48 | BK131: 3462201.241 | BL131: 1815605.746 | BM131: 0 | BN131: 0 | BO131: 0 | BP131: 0 | BQ131: 0 | BR131: lines 369 - (188~192, 16~20, 144~148, 226~229, 323, 339)
A132: 132 | B132: 909-OP | C132: Advertising | F132: 618000 | G132: 127979 | J132: 132 | L132: P | M132: =HLOOKUP("Factor Name",pfactor,3) -> Coincident Peak | N132: =IF(MATCH(P132,ref,0)>0,"","matching error") ->  | O132: =HLOOKUP(O131,pfactor,3) -> 34.2 | P132: =HLOOKUP("Class",pfactor,3) -> D01 | R132: =Q131*O132/SUM(O132:O135) -> 119700 | S132: =$R132*(VLOOKUP($P132,class,5)/VLOOKUP($P132,class,4)) -> 59651.232 | T132: =$R132*(VLOOKUP($P132,class,6)/VLOOKUP($P132,class,4)) -> 9317.502144 | U132: =$R132*(VLOOKUP($P132,class,7)/VLOOKUP($P132,class,4)) -> 29280.04554 | V132: =$R132*(VLOOKUP($P132,class,8)/VLOOKUP($P132,class,4)) -> 19032.4059 | W132: =$R132*(VLOOKUP($P132,class,9)/VLOOKUP($P132,class,4)) -> 2127.852466 | X132: =$R132*(VLOOKUP($P132,class,10)/VLOOKUP($P132,class,4)) -> 290.9619522 | Y132: =$R132*(VLOOKUP($P132,class,11)/VLOOKUP($P132,class,4)) -> 0 | Z132: =$R132*(VLOOKUP($P132,class,12)/VLOOKUP($P132,class,4)) -> 0 | AA132: =$R132*(VLOOKUP($P132,class,13)/VLOOKUP($P132,class,4)) -> 0 | AB132: =$R132*(VLOOKUP($P132,class,14)/VLOOKUP($P132,class,4)) -> 0 | AC132: =$R132*(VLOOKUP($P132,class,15)/VLOOKUP($P132,class,4)) -> 0 | BB132: 132 | BE132: =IF(SUM(BG132:BQ132)=BF132,"","error") ->  | BF132: =BF131/$BF131 -> 1 | BG132: 0.4861402997 | BH132: 0.0921765856 | BI132: 0.2396446933 | BJ132: 0.1502419134 | BK132: 0.02085826746 | BL132: 0.01093824062 | BM132: 0 | BN132: 0 | BO132: 0 | BP132: 0 | BQ132: 0
A133: 133 | B133: 910-OP | C133: Misc Customer Service & Info Exp | F133: 90000 | G133: 25863 | J133: 133 | L133: P | M133: =HLOOKUP("Factor Name",pfactor,4) -> Generation Level Consumption | N133: =IF(MATCH(P133,ref,0)>0,"","matching error") ->  | O133: =HLOOKUP(O131,pfactor,4) -> 65.8 | P133: =HLOOKUP("Class",pfactor,4) -> E02 | R133: =Q131*O133/SUM(O132:O135) -> 230300 | S133: =$R133*(VLOOKUP($P133,class,5)/VLOOKUP($P133,class,4)) -> 99277.74497 | T133: =$R133*(VLOOKUP($P133,class,6)/VLOOKUP($P133,class,4)) -> 20335.51013 | U133: =$R133*(VLOOKUP($P133,class,7)/VLOOKUP($P133,class,4)) -> 61451.51992 | V133: =$R133*(VLOOKUP($P133,class,8)/VLOOKUP($P133,class,4)) -> 43001.10057 | W133: =$R133*(VLOOKUP($P133,class,9)/VLOOKUP($P133,class,4)) -> 5158.866172 | X133: =$R133*(VLOOKUP($P133,class,10)/VLOOKUP($P133,class,4)) -> 1075.258242 | Y133: =$R133*(VLOOKUP($P133,class,11)/VLOOKUP($P133,class,4)) -> 0 | Z133: =$R133*(VLOOKUP($P133,class,12)/VLOOKUP($P133,class,4)) -> 0 | AA133: =$R133*(VLOOKUP($P133,class,13)/VLOOKUP($P133,class,4)) -> 0 | AB133: =$R133*(VLOOKUP($P133,class,14)/VLOOKUP($P133,class,4)) -> 0 | AC133: =$R133*(VLOOKUP($P133,class,15)/VLOOKUP($P133,class,4)) -> 0 | BB133: 133 | BC133: S20 | BD133: Prod & Trans O&M Exp | BF133: =SUM(BG133:BQ133) -> 230210000 | BG133: =S203+S264 -> 104534399.4 | BH133: 19504057.01 | BI133: 59678039.1 | BJ133: 40802095.78 | BK133: 4792787.136 | BL133: 898621.5743 | BM133: 0 | BN133: 0 | BO133: 0 | BP133: 0 | BQ133: 0 | BR133: line 203 + line 264
A134: 134 | C134: Total Customer Information Expenses | J134: 134 | L134: P | M134: =HLOOKUP("Factor Name",pfactor,5) -> Open | N134: =IF(MATCH(P134,ref,0)>0,"","matching error") ->  | O134: =HLOOKUP(O131,pfactor,5) -> 0 | P134: =HLOOKUP("Class",pfactor,5) -> xxx | R134: =Q131*O134/SUM(O132:O135) -> 0 | S134: =$R134*(VLOOKUP($P134,class,5)/VLOOKUP($P134,class,4)) -> 0 | T134: =$R134*(VLOOKUP($P134,class,6)/VLOOKUP($P134,class,4)) -> 0 | U134: =$R134*(VLOOKUP($P134,class,7)/VLOOKUP($P134,class,4)) -> 0 | V134: =$R134*(VLOOKUP($P134,class,8)/VLOOKUP($P134,class,4)) -> 0 | W134: =$R134*(VLOOKUP($P134,class,9)/VLOOKUP($P134,class,4)) -> 0 | X134: =$R134*(VLOOKUP($P134,class,10)/VLOOKUP($P134,class,4)) -> 0 | Y134: =$R134*(VLOOKUP($P134,class,11)/VLOOKUP($P134,class,4)) -> 0 | Z134: =$R134*(VLOOKUP($P134,class,12)/VLOOKUP($P134,class,4)) -> 0 | AA134: =$R134*(VLOOKUP($P134,class,13)/VLOOKUP($P134,class,4)) -> 0 | AB134: =$R134*(VLOOKUP($P134,class,14)/VLOOKUP($P134,class,4)) -> 0 | AC134: =$R134*(VLOOKUP($P134,class,15)/VLOOKUP($P134,class,4)) -> 0 | BB134: 134 | BE134: =IF(SUM(BG134:BQ134)=BF134,"","error") ->  | BF134: =BF133/$BF133 -> 1 | BG134: 0.4540827913 | BH134: 0.0847228922 | BI134: 0.2592330442 | BJ134: 0.1772385899 | BK134: 0.02081919611 | BL134: 0.00390348627 | BM134: 0 | BN134: 0 | BO134: 0 | BP134: 0 | BQ134: 0
A135: 135 | J135: 135 | L135: P | M135: =HLOOKUP("Factor Name",pfactor,6) -> Open | N135: =IF(MATCH(P135,ref,0)>0,"","matching error") ->  | O135: =HLOOKUP(O131,pfactor,6) -> 0 | P135: =HLOOKUP("Class",pfactor,6) -> xxx | R135: =Q131*O135/SUM(O132:O135) -> 0 | S135: =$R135*(VLOOKUP($P135,class,5)/VLOOKUP($P135,class,4)) -> 0 | T135: =$R135*(VLOOKUP($P135,class,6)/VLOOKUP($P135,class,4)) -> 0 | U135: =$R135*(VLOOKUP($P135,class,7)/VLOOKUP($P135,class,4)) -> 0 | V135: =$R135*(VLOOKUP($P135,class,8)/VLOOKUP($P135,class,4)) -> 0 | W135: =$R135*(VLOOKUP($P135,class,9)/VLOOKUP($P135,class,4)) -> 0 | X135: =$R135*(VLOOKUP($P135,class,10)/VLOOKUP($P135,class,4)) -> 0 | Y135: =$R135*(VLOOKUP($P135,class,11)/VLOOKUP($P135,class,4)) -> 0 | Z135: =$R135*(VLOOKUP($P135,class,12)/VLOOKUP($P135,class,4)) -> 0 | AA135: =$R135*(VLOOKUP($P135,class,13)/VLOOKUP($P135,class,4)) -> 0 | AB135: =$R135*(VLOOKUP($P135,class,14)/VLOOKUP($P135,class,4)) -> 0 | AC135: =$R135*(VLOOKUP($P135,class,15)/VLOOKUP($P135,class,4)) -> 0 | BB135: 135 | BC135: S21 | BD135: Labor P/T/D Total | BF135: =SUM(BG135:BQ135) -> 22868087 | BG135: =S1489 -> 11223849.01 | BH135: 2177435.606 | BI135: 5707321.535 | BJ135: 2720938.931 | BK135: 506479.5219 | BL135: 532062.3959 | BM135: 0 | BN135: 0 | BO135: 0 | BP135: 0 | BQ135: 0 | BR135: line 1488
A136: 136 | C136: Sales Expenses | J136: 136 | L136: =C40 -> Total Hydraulic Maintenance | O136: =IF(AND(ROUND($Q136,0)=ROUND($R136,0),ROUND(SUM($S136:$AC136),0)=ROUND($R136,0)),"","crossfoot error") ->  | Q136: =SUM(Q111:Q135) -> 4598000 | R136: 4598000 | S136: 2087872.675 | T136: 389555.8583 | U136: 1191953.537 | V136: 814943.0364 | W136: 95726.6637 | X136: 17948.22987 | Y136: 0 | Z136: 0 | AA136: 0 | AB136: 0 | AC136: 0 | BB136: 136 | BE136: =IF(SUM(BG136:BQ136)=BF136,"","error") ->  | BF136: =BF135/$BF135 -> 1 | BG136: 0.4908083921 | BH136: 0.09521721718 | BI136: 0.2495758187 | BJ136: 0.1189841079 | BK136: 0.02214787454 | BL136: 0.02326658963 | BM136: 0 | BN136: 0 | BO136: 0 | BP136: 0 | BQ136: 0
A137: 137 | B137: 911-OP | C137: Supervision | F137: 0 | G137: 0 | J137: 137 | L137: =C41 -> Total Hydraulic | N137: =IF(AND(ROUND($Q137,0)=ROUND($R137,0),ROUND(SUM($S137:$AC137),0)=ROUND($R137,0)),"","crossfoot error") ->  | Q137: =Q110+Q136 -> 20720000 | R137: 20720000 | S137: 9408595.436 | T137: 1755458.326 | U137: 5371308.675 | V137: 3672383.583 | W137: 431373.7433 | X137: 80880.23552 | Y137: 0 | Z137: 0 | AA137: 0 | AB137: 0 | AC137: 0 | BB137: 137 | BC137: S22 | BD137: Labor O&M excl A&G | BF137: =SUM(BG137:BQ137) -> 27753448 | BG137: =SUM(S1489:S1496) -> 15388552.07 | BH137: 2762758.299 | BI137: 5762932.951 | BJ137: 2744223.375 | BK137: 556112.9639 | BL137: 538868.3427 | BM137: 0 | BN137: 0 | BO137: 0 | BP137: 0 | BQ137: 0 | BR137: Sum lines 1488 ~ 1495
A138: 138 | B138: 912-OP | C138: Demonstrating & Selling Expenses | F138: 8000 | G138: 3863 | J138: 138 | BB138: 138 | BE138: =IF(SUM(BG138:BQ138)=BF138,"","error") ->  | BF138: =BF137/$BF137 -> 1 | BG138: 0.5544735223 | BH138: 0.09954648876 | BI138: 0.2076474588 | BJ138: 0.09887864655 | BK138: 0.02003761709 | BL138: 0.0194162665 | BM138: 0 | BN138: 0 | BO138: 0 | BP138: 0 | BQ138: 0
A139: 139 | B139: 913-OP | C139: Advertising Expenses | F139: 0 | G139: 0 | J139: 139 | K139: =B43 -> 546-OP | L139: =C43 -> Other | M139: =D43 -> Supervision & Engineering | O139: P01 | P139: =IF(MATCH(O139,P_ref,0)>0,"","error matching functional allocator") ->  | Q139: =F43 -> 47000 | BB139: 139 | BC139: S23 | BD139: Corporate Cost Allocator | BF139: =SUM(BG139:BQ139) -> 1000 | BG139: =BG144*250+BG138*250+BG142*250+BG37*250 -> 602.4985871 | BH139: =BH144*250+BH138*250+BH142*250+BH37*250 -> 104.4793686 | BI139: 172.9595837 | BJ139: 86.52579086 | BK139: 18.50841061 | BL139: 15.02825914 | BM139: 0 | BN139: 0 | BO139: 0 | BP139: 0 | BQ139: 0 | BR139: 25% S25, 25% S22, 25% C01, 25% S24
A140: 140 | B140: 916-OP | C140: Misc Sales Expenses | F140: -4000 | G140: -3228 | J140: 140 | L140: P | M140: =HLOOKUP("Factor Name",pfactor,3) -> Coincident Peak | N140: =IF(MATCH(P140,ref,0)>0,"","matching error") ->  | O140: =HLOOKUP(O139,pfactor,3) -> 34.2 | P140: =HLOOKUP("Class",pfactor,3) -> D01 | R140: =Q139*O140/SUM(O140:O143) -> 16074 | S140: =$R140*(VLOOKUP($P140,class,5)/VLOOKUP($P140,class,4)) -> 8010.308297 | T140: =$R140*(VLOOKUP($P140,class,6)/VLOOKUP($P140,class,4)) -> 1251.207431 | U140: =$R140*(VLOOKUP($P140,class,7)/VLOOKUP($P140,class,4)) -> 3931.89183 | V140: =$R140*(VLOOKUP($P140,class,8)/VLOOKUP($P140,class,4)) -> 2555.780221 | W140: =$R140*(VLOOKUP($P140,class,9)/VLOOKUP($P140,class,4)) -> 285.7401883 | X140: =$R140*(VLOOKUP($P140,class,10)/VLOOKUP($P140,class,4)) -> 39.07203357 | Y140: =$R140*(VLOOKUP($P140,class,11)/VLOOKUP($P140,class,4)) -> 0 | Z140: =$R140*(VLOOKUP($P140,class,12)/VLOOKUP($P140,class,4)) -> 0 | AA140: =$R140*(VLOOKUP($P140,class,13)/VLOOKUP($P140,class,4)) -> 0 | AB140: =$R140*(VLOOKUP($P140,class,14)/VLOOKUP($P140,class,4)) -> 0 | AC140: =$R140*(VLOOKUP($P140,class,15)/VLOOKUP($P140,class,4)) -> 0 | BB140: 140 | BF140: =BF139/$BF139 -> 1 | BG140: 0.6024985871 | BH140: 0.1044793686 | BI140: 0.1729595837 | BJ140: 0.08652579086 | BK140: 0.01850841061 | BL140: 0.01502825914 | BM140: 0 | BN140: 0 | BO140: 0 | BP140: 0 | BQ140: 0
A141: 141 | C141: Total Sales Expenses | J141: 141 | L141: P | M141: =HLOOKUP("Factor Name",pfactor,4) -> Generation Level Consumption | N141: =IF(MATCH(P141,ref,0)>0,"","matching error") ->  | O141: =HLOOKUP(O139,pfactor,4) -> 65.8 | P141: =HLOOKUP("Class",pfactor,4) -> E02 | R141: =Q139*O141/SUM(O140:O143) -> 30926 | S141: =$R141*(VLOOKUP($P141,class,5)/VLOOKUP($P141,class,4)) -> 13331.5829 | T141: =$R141*(VLOOKUP($P141,class,6)/VLOOKUP($P141,class,4)) -> 2730.768503 | U141: =$R141*(VLOOKUP($P141,class,7)/VLOOKUP($P141,class,4)) -> 8252.061247 | V141: =$R141*(VLOOKUP($P141,class,8)/VLOOKUP($P141,class,4)) -> 5774.433505 | W141: =$R141*(VLOOKUP($P141,class,9)/VLOOKUP($P141,class,4)) -> 692.7620288 | X141: =$R141*(VLOOKUP($P141,class,10)/VLOOKUP($P141,class,4)) -> 144.3918211 | Y141: =$R141*(VLOOKUP($P141,class,11)/VLOOKUP($P141,class,4)) -> 0 | Z141: =$R141*(VLOOKUP($P141,class,12)/VLOOKUP($P141,class,4)) -> 0 | AA141: =$R141*(VLOOKUP($P141,class,13)/VLOOKUP($P141,class,4)) -> 0 | AB141: =$R141*(VLOOKUP($P141,class,14)/VLOOKUP($P141,class,4)) -> 0 | AC141: =$R141*(VLOOKUP($P141,class,15)/VLOOKUP($P141,class,4)) -> 0 | BB141: 141 | BC141: S24 | BD141: Net P/T/D Plant | BF141: =SUM(BG141:BQ141) -> 1142039000 | BG141: =S893+S932+S1089+S1168+S1207+S1364 -> 562379072.5 | BH141: 109836915 | BI141: 286912632.3 | BJ141: 134349636.9 | BK141: 25567973.72 | BL141: 22992769.49 | BM141: 0 | BN141: 0 | BO141: 0 | BP141: 0 | BQ141: 0 | BR141: Sum lines 893, 932, 1089, 1168, 1207, 1364
A142: 142 | J142: 142 | L142: P | M142: =HLOOKUP("Factor Name",pfactor,5) -> Open | N142: =IF(MATCH(P142,ref,0)>0,"","matching error") ->  | O142: =HLOOKUP(O139,pfactor,5) -> 0 | P142: =HLOOKUP("Class",pfactor,5) -> xxx | R142: =Q139*O142/SUM(O140:O143) -> 0 | S142: =$R142*(VLOOKUP($P142,class,5)/VLOOKUP($P142,class,4)) -> 0 | T142: =$R142*(VLOOKUP($P142,class,6)/VLOOKUP($P142,class,4)) -> 0 | U142: =$R142*(VLOOKUP($P142,class,7)/VLOOKUP($P142,class,4)) -> 0 | V142: =$R142*(VLOOKUP($P142,class,8)/VLOOKUP($P142,class,4)) -> 0 | W142: =$R142*(VLOOKUP($P142,class,9)/VLOOKUP($P142,class,4)) -> 0 | X142: =$R142*(VLOOKUP($P142,class,10)/VLOOKUP($P142,class,4)) -> 0 | Y142: =$R142*(VLOOKUP($P142,class,11)/VLOOKUP($P142,class,4)) -> 0 | Z142: =$R142*(VLOOKUP($P142,class,12)/VLOOKUP($P142,class,4)) -> 0 | AA142: =$R142*(VLOOKUP($P142,class,13)/VLOOKUP($P142,class,4)) -> 0 | AB142: =$R142*(VLOOKUP($P142,class,14)/VLOOKUP($P142,class,4)) -> 0 | AC142: =$R142*(VLOOKUP($P142,class,15)/VLOOKUP($P142,class,4)) -> 0 | BB142: 142 | BF142: =BF141/$BF141 -> 1 | BG142: 0.4924342098 | BH142: 0.09617615076 | BI142: 0.2512284014 | BJ142: 0.1176401479 | BK142: 0.02238800402 | BL142: 0.02013308608 | BM142: 0 | BN142: 0 | BO142: 0 | BP142: 0 | BQ142: 0
A143: 143 | C143: Subtotal Expenses | J143: 143 | L143: P | M143: =HLOOKUP("Factor Name",pfactor,6) -> Open | N143: =IF(MATCH(P143,ref,0)>0,"","matching error") ->  | O143: =HLOOKUP(O139,pfactor,6) -> 0 | P143: =HLOOKUP("Class",pfactor,6) -> xxx | R143: =Q139*O143/SUM(O140:O143) -> 0 | S143: =$R143*(VLOOKUP($P143,class,5)/VLOOKUP($P143,class,4)) -> 0 | T143: =$R143*(VLOOKUP($P143,class,6)/VLOOKUP($P143,class,4)) -> 0 | U143: =$R143*(VLOOKUP($P143,class,7)/VLOOKUP($P143,class,4)) -> 0 | V143: =$R143*(VLOOKUP($P143,class,8)/VLOOKUP($P143,class,4)) -> 0 | W143: =$R143*(VLOOKUP($P143,class,9)/VLOOKUP($P143,class,4)) -> 0 | X143: =$R143*(VLOOKUP($P143,class,10)/VLOOKUP($P143,class,4)) -> 0 | Y143: =$R143*(VLOOKUP($P143,class,11)/VLOOKUP($P143,class,4)) -> 0 | Z143: =$R143*(VLOOKUP($P143,class,12)/VLOOKUP($P143,class,4)) -> 0 | AA143: =$R143*(VLOOKUP($P143,class,13)/VLOOKUP($P143,class,4)) -> 0 | AB143: =$R143*(VLOOKUP($P143,class,14)/VLOOKUP($P143,class,4)) -> 0 | AC143: =$R143*(VLOOKUP($P143,class,15)/VLOOKUP($P143,class,4)) -> 0 | BB143: 143 | BC143: S25 | BD143: O&M excl Resource/Labor/A&G | BF143: =SUM(BG143:BQ143) -> 48302552 | BG143: =S369-SUM(S16:S20,S144:S148,S188:S192,S198:S202,S226:S229,S322:S323)-S351-BG137 -> 24468298.34 | BH143: =T369-SUM(T16:T20,T144:T148,T188:T192,T198:T202,T226:T229,T322:T323)-T351-BH137 -> 4918142.196 | BI143: 10701883.85 | BJ143: 6254737.474 | BK143: 1033797.152 | BL143: 925692.9797 | BM143: 0 | BN143: 0 | BO143: 0 | BP143: 0 | BQ143: 0 | BR143: lines 369 - (16~20, 144~148, 188~192, 198~202, 226~229, 323, 339)-S22
A144: 144 | J144: 144 | K144: =B44 -> 547-OP | L144: =C44 -> Other | M144: =D44 -> Fuel | O144: P01 | P144: =IF(MATCH(O144,P_ref,0)>0,"","error matching functional allocator") ->  | Q144: =F44 -> 35870000 | BB144: 144 | BF144: =BF143/$BF143 -> 1 | BG144: 0.5065632628 | BH144: 0.1018195104 | BI144: 0.2215593879 | BJ144: 0.1294908284 | BK144: 0.0214025369 | BL144: 0.01916447354 | BM144: 0 | BN144: 0 | BO144: 0 | BP144: 0 | BQ144: 0
A145: 145 | C145: Administrative & General Expenses | J145: 145 | L145: P | M145: =HLOOKUP("Factor Name",pfactor,3) -> Coincident Peak | N145: =IF(MATCH(P145,ref,0)>0,"","matching error") ->  | O145: =HLOOKUP(O144,pfactor,3) -> 34.2 | P145: =HLOOKUP("Class",pfactor,3) -> D01 | R145: =Q144*O145/SUM(O145:O148) -> 12267540 | S145: =$R145*(VLOOKUP($P145,class,5)/VLOOKUP($P145,class,4)) -> 6113399.119 | T145: =$R145*(VLOOKUP($P145,class,6)/VLOOKUP($P145,class,4)) -> 954910.8626 | U145: =$R145*(VLOOKUP($P145,class,7)/VLOOKUP($P145,class,4)) -> 3000786.381 | V145: =$R145*(VLOOKUP($P145,class,8)/VLOOKUP($P145,class,4)) -> 1950549.713 | W145: =$R145*(VLOOKUP($P145,class,9)/VLOOKUP($P145,class,4)) -> 218074.4799 | X145: =$R145*(VLOOKUP($P145,class,10)/VLOOKUP($P145,class,4)) -> 29819.4435 | Y145: =$R145*(VLOOKUP($P145,class,11)/VLOOKUP($P145,class,4)) -> 0 | Z145: =$R145*(VLOOKUP($P145,class,12)/VLOOKUP($P145,class,4)) -> 0 | AA145: =$R145*(VLOOKUP($P145,class,13)/VLOOKUP($P145,class,4)) -> 0 | AB145: =$R145*(VLOOKUP($P145,class,14)/VLOOKUP($P145,class,4)) -> 0 | AC145: =$R145*(VLOOKUP($P145,class,15)/VLOOKUP($P145,class,4)) -> 0 | BB145: 145 | BC145: S26 | BD145: Open | BF145: =SUM(BG145:BQ145) -> 0 | BR145: Open
A146: 146 | B146: 920-OP | C146: Admin & General Salaries | F146: 17504000 | G146: 9867668 | J146: 146 | L146: P | M146: =HLOOKUP("Factor Name",pfactor,4) -> Generation Level Consumption | N146: =IF(MATCH(P146,ref,0)>0,"","matching error") ->  | O146: =HLOOKUP(O144,pfactor,4) -> 65.8 | P146: =HLOOKUP("Class",pfactor,4) -> E02 | R146: =Q144*O146/SUM(O145:O148) -> 23602460 | S146: =$R146*(VLOOKUP($P146,class,5)/VLOOKUP($P146,class,4)) -> 10174550.61 | T146: =$R146*(VLOOKUP($P146,class,6)/VLOOKUP($P146,class,4)) -> 2084099.281 | U146: =$R146*(VLOOKUP($P146,class,7)/VLOOKUP($P146,class,4)) -> 6297902.913 | V146: =$R146*(VLOOKUP($P146,class,8)/VLOOKUP($P146,class,4)) -> 4406998.507 | W146: =$R146*(VLOOKUP($P146,class,9)/VLOOKUP($P146,class,4)) -> 528710.0845 | X146: =$R146*(VLOOKUP($P146,class,10)/VLOOKUP($P146,class,4)) -> 110198.609 | Y146: =$R146*(VLOOKUP($P146,class,11)/VLOOKUP($P146,class,4)) -> 0 | Z146: =$R146*(VLOOKUP($P146,class,12)/VLOOKUP($P146,class,4)) -> 0 | AA146: =$R146*(VLOOKUP($P146,class,13)/VLOOKUP($P146,class,4)) -> 0 | AB146: =$R146*(VLOOKUP($P146,class,14)/VLOOKUP($P146,class,4)) -> 0 | AC146: =$R146*(VLOOKUP($P146,class,15)/VLOOKUP($P146,class,4)) -> 0 | BB146: 146 | BC146: S27 | BD146: Open | BF146: =SUM(BG146:BQ146) -> 0 | BR146: Open
A147: 147 | B147: 921-OP | C147: Office Supplies & Expenses | F147: 2748000 | G147: 35101 | J147: 147 | L147: P | M147: =HLOOKUP("Factor Name",pfactor,5) -> Open | N147: =IF(MATCH(P147,ref,0)>0,"","matching error") ->  | O147: =HLOOKUP(O144,pfactor,5) -> 0 | P147: =HLOOKUP("Class",pfactor,5) -> xxx | R147: =Q144*O147/SUM(O145:O148) -> 0 | S147: =$R147*(VLOOKUP($P147,class,5)/VLOOKUP($P147,class,4)) -> 0 | T147: =$R147*(VLOOKUP($P147,class,6)/VLOOKUP($P147,class,4)) -> 0 | U147: =$R147*(VLOOKUP($P147,class,7)/VLOOKUP($P147,class,4)) -> 0 | V147: =$R147*(VLOOKUP($P147,class,8)/VLOOKUP($P147,class,4)) -> 0 | W147: =$R147*(VLOOKUP($P147,class,9)/VLOOKUP($P147,class,4)) -> 0 | X147: =$R147*(VLOOKUP($P147,class,10)/VLOOKUP($P147,class,4)) -> 0 | Y147: =$R147*(VLOOKUP($P147,class,11)/VLOOKUP($P147,class,4)) -> 0 | Z147: =$R147*(VLOOKUP($P147,class,12)/VLOOKUP($P147,class,4)) -> 0 | AA147: =$R147*(VLOOKUP($P147,class,13)/VLOOKUP($P147,class,4)) -> 0 | AB147: =$R147*(VLOOKUP($P147,class,14)/VLOOKUP($P147,class,4)) -> 0 | AC147: =$R147*(VLOOKUP($P147,class,15)/VLOOKUP($P147,class,4)) -> 0 | BB147: 147
A148: 148 | B148: 922-OP | C148: Admin Expenses Transferred - CR | F148: -46000 | G148: 3336 | J148: 148 | L148: P | M148: =HLOOKUP("Factor Name",pfactor,6) -> Open | N148: =IF(MATCH(P148,ref,0)>0,"","matching error") ->  | O148: =HLOOKUP(O144,pfactor,6) -> 0 | P148: =HLOOKUP("Class",pfactor,6) -> xxx | R148: =Q144*O148/SUM(O145:O148) -> 0 | S148: =$R148*(VLOOKUP($P148,class,5)/VLOOKUP($P148,class,4)) -> 0 | T148: =$R148*(VLOOKUP($P148,class,6)/VLOOKUP($P148,class,4)) -> 0 | U148: =$R148*(VLOOKUP($P148,class,7)/VLOOKUP($P148,class,4)) -> 0 | V148: =$R148*(VLOOKUP($P148,class,8)/VLOOKUP($P148,class,4)) -> 0 | W148: =$R148*(VLOOKUP($P148,class,9)/VLOOKUP($P148,class,4)) -> 0 | X148: =$R148*(VLOOKUP($P148,class,10)/VLOOKUP($P148,class,4)) -> 0 | Y148: =$R148*(VLOOKUP($P148,class,11)/VLOOKUP($P148,class,4)) -> 0 | Z148: =$R148*(VLOOKUP($P148,class,12)/VLOOKUP($P148,class,4)) -> 0 | AA148: =$R148*(VLOOKUP($P148,class,13)/VLOOKUP($P148,class,4)) -> 0 | AB148: =$R148*(VLOOKUP($P148,class,14)/VLOOKUP($P148,class,4)) -> 0 | AC148: =$R148*(VLOOKUP($P148,class,15)/VLOOKUP($P148,class,4)) -> 0 | BB148: 148
A149: 149 | B149: 923-OP | C149: Outside Services Employed | F149: 9717000 | G149: 1952 | J149: 149 | K149: =B45 -> 548-OP | L149: =C45 -> Other | M149: =D45 -> Generation Expenses | O149: P01 | P149: =IF(MATCH(O149,P_ref,0)>0,"","error matching functional allocator") ->  | Q149: =F45 -> 2596000 | BB149: 149
A150: 150 | B150: 924-OP | C150: Property Insurance Premium | F150: 867000 | G150: 0 | J150: 150 | L150: P | M150: =HLOOKUP("Factor Name",pfactor,3) -> Coincident Peak | N150: =IF(MATCH(P150,ref,0)>0,"","matching error") ->  | O150: =HLOOKUP(O149,pfactor,3) -> 34.2 | P150: =HLOOKUP("Class",pfactor,3) -> D01 | R150: =Q149*O150/SUM(O150:O153) -> 887832 | S150: =$R150*(VLOOKUP($P150,class,5)/VLOOKUP($P150,class,4)) -> 442441.7093 | T150: =$R150*(VLOOKUP($P150,class,6)/VLOOKUP($P150,class,4)) -> 69109.24448 | U150: =$R150*(VLOOKUP($P150,class,7)/VLOOKUP($P150,class,4)) -> 217174.2806 | V150: =$R150*(VLOOKUP($P150,class,8)/VLOOKUP($P150,class,4)) -> 141166.0735 | W150: =$R150*(VLOOKUP($P150,class,9)/VLOOKUP($P150,class,4)) -> 15782.58572 | X150: =$R150*(VLOOKUP($P150,class,10)/VLOOKUP($P150,class,4)) -> 2158.106365 | Y150: =$R150*(VLOOKUP($P150,class,11)/VLOOKUP($P150,class,4)) -> 0 | Z150: =$R150*(VLOOKUP($P150,class,12)/VLOOKUP($P150,class,4)) -> 0 | AA150: =$R150*(VLOOKUP($P150,class,13)/VLOOKUP($P150,class,4)) -> 0 | AB150: =$R150*(VLOOKUP($P150,class,14)/VLOOKUP($P150,class,4)) -> 0 | AC150: =$R150*(VLOOKUP($P150,class,15)/VLOOKUP($P150,class,4)) -> 0 | BB150: 150
A151: 151 | B151: 925-OP | C151: Injuries & Damages | F151: 2601000 | G151: 228077 | J151: 151 | L151: P | M151: =HLOOKUP("Factor Name",pfactor,4) -> Generation Level Consumption | N151: =IF(MATCH(P151,ref,0)>0,"","matching error") ->  | O151: =HLOOKUP(O149,pfactor,4) -> 65.8 | P151: =HLOOKUP("Class",pfactor,4) -> E02 | R151: =Q149*O151/SUM(O150:O153) -> 1708168 | S151: =$R151*(VLOOKUP($P151,class,5)/VLOOKUP($P151,class,4)) -> 736357.217 | T151: =$R151*(VLOOKUP($P151,class,6)/VLOOKUP($P151,class,4)) -> 150831.3837 | U151: =$R151*(VLOOKUP($P151,class,7)/VLOOKUP($P151,class,4)) -> 455794.7021 | V151: =$R151*(VLOOKUP($P151,class,8)/VLOOKUP($P151,class,4)) -> 318945.3059 | W151: =$R151*(VLOOKUP($P151,class,9)/VLOOKUP($P151,class,4)) -> 38264.04738 | X151: =$R151*(VLOOKUP($P151,class,10)/VLOOKUP($P151,class,4)) -> 7975.343992 | Y151: =$R151*(VLOOKUP($P151,class,11)/VLOOKUP($P151,class,4)) -> 0 | Z151: =$R151*(VLOOKUP($P151,class,12)/VLOOKUP($P151,class,4)) -> 0 | AA151: =$R151*(VLOOKUP($P151,class,13)/VLOOKUP($P151,class,4)) -> 0 | AB151: =$R151*(VLOOKUP($P151,class,14)/VLOOKUP($P151,class,4)) -> 0 | AC151: =$R151*(VLOOKUP($P151,class,15)/VLOOKUP($P151,class,4)) -> 0 | BB151: 151
A152: 152 | B152: 926-OP | C152: Employee Pension & Benefits | F152: 867000 | G152: 0 | J152: 152 | L152: P | M152: =HLOOKUP("Factor Name",pfactor,5) -> Open | N152: =IF(MATCH(P152,ref,0)>0,"","matching error") ->  | O152: =HLOOKUP(O149,pfactor,5) -> 0 | P152: =HLOOKUP("Class",pfactor,5) -> xxx | R152: =Q149*O152/SUM(O150:O153) -> 0 | S152: =$R152*(VLOOKUP($P152,class,5)/VLOOKUP($P152,class,4)) -> 0 | T152: =$R152*(VLOOKUP($P152,class,6)/VLOOKUP($P152,class,4)) -> 0 | U152: =$R152*(VLOOKUP($P152,class,7)/VLOOKUP($P152,class,4)) -> 0 | V152: =$R152*(VLOOKUP($P152,class,8)/VLOOKUP($P152,class,4)) -> 0 | W152: =$R152*(VLOOKUP($P152,class,9)/VLOOKUP($P152,class,4)) -> 0 | X152: =$R152*(VLOOKUP($P152,class,10)/VLOOKUP($P152,class,4)) -> 0 | Y152: =$R152*(VLOOKUP($P152,class,11)/VLOOKUP($P152,class,4)) -> 0 | Z152: =$R152*(VLOOKUP($P152,class,12)/VLOOKUP($P152,class,4)) -> 0 | AA152: =$R152*(VLOOKUP($P152,class,13)/VLOOKUP($P152,class,4)) -> 0 | AB152: =$R152*(VLOOKUP($P152,class,14)/VLOOKUP($P152,class,4)) -> 0 | AC152: =$R152*(VLOOKUP($P152,class,15)/VLOOKUP($P152,class,4)) -> 0 | BB152: 152
A153: 153 | B153: 927-OP | C153: Franchise Requirements | F153: 0 | G153: 0 | J153: 153 | L153: P | M153: =HLOOKUP("Factor Name",pfactor,6) -> Open | N153: =IF(MATCH(P153,ref,0)>0,"","matching error") ->  | O153: =HLOOKUP(O149,pfactor,6) -> 0 | P153: =HLOOKUP("Class",pfactor,6) -> xxx | R153: =Q149*O153/SUM(O150:O153) -> 0 | S153: =$R153*(VLOOKUP($P153,class,5)/VLOOKUP($P153,class,4)) -> 0 | T153: =$R153*(VLOOKUP($P153,class,6)/VLOOKUP($P153,class,4)) -> 0 | U153: =$R153*(VLOOKUP($P153,class,7)/VLOOKUP($P153,class,4)) -> 0 | V153: =$R153*(VLOOKUP($P153,class,8)/VLOOKUP($P153,class,4)) -> 0 | W153: =$R153*(VLOOKUP($P153,class,9)/VLOOKUP($P153,class,4)) -> 0 | X153: =$R153*(VLOOKUP($P153,class,10)/VLOOKUP($P153,class,4)) -> 0 | Y153: =$R153*(VLOOKUP($P153,class,11)/VLOOKUP($P153,class,4)) -> 0 | Z153: =$R153*(VLOOKUP($P153,class,12)/VLOOKUP($P153,class,4)) -> 0 | AA153: =$R153*(VLOOKUP($P153,class,13)/VLOOKUP($P153,class,4)) -> 0 | AB153: =$R153*(VLOOKUP($P153,class,14)/VLOOKUP($P153,class,4)) -> 0 | AC153: =$R153*(VLOOKUP($P153,class,15)/VLOOKUP($P153,class,4)) -> 0 | BB153: 153
A154: 154 | B154: 928-OP | C154: Regulatory Commission Expenses | F154: 3759000 | G154: 688824 | J154: 154 | K154: =B46 -> 549-OP | L154: =C46 -> Other | M154: =D46 -> Miscellaneous Power Exp. | O154: P01 | P154: =IF(MATCH(O154,P_ref,0)>0,"","error matching functional allocator") ->  | Q154: =F46 -> 302000 | BB154: 154
A155: 155 | B155: 930-OP | C155: Miscellaneous & General Expense | F155: 443000 | G155: 118245 | J155: 155 | L155: P | M155: =HLOOKUP("Factor Name",pfactor,3) -> Coincident Peak | N155: =IF(MATCH(P155,ref,0)>0,"","matching error") ->  | O155: =HLOOKUP(O154,pfactor,3) -> 34.2 | P155: =HLOOKUP("Class",pfactor,3) -> D01 | R155: =Q154*O155/SUM(O155:O158) -> 103284 | S155: =$R155*(VLOOKUP($P155,class,5)/VLOOKUP($P155,class,4)) -> 51470.49161 | T155: =$R155*(VLOOKUP($P155,class,6)/VLOOKUP($P155,class,4)) -> 8039.673279 | U155: =$R155*(VLOOKUP($P155,class,7)/VLOOKUP($P155,class,4)) -> 25264.49644 | V155: =$R155*(VLOOKUP($P155,class,8)/VLOOKUP($P155,class,4)) -> 16422.24738 | W155: =$R155*(VLOOKUP($P155,class,9)/VLOOKUP($P155,class,4)) -> 1836.032699 | X155: =$R155*(VLOOKUP($P155,class,10)/VLOOKUP($P155,class,4)) -> 251.0585987 | Y155: =$R155*(VLOOKUP($P155,class,11)/VLOOKUP($P155,class,4)) -> 0 | Z155: =$R155*(VLOOKUP($P155,class,12)/VLOOKUP($P155,class,4)) -> 0 | AA155: =$R155*(VLOOKUP($P155,class,13)/VLOOKUP($P155,class,4)) -> 0 | AB155: =$R155*(VLOOKUP($P155,class,14)/VLOOKUP($P155,class,4)) -> 0 | AC155: =$R155*(VLOOKUP($P155,class,15)/VLOOKUP($P155,class,4)) -> 0 | BB155: 155
A156: 156 | B156: 931-OP | C156: Rents | F156: 727000 | G156: 0 | J156: 156 | L156: P | M156: =HLOOKUP("Factor Name",pfactor,4) -> Generation Level Consumption | N156: =IF(MATCH(P156,ref,0)>0,"","matching error") ->  | O156: =HLOOKUP(O154,pfactor,4) -> 65.8 | P156: =HLOOKUP("Class",pfactor,4) -> E02 | R156: =Q154*O156/SUM(O155:O158) -> 198716 | S156: =$R156*(VLOOKUP($P156,class,5)/VLOOKUP($P156,class,4)) -> 85662.51137 | T156: =$R156*(VLOOKUP($P156,class,6)/VLOOKUP($P156,class,4)) -> 17546.64017 | U156: =$R156*(VLOOKUP($P156,class,7)/VLOOKUP($P156,class,4)) -> 53023.88291 | V156: =$R156*(VLOOKUP($P156,class,8)/VLOOKUP($P156,class,4)) -> 37103.80678 | W156: =$R156*(VLOOKUP($P156,class,9)/VLOOKUP($P156,class,4)) -> 4451.364525 | X156: =$R156*(VLOOKUP($P156,class,10)/VLOOKUP($P156,class,4)) -> 927.7942549 | Y156: =$R156*(VLOOKUP($P156,class,11)/VLOOKUP($P156,class,4)) -> 0 | Z156: =$R156*(VLOOKUP($P156,class,12)/VLOOKUP($P156,class,4)) -> 0 | AA156: =$R156*(VLOOKUP($P156,class,13)/VLOOKUP($P156,class,4)) -> 0 | AB156: =$R156*(VLOOKUP($P156,class,14)/VLOOKUP($P156,class,4)) -> 0 | AC156: =$R156*(VLOOKUP($P156,class,15)/VLOOKUP($P156,class,4)) -> 0 | BB156: 156
A157: 157 | B157: 935-MT | C157: Maintenance of General Plant | F157: 5293000 | G157: 987017 | J157: 157 | L157: P | M157: =HLOOKUP("Factor Name",pfactor,5) -> Open | N157: =IF(MATCH(P157,ref,0)>0,"","matching error") ->  | O157: =HLOOKUP(O154,pfactor,5) -> 0 | P157: =HLOOKUP("Class",pfactor,5) -> xxx | R157: =Q154*O157/SUM(O155:O158) -> 0 | S157: =$R157*(VLOOKUP($P157,class,5)/VLOOKUP($P157,class,4)) -> 0 | T157: =$R157*(VLOOKUP($P157,class,6)/VLOOKUP($P157,class,4)) -> 0 | U157: =$R157*(VLOOKUP($P157,class,7)/VLOOKUP($P157,class,4)) -> 0 | V157: =$R157*(VLOOKUP($P157,class,8)/VLOOKUP($P157,class,4)) -> 0 | W157: =$R157*(VLOOKUP($P157,class,9)/VLOOKUP($P157,class,4)) -> 0 | X157: =$R157*(VLOOKUP($P157,class,10)/VLOOKUP($P157,class,4)) -> 0 | Y157: =$R157*(VLOOKUP($P157,class,11)/VLOOKUP($P157,class,4)) -> 0 | Z157: =$R157*(VLOOKUP($P157,class,12)/VLOOKUP($P157,class,4)) -> 0 | AA157: =$R157*(VLOOKUP($P157,class,13)/VLOOKUP($P157,class,4)) -> 0 | AB157: =$R157*(VLOOKUP($P157,class,14)/VLOOKUP($P157,class,4)) -> 0 | AC157: =$R157*(VLOOKUP($P157,class,15)/VLOOKUP($P157,class,4)) -> 0 | BB157: 157
A158: 158 | C158: Total Administrative & General Expenses | J158: 158 | L158: P | M158: =HLOOKUP("Factor Name",pfactor,6) -> Open | N158: =IF(MATCH(P158,ref,0)>0,"","matching error") ->  | O158: =HLOOKUP(O154,pfactor,6) -> 0 | P158: =HLOOKUP("Class",pfactor,6) -> xxx | R158: =Q154*O158/SUM(O155:O158) -> 0 | S158: =$R158*(VLOOKUP($P158,class,5)/VLOOKUP($P158,class,4)) -> 0 | T158: =$R158*(VLOOKUP($P158,class,6)/VLOOKUP($P158,class,4)) -> 0 | U158: =$R158*(VLOOKUP($P158,class,7)/VLOOKUP($P158,class,4)) -> 0 | V158: =$R158*(VLOOKUP($P158,class,8)/VLOOKUP($P158,class,4)) -> 0 | W158: =$R158*(VLOOKUP($P158,class,9)/VLOOKUP($P158,class,4)) -> 0 | X158: =$R158*(VLOOKUP($P158,class,10)/VLOOKUP($P158,class,4)) -> 0 | Y158: =$R158*(VLOOKUP($P158,class,11)/VLOOKUP($P158,class,4)) -> 0 | Z158: =$R158*(VLOOKUP($P158,class,12)/VLOOKUP($P158,class,4)) -> 0 | AA158: =$R158*(VLOOKUP($P158,class,13)/VLOOKUP($P158,class,4)) -> 0 | AB158: =$R158*(VLOOKUP($P158,class,14)/VLOOKUP($P158,class,4)) -> 0 | AC158: =$R158*(VLOOKUP($P158,class,15)/VLOOKUP($P158,class,4)) -> 0 | BB158: 158
A159: 159 | J159: 159 | K159: =B47 -> 550-OP | L159: =C47 -> Other | M159: =D47 -> Rents | O159: P01 | P159: =IF(MATCH(O159,P_ref,0)>0,"","error matching functional allocator") ->  | Q159: =F47 -> -21000 | BB159: 159
A160: 160 | C160: Total Operating & Maintenance Expenses | J160: 160 | L160: P | M160: =HLOOKUP("Factor Name",pfactor,3) -> Coincident Peak | N160: =IF(MATCH(P160,ref,0)>0,"","matching error") ->  | O160: =HLOOKUP(O159,pfactor,3) -> 34.2 | P160: =HLOOKUP("Class",pfactor,3) -> D01 | R160: =Q159*O160/SUM(O160:O163) -> -7182 | S160: =$R160*(VLOOKUP($P160,class,5)/VLOOKUP($P160,class,4)) -> -3579.07392 | T160: =$R160*(VLOOKUP($P160,class,6)/VLOOKUP($P160,class,4)) -> -559.0501287 | U160: =$R160*(VLOOKUP($P160,class,7)/VLOOKUP($P160,class,4)) -> -1756.802732 | V160: =$R160*(VLOOKUP($P160,class,8)/VLOOKUP($P160,class,4)) -> -1141.944354 | W160: =$R160*(VLOOKUP($P160,class,9)/VLOOKUP($P160,class,4)) -> -127.6711479 | X160: =$R160*(VLOOKUP($P160,class,10)/VLOOKUP($P160,class,4)) -> -17.45771713 | Y160: =$R160*(VLOOKUP($P160,class,11)/VLOOKUP($P160,class,4)) -> 0 | Z160: =$R160*(VLOOKUP($P160,class,12)/VLOOKUP($P160,class,4)) -> 0 | AA160: =$R160*(VLOOKUP($P160,class,13)/VLOOKUP($P160,class,4)) -> 0 | AB160: =$R160*(VLOOKUP($P160,class,14)/VLOOKUP($P160,class,4)) -> 0 | AC160: =$R160*(VLOOKUP($P160,class,15)/VLOOKUP($P160,class,4)) -> 0 | BB160: 160
A161: 161 | J161: 161 | L161: P | M161: =HLOOKUP("Factor Name",pfactor,4) -> Generation Level Consumption | N161: =IF(MATCH(P161,ref,0)>0,"","matching error") ->  | O161: =HLOOKUP(O159,pfactor,4) -> 65.8 | P161: =HLOOKUP("Class",pfactor,4) -> E02 | R161: =Q159*O161/SUM(O160:O163) -> -13818 | S161: =$R161*(VLOOKUP($P161,class,5)/VLOOKUP($P161,class,4)) -> -5956.664698 | T161: =$R161*(VLOOKUP($P161,class,6)/VLOOKUP($P161,class,4)) -> -1220.130608 | U161: =$R161*(VLOOKUP($P161,class,7)/VLOOKUP($P161,class,4)) -> -3687.091195 | V161: =$R161*(VLOOKUP($P161,class,8)/VLOOKUP($P161,class,4)) -> -2580.066034 | W161: =$R161*(VLOOKUP($P161,class,9)/VLOOKUP($P161,class,4)) -> -309.5319703 | X161: =$R161*(VLOOKUP($P161,class,10)/VLOOKUP($P161,class,4)) -> -64.51549455 | Y161: =$R161*(VLOOKUP($P161,class,11)/VLOOKUP($P161,class,4)) -> 0 | Z161: =$R161*(VLOOKUP($P161,class,12)/VLOOKUP($P161,class,4)) -> 0 | AA161: =$R161*(VLOOKUP($P161,class,13)/VLOOKUP($P161,class,4)) -> 0 | AB161: =$R161*(VLOOKUP($P161,class,14)/VLOOKUP($P161,class,4)) -> 0 | AC161: =$R161*(VLOOKUP($P161,class,15)/VLOOKUP($P161,class,4)) -> 0 | BB161: 161
A162: 162 | B162: Taxes Other Than Income Taxes | J162: 162 | L162: P | M162: =HLOOKUP("Factor Name",pfactor,5) -> Open | N162: =IF(MATCH(P162,ref,0)>0,"","matching error") ->  | O162: =HLOOKUP(O159,pfactor,5) -> 0 | P162: =HLOOKUP("Class",pfactor,5) -> xxx | R162: =Q159*O162/SUM(O160:O163) -> 0 | S162: =$R162*(VLOOKUP($P162,class,5)/VLOOKUP($P162,class,4)) -> 0 | T162: =$R162*(VLOOKUP($P162,class,6)/VLOOKUP($P162,class,4)) -> 0 | U162: =$R162*(VLOOKUP($P162,class,7)/VLOOKUP($P162,class,4)) -> 0 | V162: =$R162*(VLOOKUP($P162,class,8)/VLOOKUP($P162,class,4)) -> 0 | W162: =$R162*(VLOOKUP($P162,class,9)/VLOOKUP($P162,class,4)) -> 0 | X162: =$R162*(VLOOKUP($P162,class,10)/VLOOKUP($P162,class,4)) -> 0 | Y162: =$R162*(VLOOKUP($P162,class,11)/VLOOKUP($P162,class,4)) -> 0 | Z162: =$R162*(VLOOKUP($P162,class,12)/VLOOKUP($P162,class,4)) -> 0 | AA162: =$R162*(VLOOKUP($P162,class,13)/VLOOKUP($P162,class,4)) -> 0 | AB162: =$R162*(VLOOKUP($P162,class,14)/VLOOKUP($P162,class,4)) -> 0 | AC162: =$R162*(VLOOKUP($P162,class,15)/VLOOKUP($P162,class,4)) -> 0 | BB162: 162
A163: 163 | B163: Property | C163: -Production | F163: 7229000 | J163: 163 | L163: P | M163: =HLOOKUP("Factor Name",pfactor,6) -> Open | N163: =IF(MATCH(P163,ref,0)>0,"","matching error") ->  | O163: =HLOOKUP(O159,pfactor,6) -> 0 | P163: =HLOOKUP("Class",pfactor,6) -> xxx | R163: =Q159*O163/SUM(O160:O163) -> 0 | S163: =$R163*(VLOOKUP($P163,class,5)/VLOOKUP($P163,class,4)) -> 0 | T163: =$R163*(VLOOKUP($P163,class,6)/VLOOKUP($P163,class,4)) -> 0 | U163: =$R163*(VLOOKUP($P163,class,7)/VLOOKUP($P163,class,4)) -> 0 | V163: =$R163*(VLOOKUP($P163,class,8)/VLOOKUP($P163,class,4)) -> 0 | W163: =$R163*(VLOOKUP($P163,class,9)/VLOOKUP($P163,class,4)) -> 0 | X163: =$R163*(VLOOKUP($P163,class,10)/VLOOKUP($P163,class,4)) -> 0 | Y163: =$R163*(VLOOKUP($P163,class,11)/VLOOKUP($P163,class,4)) -> 0 | Z163: =$R163*(VLOOKUP($P163,class,12)/VLOOKUP($P163,class,4)) -> 0 | AA163: =$R163*(VLOOKUP($P163,class,13)/VLOOKUP($P163,class,4)) -> 0 | AB163: =$R163*(VLOOKUP($P163,class,14)/VLOOKUP($P163,class,4)) -> 0 | AC163: =$R163*(VLOOKUP($P163,class,15)/VLOOKUP($P163,class,4)) -> 0 | BB163: 163
A164: 164 | C164: -Transmission | F164: 2464000 | J164: 164 | L164: =C48 -> Total Other Operation | N164: =IF(AND(ROUND($Q164,0)=ROUND($R164,0),ROUND(SUM($S164:$AC164),0)=ROUND($R164,0)),"","crossfoot error") ->  | Q164: =SUM(Q139:Q163) -> 38794000 | R164: 38794000 | S164: 17615687.81 | T164: 3286739.88 | U164: 10056686.72 | V164: 6875793.857 | W164: 807659.8938 | X164: 151431.8464 | Y164: 0 | Z164: 0 | AA164: 0 | AB164: 0 | AC164: 0 | BB164: 164 | BD164: Class Allocator Table (class)
A165: 165 | C165: -Distribution | F165: 3866000 | J165: 165 | K165: =B49 -> 551-MT | L165: =C49 -> Other | M165: =D49 -> Supervision & Engineering | O165: P01 | P165: =IF(MATCH(O165,P_ref,0)>0,"","error matching functional allocator") ->  | Q165: =F49 -> 216000 | BB165: 165 | BC165: =$BC$36 -> C01 | BD165: =$BD$36 -> Avg Customers-All | BF165: =$BF$36 -> 235192.1667 | BG165: =$BG$36 -> 201447.5833 | BH165: =$BH$36 -> 28311.33333 | BI165: =$BI$36 -> 2681.916667 | BJ165: =$BJ$36 -> 22 | BK165: =$BK$36 -> 2400.25 | BL165: =$BL$36 -> 329.0833333 | BM165: =$BM$36 -> 0 | BN165: =$BN$36 -> 0 | BO165: =$BO$36 -> 0 | BP165: =$BP$36 -> 0 | BQ165: =$BQ$36 -> 0 | BR165: =$BR$36 -> Unweighted
A166: 166 | C166: -Administrative & General | F166: 0 | J166: 166 | L166: P | M166: =HLOOKUP("Factor Name",pfactor,3) -> Coincident Peak | N166: =IF(MATCH(P166,ref,0)>0,"","matching error") ->  | O166: =HLOOKUP(O165,pfactor,3) -> 34.2 | P166: =HLOOKUP("Class",pfactor,3) -> D01 | R166: =Q165*O166/SUM(O166:O169) -> 73872 | S166: =$R166*(VLOOKUP($P166,class,5)/VLOOKUP($P166,class,4)) -> 36813.33175 | T166: =$R166*(VLOOKUP($P166,class,6)/VLOOKUP($P166,class,4)) -> 5750.229895 | U166: =$R166*(VLOOKUP($P166,class,7)/VLOOKUP($P166,class,4)) -> 18069.97096 | V166: =$R166*(VLOOKUP($P166,class,8)/VLOOKUP($P166,class,4)) -> 11745.71336 | W166: =$R166*(VLOOKUP($P166,class,9)/VLOOKUP($P166,class,4)) -> 1313.18895 | X166: =$R166*(VLOOKUP($P166,class,10)/VLOOKUP($P166,class,4)) -> 179.5650905 | Y166: =$R166*(VLOOKUP($P166,class,11)/VLOOKUP($P166,class,4)) -> 0 | Z166: =$R166*(VLOOKUP($P166,class,12)/VLOOKUP($P166,class,4)) -> 0 | AA166: =$R166*(VLOOKUP($P166,class,13)/VLOOKUP($P166,class,4)) -> 0 | AB166: =$R166*(VLOOKUP($P166,class,14)/VLOOKUP($P166,class,4)) -> 0 | AC166: =$R166*(VLOOKUP($P166,class,15)/VLOOKUP($P166,class,4)) -> 0 | BB166: 166 | BC166: =$BC$38 -> C02 | BD166: =$BD$38 -> Avg Customers-Secondary | BF166: =$BF$38 -> 234805.0833 | BG166: =$BG$38 -> 201447.5833 | BH166: =$BH$38 -> 28311.33333 | BI166: =$BI$38 -> 2645.916667 | BJ166: =$BJ$38 -> 0 | BK166: =$BK$38 -> 2400.25 | BL166: =$BL$38 -> 0 | BM166: =$BM$38 -> 0 | BN166: =$BN$38 -> 0 | BO166: =$BO$38 -> 0 | BP166: =$BP$38 -> 0 | BQ166: =$BQ$38 -> 0 | BR166: =$BR$38 -> Unweighted Secondary w/o Lighting
A167: 167 | B167: Open | F167: 0 | J167: 167 | L167: P | M167: =HLOOKUP("Factor Name",pfactor,4) -> Generation Level Consumption | N167: =IF(MATCH(P167,ref,0)>0,"","matching error") ->  | O167: =HLOOKUP(O165,pfactor,4) -> 65.8 | P167: =HLOOKUP("Class",pfactor,4) -> E02 | R167: =Q165*O167/SUM(O166:O169) -> 142128 | S167: =$R167*(VLOOKUP($P167,class,5)/VLOOKUP($P167,class,4)) -> 61268.55118 | T167: =$R167*(VLOOKUP($P167,class,6)/VLOOKUP($P167,class,4)) -> 12549.91482 | U167: =$R167*(VLOOKUP($P167,class,7)/VLOOKUP($P167,class,4)) -> 37924.36658 | V167: =$R167*(VLOOKUP($P167,class,8)/VLOOKUP($P167,class,4)) -> 26537.82206 | W167: =$R167*(VLOOKUP($P167,class,9)/VLOOKUP($P167,class,4)) -> 3183.757409 | X167: =$R167*(VLOOKUP($P167,class,10)/VLOOKUP($P167,class,4)) -> 663.5879439 | Y167: =$R167*(VLOOKUP($P167,class,11)/VLOOKUP($P167,class,4)) -> 0 | Z167: =$R167*(VLOOKUP($P167,class,12)/VLOOKUP($P167,class,4)) -> 0 | AA167: =$R167*(VLOOKUP($P167,class,13)/VLOOKUP($P167,class,4)) -> 0 | AB167: =$R167*(VLOOKUP($P167,class,14)/VLOOKUP($P167,class,4)) -> 0 | AC167: =$R167*(VLOOKUP($P167,class,15)/VLOOKUP($P167,class,4)) -> 0 | BB167: 167 | BC167: =$BC$40 -> C03 | BD167: =$BD$40 -> Wt Customers-Meter Reading | BF167: =$BF$40 -> 235192.1667 | BG167: =$BG$40 -> 201447.5833 | BH167: =$BH$40 -> 28311.33333 | BI167: =$BI$40 -> 2681.916667 | BJ167: =$BJ$40 -> 22 | BK167: =$BK$40 -> 2400.25 | BL167: =$BL$40 -> 329.0833333 | BM167: =$BM$40 -> 0 | BN167: =$BN$40 -> 0 | BO167: =$BO$40 -> 0 | BP167: =$BP$40 -> 0 | BQ167: =$BQ$40 -> 0 | BR167: =$BR$40 -> Est. Meter Reading Time
A168: 168 | B168: Open | F168: 0 | J168: 168 | L168: P | M168: =HLOOKUP("Factor Name",pfactor,5) -> Open | N168: =IF(MATCH(P168,ref,0)>0,"","matching error") ->  | O168: =HLOOKUP(O165,pfactor,5) -> 0 | P168: =HLOOKUP("Class",pfactor,5) -> xxx | R168: =Q165*O168/SUM(O166:O169) -> 0 | S168: =$R168*(VLOOKUP($P168,class,5)/VLOOKUP($P168,class,4)) -> 0 | T168: =$R168*(VLOOKUP($P168,class,6)/VLOOKUP($P168,class,4)) -> 0 | U168: =$R168*(VLOOKUP($P168,class,7)/VLOOKUP($P168,class,4)) -> 0 | V168: =$R168*(VLOOKUP($P168,class,8)/VLOOKUP($P168,class,4)) -> 0 | W168: =$R168*(VLOOKUP($P168,class,9)/VLOOKUP($P168,class,4)) -> 0 | X168: =$R168*(VLOOKUP($P168,class,10)/VLOOKUP($P168,class,4)) -> 0 | Y168: =$R168*(VLOOKUP($P168,class,11)/VLOOKUP($P168,class,4)) -> 0 | Z168: =$R168*(VLOOKUP($P168,class,12)/VLOOKUP($P168,class,4)) -> 0 | AA168: =$R168*(VLOOKUP($P168,class,13)/VLOOKUP($P168,class,4)) -> 0 | AB168: =$R168*(VLOOKUP($P168,class,14)/VLOOKUP($P168,class,4)) -> 0 | AC168: =$R168*(VLOOKUP($P168,class,15)/VLOOKUP($P168,class,4)) -> 0 | BB168: 168 | BC168: =$BC$42 -> C04 | BD168: =$BD$42 -> Wt Customers-Meters | BF168: =$BF$42 -> 329804.2433 | BG168: =$BG$42 -> 201447.5833 | BH168: =$BH$42 -> 77006.82667 | BI168: =$BI$42 -> 38270.95083 | BJ168: =$BJ$42 -> 765.6 | BK168: =$BK$42 -> 12313.2825 | BL168: =$BL$42 -> 0 | BM168: =$BM$42 -> 0 | BN168: =$BN$42 -> 0 | BO168: =$BO$42 -> 0 | BP168: =$BP$42 -> 0 | BQ168: =$BQ$42 -> 0 | BR168: =$BR$42 -> Proportion Installed Meter Costs
A169: 169 | B169: Open | F169: 0 | J169: 169 | L169: P | M169: =HLOOKUP("Factor Name",pfactor,6) -> Open | N169: =IF(MATCH(P169,ref,0)>0,"","matching error") ->  | O169: =HLOOKUP(O165,pfactor,6) -> 0 | P169: =HLOOKUP("Class",pfactor,6) -> xxx | R169: =Q165*O169/SUM(O166:O169) -> 0 | S169: =$R169*(VLOOKUP($P169,class,5)/VLOOKUP($P169,class,4)) -> 0 | T169: =$R169*(VLOOKUP($P169,class,6)/VLOOKUP($P169,class,4)) -> 0 | U169: =$R169*(VLOOKUP($P169,class,7)/VLOOKUP($P169,class,4)) -> 0 | V169: =$R169*(VLOOKUP($P169,class,8)/VLOOKUP($P169,class,4)) -> 0 | W169: =$R169*(VLOOKUP($P169,class,9)/VLOOKUP($P169,class,4)) -> 0 | X169: =$R169*(VLOOKUP($P169,class,10)/VLOOKUP($P169,class,4)) -> 0 | Y169: =$R169*(VLOOKUP($P169,class,11)/VLOOKUP($P169,class,4)) -> 0 | Z169: =$R169*(VLOOKUP($P169,class,12)/VLOOKUP($P169,class,4)) -> 0 | AA169: =$R169*(VLOOKUP($P169,class,13)/VLOOKUP($P169,class,4)) -> 0 | AB169: =$R169*(VLOOKUP($P169,class,14)/VLOOKUP($P169,class,4)) -> 0 | AC169: =$R169*(VLOOKUP($P169,class,15)/VLOOKUP($P169,class,4)) -> 0 | BB169: 169 | BC169: =$BC$44 -> C05 | BD169: =$BD$44 -> DA Street & Area Lights | BF169: =$BF$44 -> 329.0833333 | BG169: =$BG$44 -> 0 | BH169: =$BH$44 -> 0 | BI169: =$BI$44 -> 0 | BJ169: =$BJ$44 -> 0 | BK169: =$BK$44 -> 0 | BL169: =$BL$44 -> 329.0833333 | BM169: =$BM$44 -> 0 | BN169: =$BN$44 -> 0 | BO169: =$BO$44 -> 0 | BP169: =$BP$44 -> 0 | BQ169: =$BQ$44 -> 0 | BR169: =$BR$44 -> Direct Assigned to Street & Area Lights
A170: 170 | B170: Open | F170: 0 | J170: 170 | K170: =B50 -> 552-MT | L170: =C50 -> Other | M170: =D50 -> Structures | O170: P01 | P170: =IF(MATCH(O170,P_ref,0)>0,"","error matching functional allocator") ->  | Q170: =F50 -> 8000 | BB170: 170 | BC170: =$BC$46 -> C06 | BD170: =$BD$46 -> DA Handbilled | BF170: =$BF$46 -> 22 | BG170: =$BG$46 -> 0 | BH170: =$BH$46 -> 0 | BI170: =$BI$46 -> 0 | BJ170: =$BJ$46 -> 22 | BK170: =$BK$46 -> 0 | BL170: =$BL$46 -> 0 | BM170: =$BM$46 -> 0 | BN170: =$BN$46 -> 0 | BO170: =$BO$46 -> 0 | BP170: =$BP$46 -> 0 | BQ170: =$BQ$46 -> 0 | BR170: =$BR$46 -> Direct Assigned to Handbilled Customers
A171: 171 | B171: State Kwh Generation-Production | F171: 1061000 | J171: 171 | L171: P | M171: =HLOOKUP("Factor Name",pfactor,3) -> Coincident Peak | N171: =IF(MATCH(P171,ref,0)>0,"","matching error") ->  | O171: =HLOOKUP(O170,pfactor,3) -> 34.2 | P171: =HLOOKUP("Class",pfactor,3) -> D01 | R171: =Q170*O171/SUM(O171:O174) -> 2736 | S171: =$R171*(VLOOKUP($P171,class,5)/VLOOKUP($P171,class,4)) -> 1363.456731 | T171: =$R171*(VLOOKUP($P171,class,6)/VLOOKUP($P171,class,4)) -> 212.9714776 | U171: =$R171*(VLOOKUP($P171,class,7)/VLOOKUP($P171,class,4)) -> 669.2581837 | V171: =$R171*(VLOOKUP($P171,class,8)/VLOOKUP($P171,class,4)) -> 435.0264206 | W171: =$R171*(VLOOKUP($P171,class,9)/VLOOKUP($P171,class,4)) -> 48.63662779 | X171: =$R171*(VLOOKUP($P171,class,10)/VLOOKUP($P171,class,4)) -> 6.650558906 | Y171: =$R171*(VLOOKUP($P171,class,11)/VLOOKUP($P171,class,4)) -> 0 | Z171: =$R171*(VLOOKUP($P171,class,12)/VLOOKUP($P171,class,4)) -> 0 | AA171: =$R171*(VLOOKUP($P171,class,13)/VLOOKUP($P171,class,4)) -> 0 | AB171: =$R171*(VLOOKUP($P171,class,14)/VLOOKUP($P171,class,4)) -> 0 | AC171: =$R171*(VLOOKUP($P171,class,15)/VLOOKUP($P171,class,4)) -> 0 | BB171: 171 | BC171: =$BC$48 -> C07 | BD171: =$BD$48 -> Open | BF171: =$BF$48 -> 0 | BG171: =$BG$48 -> 0 | BH171: =$BH$48 -> 0 | BI171: =$BI$48 -> 0 | BJ171: =$BJ$48 -> 0 | BK171: =$BK$48 -> 0 | BL171: =$BL$48 -> 0 | BM171: =$BM$48 -> 0 | BN171: =$BN$48 -> 0 | BO171: =$BO$48 -> 0 | BP171: =$BP$48 -> 0 | BQ171: =$BQ$48 -> 0 | BR171: =$BR$48 -> Open
A172: 172 | B172: Montana/Oregon SIT-Production | F172: 292000 | J172: 172 | L172: P | M172: =HLOOKUP("Factor Name",pfactor,4) -> Generation Level Consumption | N172: =IF(MATCH(P172,ref,0)>0,"","matching error") ->  | O172: =HLOOKUP(O170,pfactor,4) -> 65.8 | P172: =HLOOKUP("Class",pfactor,4) -> E02 | R172: =Q170*O172/SUM(O171:O174) -> 5264 | S172: =$R172*(VLOOKUP($P172,class,5)/VLOOKUP($P172,class,4)) -> 2269.205599 | T172: =$R172*(VLOOKUP($P172,class,6)/VLOOKUP($P172,class,4)) -> 464.81166 | U172: =$R172*(VLOOKUP($P172,class,7)/VLOOKUP($P172,class,4)) -> 1404.60617 | V172: =$R172*(VLOOKUP($P172,class,8)/VLOOKUP($P172,class,4)) -> 982.8822987 | W172: =$R172*(VLOOKUP($P172,class,9)/VLOOKUP($P172,class,4)) -> 117.9169411 | X172: =$R172*(VLOOKUP($P172,class,10)/VLOOKUP($P172,class,4)) -> 24.57733126 | Y172: =$R172*(VLOOKUP($P172,class,11)/VLOOKUP($P172,class,4)) -> 0 | Z172: =$R172*(VLOOKUP($P172,class,12)/VLOOKUP($P172,class,4)) -> 0 | AA172: =$R172*(VLOOKUP($P172,class,13)/VLOOKUP($P172,class,4)) -> 0 | AB172: =$R172*(VLOOKUP($P172,class,14)/VLOOKUP($P172,class,4)) -> 0 | AC172: =$R172*(VLOOKUP($P172,class,15)/VLOOKUP($P172,class,4)) -> 0 | BB172: 172 | BC172: =$BC$18 -> D01 | BD172: =$BD$18 -> Coincident Peak | BF172: =$BF$18 -> 890668 | BG172: =$BG$18 -> 443855 | BH172: =$BH$18 -> 69330 | BI172: =$BI$18 -> 217868 | BJ172: =$BJ$18 -> 141617 | BK172: =$BK$18 -> 15833 | BL172: =$BL$18 -> 2165 | BM172: =$BM$18 -> 0 | BN172: =$BN$18 -> 0 | BO172: =$BO$18 -> 0 | BP172: =$BP$18 -> 0 | BQ172: =$BQ$18 -> 0 | BR172: =$BR$18 -> Coincident Peak 12 Month Average
A173: 173 | B173: Misc | C173: -Production | F173: 26000 | J173: 173 | L173: P | M173: =HLOOKUP("Factor Name",pfactor,5) -> Open | N173: =IF(MATCH(P173,ref,0)>0,"","matching error") ->  | O173: =HLOOKUP(O170,pfactor,5) -> 0 | P173: =HLOOKUP("Class",pfactor,5) -> xxx | R173: =Q170*O173/SUM(O171:O174) -> 0 | S173: =$R173*(VLOOKUP($P173,class,5)/VLOOKUP($P173,class,4)) -> 0 | T173: =$R173*(VLOOKUP($P173,class,6)/VLOOKUP($P173,class,4)) -> 0 | U173: =$R173*(VLOOKUP($P173,class,7)/VLOOKUP($P173,class,4)) -> 0 | V173: =$R173*(VLOOKUP($P173,class,8)/VLOOKUP($P173,class,4)) -> 0 | W173: =$R173*(VLOOKUP($P173,class,9)/VLOOKUP($P173,class,4)) -> 0 | X173: =$R173*(VLOOKUP($P173,class,10)/VLOOKUP($P173,class,4)) -> 0 | Y173: =$R173*(VLOOKUP($P173,class,11)/VLOOKUP($P173,class,4)) -> 0 | Z173: =$R173*(VLOOKUP($P173,class,12)/VLOOKUP($P173,class,4)) -> 0 | AA173: =$R173*(VLOOKUP($P173,class,13)/VLOOKUP($P173,class,4)) -> 0 | AB173: =$R173*(VLOOKUP($P173,class,14)/VLOOKUP($P173,class,4)) -> 0 | AC173: =$R173*(VLOOKUP($P173,class,15)/VLOOKUP($P173,class,4)) -> 0 | BB173: 173 | BC173: =$BC$20 -> D02 | BD173: =$BD$20 -> NCP-All | BF173: =$BF$20 -> 1067253 | BG173: =$BG$20 -> 502374 | BH173: =$BH$20 -> 103881 | BI173: =$BI$20 -> 277639 | BJ173: =$BJ$20 -> 151519 | BK173: =$BK$20 -> 25372 | BL173: =$BL$20 -> 6468 | BM173: =$BM$20 -> 0 | BN173: =$BN$20 -> 0 | BO173: =$BO$20 -> 0 | BP173: =$BP$20 -> 0 | BQ173: =$BQ$20 -> 0 | BR173: =$BR$20 -> Non-Coincident Peak All Sched.12 Mo Avg
A174: 174 | C174: -Distribution | F174: 0 | J174: 174 | L174: P | M174: =HLOOKUP("Factor Name",pfactor,6) -> Open | N174: =IF(MATCH(P174,ref,0)>0,"","matching error") ->  | O174: =HLOOKUP(O170,pfactor,6) -> 0 | P174: =HLOOKUP("Class",pfactor,6) -> xxx | R174: =Q170*O174/SUM(O171:O174) -> 0 | S174: =$R174*(VLOOKUP($P174,class,5)/VLOOKUP($P174,class,4)) -> 0 | T174: =$R174*(VLOOKUP($P174,class,6)/VLOOKUP($P174,class,4)) -> 0 | U174: =$R174*(VLOOKUP($P174,class,7)/VLOOKUP($P174,class,4)) -> 0 | V174: =$R174*(VLOOKUP($P174,class,8)/VLOOKUP($P174,class,4)) -> 0 | W174: =$R174*(VLOOKUP($P174,class,9)/VLOOKUP($P174,class,4)) -> 0 | X174: =$R174*(VLOOKUP($P174,class,10)/VLOOKUP($P174,class,4)) -> 0 | Y174: =$R174*(VLOOKUP($P174,class,11)/VLOOKUP($P174,class,4)) -> 0 | Z174: =$R174*(VLOOKUP($P174,class,12)/VLOOKUP($P174,class,4)) -> 0 | AA174: =$R174*(VLOOKUP($P174,class,13)/VLOOKUP($P174,class,4)) -> 0 | AB174: =$R174*(VLOOKUP($P174,class,14)/VLOOKUP($P174,class,4)) -> 0 | AC174: =$R174*(VLOOKUP($P174,class,15)/VLOOKUP($P174,class,4)) -> 0 | BB174: 174 | BC174: =$BC$22 -> D03 | BD174: =$BD$22 -> NCP-w/o DA | BF174: =$BF$22 -> 915734 | BG174: =$BG$22 -> 502374 | BH174: =$BH$22 -> 103881 | BI174: =$BI$22 -> 277639 | BJ174: =$BJ$22 -> 0 | BK174: =$BK$22 -> 25372 | BL174: =$BL$22 -> 6468 | BM174: =$BM$22 -> 0 | BN174: =$BN$22 -> 0 | BO174: =$BO$22 -> 0 | BP174: =$BP$22 -> 0 | BQ174: =$BQ$22 -> 0 | BR174: =$BR$22 -> NCP w/o Sch 25/28 12 Mo Avg
A175: 175 | B175: B&O | C175: -Distribution | F175: 0 | J175: 175 | K175: =B51 -> 553-MT | L175: =C51 -> Other | M175: =D51 -> Generating & Electric Plant | O175: P01 | P175: =IF(MATCH(O175,P_ref,0)>0,"","error matching functional allocator") ->  | Q175: =F51 -> 372000 | BB175: 175 | BC175: =$BC$24 -> D04 | BD175: =$BD$24 -> DA Sch 25 | BF175: =$BF$24 -> 100 | BG175: =$BG$24 -> 0 | BH175: =$BH$24 -> 0 | BI175: =$BI$24 -> 0 | BJ175: =$BJ$24 -> 100 | BK175: =$BK$24 -> 0 | BL175: =$BL$24 -> 0 | BM175: =$BM$24 -> 0 | BN175: =$BN$24 -> 0 | BO175: =$BO$24 -> 0 | BP175: =$BP$24 -> 0 | BQ175: =$BQ$24 -> 0 | BR175: =$BR$24 -> Direct Assigned to Schedule 25 Customers
A176: 176 | B176: Excise | C176: -Distribution | F176: 18330000 | J176: 176 | L176: P | M176: =HLOOKUP("Factor Name",pfactor,3) -> Coincident Peak | N176: =IF(MATCH(P176,ref,0)>0,"","matching error") ->  | O176: =HLOOKUP(O175,pfactor,3) -> 34.2 | P176: =HLOOKUP("Class",pfactor,3) -> D01 | R176: =Q175*O176/SUM(O176:O179) -> 127224 | S176: =$R176*(VLOOKUP($P176,class,5)/VLOOKUP($P176,class,4)) -> 63400.73801 | T176: =$R176*(VLOOKUP($P176,class,6)/VLOOKUP($P176,class,4)) -> 9903.173708 | U176: =$R176*(VLOOKUP($P176,class,7)/VLOOKUP($P176,class,4)) -> 31120.50554 | V176: =$R176*(VLOOKUP($P176,class,8)/VLOOKUP($P176,class,4)) -> 20228.72856 | W176: =$R176*(VLOOKUP($P176,class,9)/VLOOKUP($P176,class,4)) -> 2261.603192 | X176: =$R176*(VLOOKUP($P176,class,10)/VLOOKUP($P176,class,4)) -> 309.2509891 | Y176: =$R176*(VLOOKUP($P176,class,11)/VLOOKUP($P176,class,4)) -> 0 | Z176: =$R176*(VLOOKUP($P176,class,12)/VLOOKUP($P176,class,4)) -> 0 | AA176: =$R176*(VLOOKUP($P176,class,13)/VLOOKUP($P176,class,4)) -> 0 | AB176: =$R176*(VLOOKUP($P176,class,14)/VLOOKUP($P176,class,4)) -> 0 | AC176: =$R176*(VLOOKUP($P176,class,15)/VLOOKUP($P176,class,4)) -> 0 | BB176: 176 | BC176: =$BC$26 -> D05 | BD176: =$BD$26 -> DA Sch 25I | BF176: =$BF$26 -> 100 | BG176: =$BG$26 -> 0 | BH176: =$BH$26 -> 0 | BI176: =$BI$26 -> 0 | BJ176: =$BJ$26 -> 0 | BK176: =$BK$26 -> 0 | BL176: =$BL$26 -> 0 | BM176: =$BM$26 -> 100 | BN176: =$BN$26 -> 0 | BO176: =$BO$26 -> 0 | BP176: =$BP$26 -> 0 | BQ176: =$BQ$26 -> 0 | BR176: =$BR$26 -> Direct Assigned to Schedule 25I Customers (not used)
A177: 177 | J177: 177 | L177: P | M177: =HLOOKUP("Factor Name",pfactor,4) -> Generation Level Consumption | N177: =IF(MATCH(P177,ref,0)>0,"","matching error") ->  | O177: =HLOOKUP(O175,pfactor,4) -> 65.8 | P177: =HLOOKUP("Class",pfactor,4) -> E02 | R177: =Q175*O177/SUM(O176:O179) -> 244776 | S177: =$R177*(VLOOKUP($P177,class,5)/VLOOKUP($P177,class,4)) -> 105518.0604 | T177: =$R177*(VLOOKUP($P177,class,6)/VLOOKUP($P177,class,4)) -> 21613.74219 | U177: =$R177*(VLOOKUP($P177,class,7)/VLOOKUP($P177,class,4)) -> 65314.18689 | V177: =$R177*(VLOOKUP($P177,class,8)/VLOOKUP($P177,class,4)) -> 45704.02689 | W177: =$R177*(VLOOKUP($P177,class,9)/VLOOKUP($P177,class,4)) -> 5483.13776 | X177: =$R177*(VLOOKUP($P177,class,10)/VLOOKUP($P177,class,4)) -> 1142.845903 | Y177: =$R177*(VLOOKUP($P177,class,11)/VLOOKUP($P177,class,4)) -> 0 | Z177: =$R177*(VLOOKUP($P177,class,12)/VLOOKUP($P177,class,4)) -> 0 | AA177: =$R177*(VLOOKUP($P177,class,13)/VLOOKUP($P177,class,4)) -> 0 | AB177: =$R177*(VLOOKUP($P177,class,14)/VLOOKUP($P177,class,4)) -> 0 | AC177: =$R177*(VLOOKUP($P177,class,15)/VLOOKUP($P177,class,4)) -> 0 | BB177: 177 | BC177: =$BC$28 -> D06 | BD177: =$BD$28 -> NCP-Secondary | BF177: =$BF$28 -> 895396 | BG177: =$BG$28 -> 502374 | BH177: =$BH$28 -> 103881 | BI177: =$BI$28 -> 257301 | BJ177: =$BJ$28 -> 0 | BK177: =$BK$28 -> 25372 | BL177: =$BL$28 -> 6468 | BM177: =$BM$28 -> 0 | BN177: =$BN$28 -> 0 | BO177: =$BO$28 -> 0 | BP177: =$BP$28 -> 0 | BQ177: =$BQ$28 -> 0 | BR177: =$BR$28 -> Non-Coincident Peak Secondary12 Mo Avg
A178: 178 | J178: 178 | L178: P | M178: =HLOOKUP("Factor Name",pfactor,5) -> Open | N178: =IF(MATCH(P178,ref,0)>0,"","matching error") ->  | O178: =HLOOKUP(O175,pfactor,5) -> 0 | P178: =HLOOKUP("Class",pfactor,5) -> xxx | R178: =Q175*O178/SUM(O176:O179) -> 0 | S178: =$R178*(VLOOKUP($P178,class,5)/VLOOKUP($P178,class,4)) -> 0 | T178: =$R178*(VLOOKUP($P178,class,6)/VLOOKUP($P178,class,4)) -> 0 | U178: =$R178*(VLOOKUP($P178,class,7)/VLOOKUP($P178,class,4)) -> 0 | V178: =$R178*(VLOOKUP($P178,class,8)/VLOOKUP($P178,class,4)) -> 0 | W178: =$R178*(VLOOKUP($P178,class,9)/VLOOKUP($P178,class,4)) -> 0 | X178: =$R178*(VLOOKUP($P178,class,10)/VLOOKUP($P178,class,4)) -> 0 | Y178: =$R178*(VLOOKUP($P178,class,11)/VLOOKUP($P178,class,4)) -> 0 | Z178: =$R178*(VLOOKUP($P178,class,12)/VLOOKUP($P178,class,4)) -> 0 | AA178: =$R178*(VLOOKUP($P178,class,13)/VLOOKUP($P178,class,4)) -> 0 | AB178: =$R178*(VLOOKUP($P178,class,14)/VLOOKUP($P178,class,4)) -> 0 | AC178: =$R178*(VLOOKUP($P178,class,15)/VLOOKUP($P178,class,4)) -> 0 | BB178: 178 | BC178: =$BC$30 -> D07 | BD178: =$BD$30 -> DA Street and Area Lights | BF178: =$BF$30 -> 100 | BG178: =$BG$30 -> 0 | BH178: =$BH$30 -> 0 | BI178: =$BI$30 -> 0 | BJ178: =$BJ$30 -> 0 | BK178: =$BK$30 -> 0 | BL178: =$BL$30 -> 100 | BM178: =$BM$30 -> 0 | BN178: =$BN$30 -> 0 | BO178: =$BO$30 -> 0 | BP178: =$BP$30 -> 0 | BQ178: =$BQ$30 -> 0 | BR178: =$BR$30 -> Direct Assigned to Street & Area Lights
A179: 179 | J179: 179 | L179: P | M179: =HLOOKUP("Factor Name",pfactor,6) -> Open | N179: =IF(MATCH(P179,ref,0)>0,"","matching error") ->  | O179: =HLOOKUP(O175,pfactor,6) -> 0 | P179: =HLOOKUP("Class",pfactor,6) -> xxx | R179: =Q175*O179/SUM(O176:O179) -> 0 | S179: =$R179*(VLOOKUP($P179,class,5)/VLOOKUP($P179,class,4)) -> 0 | T179: =$R179*(VLOOKUP($P179,class,6)/VLOOKUP($P179,class,4)) -> 0 | U179: =$R179*(VLOOKUP($P179,class,7)/VLOOKUP($P179,class,4)) -> 0 | V179: =$R179*(VLOOKUP($P179,class,8)/VLOOKUP($P179,class,4)) -> 0 | W179: =$R179*(VLOOKUP($P179,class,9)/VLOOKUP($P179,class,4)) -> 0 | X179: =$R179*(VLOOKUP($P179,class,10)/VLOOKUP($P179,class,4)) -> 0 | Y179: =$R179*(VLOOKUP($P179,class,11)/VLOOKUP($P179,class,4)) -> 0 | Z179: =$R179*(VLOOKUP($P179,class,12)/VLOOKUP($P179,class,4)) -> 0 | AA179: =$R179*(VLOOKUP($P179,class,13)/VLOOKUP($P179,class,4)) -> 0 | AB179: =$R179*(VLOOKUP($P179,class,14)/VLOOKUP($P179,class,4)) -> 0 | AC179: =$R179*(VLOOKUP($P179,class,15)/VLOOKUP($P179,class,4)) -> 0 | BB179: 179 | BC179: =$BC$32 -> D08 | BD179: =$BD$32 -> NCP-Primary | BF179: =$BF$32 -> 1005856 | BG179: =$BG$32 -> 502374 | BH179: =$BH$32 -> 103881 | BI179: =$BI$32 -> 276437 | BJ179: =$BJ$32 -> 91324 | BK179: =$BK$32 -> 25372 | BL179: =$BL$32 -> 6468 | BM179: =$BM$32 -> 0 | BN179: =$BN$32 -> 0 | BO179: =$BO$32 -> 0 | BP179: =$BP$32 -> 0 | BQ179: =$BQ$32 -> 0 | BR179: =$BR$32 -> Non-Coincident Peak Primary 12 Mo Avg
A180: 180 | C180: Total Taxes Other Than Income Taxes | J180: 180 | K180: =B52 -> 554-MT | L180: =C52 -> Other | O180: P01 | P180: =IF(MATCH(O180,P_ref,0)>0,"","error matching functional allocator") ->  | Q180: =F52 -> 97000 | BB180: 180 | BC180: =$BC$11 -> E01 | BD180: =$BD$11 -> Customer Level Consumption | BF180: =$BF$11 -> 5574856.255 | BG180: =$BG$11 -> 2390086.21 | BH180: =$BH$11 -> 489572.183 | BI180: =$BI$11 -> 1481850.559 | BJ180: =$BJ$11 -> 1063262.359 | BK180: =$BK$11 -> 124198.378 | BL180: =$BL$11 -> 25886.566 | BM180: =$BM$11 -> 0 | BN180: =$BN$11 -> 0 | BO180: =$BO$11 -> 0 | BP180: =$BP$11 -> 0 | BQ180: =$BQ$11 -> 0 | BR180: =$BR$11 -> Energy Sales-MWH
A181: 181 | B181: Proforma | J181: 181 | L181: P | M181: =HLOOKUP("Factor Name",pfactor,3) -> Coincident Peak | N181: =IF(MATCH(P181,ref,0)>0,"","matching error") ->  | O181: =HLOOKUP(O180,pfactor,3) -> 34.2 | P181: =HLOOKUP("Class",pfactor,3) -> D01 | R181: =Q180*O181/SUM(O181:O184) -> 33174 | S181: =$R181*(VLOOKUP($P181,class,5)/VLOOKUP($P181,class,4)) -> 16531.91287 | T181: =$R181*(VLOOKUP($P181,class,6)/VLOOKUP($P181,class,4)) -> 2582.279166 | U181: =$R181*(VLOOKUP($P181,class,7)/VLOOKUP($P181,class,4)) -> 8114.755478 | V181: =$R181*(VLOOKUP($P181,class,8)/VLOOKUP($P181,class,4)) -> 5274.69535 | W181: =$R181*(VLOOKUP($P181,class,9)/VLOOKUP($P181,class,4)) -> 589.7191119 | X181: =$R181*(VLOOKUP($P181,class,10)/VLOOKUP($P181,class,4)) -> 80.63802674 | Y181: =$R181*(VLOOKUP($P181,class,11)/VLOOKUP($P181,class,4)) -> 0 | Z181: =$R181*(VLOOKUP($P181,class,12)/VLOOKUP($P181,class,4)) -> 0 | AA181: =$R181*(VLOOKUP($P181,class,13)/VLOOKUP($P181,class,4)) -> 0 | AB181: =$R181*(VLOOKUP($P181,class,14)/VLOOKUP($P181,class,4)) -> 0 | AC181: =$R181*(VLOOKUP($P181,class,15)/VLOOKUP($P181,class,4)) -> 0 | BB181: 181 | BC181: =$BC$13 -> E02 | BD181: =$BD$13 -> Generation Level Consumption | BF181: =$BF$13 -> 5943611.107 | BG181: =$BG$13 -> 2562172.417 | BH181: =$BH$13 -> 524821.3802 | BI181: =$BI$13 -> 1585948.486 | BJ181: =$BJ$13 -> 1109777.764 | BK181: =$BK$13 -> 133140.6612 | BL181: =$BL$13 -> 27750.39875 | BM181: =$BM$13 -> 0 | BN181: =$BN$13 -> 0 | BO181: =$BO$13 -> 0 | BP181: =$BP$13 -> 0 | BQ181: =$BQ$13 -> 0 | BR181: =$BR$13 -> Energy Sales with Losses - MWH
A182: 182 | B182: =$B$2 -> Pro Forma Results of Operations | J182: 182 | L182: P | M182: =HLOOKUP("Factor Name",pfactor,4) -> Generation Level Consumption | N182: =IF(MATCH(P182,ref,0)>0,"","matching error") ->  | O182: =HLOOKUP(O180,pfactor,4) -> 65.8 | P182: =HLOOKUP("Class",pfactor,4) -> E02 | R182: =Q180*O182/SUM(O181:O184) -> 63826 | S182: =$R182*(VLOOKUP($P182,class,5)/VLOOKUP($P182,class,4)) -> 27514.11789 | T182: =$R182*(VLOOKUP($P182,class,6)/VLOOKUP($P182,class,4)) -> 5635.841378 | U182: =$R182*(VLOOKUP($P182,class,7)/VLOOKUP($P182,class,4)) -> 17030.84981 | V182: =$R182*(VLOOKUP($P182,class,8)/VLOOKUP($P182,class,4)) -> 11917.44787 | W182: =$R182*(VLOOKUP($P182,class,9)/VLOOKUP($P182,class,4)) -> 1429.74291 | X182: =$R182*(VLOOKUP($P182,class,10)/VLOOKUP($P182,class,4)) -> 298.0001415 | Y182: =$R182*(VLOOKUP($P182,class,11)/VLOOKUP($P182,class,4)) -> 0 | Z182: =$R182*(VLOOKUP($P182,class,12)/VLOOKUP($P182,class,4)) -> 0 | AA182: =$R182*(VLOOKUP($P182,class,13)/VLOOKUP($P182,class,4)) -> 0 | AB182: =$R182*(VLOOKUP($P182,class,14)/VLOOKUP($P182,class,4)) -> 0 | AC182: =$R182*(VLOOKUP($P182,class,15)/VLOOKUP($P182,class,4)) -> 0 | BB182: 182 | BC182: =$BC$15 -> E03 | BD182: =$BD$15 -> Open | BF182: =$BF$15 -> 0 | BG182: =$BG$15 -> 0 | BH182: =$BH$15 -> 0 | BI182: =$BI$15 -> 0 | BJ182: =$BJ$15 -> 0 | BK182: =$BK$15 -> 0 | BL182: =$BL$15 -> 0 | BM182: =$BM$15 -> 0 | BN182: =$BN$15 -> 0 | BO182: =$BO$15 -> 0 | BP182: =$BP$15 -> 0 | BQ182: =$BQ$15 -> 0 | BR182: =$BR$15 -> Open
A183: 183 | B183: =$B$3 -> Company Base Case UE-12_____ | J183: 183 | L183: P | M183: =HLOOKUP("Factor Name",pfactor,5) -> Open | N183: =IF(MATCH(P183,ref,0)>0,"","matching error") ->  | O183: =HLOOKUP(O180,pfactor,5) -> 0 | P183: =HLOOKUP("Class",pfactor,5) -> xxx | R183: =Q180*O183/SUM(O181:O184) -> 0 | S183: =$R183*(VLOOKUP($P183,class,5)/VLOOKUP($P183,class,4)) -> 0 | T183: =$R183*(VLOOKUP($P183,class,6)/VLOOKUP($P183,class,4)) -> 0 | U183: =$R183*(VLOOKUP($P183,class,7)/VLOOKUP($P183,class,4)) -> 0 | V183: =$R183*(VLOOKUP($P183,class,8)/VLOOKUP($P183,class,4)) -> 0 | W183: =$R183*(VLOOKUP($P183,class,9)/VLOOKUP($P183,class,4)) -> 0 | X183: =$R183*(VLOOKUP($P183,class,10)/VLOOKUP($P183,class,4)) -> 0 | Y183: =$R183*(VLOOKUP($P183,class,11)/VLOOKUP($P183,class,4)) -> 0 | Z183: =$R183*(VLOOKUP($P183,class,12)/VLOOKUP($P183,class,4)) -> 0 | AA183: =$R183*(VLOOKUP($P183,class,13)/VLOOKUP($P183,class,4)) -> 0 | AB183: =$R183*(VLOOKUP($P183,class,14)/VLOOKUP($P183,class,4)) -> 0 | AC183: =$R183*(VLOOKUP($P183,class,15)/VLOOKUP($P183,class,4)) -> 0 | BB183: 183 | BC183: =$BC$63 -> R01 | BD183: =$BD$63 -> Retail Sales Revenue | BF183: =$BF$63 -> 455105000 | BG183: =$BG$63 -> 198459000 | BH183: =$BH$63 -> 55514000 | BI183: =$BI$63 -> 126921000 | BJ183: =$BJ$63 -> 58190000 | BK183: =$BK$63 -> 9439000 | BL183: =$BL$63 -> 6582000 | BM183: =$BM$63 -> 0 | BN183: =$BN$63 -> 0 | BO183: =$BO$63 -> 0 | BP183: =$BP$63 -> 0 | BQ183: =$BQ$63 -> 0 | BR183: =$BR$63 -> Input Revenue From Rates
A184: 184 | J184: 184 | L184: P | M184: =HLOOKUP("Factor Name",pfactor,6) -> Open | N184: =IF(MATCH(P184,ref,0)>0,"","matching error") ->  | O184: =HLOOKUP(O180,pfactor,6) -> 0 | P184: =HLOOKUP("Class",pfactor,6) -> xxx | R184: =Q180*O184/SUM(O181:O184) -> 0 | S184: =$R184*(VLOOKUP($P184,class,5)/VLOOKUP($P184,class,4)) -> 0 | T184: =$R184*(VLOOKUP($P184,class,6)/VLOOKUP($P184,class,4)) -> 0 | U184: =$R184*(VLOOKUP($P184,class,7)/VLOOKUP($P184,class,4)) -> 0 | V184: =$R184*(VLOOKUP($P184,class,8)/VLOOKUP($P184,class,4)) -> 0 | W184: =$R184*(VLOOKUP($P184,class,9)/VLOOKUP($P184,class,4)) -> 0 | X184: =$R184*(VLOOKUP($P184,class,10)/VLOOKUP($P184,class,4)) -> 0 | Y184: =$R184*(VLOOKUP($P184,class,11)/VLOOKUP($P184,class,4)) -> 0 | Z184: =$R184*(VLOOKUP($P184,class,12)/VLOOKUP($P184,class,4)) -> 0 | AA184: =$R184*(VLOOKUP($P184,class,13)/VLOOKUP($P184,class,4)) -> 0 | AB184: =$R184*(VLOOKUP($P184,class,14)/VLOOKUP($P184,class,4)) -> 0 | AC184: =$R184*(VLOOKUP($P184,class,15)/VLOOKUP($P184,class,4)) -> 0 | BB184: 184 | BC184: =$BC$66 -> R02 | BD184: =$BD$66 -> Open | BF184: =$BF$66 -> 0 | BG184: =$BG$66 -> 0 | BH184: =$BH$66 -> 0 | BI184: =$BI$66 -> 0 | BJ184: =$BJ$66 -> 0 | BK184: =$BK$66 -> 0 | BL184: =$BL$66 -> 0 | BM184: =$BM$66 -> 0 | BN184: =$BN$66 -> 0 | BO184: =$BO$66 -> 0 | BP184: =$BP$66 -> 0 | BQ184: =$BQ$66 -> 0 | BR184: =$BR$66 -> Open
A185: 185 | B185: (a) | C185: (b) | F185: BO | G185: BP | J185: 185 | L185: =C53 -> Total Other Maintenance | N185: =IF(AND(ROUND($Q185,0)=ROUND($R185,0),ROUND(SUM($S185:$AC185),0)=ROUND($R185,0)),"","crossfoot error") ->  | Q185: =SUM(Q165:Q184) -> 693000 | R185: 693000 | S185: 314679.3744 | T185: 58712.9643 | U185: 179648.4996 | V185: 122826.3428 | W185: 14427.7029 | X185: 2705.115985 | Y185: 0 | Z185: 0 | AA185: 0 | AB185: 0 | AC185: 0 | BB185: 185 | BC185: =$BC$72 -> R03 | BD185: =$BD$72 -> Income Tax Allocator A | BF185: =$BF$72 -> 88444000 | BG185: =$BG$72 -> 20917652.44 | BH185: =$BH$72 -> 20926140.43 | BI185: =$BI$72 -> 37027247.06 | BJ185: =$BJ$72 -> 6177152.084 | BK185: =$BK$72 -> 1682079.888 | BL185: =$BL$72 -> 1713728.106 | BM185: =$BM$72 -> 0 | BN185: =$BN$72 -> 0 | BO185: =$BO$72 -> 0 | BP185: =$BP$72 -> 0 | BQ185: =$BQ$72 -> 0 | BR185: =$BR$72 -> Rev - Exp before Inc Tax - Interest Exp
A186: 186 | F186: Transfer | G186: Transfer | J186: 186 | L186: =C54 -> Total Other | N186: =IF(AND(ROUND($Q186,0)=ROUND($R186,0),ROUND(SUM($S186:$AC186),0)=ROUND($R186,0)),"","crossfoot error") ->  | Q186: =Q164+Q185 -> 39487000 | R186: 39487000 | S186: 17930367.18 | T186: 3345452.844 | U186: 10236335.22 | V186: 6998620.2 | W186: 822087.5967 | X186: 154136.9624 | Y186: 0 | Z186: 0 | AA186: 0 | AB186: 0 | AC186: 0 | BB186: 186 | BC186: =$BC$83 -> R04 | BD186: =$BD$83 -> Revenue Conversion Allocator U | BF186: =$BF$83 -> 433808760.9 | BG186: =$BG$83 -> 204294166.5 | BH186: =$BH$83 -> 44609049.69 | BI186: =$BI$83 -> 111054440.1 | BJ186: =$BJ$83 -> 58400553.39 | BK186: =$BK$83 -> 9189490.202 | BL186: =$BL$83 -> 6261060.978 | BM186: =$BM$83 -> 0 | BN186: =$BN$83 -> 0 | BO186: =$BO$83 -> 0 | BP186: =$BP$83 -> 0 | BQ186: =$BQ$83 -> 0 | BR186: =$BR$83 -> Uniform Return Revenue Excl Rev Conversion Items
A187: 187 | B187: Account | C187: Description | F187: Proforma | G187: Labor | J187: 187 | BB187: 187 | BC187: =$BC$88 -> R05 | BD187: =$BD$88 -> Income Tax Allocator U | BF187: =$BF$88 -> 59026000 | BG187: =$BG$88 -> 29081961.7 | BH187: =$BH$88 -> 5658523.77 | BI187: =$BI$88 -> 14783942.9 | BJ187: =$BJ$88 -> 7056028.131 | BK187: =$BK$88 -> 1314771.027 | BL187: =$BL$88 -> 1130772.47 | BM187: =$BM$88 -> 0 | BN187: =$BN$88 -> 0 | BO187: =$BO$88 -> 0 | BP187: =$BP$88 -> 0 | BQ187: =$BQ$88 -> 0 | BR187: =$BR$88 -> Uniform Return less Interest Expense
A188: 188 | F188: Totals | G188: Totals | J188: 188 | K188: =B56 -> 555-OP | L188: =C56 -> Total Purchased Power | O188: Manual Input | Q188: =F56 -> 26782000 | BB188: 188 | BC188: =$BC$91 -> R06 | BD188: =$BD$91 -> Income Tax Allocator B | BF188: =$BF$91 -> 123316000 | BG188: =$BG$91 -> 38098999.11 | BH188: =$BH$91 -> 24269142.51 | BI188: =$BI$91 -> 45761460.06 | BJ188: =$BJ$91 -> 10345786.47 | BK188: =$BK$91 -> 2458834.12 | BL188: =$BL$91 -> 2381777.737 | BM188: =$BM$91 -> 0 | BN188: =$BN$91 -> 0 | BO188: =$BO$91 -> 0 | BP188: =$BP$91 -> 0 | BQ188: =$BQ$91 -> 0 | BR188: =$BR$91 -> Net Income Before Tax
A189: 189 | B189: Depreciation Expense | F189: 0 | J189: 189 | L189: P | M189: =VLOOKUP(P189,class,2) -> Production Plant | N189: =IF(MATCH(P189,ref,0)>0,"","matching error") ->  | O189: 100 | P189: S01 | R189: =Q188*O189/SUM(O189:O192) -> 26782000 | S189: =$R189*(VLOOKUP($P189,class,5)/VLOOKUP($P189,class,4)) -> 12161245.32 | T189: =$R189*(VLOOKUP($P189,class,6)/VLOOKUP($P189,class,4)) -> 2269048.499 | U189: =$R189*(VLOOKUP($P189,class,7)/VLOOKUP($P189,class,4)) -> 6942779.389 | V189: =$R189*(VLOOKUP($P189,class,8)/VLOOKUP($P189,class,4)) -> 4746803.915 | W189: =$R189*(VLOOKUP($P189,class,9)/VLOOKUP($P189,class,4)) -> 557579.7101 | X189: =$R189*(VLOOKUP($P189,class,10)/VLOOKUP($P189,class,4)) -> 104543.1693 | Y189: =$R189*(VLOOKUP($P189,class,11)/VLOOKUP($P189,class,4)) -> 0 | Z189: =$R189*(VLOOKUP($P189,class,12)/VLOOKUP($P189,class,4)) -> 0 | AA189: =$R189*(VLOOKUP($P189,class,13)/VLOOKUP($P189,class,4)) -> 0 | AB189: =$R189*(VLOOKUP($P189,class,14)/VLOOKUP($P189,class,4)) -> 0 | AC189: =$R189*(VLOOKUP($P189,class,15)/VLOOKUP($P189,class,4)) -> 0 | BB189: 189 | BC189: =$BC$95 -> S01 | BD189: =$BD$95 -> Production Plant | BF189: =$BF$95 -> 775077000 | BG189: =$BG$95 -> 351949127.7 | BH189: =$BH$95 -> 65666765.12 | BI189: =$BI$95 -> 200925570.2 | BJ189: =$BJ$95 -> 137373554.6 | BK189: =$BK$95 -> 16136480.06 | BL189: =$BL$95 -> 3025502.428 | BM189: =$BM$95 -> 0 | BN189: =$BN$95 -> 0 | BO189: =$BO$95 -> 0 | BP189: =$BP$95 -> 0 | BQ189: =$BQ$95 -> 0 | BR189: =$BR$95 -> line 893
A190: 190 | C190: Production Plant Depreciation Expense | J190: 190 | L190: P | M190: =VLOOKUP(P190,class,2) -> Open | N190: =IF(MATCH(P190,ref,0)>0,"","matching error") ->  | O190: 0 | P190: xxx | R190: =Q188*O190/SUM(O189:O192) -> 0 | S190: =$R190*(VLOOKUP($P190,class,5)/VLOOKUP($P190,class,4)) -> 0 | T190: =$R190*(VLOOKUP($P190,class,6)/VLOOKUP($P190,class,4)) -> 0 | U190: =$R190*(VLOOKUP($P190,class,7)/VLOOKUP($P190,class,4)) -> 0 | V190: =$R190*(VLOOKUP($P190,class,8)/VLOOKUP($P190,class,4)) -> 0 | W190: =$R190*(VLOOKUP($P190,class,9)/VLOOKUP($P190,class,4)) -> 0 | X190: =$R190*(VLOOKUP($P190,class,10)/VLOOKUP($P190,class,4)) -> 0 | Y190: =$R190*(VLOOKUP($P190,class,11)/VLOOKUP($P190,class,4)) -> 0 | Z190: =$R190*(VLOOKUP($P190,class,12)/VLOOKUP($P190,class,4)) -> 0 | AA190: =$R190*(VLOOKUP($P190,class,13)/VLOOKUP($P190,class,4)) -> 0 | AB190: =$R190*(VLOOKUP($P190,class,14)/VLOOKUP($P190,class,4)) -> 0 | AC190: =$R190*(VLOOKUP($P190,class,15)/VLOOKUP($P190,class,4)) -> 0 | BB190: 190 | BC190: =$BC$97 -> S02 | BD190: =$BD$97 -> Transmission Plant | BF190: =$BF$97 -> 333426000 | BG190: =$BG$97 -> 151403008.8 | BH190: =$BH$97 -> 28248815.06 | BI190: =$BI$97 -> 86435036.99 | BJ190: =$BJ$97 -> 59095954.08 | BK190: =$BK$97 -> 6941661.281 | BL190: =$BL$97 -> 1301523.813 | BM190: =$BM$97 -> 0 | BN190: =$BN$97 -> 0 | BO190: =$BO$97 -> 0 | BP190: =$BP$97 -> 0 | BQ190: =$BQ$97 -> 0 | BR190: =$BR$97 -> line 932
A191: 191 | B191: 31X | C191: Steam Production Depr Exp | F191: 4635000 | J191: 191 | L191: P | M191: =VLOOKUP(P191,class,2) -> Open | N191: =IF(MATCH(P191,ref,0)>0,"","matching error") ->  | O191: 0 | P191: xxx | R191: =Q188*O191/SUM(O189:O192) -> 0 | S191: =$R191*(VLOOKUP($P191,class,5)/VLOOKUP($P191,class,4)) -> 0 | T191: =$R191*(VLOOKUP($P191,class,6)/VLOOKUP($P191,class,4)) -> 0 | U191: =$R191*(VLOOKUP($P191,class,7)/VLOOKUP($P191,class,4)) -> 0 | V191: =$R191*(VLOOKUP($P191,class,8)/VLOOKUP($P191,class,4)) -> 0 | W191: =$R191*(VLOOKUP($P191,class,9)/VLOOKUP($P191,class,4)) -> 0 | X191: =$R191*(VLOOKUP($P191,class,10)/VLOOKUP($P191,class,4)) -> 0 | Y191: =$R191*(VLOOKUP($P191,class,11)/VLOOKUP($P191,class,4)) -> 0 | Z191: =$R191*(VLOOKUP($P191,class,12)/VLOOKUP($P191,class,4)) -> 0 | AA191: =$R191*(VLOOKUP($P191,class,13)/VLOOKUP($P191,class,4)) -> 0 | AB191: =$R191*(VLOOKUP($P191,class,14)/VLOOKUP($P191,class,4)) -> 0 | AC191: =$R191*(VLOOKUP($P191,class,15)/VLOOKUP($P191,class,4)) -> 0 | BB191: 191 | BC191: =$BC$99 -> S03 | BD191: =$BD$99 -> Distribution Plant | BF191: =$BF$99 -> 695186000 | BG191: =$BG$99 -> 377267678.9 | BH191: =$BH$99 -> 76499108.08 | BI191: =$BI$99 -> 164018215.4 | BJ191: =$BJ$99 -> 25510159.12 | BK191: =$BK$99 -> 16701655.12 | BL191: =$BL$99 -> 35189183.37 | BM191: =$BM$99 -> 0 | BN191: =$BN$99 -> 0 | BO191: =$BO$99 -> 0 | BP191: =$BP$99 -> 0 | BQ191: =$BQ$99 -> 0 | BR191: =$BR$99 -> line 1089
A192: 192 | B192: 32X | C192: Nuclear Production Depr Exp | F192: 2450000 | J192: 192 | L192: P | M192: =VLOOKUP(P192,class,2) -> Open | N192: =IF(MATCH(P192,ref,0)>0,"","matching error") ->  | O192: 0 | P192: xxx | R192: =Q188*O192/SUM(O189:O192) -> 0 | S192: =$R192*(VLOOKUP($P192,class,5)/VLOOKUP($P192,class,4)) -> 0 | T192: =$R192*(VLOOKUP($P192,class,6)/VLOOKUP($P192,class,4)) -> 0 | U192: =$R192*(VLOOKUP($P192,class,7)/VLOOKUP($P192,class,4)) -> 0 | V192: =$R192*(VLOOKUP($P192,class,8)/VLOOKUP($P192,class,4)) -> 0 | W192: =$R192*(VLOOKUP($P192,class,9)/VLOOKUP($P192,class,4)) -> 0 | X192: =$R192*(VLOOKUP($P192,class,10)/VLOOKUP($P192,class,4)) -> 0 | Y192: =$R192*(VLOOKUP($P192,class,11)/VLOOKUP($P192,class,4)) -> 0 | Z192: =$R192*(VLOOKUP($P192,class,12)/VLOOKUP($P192,class,4)) -> 0 | AA192: =$R192*(VLOOKUP($P192,class,13)/VLOOKUP($P192,class,4)) -> 0 | AB192: =$R192*(VLOOKUP($P192,class,14)/VLOOKUP($P192,class,4)) -> 0 | AC192: =$R192*(VLOOKUP($P192,class,15)/VLOOKUP($P192,class,4)) -> 0 | BB192: 192 | BC192: =$BC$101 -> S04 | BD192: =$BD$101 -> General Plant | BF192: =$BF$101 -> 140219000 | BG192: =$BG$101 -> 75745431.58 | BH192: =$BH$101 -> 13821564.73 | BI192: =$BI$101 -> 30433714.1 | BJ192: =$BJ$101 -> 14500415 | BK192: =$BK$101 -> 2875836.029 | BL192: =$BL$101 -> 2842038.553 | BM192: =$BM$101 -> 0 | BN192: =$BN$101 -> 0 | BO192: =$BO$101 -> 0 | BP192: =$BP$101 -> 0 | BQ192: =$BQ$101 -> 0 | BR192: =$BR$101 -> line 1142
A193: 193 | B193: 33X | C193: Hydraulic Production Depr Exp | F193: 4861000 | J193: 193 | K193: =B57 -> 556-OP | L193: =C57 -> Total System Control & Load Dispatching | O193: P01 | P193: =IF(MATCH(O193,P_ref,0)>0,"","error matching functional allocator") ->  | Q193: =F57 -> 492000 | BB193: 193 | BC193: =$BC$103 -> S05 | BD193: =$BD$103 -> P/T/D Plant | BF193: =$BF$103 -> 1803689000 | BG193: =$BG$103 -> 880619815.3 | BH193: =$BH$103 -> 170414688.3 | BI193: =$BI$103 -> 451378822.6 | BJ193: =$BJ$103 -> 221979667.8 | BK193: =$BK$103 -> 39779796.46 | BL193: =$BL$103 -> 39516209.61 | BM193: =$BM$103 -> 0 | BN193: =$BN$103 -> 0 | BO193: =$BO$103 -> 0 | BP193: =$BP$103 -> 0 | BQ193: =$BQ$103 -> 0 | BR193: =$BR$103 -> Sum lines 893+932+1089
A194: 194 | B194: 34X | C194: Other Production Depr Exp | F194: 5446000 | J194: 194 | L194: P | M194: =HLOOKUP("Factor Name",pfactor,3) -> Coincident Peak | N194: =IF(MATCH(P194,ref,0)>0,"","matching error") ->  | O194: =HLOOKUP(O193,pfactor,3) -> 34.2 | P194: =HLOOKUP("Class",pfactor,3) -> D01 | R194: =Q193*O194/SUM(O194:O197) -> 168264 | S194: =$R194*(VLOOKUP($P194,class,5)/VLOOKUP($P194,class,4)) -> 83852.58898 | T194: =$R194*(VLOOKUP($P194,class,6)/VLOOKUP($P194,class,4)) -> 13097.74587 | U194: =$R194*(VLOOKUP($P194,class,7)/VLOOKUP($P194,class,4)) -> 41159.3783 | V194: =$R194*(VLOOKUP($P194,class,8)/VLOOKUP($P194,class,4)) -> 26754.12487 | W194: =$R194*(VLOOKUP($P194,class,9)/VLOOKUP($P194,class,4)) -> 2991.152609 | X194: =$R194*(VLOOKUP($P194,class,10)/VLOOKUP($P194,class,4)) -> 409.0093727 | Y194: =$R194*(VLOOKUP($P194,class,11)/VLOOKUP($P194,class,4)) -> 0 | Z194: =$R194*(VLOOKUP($P194,class,12)/VLOOKUP($P194,class,4)) -> 0 | AA194: =$R194*(VLOOKUP($P194,class,13)/VLOOKUP($P194,class,4)) -> 0 | AB194: =$R194*(VLOOKUP($P194,class,14)/VLOOKUP($P194,class,4)) -> 0 | AC194: =$R194*(VLOOKUP($P194,class,15)/VLOOKUP($P194,class,4)) -> 0 | BB194: 194 | BC194: =$BC$105 -> S06 | BD194: =$BD$105 -> P/T/D/G Plant | BF194: =$BF$105 -> 1943908000 | BG194: =$BG$105 -> 956365246.9 | BH194: =$BH$105 -> 184236253 | BI194: =$BI$105 -> 481812536.7 | BJ194: =$BJ$105 -> 236480082.8 | BK194: =$BK$105 -> 42655632.49 | BL194: =$BL$105 -> 42358248.16 | BM194: =$BM$105 -> 0 | BN194: =$BN$105 -> 0 | BO194: =$BO$105 -> 0 | BP194: =$BP$105 -> 0 | BQ194: =$BQ$105 -> 0 | BR194: =$BR$105 -> Sum lines 893+932+1089+1142
A195: 195 | C195: Total Production Plant Depreciation Expense | J195: 195 | L195: P | M195: =HLOOKUP("Factor Name",pfactor,4) -> Generation Level Consumption | N195: =IF(MATCH(P195,ref,0)>0,"","matching error") ->  | O195: =HLOOKUP(O193,pfactor,4) -> 65.8 | P195: =HLOOKUP("Class",pfactor,4) -> E02 | R195: =Q193*O195/SUM(O194:O197) -> 323736 | S195: =$R195*(VLOOKUP($P195,class,5)/VLOOKUP($P195,class,4)) -> 139556.1444 | T195: =$R195*(VLOOKUP($P195,class,6)/VLOOKUP($P195,class,4)) -> 28585.91709 | U195: =$R195*(VLOOKUP($P195,class,7)/VLOOKUP($P195,class,4)) -> 86383.27944 | V195: =$R195*(VLOOKUP($P195,class,8)/VLOOKUP($P195,class,4)) -> 60447.26137 | W195: =$R195*(VLOOKUP($P195,class,9)/VLOOKUP($P195,class,4)) -> 7251.891876 | X195: =$R195*(VLOOKUP($P195,class,10)/VLOOKUP($P195,class,4)) -> 1511.505872 | Y195: =$R195*(VLOOKUP($P195,class,11)/VLOOKUP($P195,class,4)) -> 0 | Z195: =$R195*(VLOOKUP($P195,class,12)/VLOOKUP($P195,class,4)) -> 0 | AA195: =$R195*(VLOOKUP($P195,class,13)/VLOOKUP($P195,class,4)) -> 0 | AB195: =$R195*(VLOOKUP($P195,class,14)/VLOOKUP($P195,class,4)) -> 0 | AC195: =$R195*(VLOOKUP($P195,class,15)/VLOOKUP($P195,class,4)) -> 0 | BB195: 195 | BC195: =$BC$107 -> S07 | BD195: =$BD$107 -> Rate Base | BF195: =$BF$107 -> 1125272000 | BG195: =$BG$107 -> 554418683.5 | BH195: =$BH$107 -> 107874129.4 | BI195: =$BI$107 -> 281841171.6 | BJ195: =$BJ$107 -> 134516160.5 | BK195: =$BK$107 -> 25064802.34 | BL195: =$BL$107 -> 21557052.8 | BM195: =$BM$107 -> 0 | BN195: =$BN$107 -> 0 | BO195: =$BO$107 -> 0 | BP195: =$BP$107 -> 0 | BQ195: =$BQ$107 -> 0 | BR195: =$BR$107 -> line 1473
A196: 196 | J196: 196 | L196: P | M196: =HLOOKUP("Factor Name",pfactor,5) -> Open | N196: =IF(MATCH(P196,ref,0)>0,"","matching error") ->  | O196: =HLOOKUP(O193,pfactor,5) -> 0 | P196: =HLOOKUP("Class",pfactor,5) -> xxx | R196: =Q193*O196/SUM(O194:O197) -> 0 | S196: =$R196*(VLOOKUP($P196,class,5)/VLOOKUP($P196,class,4)) -> 0 | T196: =$R196*(VLOOKUP($P196,class,6)/VLOOKUP($P196,class,4)) -> 0 | U196: =$R196*(VLOOKUP($P196,class,7)/VLOOKUP($P196,class,4)) -> 0 | V196: =$R196*(VLOOKUP($P196,class,8)/VLOOKUP($P196,class,4)) -> 0 | W196: =$R196*(VLOOKUP($P196,class,9)/VLOOKUP($P196,class,4)) -> 0 | X196: =$R196*(VLOOKUP($P196,class,10)/VLOOKUP($P196,class,4)) -> 0 | Y196: =$R196*(VLOOKUP($P196,class,11)/VLOOKUP($P196,class,4)) -> 0 | Z196: =$R196*(VLOOKUP($P196,class,12)/VLOOKUP($P196,class,4)) -> 0 | AA196: =$R196*(VLOOKUP($P196,class,13)/VLOOKUP($P196,class,4)) -> 0 | AB196: =$R196*(VLOOKUP($P196,class,14)/VLOOKUP($P196,class,4)) -> 0 | AC196: =$R196*(VLOOKUP($P196,class,15)/VLOOKUP($P196,class,4)) -> 0 | BB196: 196 | BC196: =$BC$109 -> S08 | BD196: =$BD$109 -> Account 361 | BF196: =$BF$109 -> 10571000 | BG196: =$BG$109 -> 5107256.688 | BH196: =$BH$109 -> 1056079.598 | BI196: =$BI$109 -> 2822545.832 | BJ196: =$BJ$109 -> 1261424.672 | BK196: =$BK$109 -> 257937.944 | BL196: =$BL$109 -> 65755.26651 | BM196: =$BM$109 -> 0 | BN196: =$BN$109 -> 0 | BO196: =$BO$109 -> 0 | BP196: =$BP$109 -> 0 | BQ196: =$BQ$109 -> 0 | BR196: =$BR$109 -> Sum lines 946 ~ 956
A197: 197 | C197: Transmission Plant Depreciation Expense | J197: 197 | L197: P | M197: =HLOOKUP("Factor Name",pfactor,6) -> Open | N197: =IF(MATCH(P197,ref,0)>0,"","matching error") ->  | O197: =HLOOKUP(O193,pfactor,6) -> 0 | P197: =HLOOKUP("Class",pfactor,6) -> xxx | R197: =Q193*O197/SUM(O194:O197) -> 0 | S197: =$R197*(VLOOKUP($P197,class,5)/VLOOKUP($P197,class,4)) -> 0 | T197: =$R197*(VLOOKUP($P197,class,6)/VLOOKUP($P197,class,4)) -> 0 | U197: =$R197*(VLOOKUP($P197,class,7)/VLOOKUP($P197,class,4)) -> 0 | V197: =$R197*(VLOOKUP($P197,class,8)/VLOOKUP($P197,class,4)) -> 0 | W197: =$R197*(VLOOKUP($P197,class,9)/VLOOKUP($P197,class,4)) -> 0 | X197: =$R197*(VLOOKUP($P197,class,10)/VLOOKUP($P197,class,4)) -> 0 | Y197: =$R197*(VLOOKUP($P197,class,11)/VLOOKUP($P197,class,4)) -> 0 | Z197: =$R197*(VLOOKUP($P197,class,12)/VLOOKUP($P197,class,4)) -> 0 | AA197: =$R197*(VLOOKUP($P197,class,13)/VLOOKUP($P197,class,4)) -> 0 | AB197: =$R197*(VLOOKUP($P197,class,14)/VLOOKUP($P197,class,4)) -> 0 | AC197: =$R197*(VLOOKUP($P197,class,15)/VLOOKUP($P197,class,4)) -> 0 | BB197: 197 | BC197: =$BC$111 -> S09 | BD197: =$BD$111 -> Account 362 | BF197: =$BF$111 -> 64230000 | BG197: =$BG$111 -> 32344693.47 | BH197: =$BH$111 -> 6688242.429 | BI197: =$BI$111 -> 17875424.19 | BJ197: =$BJ$111 -> 5271663.128 | BK197: =$BK$111 -> 1633543.063 | BL197: =$BL$111 -> 416433.7274 | BM197: =$BM$111 -> 0 | BN197: =$BN$111 -> 0 | BO197: =$BO$111 -> 0 | BP197: =$BP$111 -> 0 | BQ197: =$BQ$111 -> 0 | BR197: =$BR$111 -> Sum lines 957 ~ 967
A198: 198 | B198: 350 | C198: Land & Land Rights Depr Exp | F198: 136000 | J198: 198 | K198: =B58 -> 557-OP | L198: =C58 -> Total Other Expenses | O198: Manual Input | Q198: =F58 -> 89931000 | BB198: 198 | BC198: =$BC$113 -> S10 | BD198: =$BD$113 -> Account 364/365 | BF198: =$BF$113 -> 238083000 | BG198: =$BG$113 -> 118279199.4 | BH198: =$BH$113 -> 24457797.4 | BI198: =$BI$113 -> 65344173.16 | BJ198: =$BJ$113 -> 11457186.1 | BK198: =$BK$113 -> 5973597.054 | BL198: =$BL$113 -> 12571046.93 | BM198: =$BM$113 -> 0 | BN198: =$BN$113 -> 0 | BO198: =$BO$113 -> 0 | BP198: =$BP$113 -> 0 | BQ198: =$BQ$113 -> 0 | BR198: =$BR$113 -> Sum lines 979 ~ 1000
A199: 199 | B199: 352 | C199: Structures & Improvements Depr Exp | F199: 175000 | J199: 199 | L199: P | M199: =VLOOKUP(P199,class,2) -> Production Plant | N199: =IF(MATCH(P199,ref,0)>0,"","matching error") ->  | O199: 100 | P199: S01 | R199: =Q198*O199/SUM(O199:O202) -> 89931000 | S199: =$R199*(VLOOKUP($P199,class,5)/VLOOKUP($P199,class,4)) -> 40836119.51 | T199: =$R199*(VLOOKUP($P199,class,6)/VLOOKUP($P199,class,4)) -> 7619214.419 | U199: =$R199*(VLOOKUP($P199,class,7)/VLOOKUP($P199,class,4)) -> 23313086.9 | V199: =$R199*(VLOOKUP($P199,class,8)/VLOOKUP($P199,class,4)) -> 15939243.63 | W199: =$R199*(VLOOKUP($P199,class,9)/VLOOKUP($P199,class,4)) -> 1872291.125 | X199: =$R199*(VLOOKUP($P199,class,10)/VLOOKUP($P199,class,4)) -> 351044.4238 | Y199: =$R199*(VLOOKUP($P199,class,11)/VLOOKUP($P199,class,4)) -> 0 | Z199: =$R199*(VLOOKUP($P199,class,12)/VLOOKUP($P199,class,4)) -> 0 | AA199: =$R199*(VLOOKUP($P199,class,13)/VLOOKUP($P199,class,4)) -> 0 | AB199: =$R199*(VLOOKUP($P199,class,14)/VLOOKUP($P199,class,4)) -> 0 | AC199: =$R199*(VLOOKUP($P199,class,15)/VLOOKUP($P199,class,4)) -> 0 | BB199: 199 | BC199: =$BC$115 -> S11 | BD199: =$BD$115 -> Account 366/367 | BF199: =$BF$115 -> 134480000 | BG199: =$BG$115 -> 70186176.27 | BH199: =$BH$115 -> 14513112.1 | BI199: =$BI$115 -> 38186744.62 | BJ199: =$BJ$115 -> 7145632 | BK199: =$BK$115 -> 3544697.107 | BL199: =$BL$115 -> 903637.9035 | BM199: =$BM$115 -> 0 | BN199: =$BN$115 -> 0 | BO199: =$BO$115 -> 0 | BP199: =$BP$115 -> 0 | BQ199: =$BQ$115 -> 0 | BR199: =$BR$115 -> Sum lines 1001 ~ 1022
A200: 200 | B200: 353 | C200: Station Equipment Depr Exp | F200: 3114000 | J200: 200 | L200: P | M200: =VLOOKUP(P200,class,2) -> Open | N200: =IF(MATCH(P200,ref,0)>0,"","matching error") ->  | O200: 0 | P200: xxx | R200: =Q198*O200/SUM(O199:O202) -> 0 | S200: =$R200*(VLOOKUP($P200,class,5)/VLOOKUP($P200,class,4)) -> 0 | T200: =$R200*(VLOOKUP($P200,class,6)/VLOOKUP($P200,class,4)) -> 0 | U200: =$R200*(VLOOKUP($P200,class,7)/VLOOKUP($P200,class,4)) -> 0 | V200: =$R200*(VLOOKUP($P200,class,8)/VLOOKUP($P200,class,4)) -> 0 | W200: =$R200*(VLOOKUP($P200,class,9)/VLOOKUP($P200,class,4)) -> 0 | X200: =$R200*(VLOOKUP($P200,class,10)/VLOOKUP($P200,class,4)) -> 0 | Y200: =$R200*(VLOOKUP($P200,class,11)/VLOOKUP($P200,class,4)) -> 0 | Z200: =$R200*(VLOOKUP($P200,class,12)/VLOOKUP($P200,class,4)) -> 0 | AA200: =$R200*(VLOOKUP($P200,class,13)/VLOOKUP($P200,class,4)) -> 0 | AB200: =$R200*(VLOOKUP($P200,class,14)/VLOOKUP($P200,class,4)) -> 0 | AC200: =$R200*(VLOOKUP($P200,class,15)/VLOOKUP($P200,class,4)) -> 0 | BB200: 200 | BC200: =$BC$117 -> S12 | BD200: =$BD$117 -> Account 368 | BF200: =$BF$117 -> 121563000 | BG200: =$BG$117 -> 68204560.4 | BH200: =$BH$117 -> 14103353.16 | BI200: =$BI$117 -> 34932344.42 | BJ200: =$BJ$117 -> 0 | BK200: =$BK$117 -> 3444617.171 | BL200: =$BL$117 -> 878124.8565 | BM200: =$BM$117 -> 0 | BN200: =$BN$117 -> 0 | BO200: =$BO$117 -> 0 | BP200: =$BP$117 -> 0 | BQ200: =$BQ$117 -> 0 | BR200: =$BR$117 -> Sum lines 1023 ~ 1033
... 1300 more rows

Sheet SUMCOST (hidden)
A1: 1 | B1: Sumcost | E1: AVISTA UTILITIES | J1: =ASSIGN!T1 -> Electric Utility | M1: =ASSIGN!W1 -> Washington Jurisdiction | Q1: Page 1 of 1 | AA1: =E1 -> AVISTA UTILITIES | AD1: Criteria Area | AG1: name of criteria | AJ1: Line | AK1: Account | AL1: Desc1 | AM1: Desc2 | AN1: Notes | AO1: FAlloc | AP1: CAlloc | AQ1: PTotal | AR1: FTotal | AS1: =AS5 -> Sch 1 | AT1: Sch 11-12 | AU1: Sch 21-22 | AV1: Sch 25 | AW1: Sch 31-32 | AX1: Sch 41-49 | AY1: Open 1 | AZ1: Open 2 | BA1: Open 3 | BB1: Open 4 | BC1: Open 5
A2: 2 | B2: =CONCATENATE(ASSIGN!K2," ",ASSIGN!L2) -> Scenario: Company Base Case UE-12_____ | E2: Cost of Service Basic Summary | Q2: =ASSIGN!AC2 -> 2012-04-02 | W2: =ASSIGN!H1 -> Washington Jurisdiction | X2: =ASSIGN!I1 -> 0 | AA2: =B1 -> Sumcost | AB2: =NOW() -> 2012-09-17T16:32:56.500 | AD2: Line | AE2: Line | AF2: CAlloc | AG2: Crit_1 | AJ2: 5 | AK2: (k) | AL2: (l) | AM2: (m) | AN2: (n) | AO2: (o) | AP2: (p) | AQ2: (q) | AR2: (r) | AS2: (s) | AT2: (t) | AU2: (u) | AV2: (v) | AW2: (w) | AX2: (x) | AY2: (y) | AZ2: (z) | BA2: (aa) | BB2: (ab) | BC2: (ac)
A3: 3 | B3: =ASSIGN!L3 -> Load Factor Peak Credit Method | E3: =ASSIGN!N3 -> For the Twelve Months Ended December 31, 2011 | Q3: =ASSIGN!AC3 ->  | W3: =ASSIGN!H2 -> Electric Utility | X3: =ASSIGN!I2 -> 0 | AA3: =B2 -> Scenario: Company Base Case UE-12_____ | AB3: =NOW() -> 39707.68954 | AD3: =">"&TEXT(C664,"0") -> >872 | AE3: ="<="&TEXT(C666,"0") -> <=893 | AG3: S01 | AJ3: 6 | AN3: Notes | AO3: Functional | AP3: Class | AQ3: Proforma | AR3: Functional | AS3: Residential | AT3: General | AU3: Large Gen | AV3: Extra Large | AW3: Pumping | AX3: Street &
A4: 4 | B4: =ASSIGN!L4 -> PROPOSED METHOD | W4: =ASSIGN!H3 -> COS Checker | X4: =ASSIGN!I3 -> 0 | AA4: Standard Report Error Check | AD4: Line | AE4: Line | AF4: CAlloc | AG4: Crit1A | AJ4: 7 | AK4: Account Description | AO4: Allocation | AP4: Allocator | AQ4: Totals | AR4: Totals | AS4: Service | AT4: Service | AU4: Service | AV4: Gen Service | AW4: Service | AX4: Area Lights
A5: 5 | B5: (b) | C5: (c) | D5: (d) | E5: (e) | F5: (f) | G5: (g) | H5: (h) | I5: (i) | J5: (j) | K5: (k) | L5: (l) | M5: (m) | N5: (n) | O5: (o) | P5: (p) | Q5: (q) | W5: =ASSIGN!H4 -> 0 | X5: =ASSIGN!I4 -> 0 | AA5: =E3 -> For the Twelve Months Ended December 31, 2011 | AD5: =AD3 -> >872 | AE5: =AE3 -> <=893 | AF5: =E663 -> E* | AJ5: 8 | AS5: Sch 1 | AT5: Sch 11-12 | AU5: Sch 21-22 | AV5: Sch 25 | AW5: Sch 31-32 | AX5: Sch 41-49 | AY5: Open 1 | AZ5: Open 2 | BA5: Open 3 | BB5: Open 4 | BC5: Open 5
A6: 6 | G6: =AS3 -> Residential | H6: General | I6: Large Gen | J6: Extra Large | K6: Pumping | L6: Street & | W6: =ASSIGN!H5 -> Checker | X6: =ASSIGN!I5 -> 0 | AD6: Line | AE6: Line | AF6: CAlloc | AG6: Crit1B | AJ6: 9 | AK6: Operation & Maintenance Expenses
A7: 7 | F7: System | G7: Service | H7: Service | I7: Service | J7: Gen Service | K7: Service | L7: Area Lights | W7: =ASSIGN!H6 -> Description | X7: =ASSIGN!I6 -> Amounts | AD7: =AD5 -> >872 | AE7: =AE5 -> <=893 | AF7: =E664 -> D* | AJ7: 10 | AL7: Production Expenses
A8: 8 | B8: Description | E8: Source | F8: Total | G8: Sch 1 | H8: Sch 11-12 | I8: Sch 21-22 | J8: Sch 25 | K8: Sch 31-32 | L8: Sch 41-49 | M8: Open 1 | N8: Open 2 | O8: Open 3 | P8: Open 4 | Q8: Open 5 | W8: =ASSIGN!H7 -> 0 | X8: =ASSIGN!I7 -> 0 | AD8: Line | AE8: Line | AF8: CAlloc | AG8: Crit1C | AJ8: 11 | AK8: 500-OP | AL8: Steam | AM8: Supervision & Engineering | AO8: P01 | AQ8: 349000
A9: 9 | B9: Plant In Service | W9: =ASSIGN!H8 -> Key Items for Checking | X9: =ASSIGN!I8 -> 0 | Z9: Error Messages | AD9: =AD7 -> >872 | AE9: =AE7 -> <=893 | AF9: =E665 -> C* | AJ9: 12 | AL9: P | AM9: Coincident Peak | AO9: 34.2 | AP9: D01 | AR9: 119358 | AS9: 59480.79991 | AT9: 9290.88071 | AU9: 29196.38827 | AV9: 18978.0276 | AW9: 2121.772887 | AX9: 290.1306323 | AY9: 0 | AZ9: 0 | BA9: 0 | BB9: 0 | BC9: 0
A10: 10 | B10: Production Plant | D10: Database Line | E10: 893 | F10: =SUM(G10:Q10) -> 775077000 | G10: =VLOOKUP($E10,_xlnm.Database,10) -> 351949127.7 | H10: =VLOOKUP($E10,_xlnm.Database,11) -> 65666765.12 | I10: =VLOOKUP($E10,_xlnm.Database,12) -> 200925570.2 | J10: =VLOOKUP($E10,_xlnm.Database,13) -> 137373554.6 | K10: =VLOOKUP($E10,_xlnm.Database,14) -> 16136480.06 | L10: =VLOOKUP($E10,_xlnm.Database,15) -> 3025502.428 | M10: =VLOOKUP($E10,_xlnm.Database,16) -> 0 | N10: =VLOOKUP($E10,_xlnm.Database,17) -> 0 | O10: =VLOOKUP($E10,_xlnm.Database,18) -> 0 | P10: =VLOOKUP($E10,_xlnm.Database,19) -> 0 | Q10: =VLOOKUP($E10,_xlnm.Database,20) -> 0 | W10: =ASSIGN!H9 -> 0 | X10: =ASSIGN!I9 -> 0 | Z10: 1 | AA10: =IF(X11=ROUND(F28,0),"Total Rate Base Matches Checker","ERROR! TOTAL RATE BASE DOES NOT MATCH CHECKER") -> Total Rate Base Matches Checker | AD10: Line | AE10: Line | AF10: CAlloc | AG10: Crit1D | AJ10: 13 | AL10: P | AM10: Generation Level Consumption | AO10: 65.8 | AP10: E02 | AR10: 229642 | AS10: 98994.09427 | AT10: 20277.40867 | AU10: 61275.94415 | AV10: 42878.24028 | AW10: 5144.126554 | AX10: 1072.186076 | AY10: 0 | AZ10: 0 | BA10: 0 | BB10: 0 | BC10: 0
A11: 11 | B11: Transmission Plant | D11: Database Line | E11: 932 | F11: =SUM(G11:Q11) -> 333426000 | G11: =VLOOKUP($E11,_xlnm.Database,10) -> 151403008.8 | H11: =VLOOKUP($E11,_xlnm.Database,11) -> 28248815.06 | I11: =VLOOKUP($E11,_xlnm.Database,12) -> 86435036.99 | J11: =VLOOKUP($E11,_xlnm.Database,13) -> 59095954.08 | K11: =VLOOKUP($E11,_xlnm.Database,14) -> 6941661.281 | L11: =VLOOKUP($E11,_xlnm.Database,15) -> 1301523.813 | M11: =VLOOKUP($E11,_xlnm.Database,16) -> 0 | N11: =VLOOKUP($E11,_xlnm.Database,17) -> 0 | O11: =VLOOKUP($E11,_xlnm.Database,18) -> 0 | P11: =VLOOKUP($E11,_xlnm.Database,19) -> 0 | Q11: =VLOOKUP($E11,_xlnm.Database,20) -> 0 | W11: =ASSIGN!H10 -> Rate Base | X11: =ASSIGN!I10 -> 1125272000 | Z11: 2 | AA11: =IF(X12=ROUND(F54,0),"Total Operating Expense Matches Checker","ERROR! TOTAL OPERATING EXPENSE DOES NOT MATCH CHECKER") -> Total Operating Expense Matches Checker | AD11: =AD9 -> >872 | AE11: =AE9 -> <=893 | AF11: =E666 -> R* | AJ11: 14 | AL11: P | AM11: Open | AO11: 0 | AP11: xxx | AR11: 0 | AS11: 0 | AT11: 0 | AU11: 0 | AV11: 0 | AW11: 0 | AX11: 0 | AY11: 0 | AZ11: 0 | BA11: 0 | BB11: 0 | BC11: 0
A12: 12 | B12: Distribution Plant | D12: Database Line | E12: 1089 | F12: =SUM(G12:Q12) -> 695186000 | G12: =VLOOKUP($E12,_xlnm.Database,10) -> 377267678.9 | H12: =VLOOKUP($E12,_xlnm.Database,11) -> 76499108.08 | I12: =VLOOKUP($E12,_xlnm.Database,12) -> 164018215.4 | J12: =VLOOKUP($E12,_xlnm.Database,13) -> 25510159.12 | K12: =VLOOKUP($E12,_xlnm.Database,14) -> 16701655.12 | L12: =VLOOKUP($E12,_xlnm.Database,15) -> 35189183.37 | M12: =VLOOKUP($E12,_xlnm.Database,16) -> 0 | N12: =VLOOKUP($E12,_xlnm.Database,17) -> 0 | O12: =VLOOKUP($E12,_xlnm.Database,18) -> 0 | P12: =VLOOKUP($E12,_xlnm.Database,19) -> 0 | Q12: =VLOOKUP($E12,_xlnm.Database,20) -> 0 | W12: =ASSIGN!H11 -> Expenses | X12: =ASSIGN!I11 -> 429185000 | Z12: 3 | AA12: =IF(X13=ROUND(F32,0),"Total Operating Revenue Matches Checker","ERROR! TOTAL OPERATING REVENUE DOES NOT MATCH CHECKER") -> Total Operating Revenue Matches Checker | AD12: Line | AE12: Line | AF12: CAlloc | AG12: Crit1E | AJ12: 15 | AL12: P | AM12: Open | AO12: 0 | AP12: xxx | AR12: 0 | AS12: 0 | AT12: 0 | AU12: 0 | AV12: 0 | AW12: 0 | AX12: 0 | AY12: 0 | AZ12: 0 | BA12: 0 | BB12: 0 | BC12: 0
A13: 13 | B13: Intangible Plant | D13: Database Line | E13: 870 | F13: =SUM(G13:Q13) -> 86962000 | G13: =VLOOKUP($E13,_xlnm.Database,10) -> 40306629.65 | H13: =VLOOKUP($E13,_xlnm.Database,11) -> 7586235.443 | I13: =VLOOKUP($E13,_xlnm.Database,12) -> 22300212.66 | J13: =VLOOKUP($E13,_xlnm.Database,13) -> 14204122.04 | K13: =VLOOKUP($E13,_xlnm.Database,14) -> 1835202.791 | L13: =VLOOKUP($E13,_xlnm.Database,15) -> 729597.4089 | M13: =VLOOKUP($E13,_xlnm.Database,16) -> 0 | N13: =VLOOKUP($E13,_xlnm.Database,17) -> 0 | O13: =VLOOKUP($E13,_xlnm.Database,18) -> 0 | P13: =VLOOKUP($E13,_xlnm.Database,19) -> 0 | Q13: =VLOOKUP($E13,_xlnm.Database,20) -> 0 | W13: =ASSIGN!H12 -> Revenue | X13: =ASSIGN!I12 -> 523083000 | Z13: 4 | AA13: =IF(X14=ROUND(F56,0),"Net Income Matches Checker","ERROR! NET INCOME DOES NOT MATCH CHECKER") -> Net Income Matches Checker | AD13: =AD11 -> >872 | AE13: =AE11 -> <=893 | AJ13: 16 | AK13: 501-OP | AL13: Steam | AM13: Fuel | AO13: P01 | AQ13: 20467000
A14: 14 | B14: General Plant | D14: Database Line | E14: 1142 | F14: =SUM(G14:Q14) -> 140219000 | G14: =VLOOKUP($E14,_xlnm.Database,10) -> 75745431.58 | H14: =VLOOKUP($E14,_xlnm.Database,11) -> 13821564.73 | I14: =VLOOKUP($E14,_xlnm.Database,12) -> 30433714.1 | J14: =VLOOKUP($E14,_xlnm.Database,13) -> 14500415 | K14: =VLOOKUP($E14,_xlnm.Database,14) -> 2875836.029 | L14: =VLOOKUP($E14,_xlnm.Database,15) -> 2842038.553 | M14: =VLOOKUP($E14,_xlnm.Database,16) -> 0 | N14: =VLOOKUP($E14,_xlnm.Database,17) -> 0 | O14: =VLOOKUP($E14,_xlnm.Database,18) -> 0 | P14: =VLOOKUP($E14,_xlnm.Database,19) -> 0 | Q14: =VLOOKUP($E14,_xlnm.Database,20) -> 0 | W14: =ASSIGN!H13 -> Income | X14: =ASSIGN!I13 -> 93898000 | Z14: 5 | AD14: Line | AE14: Line | AF14: CAlloc | AG14: Crit1F | AJ14: 17 | AL14: P | AM14: Coincident Peak | AO14: 34.2 | AP14: D01 | AR14: 6999714 | AS14: 3488233.615 | AT14: 544860.904 | AU14: 1712213.406 | AV14: 1112960.719 | AW14: 124430.7326 | AX14: 17014.62364 | AY14: 0 | AZ14: 0 | BA14: 0 | BB14: 0 | BC14: 0
A15: 15 | B15: Total Plant In Service | F15: =SUM(F10:F14) -> 2030870000 | G15: 996671876.6 | H15: 191822488.4 | I15: 504112749.4 | J15: 250684204.8 | K15: 44490835.28 | L15: 43087845.57 | M15: 0 | N15: 0 | O15: 0 | P15: 0 | Q15: 0 | W15: =ASSIGN!H14 -> Interest | X15: =ASSIGN!I14 -> 34872000 | Z15: 6 | AD15: =AD13 -> >872 | AE15: =AE13 -> <=893 | AJ15: 18 | AL15: P | AM15: Generation Level Consumption | AO15: 65.8 | AP15: E02 | AR15: 13467286 | AS15: 5805478.875 | AT15: 1189162.531 | AU15: 3593509.309 | AV15: 2514581.501 | AW15: 301675.7541 | AX15: 62878.02985 | AY15: 0 | AZ15: 0 | BA15: 0 | BB15: 0 | BC15: 0
A16: 16 | W16: =ASSIGN!H15 -> SIT | X16: =ASSIGN!I15 -> 0 | Z16: 7 | AD16: Undefined Space | AG16: Crit1G | AJ16: 19 | AL16: P | AM16: Open | AO16: 0 | AP16: xxx | AR16: 0 | AS16: 0 | AT16: 0 | AU16: 0 | AV16: 0 | AW16: 0 | AX16: 0 | AY16: 0 | AZ16: 0 | BA16: 0 | BB16: 0 | BC16: 0
A17: 17 | B17: Accum Depreciation | W17: =ASSIGN!H16 -> FIT | X17: =ASSIGN!I16 -> 14643000 | Z17: 8 | AD17: Available for Expansion | AJ17: 20 | AL17: P | AM17: Open | AO17: 0 | AP17: xxx | AR17: 0 | AS17: 0 | AT17: 0 | AU17: 0 | AV17: 0 | AW17: 0 | AX17: 0 | AY17: 0 | AZ17: 0 | BA17: 0 | BB17: 0 | BC17: 0
A18: 18 | B18: Production Plant | D18: Database Line | E18: 1168 | F18: =SUM(G18:Q18) -> -341353000 | G18: =VLOOKUP($E18,_xlnm.Database,10) -> -155002523.1 | H18: =VLOOKUP($E18,_xlnm.Database,11) -> -28920413.42 | I18: =VLOOKUP($E18,_xlnm.Database,12) -> -88489977.33 | J18: =VLOOKUP($E18,_xlnm.Database,13) -> -60500924.38 | K18: =VLOOKUP($E18,_xlnm.Database,14) -> -7106695.049 | L18: =VLOOKUP($E18,_xlnm.Database,15) -> -1332466.749 | M18: =VLOOKUP($E18,_xlnm.Database,16) -> 0 | N18: =VLOOKUP($E18,_xlnm.Database,17) -> 0 | O18: =VLOOKUP($E18,_xlnm.Database,18) -> 0 | P18: =VLOOKUP($E18,_xlnm.Database,19) -> 0 | Q18: =VLOOKUP($E18,_xlnm.Database,20) -> 0 | W18: =ASSIGN!H17 -> ITC | X18: =ASSIGN!I17 -> -114000 | Z18: 9 | AG18: Crit1H | AJ18: 21 | AK18: 502-OP | AL18: Steam | AM18: Steam Expenses | AO18: P01 | AQ18: 2849000
A19: 19 | B19: Transmission Plant | D19: Database Line | E19: 1207 | F19: =SUM(G19:Q19) -> -111284000 | G19: =VLOOKUP($E19,_xlnm.Database,10) -> -50532149.35 | H19: =VLOOKUP($E19,_xlnm.Database,11) -> -9428302.336 | I19: =VLOOKUP($E19,_xlnm.Database,12) -> -28848490.09 | J19: =VLOOKUP($E19,_xlnm.Database,13) -> -19723819.24 | K19: =VLOOKUP($E19,_xlnm.Database,14) -> -2316843.42 | L19: =VLOOKUP($E19,_xlnm.Database,15) -> -434395.5661 | M19: =VLOOKUP($E19,_xlnm.Database,16) -> 0 | N19: =VLOOKUP($E19,_xlnm.Database,17) -> 0 | O19: =VLOOKUP($E19,_xlnm.Database,18) -> 0 | P19: =VLOOKUP($E19,_xlnm.Database,19) -> 0 | Q19: =VLOOKUP($E19,_xlnm.Database,20) -> 0 | W19: =ASSIGN!H18 -> Deferred Tax | X19: =ASSIGN!I18 -> 14889000 | Z19: 10 | AJ19: 22 | AL19: P | AM19: Coincident Peak | AO19: 34.2 | AP19: D01 | AR19: 974358 | AS19: 485561.0285 | AT19: 75844.46746 | AU19: 238339.5707 | AV19: 154923.784 | AW19: 17320.71907 | AX19: 2368.430291 | AY19: 0 | AZ19: 0 | BA19: 0 | BB19: 0 | BC19: 0
A20: 20 | B20: Distribution Plant | D20: Database Line | E20: 1364 | F20: =SUM(G20:Q20) -> -209013000 | G20: =VLOOKUP($E20,_xlnm.Database,10) -> -112706070.4 | H20: =VLOOKUP($E20,_xlnm.Database,11) -> -22229057.45 | I20: =VLOOKUP($E20,_xlnm.Database,12) -> -47127722.89 | J20: =VLOOKUP($E20,_xlnm.Database,13) -> -7405287.221 | K20: =VLOOKUP($E20,_xlnm.Database,14) -> -4788284.273 | L20: =VLOOKUP($E20,_xlnm.Database,15) -> -14756577.8 | M20: =VLOOKUP($E20,_xlnm.Database,16) -> 0 | N20: =VLOOKUP($E20,_xlnm.Database,17) -> 0 | O20: =VLOOKUP($E20,_xlnm.Database,18) -> 0 | P20: =VLOOKUP($E20,_xlnm.Database,19) -> 0 | Q20: =VLOOKUP($E20,_xlnm.Database,20) -> 0 | W20: =ASSIGN!H19 -> Gen Bus Revenue | X20: =ASSIGN!I19 -> 455105000 | Z20: 11 | AD20: Line | AE20: Line | AF20: CAlloc | AG20: Crit_2 | AJ20: 23 | AL20: P | AM20: Generation Level Consumption | AO20: 65.8 | AP20: E02 | AR20: 1874642 | AS20: 808120.844 | AT20: 165531.0524 | AU20: 500215.3722 | AV20: 350028.9586 | AW20: 41993.17064 | AX20: 8752.602093 | AY20: 0 | AZ20: 0 | BA20: 0 | BB20: 0 | BC20: 0
A21: 21 | B21: Intangible Plant | D21: Database Line | E21: 1439 | F21: =SUM(G21:Q21) -> -13861000 | G21: =VLOOKUP($E21,_xlnm.Database,10) -> -6655329.794 | H21: =VLOOKUP($E21,_xlnm.Database,11) -> -1269877.044 | I21: =VLOOKUP($E21,_xlnm.Database,12) -> -3484098.71 | J21: =VLOOKUP($E21,_xlnm.Database,13) -> -1928843.251 | K21: =VLOOKUP($E21,_xlnm.Database,14) -> -299182.8419 | L21: =VLOOKUP($E21,_xlnm.Database,15) -> -223668.3592 | M21: =VLOOKUP($E21,_xlnm.Database,16) -> 0 | N21: =VLOOKUP($E21,_xlnm.Database,17) -> 0 | O21: =VLOOKUP($E21,_xlnm.Database,18) -> 0 | P21: =VLOOKUP($E21,_xlnm.Database,19) -> 0 | Q21: =VLOOKUP($E21,_xlnm.Database,20) -> 0 | W21: =ASSIGN!H20 -> Allocated Revenue | X21: =ASSIGN!I20 -> 0 | Z21: 12 | AD21: =">"&TEXT(C671,"0") -> >895 | AE21: ="<="&TEXT(C673,"0") -> <=932 | AG21: S02 | AJ21: 24 | AL21: P | AM21: Open | AO21: 0 | AP21: xxx | AR21: 0 | AS21: 0 | AT21: 0 | AU21: 0 | AV21: 0 | AW21: 0 | AX21: 0 | AY21: 0 | AZ21: 0 | BA21: 0 | BB21: 0 | BC21: 0
A22: 22 | B22: General Plant | D22: Database Line | E22: 1417 | F22: =SUM(G22:Q22) -> -47365000 | G22: =VLOOKUP($E22,_xlnm.Database,10) -> -25771332.43 | H22: =VLOOKUP($E22,_xlnm.Database,11) -> -4681471.21 | I22: =VLOOKUP($E22,_xlnm.Database,12) -> -10158531.73 | J22: =VLOOKUP($E22,_xlnm.Database,13) -> -4839353.139 | K22: =VLOOKUP($E22,_xlnm.Database,14) -> -965322.3771 | L22: =VLOOKUP($E22,_xlnm.Database,15) -> -948989.1092 | M22: =VLOOKUP($E22,_xlnm.Database,16) -> 0 | N22: =VLOOKUP($E22,_xlnm.Database,17) -> 0 | O22: =VLOOKUP($E22,_xlnm.Database,18) -> 0 | P22: =VLOOKUP($E22,_xlnm.Database,19) -> 0 | Q22: =VLOOKUP($E22,_xlnm.Database,20) -> 0 | W22: =ASSIGN!H21 -> Secondary Sales | X22: =ASSIGN!I21 -> 55442000 | AD22: Line | AE22: Line | AF22: CAlloc | AG22: Crit2A | AJ22: 25 | AL22: P | AM22: Open | AO22: 0 | AP22: xxx | AR22: 0 | AS22: 0 | AT22: 0 | AU22: 0 | AV22: 0 | AW22: 0 | AX22: 0 | AY22: 0 | AZ22: 0 | BA22: 0 | BB22: 0 | BC22: 0
A23: 23 | B23: Total Accumulated Depreciation | F23: =SUM(F18:F22) -> -722876000 | G23: -350667405 | H23: -66529121.47 | I23: -178108820.8 | J23: -94398227.23 | K23: -15476327.96 | L23: -17696097.58 | M23: 0 | N23: 0 | O23: 0 | P23: 0 | Q23: 0 | W23: =ASSIGN!H22 -> MOPS Revenue | X23: =ASSIGN!I22 -> 0 | AD23: =AD21 -> >895 | AE23: =AE21 -> <=932 | AF23: =E670 -> E* | AJ23: 26 | AK23: 503-OP | AL23: Steam | AM23: From Other Sources | AO23: P01 | AQ23: 0
A24: 24 | W24: =ASSIGN!H23 -> Misc Rev | X24: =ASSIGN!I23 -> 356000 | AD24: Line | AE24: Line | AF24: CAlloc | AG24: Crit2B | AJ24: 27 | AL24: P | AM24: Coincident Peak | AO24: 34.2 | AP24: D01 | AR24: 0 | AS24: 0 | AT24: 0 | AU24: 0 | AV24: 0 | AW24: 0 | AX24: 0 | AY24: 0 | AZ24: 0 | BA24: 0 | BB24: 0 | BC24: 0
A25: 25 | B25: Net Plant | F25: =F15+F23 -> 1307994000 | G25: =G15+G23 -> 646004471.5 | H25: 125293367 | I25: 326003928.6 | J25: 156285977.6 | K25: 29014507.32 | L25: 25391747.99 | M25: 0 | N25: 0 | O25: 0 | P25: 0 | Q25: 0 | W25: =ASSIGN!H24 -> Water Sales | X25: =ASSIGN!I24 -> 330000 | AD25: =AD23 -> >895 | AE25: =AE23 -> <=932 | AF25: =E671 -> D* | AJ25: 28 | AL25: P | AM25: Generation Level Consumption | AO25: 65.8 | AP25: E02 | AR25: 0 | AS25: 0 | AT25: 0 | AU25: 0 | AV25: 0 | AW25: 0 | AX25: 0 | AY25: 0 | AZ25: 0 | BA25: 0 | BB25: 0 | BC25: 0
A26: 26 | B26: Accumulated Deferred FIT | C26: DSum | D26: 1445 | E26: 1451 | F26: =SUM(G26:Q26) -> -206296000 | G26: =DSUM(_xlnm.Database,T(G$660),ADFIT) -> -101500852.7 | H26: -19493115.1 | I26: -51019513.89 | J26: -25440170.6 | K26: -4507674.467 | L26: -4334673.243 | M26: 0 | N26: 0 | O26: 0 | P26: 0 | Q26: 0 | S26: Line | T26: Line | V26: ADFIT | W26: =ASSIGN!H25 -> Rent | X26: =ASSIGN!I25 -> 1916000 | AD26: Line | AE26: Line | AF26: CAlloc | AG26: Crit2C | AJ26: 29 | AL26: P | AM26: Open | AO26: 0 | AP26: xxx | AR26: 0 | AS26: 0 | AT26: 0 | AU26: 0 | AV26: 0 | AW26: 0 | AX26: 0 | AY26: 0 | AZ26: 0 | BA26: 0 | BB26: 0 | BC26: 0
A27: 27 | B27: Miscellaneous Rate Base | D27: Database Line | E27: 1471 | F27: =SUM(G27:Q27) -> 23574000 | G27: =VLOOKUP($E27,_xlnm.Database,10)-G26 -> 9915064.624 | H27: =VLOOKUP($E27,_xlnm.Database,11)-H26 -> 2073877.495 | I27: =VLOOKUP($E27,_xlnm.Database,12)-I26 -> 6856756.855 | J27: =VLOOKUP($E27,_xlnm.Database,13)-J26 -> 3670353.484 | K27: =VLOOKUP($E27,_xlnm.Database,14)-K26 -> 557969.4874 | L27: =VLOOKUP($E27,_xlnm.Database,15)-L26 -> 499978.0553 | M27: =VLOOKUP($E27,_xlnm.Database,16)-M26 -> 0 | N27: =VLOOKUP($E27,_xlnm.Database,17)-N26 -> 0 | O27: =VLOOKUP($E27,_xlnm.Database,18)-O26 -> 0 | P27: =VLOOKUP($E27,_xlnm.Database,19)-P26 -> 0 | Q27: =VLOOKUP($E27,_xlnm.Database,20)-Q26 -> 0 | S27: =">="&TEXT(D26,"0") -> >=1445 | T27: ="<="&TEXT(E26,"0") -> <=1451 | W27: =ASSIGN!H26 -> Wheeling Revenue | X27: =ASSIGN!I26 -> 9934000 | AD27: =AD25 -> >895 | AE27: =AE25 -> <=932 | AF27: =E672 -> C* | AJ27: 30 | AL27: P | AM27: Open | AO27: 0 | AP27: xxx | AR27: 0 | AS27: 0 | AT27: 0 | AU27: 0 | AV27: 0 | AW27: 0 | AX27: 0 | AY27: 0 | AZ27: 0 | BA27: 0 | BB27: 0 | BC27: 0
A28: 28 | B28: Total Rate Base | F28: =SUM(F25:F27) -> 1125272000 | G28: 554418683.5 | H28: 107874129.4 | I28: 281841171.6 | J28: 134516160.5 | K28: 25064802.34 | L28: 21557052.8 | M28: 0 | N28: 0 | O28: 0 | P28: 0 | Q28: 0 | W28: =ASSIGN!H27 -> Other Rev | X28: =ASSIGN!I27 -> 0 | Y28: =SUM(X20:X28) -> 523083000 | AD28: Line | AE28: Line | AF28: CAlloc | AG28: Crit2D | AJ28: 31 | AK28: 504-OP | AL28: Steam | AM28: Steam Transferred-CR | AO28: P01 | AQ28: 0
A29: 29 | AD29: =AD27 -> >895 | AE29: =AE27 -> <=932 | AF29: =E673 -> R* | AJ29: 32 | AL29: P | AM29: Coincident Peak | AO29: 34.2 | AP29: D01 | AR29: 0 | AS29: 0 | AT29: 0 | AU29: 0 | AV29: 0 | AW29: 0 | AX29: 0 | AY29: 0 | AZ29: 0 | BA29: 0 | BB29: 0 | BC29: 0
A30: 30 | B30: Revenue From Retail Rates | D30: Database Line | E30: 820 | F30: =SUM(G30:Q30) -> 455105000 | G30: =-VLOOKUP($E30,_xlnm.Database,10) -> 198459000 | H30: =-VLOOKUP($E30,_xlnm.Database,11) -> 55514000 | I30: =-VLOOKUP($E30,_xlnm.Database,12) -> 126921000 | J30: =-VLOOKUP($E30,_xlnm.Database,13) -> 58190000 | K30: =-VLOOKUP($E30,_xlnm.Database,14) -> 9439000 | L30: =-VLOOKUP($E30,_xlnm.Database,15) -> 6582000 | M30: =-VLOOKUP($E30,_xlnm.Database,16) -> 0 | N30: =-VLOOKUP($E30,_xlnm.Database,17) -> 0 | O30: =-VLOOKUP($E30,_xlnm.Database,18) -> 0 | P30: =-VLOOKUP($E30,_xlnm.Database,19) -> 0 | Q30: =-VLOOKUP($E30,_xlnm.Database,20) -> 0 | AD30: Line | AE30: Line | AF30: CAlloc | AG30: Crit2E | AJ30: 33 | AL30: P | AM30: Generation Level Consumption | AO30: 65.8 | AP30: E02 | AR30: 0 | AS30: 0 | AT30: 0 | AU30: 0 | AV30: 0 | AW30: 0 | AX30: 0 | AY30: 0 | AZ30: 0 | BA30: 0 | BB30: 0 | BC30: 0
A31: 31 | B31: Other Operating Revenues | D31: Database Line | E31: 844 | F31: =SUM(G31:Q31) -> 67978000 | G31: =-VLOOKUP($E31,_xlnm.Database,10)-G30 -> 31176133.17 | H31: =-VLOOKUP($E31,_xlnm.Database,11)-H30 -> 5847444.563 | I31: =-VLOOKUP($E31,_xlnm.Database,12)-I30 -> 17541023.67 | J31: =-VLOOKUP($E31,_xlnm.Database,13)-J30 -> 11558990.18 | K31: =-VLOOKUP($E31,_xlnm.Database,14)-K30 -> 1426408.144 | L31: =-VLOOKUP($E31,_xlnm.Database,15)-L30 -> 428000.2742 | M31: =-VLOOKUP($E31,_xlnm.Database,16)-M30 -> 0 | N31: =-VLOOKUP($E31,_xlnm.Database,17)-N30 -> 0 | O31: =-VLOOKUP($E31,_xlnm.Database,18)-O30 -> 0 | P31: =-VLOOKUP($E31,_xlnm.Database,19)-P30 -> 0 | Q31: =-VLOOKUP($E31,_xlnm.Database,20)-Q30 -> 0 | AD31: =AD29 -> >895 | AE31: =AE29 -> <=932 | AJ31: 34 | AL31: P | AM31: Open | AO31: 0 | AP31: xxx | AR31: 0 | AS31: 0 | AT31: 0 | AU31: 0 | AV31: 0 | AW31: 0 | AX31: 0 | AY31: 0 | AZ31: 0 | BA31: 0 | BB31: 0 | BC31: 0
A32: 32 | B32: Total Revenues | F32: =SUM(F30:F31) -> 523083000 | G32: 229635133.2 | H32: 61361444.56 | I32: 144462023.7 | J32: 69748990.18 | K32: 10865408.14 | L32: 7010000.274 | M32: 0 | N32: 0 | O32: 0 | P32: 0 | Q32: 0 | AD32: Line | AE32: Line | AF32: CAlloc | AG32: Crit2F | AJ32: 35 | AL32: P | AM32: Open | AO32: 0 | AP32: xxx | AR32: 0 | AS32: 0 | AT32: 0 | AU32: 0 | AV32: 0 | AW32: 0 | AX32: 0 | AY32: 0 | AZ32: 0 | BA32: 0 | BB32: 0 | BC32: 0
A33: 33 | AD33: =AD31 -> >895 | AE33: =AE31 -> <=932 | AJ33: 36 | AK33: 505-OP | AL33: Steam | AM33: Electric Expenses | AO33: P01 | AQ33: 636000
A34: 34 | B34: Operating Expenses | AD34: Undefined Space | AG34: Crit2G | AJ34: 37 | AL34: P | AM34: Coincident Peak | AO34: 34.2 | AP34: D01 | AR34: 217512 | AS34: 108394.8101 | AT34: 16931.23247 | AU34: 53206.02561 | AV34: 34584.60044 | AW34: 3866.611909 | AX34: 528.7194331 | AY34: 0 | AZ34: 0 | BA34: 0 | BB34: 0 | BC34: 0
A35: 35 | B35: Production Expenses | D35: Database Line | E35: 203 | F35: =SUM(G35:Q35) -> 209676000 | G35: =VLOOKUP($E35,_xlnm.Database,10) -> 95210263.35 | H35: =VLOOKUP($E35,_xlnm.Database,11) -> 17764357.15 | I35: =VLOOKUP($E35,_xlnm.Database,12) -> 54354947.77 | J35: =VLOOKUP($E35,_xlnm.Database,13) -> 37162678.58 | K35: =VLOOKUP($E35,_xlnm.Database,14) -> 4365285.763 | L35: =VLOOKUP($E35,_xlnm.Database,15) -> 818467.3872 | M35: =VLOOKUP($E35,_xlnm.Database,16) -> 0 | N35: =VLOOKUP($E35,_xlnm.Database,17) -> 0 | O35: =VLOOKUP($E35,_xlnm.Database,18) -> 0 | P35: =VLOOKUP($E35,_xlnm.Database,19) -> 0 | Q35: =VLOOKUP($E35,_xlnm.Database,20) -> 0 | AD35: Available for Expansion | AJ35: 38 | AL35: P | AM35: Generation Level Consumption | AO35: 65.8 | AP35: E02 | AR35: 418488 | AS35: 180401.8451 | AT35: 36952.52697 | AU35: 111666.1905 | AV35: 78139.14275 | AW35: 9374.396815 | AX35: 1953.897835 | AY35: 0 | AZ35: 0 | BA35: 0 | BB35: 0 | BC35: 0
A36: 36 | B36: Transmission Expenses | D36: Database Line | E36: 264 | F36: 20534000 | G36: 9324136.037 | H36: 1739699.868 | I36: 5323091.329 | J36: 3639417.205 | K36: 427501.3729 | L36: 80154.18707 | M36: 0 | N36: 0 | O36: 0 | P36: 0 | Q36: 0 | AG36: Crit2H | AJ36: 39 | AL36: P | AM36: Open | AO36: 0 | AP36: xxx | AR36: 0 | AS36: 0 | AT36: 0 | AU36: 0 | AV36: 0 | AW36: 0 | AX36: 0 | AY36: 0 | AZ36: 0 | BA36: 0 | BB36: 0 | BC36: 0
A37: 37 | B37: Distribution Expenses | D37: Database Line | E37: 307 | F37: 20286000 | G37: 10727108.47 | H37: 2620719.995 | I37: 4374831.097 | J37: 761860.9938 | K37: 530638.8196 | L37: 1270840.626 | M37: 0 | N37: 0 | O37: 0 | P37: 0 | Q37: 0 | AJ37: 40 | AL37: P | AM37: Open | AO37: 0 | AP37: xxx | AR37: 0 | AS37: 0 | AT37: 0 | AU37: 0 | AV37: 0 | AW37: 0 | AX37: 0 | AY37: 0 | AZ37: 0 | BA37: 0 | BB37: 0 | BC37: 0
